Workbook

Sheet SPY Data
H1: Daily Returns | M1: Weekly Returns | R1: Monthly Returns | AA1: alpha= | AB1: 0.025
A2: Date | B2: Adjusted Close | C2: Ln of Return | D2: Past Year's Correlation | E2: Cumulative Correlation | F2: Correlation with Russell 2000 | H2: Annual Volatility | I2: Daily Mean | J2: Annual Mean | K2: Volatility Squared | M2: Annual Volatility | N2: Weekly Mean | O2: Annual Mean | P2: Volatility Squared | R2: Annual Volatility | S2: MonthlyMean | T2: Annual Mean | U2: Volatility Squared | W2: Date | X2: SPY Close | Y2: RUS Close | Z2: MFI LNReturn
A3: 2009-09-04 | B3: 102.06 | C3: =LN(B3/B4) -> 0.01391172355 | D3: =CORREL(C3:C254, 'RUS Data'!C3:C254) -> 0.9255916471 | F3: =CORREL('SPY Data'!C3:C2334,'RUS Data'!C3:C2334) -> 0.8937852174 | H3: =STDEV(C3:C2334)/SQRT(1/252) -> 0.2234451745 | I3: =AVERAGE(C3:C4184) -> 0.0002703418495 | J3: =(1+I3)^(252)-1 -> 0.07049048331 | K3: =(H3^2) -> 0.04992774599 | W3: 2009-09-04 | X3: 102.06 | Y3: 57.05 | Z3: =Z4*EXP(AD3) -> 98.33865758 | AB3: =LN(X3/X4) -> 0.01391172355 | AC3: =LN(Y3/Y4) -> 0.01394427325 | AD3: =AB3+($AB$1/SQRT(252))*SQRT(2*PI())*NORMSINV(RAND()) -> 0.01316601034
A4: 2009-09-03 | B4: 100.65 | C4: =LN(B4/B5) -> 0.008280588044 | D4: =CORREL(C4:C255, 'RUS Data'!C4:C255) -> 0.9254640836 | E4: =CORREL($C$3:C4, 'RUS Data'!$C$3:C4) -> 1 | W4: 2009-09-03 | X4: 100.65 | Y4: 56.26 | Z4: 97.05241571 | AB4: =LN(X4/X5) -> 0.008280588044 | AC4: 0.01108143601 | AD4: 0.01481783449
A5: 2009-09-02 | B5: 99.82 | C5: -0.003799624609 | D5: =CORREL(C5:C256, 'RUS Data'!C5:C256) -> 0.9257063478 | E5: =CORREL($C$3:C5, 'RUS Data'!$C$3:C5) -> 0.984567396 | W5: 2009-09-02 | X5: 99.82 | Y5: 55.64 | Z5: 95.62491146 | AB5: -0.003799624609 | AC5: -0.00501973087 | AD5: -0.007730069174
A6: 2009-09-01 | B6: 100.2 | C6: -0.02230428986 | D6: =CORREL(C6:C257, 'RUS Data'!C6:C257) -> 0.9256572556 | E6: =CORREL($C$3:C6, 'RUS Data'!$C$3:C6) -> 0.9957314045 | W6: 2009-09-01 | X6: 100.2 | Y6: 55.92 | Z6: 96.366963 | AB6: -0.02230428986 | AC6: -0.02263180046 | AD6: -0.01784831643
A7: 2009-08-31 | B7: 102.46 | C7: -0.008939041257 | D7: =CORREL(C7:C258, 'RUS Data'!C7:C258) -> 0.9254428495 | E7: =CORREL($C$3:C7, 'RUS Data'!$C$3:C7) -> 0.9840084798 | W7: 2009-08-31 | X7: 102.46 | Y7: 57.2 | Z7: 98.10239222 | AB7: -0.008939041257 | AC7: -0.01475080976 | AD7: -0.01113003062
A8: 2009-08-28 | B8: 103.38 | C8: -0.0001934423064 | D8: =CORREL(C8:C259, 'RUS Data'!C8:C259) -> 0.92544157 | E8: =CORREL($C$3:C8, 'RUS Data'!$C$3:C8) -> 0.9716531401 | W8: 2009-08-28 | X8: 103.38 | Y8: 58.05 | Z8: 99.2003738 | AB8: -0.0001934423064 | AC8: -0.006353588816 | AD8: -0.002907818667
A9: 2009-08-27 | B9: 103.4 | C9: 0.002226848962 | D9: =CORREL(C9:C260, 'RUS Data'!C9:C260) -> 0.925528604 | E9: =CORREL($C$3:C9, 'RUS Data'!$C$3:C9) -> 0.9694897767 | W9: 2009-08-27 | X9: 103.4 | Y9: 58.42 | Z9: 99.4892503 | AB9: 0.002226848962 | AC9: -0.001539382841 | AD9: -0.0002293736046
A10: 2009-08-26 | B10: 103.17 | C10: 9.693209914e-05 | D10: =CORREL(C10:C261, 'RUS Data'!C10:C261) -> 0.9255999762 | E10: =CORREL($C$3:C10, 'RUS Data'!$C$3:C10) -> 0.9632391736 | W10: 2009-08-26 | X10: 103.17 | Y10: 58.51 | Z10: 99.51207312 | AB10: 9.693209914e-05 | AC10: 0.002224314374 | AD10: 0.001722397001
A11: 2009-08-25 | B11: 103.16 | C11: 0.001940617725 | D11: =CORREL(C11:C262, 'RUS Data'!C11:C262) -> 0.9256031605 | E11: =CORREL($C$3:C11, 'RUS Data'!$C$3:C11) -> 0.9592817916 | W11: 2009-08-25 | X11: 103.16 | Y11: 58.38 | Z11: 99.34082135 | AB11: 0.001940617725 | AC11: 0.004291483713 | AD11: 0.004746787144
A12: 2009-08-24 | B12: 102.96 | C12: -9.712038079e-05 | D12: =CORREL(C12:C263, 'RUS Data'!C12:C263) -> 0.9257369524 | E12: =CORREL($C$3:C12, 'RUS Data'!$C$3:C12) -> 0.9591232381 | W12: 2009-08-24 | X12: 102.96 | Y12: 58.13 | Z12: 98.87038902 | AB12: -9.712038079e-05 | AC12: -0.0003439972514 | AD12: -0.00227810166
A13: 2009-08-21 | B13: 102.97 | C13: 0.01941618163 | D13: =CORREL(C13:C264, 'RUS Data'!C13:C264) -> 0.9258080801 | E13: =CORREL($C$3:C13, 'RUS Data'!$C$3:C13) -> 0.9716855652 | W13: 2009-08-21 | X13: 102.97 | Y13: 58.15 | Z13: 99.09588257 | AB13: 0.01941618163 | AC13: 0.02278557574 | AD13: 0.01713731558
A14: 2009-08-20 | B14: 100.99 | C14: 0.01025139607 | D14: =CORREL(C14:C265, 'RUS Data'!C14:C265) -> 0.9253338735 | E14: =CORREL($C$3:C14, 'RUS Data'!$C$3:C14) -> 0.9733225282 | W14: 2009-08-20 | X14: 100.99 | Y14: 56.84 | Z14: 97.412114 | AB14: 0.01025139607 | AC14: 0.01078988092 | AD14: 0.01575285394
A15: 2009-08-19 | B15: 99.96 | C15: 0.008741577896 | D15: =CORREL(C15:C266, 'RUS Data'!C15:C266) -> 0.9252712895 | E15: =CORREL($C$3:C15, 'RUS Data'!$C$3:C15) -> 0.9726346345 | W15: 2009-08-19 | X15: 99.96 | Y15: 56.23 | Z15: 95.88961851 | AB15: 0.008741577896 | AC15: 0.01216690622 | AD15: 0.005140040435
A16: 2009-08-18 | B16: 99.09 | C16: 0.007902776692 | D16: =CORREL(C16:C267, 'RUS Data'!C16:C267) -> 0.9252610802 | E16: =CORREL($C$3:C16, 'RUS Data'!$C$3:C16) -> 0.9689436178 | W16: 2009-08-18 | X16: 99.09 | Y16: 55.55 | Z16: 95.39800653 | AB16: 0.007902776692 | AC16: 0.01322842521 | AD16: 0.006921214741
A17: 2009-08-17 | B17: 98.31 | C17: -0.02491339299 | D17: =CORREL(C17:C268, 'RUS Data'!C17:C268) -> 0.9252841812 | E17: =CORREL($C$3:C17, 'RUS Data'!$C$3:C17) -> 0.9788746241 | W17: 2009-08-17 | X17: 98.31 | Y17: 54.82 | Z17: 94.74001611 | AB17: -0.02491339299 | AC17: -0.02859135688 | AD17: -0.02482035708
A18: 2009-08-14 | B18: 100.79 | C18: -0.007709071585 | D18: =CORREL(C18:C269, 'RUS Data'!C18:C269) -> 0.9249573669 | E18: =CORREL($C$3:C18, 'RUS Data'!$C$3:C18) -> 0.962802276 | W18: 2009-08-14 | X18: 100.79 | Y18: 56.41 | Z18: 97.12092238 | AB18: -0.007709071585 | AC18: -0.02070249377 | AD18: 0.0008357762754
A19: 2009-08-13 | B19: 101.57 | C19: 0.007609860314 | D19: =CORREL(C19:C270, 'RUS Data'!C19:C270) -> 0.9251802721 | E19: =CORREL($C$3:C19, 'RUS Data'!$C$3:C19) -> 0.9636090279 | W19: 2009-08-13 | X19: 101.57 | Y19: 57.59 | Z19: 97.03978493 | AB19: 0.007609860314 | AC19: =LN(Y19/Y20) -> 0.008194623487 | AD19: 0.008685123132
A20: 2009-08-12 | B20: 100.8 | C20: 0.01067182122 | D20: =CORREL(C20:C271, 'RUS Data'!C20:C271) -> 0.9249603966 | E20: =CORREL($C$3:C20, 'RUS Data'!$C$3:C20) -> 0.9644956383 | W20: 2009-08-12 | X20: 100.8 | Y20: 57.12 | Z20: 96.2006318 | AB20: 0.01067182122 | AC20: 0.01499278459 | AD20: 0.003385590937
A21: 2009-08-11 | B21: 99.73 | C21: -0.01255496762 | D21: =CORREL(C21:C272, 'RUS Data'!C21:C272) -> 0.9248983893 | E21: =CORREL($C$3:C21, 'RUS Data'!$C$3:C21) -> 0.9670196308 | W21: 2009-08-11 | X21: 99.73 | Y21: 56.27 | Z21: 95.87548653 | AB21: -0.01255496762 | AC21: -0.01621752448 | AD21: -0.01511518787
A22: 2009-08-10 | B22: 100.99 | C22: -0.002077254815 | D22: =CORREL(C22:C273, 'RUS Data'!C22:C273) -> 0.9247027822 | E22: =CORREL($C$3:C22, 'RUS Data'!$C$3:C22) -> 0.9638213268 | W22: 2009-08-10 | X22: 100.99 | Y22: 57.19 | Z22: 97.33567019 | AB22: -0.002077254815 | AC22: 0.001750087951 | AD22: 0.003100725844
A23: 2009-08-07 | B23: 101.2 | C23: 0.01302917631 | D23: =CORREL(C23:C274, 'RUS Data'!C23:C274) -> 0.9248580431 | E23: =CORREL($C$3:C23, 'RUS Data'!$C$3:C23) -> 0.9605467864 | W23: 2009-08-07 | X23: 101.2 | Y23: 57.09 | Z23: 97.0343264 | AB23: 0.01302917631 | AC23: 0.02375155964 | AD23: 0.01695309262
A24: 2009-08-06 | B24: 99.89 | C24: -0.005192223347 | D24: =CORREL(C24:C275, 'RUS Data'!C24:C275) -> 0.9249342062 | E24: =CORREL($C$3:C24, 'RUS Data'!$C$3:C24) -> 0.9566250653 | W24: 2009-08-06 | X24: 99.89 | Y24: 55.75 | Z24: 95.4031602 | AB24: -0.005192223347 | AC24: -0.01407094193 | AD24: -0.004146743788
A25: 2009-08-05 | B25: 100.41 | C25: -0.002883995833 | D25: =CORREL(C25:C276, 'RUS Data'!C25:C276) -> 0.9250409449 | E25: =CORREL($C$3:C25, 'RUS Data'!$C$3:C25) -> 0.9539945964 | W25: 2009-08-05 | X25: 100.41 | Y25: 56.54 | Z25: 95.79959405 | AB25: -0.002883995833 | AC25: -0.01003088041 | AD25: 0.002132688183
A26: 2009-08-04 | B26: 100.7 | C26: 0.002585265435 | D26: =CORREL(C26:C277, 'RUS Data'!C26:C277) -> 0.9249512579 | E26: =CORREL($C$3:C26, 'RUS Data'!$C$3:C26) -> 0.9490635635 | W26: 2009-08-04 | X26: 100.7 | Y26: 57.11 | Z26: 95.5955011 | AB26: 0.002585265435 | AC26: 0.01003088041 | AD26: 0.006691860061
A27: 2009-08-03 | B27: 100.44 | C27: 0.01636172008 | D27: =CORREL(C27:C278, 'RUS Data'!C27:C278) -> 0.925042396 | E27: =CORREL($C$3:C27, 'RUS Data'!$C$3:C27) -> 0.9510151901 | W27: 2009-08-03 | X27: 100.44 | Y27: 56.54 | Z27: 94.95792505 | AB27: 0.01636172008 | AC27: 0.01730486497 | AD27: 0.01652503456
A28: 2009-07-31 | B28: 98.81 | C28: 0.001417865338 | D28: =CORREL(C28:C279, 'RUS Data'!C28:C279) -> 0.9248573541 | E28: =CORREL($C$3:C28, 'RUS Data'!$C$3:C28) -> 0.9484737031 | W28: 2009-07-31 | X28: 98.81 | Y28: 55.57 | Z28: 93.40163633 | AB28: 0.001417865338 | AC28: -0.004130382095 | AD28: 0.005218288594
A29: 2009-07-30 | B29: 98.67 | C29: 0.01039129155 | D29: =CORREL(C29:C280, 'RUS Data'!C29:C280) -> 0.9247200655 | E29: =CORREL($C$3:C29, 'RUS Data'!$C$3:C29) -> 0.9486944475 | W29: 2009-07-30 | X29: 98.67 | Y29: 55.8 | Z29: 92.91550912 | AB29: 0.01039129155 | AC29: 0.01735401469 | AD29: 0.004036944525
A30: 2009-07-29 | B30: 97.65 | C30: -0.002454741951 | D30: =CORREL(C30:C281, 'RUS Data'!C30:C281) -> 0.9243914239 | E30: =CORREL($C$3:C30, 'RUS Data'!$C$3:C30) -> 0.9489253481 | W30: 2009-07-29 | X30: 97.65 | Y30: 54.84 | Z30: 92.54117046 | AB30: -0.002454741951 | AC30: -0.005092772011 | AD30: -0.005357212649
A31: 2009-07-28 | B31: 97.89 | C31: -0.004688145562 | D31: =CORREL(C31:C282, 'RUS Data'!C31:C282) -> 0.9245749542 | E31: =CORREL($C$3:C31, 'RUS Data'!$C$3:C31) -> 0.9441667201 | W31: 2009-07-28 | X31: 97.89 | Y31: 55.12 | Z31: 93.03826352 | AB31: -0.004688145562 | AC31: 0.0005444152208 | AD31: -0.007642402391
A32: 2009-07-27 | B32: 98.35 | C32: 0.002953008612 | D32: =CORREL(C32:C283, 'RUS Data'!C32:C283) -> 0.9247066441 | E32: =CORREL($C$3:C32, 'RUS Data'!$C$3:C32) -> 0.9440253004 | W32: 2009-07-27 | X32: 98.35 | Y32: 55.09 | Z32: 93.75202331 | AB32: 0.002953008612 | AC32: 0.005095552427 | AD32: -0.001307076341
A33: 2009-07-24 | B33: 98.06 | C33: 0.00408747759 | D33: =CORREL(C33:C284, 'RUS Data'!C33:C284) -> 0.9245883476 | E33: =CORREL($C$3:C33, 'RUS Data'!$C$3:C33) -> 0.944161769 | W33: 2009-07-24 | X33: 98.06 | Y33: 54.81 | Z33: 93.87464448 | AB33: 0.00408747759 | AC33: 0.00512165012 | AD33: 0.005636127535
A34: 2009-07-23 | B34: 97.66 | C34: 0.02184238795 | D34: =CORREL(C34:C285, 'RUS Data'!C34:C285) -> 0.9247310455 | E34: =CORREL($C$3:C34, 'RUS Data'!$C$3:C34) -> 0.9507734978 | W34: 2009-07-23 | X34: 97.66 | Y34: 54.53 | Z34: 93.34704323 | AB34: 0.02184238795 | AC34: 0.03110409976 | AD34: 0.02996222143
A35: 2009-07-22 | B35: 95.55 | C35: -0.0002092925918 | D35: =CORREL(C35:C286, 'RUS Data'!C35:C286) -> 0.9245746437 | E35: =CORREL($C$3:C35, 'RUS Data'!$C$3:C35) -> 0.9454593073 | W35: 2009-07-22 | X35: 95.55 | Y35: 52.86 | Z35: 90.59164353 | AB35: -0.0002092925918 | AC35: 0.007786574334 | AD35: 0.001103681255
A36: 2009-07-21 | B36: 95.57 | C36: 0.00461458606 | D36: =CORREL(C36:C287, 'RUS Data'!C36:C287) -> 0.9245433414 | E36: =CORREL($C$3:C36, 'RUS Data'!$C$3:C36) -> 0.9409546521 | W36: 2009-07-21 | X36: 95.57 | Y36: 52.45 | Z36: 90.49171438 | AB36: 0.00461458606 | AC36: -0.001714449415 | AD36: 0.006951530665
A37: 2009-07-20 | B37: 95.13 | C37: 0.01056757166 | D37: =CORREL(C37:C288, 'RUS Data'!C37:C288) -> 0.9244208576 | E37: =CORREL($C$3:C37, 'RUS Data'!$C$3:C37) -> 0.9417606971 | W37: 2009-07-20 | X37: 95.13 | Y37: 52.54 | Z37: 89.86483985 | AB37: 0.01056757166 | AC37: 0.01225599409 | AD37: 0.0126478938
A38: 2009-07-17 | B38: 94.13 | C38: 0.01089521566 | D38: =CORREL(C38:C289, 'RUS Data'!C38:C289) -> 0.9243904914 | E38: =CORREL($C$3:C38, 'RUS Data'!$C$3:C38) -> 0.9182307137 | W38: 2009-07-17 | X38: 94.13 | Y38: 51.9 | Z38: 88.73539649 | AB38: 0.01089521566 | AC38: -0.003846158587 | AD38: 0.0164961849
A39: 2009-07-16 | B39: 93.11 | C39: -0.00160970148 | D39: =CORREL(C39:C290, 'RUS Data'!C39:C290) -> 0.9246937176 | E39: =CORREL($C$3:C39, 'RUS Data'!$C$3:C39) -> 0.9014774703 | W39: 2009-07-16 | X39: 93.11 | Y39: 52.1 | Z39: 87.28360839 | AB39: -0.00160970148 | AC39: 0.01236014191 | AD39: 0.007005280178
A40: 2009-07-15 | B40: 93.26 | C40: 0.02882670915 | D40: =CORREL(C40:C291, 'RUS Data'!C40:C291) -> 0.9252115702 | E40: =CORREL($C$3:C40, 'RUS Data'!$C$3:C40) -> 0.916710419 | W40: 2009-07-15 | X40: 93.26 | Y40: 51.46 | Z40: 86.67429894 | AB40: 0.02882670915 | AC40: 0.03782254608 | AD40: 0.03786573044
A41: 2009-07-14 | B41: 90.61 | C41: 0.00564441762 | D41: =CORREL(C41:C292, 'RUS Data'!C41:C292) -> 0.9246566701 | E41: =CORREL($C$3:C41, 'RUS Data'!$C$3:C41) -> 0.916701818 | W41: 2009-07-14 | X41: 90.61 | Y41: 49.55 | Z41: 83.45367377 | AB41: 0.00564441762 | AC41: 0.005869868084 | AD41: 0.005860184931
A42: 2009-07-13 | B42: 90.1 | C42: 0.02403799893 | D42: =CORREL(C42:C293, 'RUS Data'!C42:C293) -> 0.9246123905 | E42: =CORREL($C$3:C42, 'RUS Data'!$C$3:C42) -> 0.9190145326 | W42: 2009-07-13 | X42: 90.1 | Y42: 49.26 | Z42: 82.96604999 | AB42: 0.02403799893 | AC42: 0.02383021558 | AD42: 0.02740570062
A43: 2009-07-10 | B43: 87.96 | C43: -0.002384603412 | D43: =CORREL(C43:C294, 'RUS Data'!C43:C294) -> 0.9238186422 | E43: =CORREL($C$3:C43, 'RUS Data'!$C$3:C43) -> 0.9150131252 | W43: 2009-07-10 | X43: 87.96 | Y43: 48.1 | Z43: 80.72318133 | AB43: -0.002384603412 | AC43: 0.004793173707 | AD43: -0.002854059859
A44: 2009-07-09 | B44: 88.17 | C44: 0.001929954621 | D44: =CORREL(C44:C295, 'RUS Data'!C44:C295) -> 0.9238907287 | E44: =CORREL($C$3:C44, 'RUS Data'!$C$3:C44) -> 0.9130512112 | W44: 2009-07-09 | X44: 88.17 | Y44: 47.87 | Z44: 80.95389921 | AB44: 0.001929954621 | AC44: -0.004169278501 | AD44: 6.467778123e-05
A45: 2009-07-08 | B45: 88 | C45: -0.0006815858494 | D45: =CORREL(C45:C296, 'RUS Data'!C45:C296) -> 0.924076381 | E45: =CORREL($C$3:C45, 'RUS Data'!$C$3:C45) -> 0.9121290545 | W45: 2009-07-08 | X45: 88 | Y45: 48.07 | Z45: 80.94866346 | AB45: -0.0006815858494 | AC45: -0.006841531817 | AD45: -0.005650986328
A46: 2009-07-07 | B46: 88.06 | C46: -0.01956657498 | D46: =CORREL(C46:C297, 'RUS Data'!C46:C297) -> 0.9239807551 | E46: =CORREL($C$3:C46, 'RUS Data'!$C$3:C46) -> 0.9184575283 | W46: 2009-07-07 | X46: 88.06 | Y46: 48.4 | Z46: 81.40739818 | AB46: -0.01956657498 | AC46: -0.02186661152 | AD46: -0.01809675217
A47: 2009-07-06 | B47: 89.8 | C47: -0.0001113523747 | D47: =CORREL(C47:C298, 'RUS Data'!C47:C298) -> 0.9238775708 | E47: =CORREL($C$3:C47, 'RUS Data'!$C$3:C47) -> 0.9156175016 | W47: 2009-07-06 | X47: 89.8 | Y47: 49.47 | Z47: 82.89401862 | AB47: -0.0001113523747 | AC47: -0.008854958242 | AD47: -0.005061220435
A48: 2009-07-02 | B48: 89.81 | C48: -0.0276727881 | D48: =CORREL(C48:C299, 'RUS Data'!C48:C299) -> 0.9238446644 | E48: =CORREL($C$3:C48, 'RUS Data'!$C$3:C48) -> 0.9272325075 | W48: 2009-07-02 | X48: 89.81 | Y48: 49.91 | Z48: 83.31462702 | AB48: -0.0276727881 | AC48: -0.03504295573 | AD48: -0.02679832355
A49: 2009-07-01 | B49: 92.33 | C49: 0.004124164734 | D49: =CORREL(C49:C300, 'RUS Data'!C49:C300) -> 0.9234553118 | E49: =CORREL($C$3:C49, 'RUS Data'!$C$3:C49) -> 0.922604626 | W49: 2009-07-01 | X49: 92.33 | Y49: 51.69 | Z49: 85.57750459 | AB49: 0.004124164734 | AC49: 0.01540141565 | AD49: 0.0003696266035
A50: 2009-06-30 | B50: 91.95 | C50: -0.008123521521 | D50: =CORREL(C50:C301, 'RUS Data'!C50:C301) -> 0.9235965437 | E50: =CORREL($C$3:C50, 'RUS Data'!$C$3:C50) -> 0.9203405255 | W50: 2009-06-30 | X50: 91.95 | Y50: 50.9 | Z50: 85.54587871 | AB50: -0.008123521521 | AC50: -0.002942621054 | AD50: -0.0101161292
A51: 2009-06-29 | B51: 92.7 | C51: 0.009320540001 | D51: =CORREL(C51:C302, 'RUS Data'!C51:C302) -> 0.9233076191 | E51: =CORREL($C$3:C51, 'RUS Data'!$C$3:C51) -> 0.9143547781 | W51: 2009-06-29 | X51: 92.7 | Y51: 51.05 | Z51: 86.41566389 | AB51: 0.009320540001 | AC51: 0 | AD51: 0.008872753305
A52: 2009-06-26 | B52: 91.84 | C52: -0.002609831842 | D52: =CORREL(C52:C303, 'RUS Data'!C52:C303) -> 0.9234168864 | E52: =CORREL($C$3:C52, 'RUS Data'!$C$3:C52) -> 0.9120002409 | W52: 2009-06-26 | X52: 91.84 | Y52: 51.05 | Z52: 85.65231055 | AB52: -0.002609831842 | AC52: 0.003532185776 | AD52: -0.004681049797
A53: 2009-06-25 | B53: 92.08 | C53: 0.02151564885 | D53: =CORREL(C53:C304, 'RUS Data'!C53:C304) -> 0.9236484901 | E53: =CORREL($C$3:C53, 'RUS Data'!$C$3:C53) -> 0.9169188646 | W53: 2009-06-25 | X53: 92.08 | Y53: 50.87 | Z53: 86.05419316 | AB53: 0.02151564885 | AC53: 0.02831130077 | AD53: 0.0206035063
A54: 2009-06-24 | B54: 90.12 | C54: 0.008580873959 | D54: =CORREL(C54:C305, 'RUS Data'!C54:C305) -> 0.9234234615 | E54: =CORREL($C$3:C54, 'RUS Data'!$C$3:C54) -> 0.9173678686 | W54: 2009-06-24 | X54: 90.12 | Y54: 49.45 | Z54: 84.29931545 | AB54: 0.008580873959 | AC54: 0.01077574725 | AD54: 0.01007813477
A55: 2009-06-23 | B55: 89.35 | C55: 0.0007837429724 | D55: =CORREL(C55:C306, 'RUS Data'!C55:C306) -> 0.9230281903 | E55: =CORREL($C$3:C55, 'RUS Data'!$C$3:C55) -> 0.9145553279 | W55: 2009-06-23 | X55: 89.35 | Y55: 48.92 | Z55: 83.45400233 | AB55: 0.0007837429724 | AC55: -0.008143367477 | AD55: 0.003955167559
A56: 2009-06-22 | B56: 89.28 | C56: -0.03044576653 | D56: =CORREL(C56:C307, 'RUS Data'!C56:C307) -> 0.9230525161 | E56: =CORREL($C$3:C56, 'RUS Data'!$C$3:C56) -> 0.9245463501 | W56: 2009-06-22 | X56: 89.28 | Y56: 49.32 | Z56: 83.12457966 | AB56: -0.03044576653 | AC56: -0.0360417308 | AD56: -0.02818986208
A57: 2009-06-19 | B57: 92.04 | C57: 0.003700885905 | D57: =CORREL(C57:C308, 'RUS Data'!C57:C308) -> 0.9227864382 | E57: =CORREL($C$3:C57, 'RUS Data'!$C$3:C57) -> 0.9244932322 | W57: 2009-06-19 | X57: 92.04 | Y57: 51.13 | Z57: 85.50119088 | AB57: 0.003700885905 | AC57: 0.0060814312 | AD57: 0.006434515987
A58: 2009-06-18 | B58: 91.7 | C58: 0.007223408884 | D58: =CORREL(C58:C309, 'RUS Data'!C58:C309) -> 0.9227127972 | E58: =CORREL($C$3:C58, 'RUS Data'!$C$3:C58) -> 0.9239301325 | W58: 2009-06-18 | X58: 91.7 | Y58: 50.82 | Z58: 84.95279832 | AB58: 0.007223408884 | AC58: 0.004536049588 | AD58: 0.01219980439
A59: 2009-06-17 | B59: 91.04 | C59: -0.00098808813 | D59: =CORREL(C59:C310, 'RUS Data'!C59:C310) -> 0.9227260019 | E59: =CORREL($C$3:C59, 'RUS Data'!$C$3:C59) -> 0.9221205265 | W59: 2009-06-17 | X59: 91.04 | Y59: 50.59 | Z59: 83.92268715 | AB59: -0.00098808813 | AC59: 0.005351315912 | AD59: -0.004776848804
A60: 2009-06-16 | B60: 91.13 | C60: -0.01362344649 | D60: =CORREL(C60:C311, 'RUS Data'!C60:C311) -> 0.9227560295 | E60: =CORREL($C$3:C60, 'RUS Data'!$C$3:C60) -> 0.924265389 | W60: 2009-06-16 | X60: 91.13 | Y60: 50.32 | Z60: 84.32453215 | AB60: -0.01362344649 | AC60: -0.01694621834 | AD60: -0.01466169392
A61: 2009-06-15 | B61: 92.38 | C61: -0.0232182901 | D61: =CORREL(C61:C312, 'RUS Data'!C61:C312) -> 0.9226533668 | E61: =CORREL($C$3:C61, 'RUS Data'!$C$3:C61) -> 0.9288613809 | W61: 2009-06-15 | X61: 92.38 | Y61: 51.18 | Z61: 85.56998051 | AB61: -0.0232182901 | AC61: -0.02736728901 | AD61: -0.02658701083
A62: 2009-06-12 | B62: 94.55 | C62: 0.002753655627 | D62: =CORREL(C62:C313, 'RUS Data'!C62:C313) -> 0.9225364601 | E62: =CORREL($C$3:C62, 'RUS Data'!$C$3:C62) -> 0.9288753448 | W62: 2009-06-12 | X62: 94.55 | Y62: 52.6 | Z62: 87.87554372 | AB62: 0.002753655627 | AC62: 0.003046460848 | AD62: 0.006962323654
A63: 2009-06-11 | B63: 94.29 | C63: 0.004464293129 | D63: =CORREL(C63:C314, 'RUS Data'!C63:C314) -> 0.9225238994 | E63: =CORREL($C$3:C63, 'RUS Data'!$C$3:C63) -> 0.9280485114 | W63: 2009-06-11 | X63: 94.29 | Y63: 52.44 | Z63: 87.26585064 | AB63: 0.004464293129 | AC63: 0.0003814610002 | AD63: 0.001332061772
A64: 2009-06-10 | B64: 93.87 | C64: -0.002553464522 | D64: =CORREL(C64:C315, 'RUS Data'!C64:C315) -> 0.9226354032 | E64: =CORREL($C$3:C64, 'RUS Data'!$C$3:C64) -> 0.9281767604 | W64: 2009-06-10 | X64: 93.87 | Y64: 52.42 | Z64: 87.14968453 | AB64: -0.002553464522 | AC64: -0.00399810147 | AD64: -0.001181171026
A65: 2009-06-09 | B65: 94.11 | C65: 0.00511346592 | D65: =CORREL(C65:C316, 'RUS Data'!C65:C316) -> 0.9226386565 | E65: =CORREL($C$3:C65, 'RUS Data'!$C$3:C65) -> 0.9281747455 | W65: 2009-06-09 | X65: 94.11 | Y65: 52.63 | Z65: 87.25268403 | AB65: 0.00511346592 | AC65: 0.004570565946 | AD65: 0.003619737641
A66: 2009-06-08 | B66: 93.63 | C66: -0.004156680645 | D66: =CORREL(C66:C317, 'RUS Data'!C66:C317) -> 0.9225620934 | E66: =CORREL($C$3:C66, 'RUS Data'!$C$3:C66) -> 0.9274754209 | W66: 2009-06-08 | X66: 93.63 | Y66: 52.39 | Z66: 86.93742313 | AB66: -0.004156680645 | AC66: -0.01176484158 | AD66: -0.003491340684
A67: 2009-06-05 | B67: 94.02 | C67: 0.000212743326 | D67: =CORREL(C67:C318, 'RUS Data'!C67:C318) -> 0.9228683612 | E67: =CORREL($C$3:C67, 'RUS Data'!$C$3:C67) -> 0.9274693096 | W67: 2009-06-05 | X67: 94.02 | Y67: 53.01 | Z67: =Z68*EXP(AD67) -> 87.24148177 | AB67: 0.000212743326 | AC67: 0.000377358495 | AD67: =AB67+($AB$1/SQRT(252))*SQRT(2*PI())*NORMSINV(RAND()) -> 0.004416378049
A68: 2009-06-04 | B68: 94 | C68: =LN(B68/B69) -> 0.009405798287 | D68: =CORREL(C68:C319, 'RUS Data'!C68:C319) -> 0.9230423049 | E68: =CORREL($C$3:C68, 'RUS Data'!$C$3:C68) -> 0.9279324563 | W68: 2009-06-04 | X68: 94 | Y68: 52.99 | Z68: 86.85703995 | AB68: =LN(X68/X69) -> 0.009405798287 | AC68: 0.01406332566 | AD68: 0.004607020874
A69: 2009-06-03 | B69: 93.12 | C69: -0.01280427225 | D69: =CORREL(C69:C320, 'RUS Data'!C69:C320) -> 0.9229337873 | E69: =CORREL($C$3:C69, 'RUS Data'!$C$3:C69) -> 0.9254684618 | W69: 2009-06-03 | X69: 93.12 | Y69: 52.25 | Z69: 86.45780809 | AB69: -0.01280427225 | AC69: -0.006676228899 | AD69: -0.01860607271
A70: 2009-06-02 | B70: 94.32 | C70: 0.0008485363258 | D70: =CORREL(C70:C321, 'RUS Data'!C70:C321) -> 0.9229829104 | E70: =CORREL($C$3:C70, 'RUS Data'!$C$3:C70) -> 0.9212982763 | W70: 2009-06-02 | X70: 94.32 | Y70: 52.6 | Z70: 88.08150684 | AB70: 0.0008485363258 | AC70: 0.0124344022 | AD70: -0.003181569763
A71: 2009-06-01 | B71: 94.24 | C71: 0.02394745311 | D71: =CORREL(C71:C322, 'RUS Data'!C71:C322) -> 0.9231967059 | E71: =CORREL($C$3:C71, 'RUS Data'!$C$3:C71) -> 0.9248430932 | W71: 2009-06-01 | X71: 94.24 | Y71: 51.95 | Z71: 88.36219057 | AB71: 0.02394745311 | AC71: 0.03845873212 | AD71: 0.02433482778
A72: 2009-05-29 | B72: 92.01 | C72: 0.01754238604 | D72: =CORREL(C72:C323, 'RUS Data'!C72:C323) -> 0.9230689402 | E72: =CORREL($C$3:C72, 'RUS Data'!$C$3:C72) -> 0.9263645042 | W72: 2009-05-29 | X72: 92.01 | Y72: 49.99 | Z72: 86.23786427 | AB72: 0.01754238604 | AC72: 0.02020678977 | AD72: 0.01663023506
A73: 2009-05-28 | B73: 90.41 | C73: 0.0138102206 | D73: =CORREL(C73:C324, 'RUS Data'!C73:C324) -> 0.9229275775 | E73: =CORREL($C$3:C73, 'RUS Data'!$C$3:C73) -> 0.9188102343 | W73: 2009-05-28 | X73: 90.41 | Y73: 48.99 | Z73: 84.81556766 | AB73: 0.0138102206 | AC73: 0.001225490349 | AD73: 0.00672534851
A74: 2009-05-27 | B74: 89.17 | C74: -0.01800448724 | D74: =CORREL(C74:C325, 'RUS Data'!C74:C325) -> 0.9233047469 | E74: =CORREL($C$3:C74, 'RUS Data'!$C$3:C74) -> 0.9210413702 | W74: 2009-05-27 | X74: 89.17 | Y74: 48.93 | Z74: 84.24706723 | AB74: -0.01800448724 | AC74: -0.01963029746 | AD74: -0.02328269722
A75: 2009-05-26 | B75: 90.79 | C75: 0.0253206322 | D75: =CORREL(C75:C326, 'RUS Data'!C75:C326) -> 0.9231867457 | E75: =CORREL($C$3:C75, 'RUS Data'!$C$3:C75) -> 0.9219339337 | W75: 2009-05-26 | X75: 90.79 | Y75: 49.9 | Z75: 86.23157894 | AB75: 0.0253206322 | AC75: 0.0467681617 | AD75: 0.02213158587
A76: 2009-05-22 | B76: 88.52 | C76: -0.00214410735 | D76: =CORREL(C76:C327, 'RUS Data'!C76:C327) -> 0.9233247481 | E76: =CORREL($C$3:C76, 'RUS Data'!$C$3:C76) -> 0.9208754544 | W76: 2009-05-22 | X76: 88.52 | Y76: 47.62 | Z76: 84.34410083 | AB76: -0.00214410735 | AC76: -0.01044505005 | AD76: 0.002709446973
A77: 2009-05-21 | B77: 88.71 | C77: -0.0144370478 | D77: =CORREL(C77:C328, 'RUS Data'!C77:C328) -> 0.9233686026 | E77: =CORREL($C$3:C77, 'RUS Data'!$C$3:C77) -> 0.9212935312 | W77: 2009-05-21 | X77: 88.71 | Y77: 48.12 | Z77: 84.11588427 | AB77: -0.0144370478 | AC77: -0.01300730634 | AD77: -0.01691585542
A78: 2009-05-20 | B78: 90 | C78: -0.006754911904 | D78: =CORREL(C78:C329, 'RUS Data'!C78:C329) -> 0.9233650741 | E78: =CORREL($C$3:C78, 'RUS Data'!$C$3:C78) -> 0.9217942632 | W78: 2009-05-20 | X78: 90 | Y78: 48.75 | Z78: 85.55087927 | AB78: -0.006754911904 | AC78: -0.009391657434 | AD78: -0.009589641966
A79: 2009-05-19 | B79: 90.61 | C79: -0.001213257745 | D79: =CORREL(C79:C330, 'RUS Data'!C79:C330) -> 0.9233127917 | E79: =CORREL($C$3:C79, 'RUS Data'!$C$3:C79) -> 0.9217127124 | W79: 2009-05-19 | X79: 90.61 | Y79: 49.21 | Z79: 86.37522786 | AB79: -0.001213257745 | AC79: 0.0004065040706 | AD79: 0.002135828923
A80: 2009-05-18 | B80: 90.72 | C80: 0.02805750471 | D80: =CORREL(C80:C331, 'RUS Data'!C80:C331) -> 0.9233006315 | E80: =CORREL($C$3:C80, 'RUS Data'!$C$3:C80) -> 0.9254815038 | W80: 2009-05-18 | X80: 90.72 | Y80: 49.19 | Z80: 86.19094202 | AB80: 0.02805750471 | AC80: 0.03306769567 | AD80: 0.02904415718
A81: 2009-05-15 | B81: 88.21 | C81: -0.008241649812 | D81: =CORREL(C81:C332, 'RUS Data'!C81:C332) -> 0.9229406305 | E81: =CORREL($C$3:C81, 'RUS Data'!$C$3:C81) -> 0.9246555533 | W81: 2009-05-15 | X81: 88.21 | Y81: 47.59 | Z81: 83.72360309 | AB81: -0.008241649812 | AC81: -0.003775172269 | AD81: -0.01352796785
A82: 2009-05-14 | B82: 88.94 | C82: 0.008581805153 | D82: =CORREL(C82:C333, 'RUS Data'!C82:C333) -> 0.9227351065 | E82: =CORREL($C$3:C82, 'RUS Data'!$C$3:C82) -> 0.9248799281 | W82: 2009-05-14 | X82: 88.94 | Y82: 47.77 | Z82: 84.86390892 | AB82: 0.008581805153 | AC82: 0.01370028806 | AD82: 0.008030923934
A83: 2009-05-13 | B83: 88.18 | C83: -0.02552758412 | D83: =CORREL(C83:C334, 'RUS Data'!C83:C334) -> 0.9226796389 | E83: =CORREL($C$3:C83, 'RUS Data'!$C$3:C83) -> 0.927221049 | W83: 2009-05-13 | X83: 88.18 | Y83: 47.12 | Z83: 84.18510269 | AB83: -0.02552758412 | AC83: =LN(Y83/Y84) -> -0.04684794457 | AD83: -0.02519181164
A84: 2009-05-12 | B84: 90.46 | C84: -0.002980299132 | D84: =CORREL(C84:C335, 'RUS Data'!C84:C335) -> 0.9228432941 | E84: =CORREL($C$3:C84, 'RUS Data'!$C$3:C84) -> 0.9256011669 | W84: 2009-05-12 | X84: 90.46 | Y84: 49.38 | Z84: 86.33281676 | AB84: -0.002980299132 | AC84: -0.01407624287 | AD84: -0.00962190599
A85: 2009-05-11 | B85: 90.73 | C85: -0.01888805538 | D85: =CORREL(C85:C336, 'RUS Data'!C85:C336) -> 0.9230184417 | E85: =CORREL($C$3:C85, 'RUS Data'!$C$3:C85) -> 0.9247761531 | W85: 2009-05-11 | X85: 90.73 | Y85: 50.08 | Z85: 87.16751225 | AB85: -0.01888805538 | AC85: -0.01486500467 | AD85: -0.02042699289
A86: 2009-05-08 | B86: 92.46 | C86: 0.02308510152 | D86: =CORREL(C86:C337, 'RUS Data'!C86:C337) -> 0.9230060058 | E86: =CORREL($C$3:C86, 'RUS Data'!$C$3:C86) -> 0.9274298991 | W86: 2009-05-08 | X86: 92.46 | Y86: 50.83 | Z86: 88.96639271 | AB86: 0.02308510152 | AC86: 0.03401688528 | AD86: 0.02616548598
A87: 2009-05-07 | B87: 90.35 | C87: -0.01395857142 | D87: =CORREL(C87:C338, 'RUS Data'!C87:C338) -> 0.9227688298 | E87: =CORREL($C$3:C87, 'RUS Data'!$C$3:C87) -> 0.9284914146 | W87: 2009-05-07 | X87: 90.35 | Y87: 49.13 | Z87: 86.66873457 | AB87: -0.01395857142 | AC87: -0.02373401832 | AD87: -0.01094235469
A88: 2009-05-06 | B88: 91.62 | C88: 0.01717347359 | D88: =CORREL(C88:C339, 'RUS Data'!C88:C339) -> 0.9228794602 | E88: =CORREL($C$3:C88, 'RUS Data'!$C$3:C88) -> 0.9213984765 | W88: 2009-05-06 | X88: 91.62 | Y88: 50.31 | Z88: 87.62230222 | AB88: 0.01717347359 | AC88: 0.002786626007 | AD88: 0.01861427908
A89: 2009-05-05 | B89: 90.06 | C89: -0.00343623904 | D89: =CORREL(C89:C340, 'RUS Data'!C89:C340) -> 0.9233998303 | E89: =CORREL($C$3:C89, 'RUS Data'!$C$3:C89) -> 0.9215272281 | W89: 2009-05-05 | X89: 90.06 | Y89: 50.17 | Z89: 86.00636267 | AB89: -0.00343623904 | AC89: -0.004970683264 | AD89: -0.0003193396211
A90: 2009-05-04 | B90: 90.37 | C90: 0.03341707125 | D90: =CORREL(C90:C341, 'RUS Data'!C90:C341) -> 0.9234026349 | E90: =CORREL($C$3:C90, 'RUS Data'!$C$3:C90) -> 0.9246519371 | W90: 2009-05-04 | X90: 90.37 | Y90: 50.42 | Z90: 86.0338323 | AB90: 0.03341707125 | AC90: 0.03573611313 | AD90: 0.03549460799
A91: 2009-05-01 | B91: 87.4 | C91: 0.005392085571 | D91: =CORREL(C91:C342, 'RUS Data'!C91:C342) -> 0.922943482 | E91: =CORREL($C$3:C91, 'RUS Data'!$C$3:C91) -> 0.9247078066 | W91: 2009-05-01 | X91: 87.4 | Y91: 48.65 | Z91: 83.03365518 | AB91: 0.005392085571 | AC91: 0.006185586733 | AD91: 0.00137627702
A92: 2009-04-30 | B92: 86.93 | C92: 0.0003451648196 | D92: =CORREL(C92:C343, 'RUS Data'!C92:C343) -> 0.9229839137 | E92: =CORREL($C$3:C92, 'RUS Data'!$C$3:C92) -> 0.9233138055 | W92: 2009-04-30 | X92: 86.93 | Y92: 48.35 | Z92: 82.91945647 | AB92: 0.0003451648196 | AC92: -0.00926409096 | AD92: 0.002058159364
A93: 2009-04-29 | B93: 86.9 | C93: 0.02104851241 | D93: =CORREL(C93:C344, 'RUS Data'!C93:C344) -> 0.9231724033 | E93: =CORREL($C$3:C93, 'RUS Data'!$C$3:C93) -> 0.9241696527 | W93: 2009-04-29 | X93: 86.9 | Y93: 48.8 | Z93: 82.74897052 | AB93: 0.02104851241 | AC93: 0.03715726975 | AD93: 0.02213747541
A94: 2009-04-28 | B94: 85.09 | C94: -0.003168087132 | D94: =CORREL(C94:C345, 'RUS Data'!C94:C345) -> 0.9231258809 | E94: =CORREL($C$3:C94, 'RUS Data'!$C$3:C94) -> 0.9235434702 | W94: 2009-04-28 | X94: 85.09 | Y94: 47.02 | Z94: 80.93724472 | AB94: -0.003168087132 | AC94: 0.001489837458 | AD94: -0.002114494833
A95: 2009-04-27 | B95: 85.36 | C95: -0.009444482258 | D95: =CORREL(C95:C346, 'RUS Data'!C95:C346) -> 0.9231090932 | E95: =CORREL($C$3:C95, 'RUS Data'!$C$3:C95) -> 0.9239653681 | W95: 2009-04-27 | X95: 85.36 | Y95: 46.95 | Z95: 81.10856718 | AB95: -0.009444482258 | AC95: -0.0105933194 | AD95: -0.01838783105
A96: 2009-04-24 | B96: 86.17 | C96: 0.0149657885 | D96: =CORREL(C96:C347, 'RUS Data'!C96:C347) -> 0.923122305 | E96: =CORREL($C$3:C96, 'RUS Data'!$C$3:C96) -> 0.9246995814 | W96: 2009-04-24 | X96: 86.17 | Y96: 47.45 | Z96: 82.61377414 | AB96: 0.0149657885 | AC96: 0.01829059923 | AD96: 0.02033752683
A97: 2009-04-23 | B97: 84.89 | C97: 0.009706515603 | D97: =CORREL(C97:C348, 'RUS Data'!C97:C348) -> 0.9230046517 | E97: =CORREL($C$3:C97, 'RUS Data'!$C$3:C97) -> 0.9210494577 | W97: 2009-04-23 | X97: 84.89 | Y97: 46.59 | Z97: 80.9505842 | AB97: 0.009706515603 | AC97: -0.002358238846 | AD97: 0.009105678719
A98: 2009-04-22 | B98: 84.07 | C98: -0.006048046897 | D98: =CORREL(C98:C349, 'RUS Data'!C98:C349) -> 0.9233227398 | E98: =CORREL($C$3:C98, 'RUS Data'!$C$3:C98) -> 0.9199860964 | W98: 2009-04-22 | X98: 84.07 | Y98: 46.7 | Z98: 80.21681997 | AB98: -0.006048046897 | AC98: -0.0002141098392 | AD98: -0.009013407783
A99: 2009-04-21 | B99: 84.58 | C99: 0.01933926812 | D99: =CORREL(C99:C350, 'RUS Data'!C99:C350) -> 0.92306235 | E99: =CORREL($C$3:C99, 'RUS Data'!$C$3:C99) -> 0.920734981 | W99: 2009-04-21 | X99: 84.58 | Y99: 46.71 | Z99: 80.94311516 | AB99: 0.01933926812 | AC99: 0.03418950312 | AD99: 0.02311638233
A100: 2009-04-20 | B100: 82.96 | C100: -0.04282577154 | D100: =CORREL(C100:C351, 'RUS Data'!C100:C351) -> 0.9230510749 | E100: =CORREL($C$3:C100, 'RUS Data'!$C$3:C100) -> 0.9283613447 | W100: 2009-04-20 | X100: 82.96 | Y100: 45.14 | Z100: 79.09346415 | AB100: -0.04282577154 | AC100: -0.05264373349 | AD100: -0.04525048808
A101: 2009-04-17 | B101: 86.59 | C101: 0.006720766896 | D101: =CORREL(C101:C352, 'RUS Data'!C101:C352) -> 0.922418454 | E101: =CORREL($C$3:C101, 'RUS Data'!$C$3:C101) -> 0.9284620963 | W101: 2009-04-17 | X101: 86.59 | Y101: 47.58 | Z101: 82.75469351 | AB101: 0.006720766896 | AC101: 0.008866429206 | AD101: 0.00703661454
A102: 2009-04-16 | B102: 86.01 | C102: 0.01452186194 | D102: =CORREL(C102:C353, 'RUS Data'!C102:C353) -> 0.9223196659 | E102: =CORREL($C$3:C102, 'RUS Data'!$C$3:C102) -> 0.9281763075 | W102: 2009-04-16 | X102: 86.01 | Y102: 47.16 | Z102: 82.17442459 | AB102: 0.01452186194 | AC102: 0.02838900326 | AD102: 0.01105101832
A103: 2009-04-15 | B103: 84.77 | C103: 0.01055450059 | D103: =CORREL(C103:C354, 'RUS Data'!C103:C354) -> 0.9227160711 | E103: =CORREL($C$3:C103, 'RUS Data'!$C$3:C103) -> 0.9284709438 | W103: 2009-04-15 | X103: 84.77 | Y103: 45.84 | Z103: 81.27131286 | AB103: 0.01055450059 | AC103: 0.01516679254 | AD103: 0.010192077
A104: 2009-04-14 | B104: 83.88 | C104: -0.01737324321 | D104: =CORREL(C104:C355, 'RUS Data'!C104:C355) -> 0.9226509585 | E104: =CORREL($C$3:C104, 'RUS Data'!$C$3:C104) -> 0.9296895691 | W104: 2009-04-14 | X104: 83.88 | Y104: 45.15 | Z104: 80.44719624 | AB104: -0.01737324321 | AC104: -0.02946203273 | AD104: -0.01646925499
A105: 2009-04-13 | B105: 85.35 | C105: 0.000234356692 | D105: =CORREL(C105:C356, 'RUS Data'!C105:C356) -> 0.9226854767 | E105: =CORREL($C$3:C105, 'RUS Data'!$C$3:C105) -> 0.9296932358 | W105: 2009-04-13 | X105: 85.35 | Y105: 46.5 | Z105: 81.78307187 | AB105: 0.000234356692 | AC105: 0.0004302000497 | AD105: -0.001978783207
A106: 2009-04-09 | B106: 85.33 | C106: 0.03895355091 | D106: =CORREL(C106:C357, 'RUS Data'!C106:C357) -> 0.9228038587 | E106: =CORREL($C$3:C106, 'RUS Data'!$C$3:C106) -> 0.9345457038 | W106: 2009-04-09 | X106: 85.33 | Y106: 46.48 | Z106: 81.94506306 | AB106: 0.03895355091 | AC106: 0.05688002797 | AD106: 0.03593443629
A107: 2009-04-08 | B107: 82.07 | C107: 0.01078045477 | D107: =CORREL(C107:C358, 'RUS Data'!C107:C358) -> 0.9221386451 | E107: =CORREL($C$3:C107, 'RUS Data'!$C$3:C107) -> 0.9346550863 | W107: 2009-04-08 | X107: 82.07 | Y107: 43.91 | Z107: 79.0526925 | AB107: 0.01078045477 | AC107: 0.01838709581 | AD107: 0.008882245167
A108: 2009-04-07 | B108: 81.19 | C108: -0.02361356067 | D108: =CORREL(C108:C359, 'RUS Data'!C108:C359) -> 0.9220058369 | E108: =CORREL($C$3:C108, 'RUS Data'!$C$3:C108) -> 0.9367303048 | W108: 2009-04-07 | X108: 81.19 | Y108: 43.11 | Z108: 78.35363629 | AB108: -0.02361356067 | AC108: -0.03599477419 | AD108: -0.01937512655
A109: 2009-04-06 | B109: 83.13 | C109: -0.007908021082 | D109: =CORREL(C109:C360, 'RUS Data'!C109:C360) -> 0.9219145385 | E109: =CORREL($C$3:C109, 'RUS Data'!$C$3:C109) -> 0.9366879354 | W109: 2009-04-06 | X109: 83.13 | Y109: 44.69 | Z109: 79.88655016 | AB109: -0.007908021082 | AC109: -0.01730300489 | AD109: -0.008847524323
A110: 2009-04-03 | B110: 83.79 | C110: 0.009955104704 | D110: =CORREL(C110:C361, 'RUS Data'!C110:C361) -> 0.9220072012 | E110: =CORREL($C$3:C110, 'RUS Data'!$C$3:C110) -> 0.9368475873 | W110: 2009-04-03 | X110: 83.79 | Y110: 45.47 | Z110: 80.5964843 | AB110: 0.009955104704 | AC110: 0.01573788439 | AD110: 0.01001459438
A111: 2009-04-02 | B111: 82.96 | C111: 0.02885991441 | D111: =CORREL(C111:C362, 'RUS Data'!C111:C362) -> 0.9219659931 | E111: =CORREL($C$3:C111, 'RUS Data'!$C$3:C111) -> 0.9383824665 | W111: 2009-04-02 | X111: 82.96 | Y111: 44.76 | Z111: 79.79337134 | AB111: 0.02885991441 | AC111: 0.04875665267 | AD111: 0.02470562564
A112: 2009-04-01 | B112: 80.6 | C112: 0.01916511343 | D112: =CORREL(C112:C363, 'RUS Data'!C112:C363) -> 0.9218903101 | E112: =CORREL($C$3:C112, 'RUS Data'!$C$3:C112) -> 0.9380376739 | W112: 2009-04-01 | X112: 80.6 | Y112: 42.63 | Z112: 77.84617853 | AB112: 0.01916511343 | AC112: 0.01727240385 | AD112: 0.02405300191
A113: 2009-03-31 | B113: 79.07 | C113: 0.009147567281 | D113: =CORREL(C113:C364, 'RUS Data'!C113:C364) -> 0.9217857549 | E113: =CORREL($C$3:C113, 'RUS Data'!$C$3:C113) -> 0.938040619 | W113: 2009-03-31 | X113: 79.07 | Y113: 41.9 | Z113: 75.99608362 | AB113: 0.009147567281 | AC113: 0.009351464863 | AD113: 0.006735060905
A114: 2009-03-30 | B114: 78.35 | C114: -0.03511332516 | D114: =CORREL(C114:C365, 'RUS Data'!C114:C365) -> 0.922209973 | E114: =CORREL($C$3:C114, 'RUS Data'!$C$3:C114) -> 0.9365800636 | W114: 2009-03-30 | X114: 78.35 | Y114: 41.51 | Z114: 75.48596513 | AB114: -0.03511332516 | AC114: -0.02920088783 | AD114: -0.034919504
A115: 2009-03-27 | B115: 81.15 | C115: -0.01819453085 | D115: =CORREL(C115:C366, 'RUS Data'!C115:C366) -> 0.9220730267 | E115: =CORREL($C$3:C115, 'RUS Data'!$C$3:C115) -> 0.9370494342 | W115: 2009-03-27 | X115: 81.15 | Y115: 42.74 | Z115: 78.16846073 | AB115: -0.01819453085 | AC115: -0.03426804199 | AD115: -0.01901249136
A116: 2009-03-26 | B116: 82.64 | C116: 0.02016813455 | D116: =CORREL(C116:C367, 'RUS Data'!C116:C367) -> 0.9222737812 | E116: =CORREL($C$3:C116, 'RUS Data'!$C$3:C116) -> 0.9370501254 | W116: 2009-03-26 | X116: 82.64 | Y116: 44.23 | Z116: 79.66885584 | AB116: 0.02016813455 | AC116: 0.03801863241 | AD116: 0.01659140718
A117: 2009-03-25 | B117: 80.99 | C117: 0.01042581121 | D117: =CORREL(C117:C368, 'RUS Data'!C117:C368) -> 0.9223273429 | E117: =CORREL($C$3:C117, 'RUS Data'!$C$3:C117) -> 0.9355183792 | W117: 2009-03-25 | X117: 80.99 | Y117: 42.58 | Z117: 78.35794243 | AB117: 0.01042581121 | AC117: 0.02786226191 | AD117: 0.01842307752
A118: 2009-03-24 | B118: 80.15 | C118: -0.0198882474 | D118: =CORREL(C118:C369, 'RUS Data'!C118:C369) -> 0.9226462482 | E118: =CORREL($C$3:C118, 'RUS Data'!$C$3:C118) -> 0.9357762673 | W118: 2009-03-24 | X118: 80.15 | Y118: 41.41 | Z118: 76.92756442 | AB118: -0.0198882474 | AC118: -0.03976855407 | AD118: -0.01292306039
A119: 2009-03-23 | B119: 81.76 | C119: 0.06937734572 | D119: =CORREL(C119:C370, 'RUS Data'!C119:C370) -> 0.922989975 | E119: =CORREL($C$3:C119, 'RUS Data'!$C$3:C119) -> 0.9428404994 | W119: 2009-03-23 | X119: 81.76 | Y119: 43.09 | Z119: 77.92815541 | AB119: 0.06937734572 | AC119: 0.08168790648 | AD119: 0.07067174881
A120: 2009-03-20 | B120: 76.28 | C120: -0.02152851918 | D120: =CORREL(C120:C371, 'RUS Data'!C120:C371) -> 0.9207774567 | E120: =CORREL($C$3:C120, 'RUS Data'!$C$3:C120) -> 0.9438388114 | W120: 2009-03-20 | X120: 76.28 | Y120: 39.71 | Z120: 72.6109378 | AB120: -0.02152851918 | AC120: -0.0351347371 | AD120: -0.01939860173
A121: 2009-03-19 | B121: 77.94 | C121: -0.01249538124 | D121: =CORREL(C121:C372, 'RUS Data'!C121:C372) -> 0.9208937704 | E121: =CORREL($C$3:C121, 'RUS Data'!$C$3:C121) -> 0.9437376984 | W121: 2009-03-19 | X121: 77.94 | Y121: 41.13 | Z121: 74.03323919 | AB121: -0.01249538124 | AC121: -0.01064097102 | AD121: -0.01690416853
A122: 2009-03-18 | B122: 78.92 | C122: 0.02216476619 | D122: =CORREL(C122:C373, 'RUS Data'!C122:C373) -> 0.9210663432 | E122: =CORREL($C$3:C122, 'RUS Data'!$C$3:C122) -> 0.9444278857 | W122: 2009-03-18 | X122: 78.92 | Y122: 41.57 | Z122: 75.29534693 | AB122: 0.02216476619 | AC122: 0.03400939388 | AD122: 0.02807330573
A123: 2009-03-17 | B123: 77.19 | C123: 0.03011602444 | D123: =CORREL(C123:C374, 'RUS Data'!C123:C374) -> 0.9216345435 | E123: =CORREL($C$3:C123, 'RUS Data'!$C$3:C123) -> 0.9457684455 | W123: 2009-03-17 | X123: 77.19 | Y123: 40.18 | Z123: 73.21095245 | AB123: 0.03011602444 | AC123: 0.04531189979 | AD123: 0.02172665536
A124: 2009-03-16 | B124: 74.9 | C124: -0.002932944377 | D124: =CORREL(C124:C375, 'RUS Data'!C124:C375) -> 0.9213200043 | E124: =CORREL($C$3:C124, 'RUS Data'!$C$3:C124) -> 0.9443363935 | W124: 2009-03-16 | X124: 74.9 | Y124: 38.4 | Z124: 71.63747838 | AB124: -0.002932944377 | AC124: -0.01832072917 | AD124: -5.144667515e-05
A125: 2009-03-13 | B125: 75.12 | C125: 0.007750940849 | D125: =CORREL(C125:C376, 'RUS Data'!C125:C376) -> 0.9217509297 | E125: =CORREL($C$3:C125, 'RUS Data'!$C$3:C125) -> 0.9443855341 | W125: 2009-03-13 | X125: 75.12 | Y125: 39.11 | Z125: 71.64116398 | AB125: 0.007750940849 | AC125: 0.01053858873 | AD125: 0.009008299325
A126: 2009-03-12 | B126: 74.54 | C126: 0.03856624531 | D126: =CORREL(C126:C377, 'RUS Data'!C126:C377) -> 0.9211768738 | E126: =CORREL($C$3:C126, 'RUS Data'!$C$3:C126) -> 0.9464291119 | W126: 2009-03-12 | X126: 74.54 | Y126: 38.7 | Z126: 70.99869705 | AB126: 0.03856624531 | AC126: 0.06044698902 | AD126: 0.0419498234
A127: 2009-03-11 | B127: 71.72 | C127: 0.006574829588 | D127: =CORREL(C127:C378, 'RUS Data'!C127:C378) -> 0.9208240989 | E127: =CORREL($C$3:C127, 'RUS Data'!$C$3:C127) -> 0.9460099425 | W127: 2009-03-11 | X127: 71.72 | Y127: 36.43 | Z127: 68.08192109 | AB127: 0.006574829588 | AC127: 0.00137343793 | AD127: 0.004885333473
A128: 2009-03-10 | B128: 71.25 | C128: 0.05777780067 | D128: =CORREL(C128:C379, 'RUS Data'!C128:C379) -> 0.92149456 | E128: =CORREL($C$3:C128, 'RUS Data'!$C$3:C128) -> 0.9478785198 | W128: 2009-03-10 | X128: 71.25 | Y128: 36.38 | Z128: 67.75012932 | AB128: 0.05777780067 | AC128: 0.06296380417 | AD128: 0.0628420012
A129: 2009-03-09 | B129: 67.25 | C129: -0.01182571062 | D129: =CORREL(C129:C380, 'RUS Data'!C129:C380) -> 0.9199812938 | E129: =CORREL($C$3:C129, 'RUS Data'!$C$3:C129) -> 0.9479962272 | W129: 2009-03-09 | X129: 67.25 | Y129: 34.16 | Z129: 63.62359343 | AB129: -0.01182571062 | AC129: -0.02314918187 | AD129: -0.01892807687
A130: 2009-03-06 | B130: 68.05 | C130: 0.001764965894 | D130: =CORREL(C130:C381, 'RUS Data'!C130:C381) -> 0.9199843614 | E130: =CORREL($C$3:C130, 'RUS Data'!$C$3:C130) -> 0.9479200827 | W130: 2009-03-06 | X130: 68.05 | Y130: 34.96 | Z130: 64.83933522 | AB130: 0.001764965894 | AC130: 0.005162041861 | AD130: -0.004159418208
A131: 2009-03-05 | B131: 67.93 | C131: -0.04166368348 | D131: =CORREL(C131:C382, 'RUS Data'!C131:C382) -> 0.9199798735 | E131: =CORREL($C$3:C131, 'RUS Data'!$C$3:C131) -> 0.9505194257 | W131: 2009-03-05 | X131: 67.93 | Y131: 34.78 | Z131: =Z132*EXP(AD131) -> 65.1095908 | AB131: -0.04166368348 | AC131: -0.05482357086 | AD131: =AB131+($AB$1/SQRT(252))*SQRT(2*PI())*NORMSINV(RAND()) -> -0.03787977206
A132: 2009-03-04 | B132: 70.82 | C132: =LN(B132/B133) -> 0.02342964317 | D132: =CORREL(C132:C383, 'RUS Data'!C132:C383) -> 0.919365645 | E132: =CORREL($C$3:C132, 'RUS Data'!$C$3:C132) -> 0.9500488647 | W132: 2009-03-04 | X132: 70.82 | Y132: 36.74 | Z132: 67.62323483 | AB132: =LN(X132/X133) -> 0.02342964317 | AC132: 0.02034714133 | AD132: 0.0149912716
A133: 2009-03-03 | B133: 69.18 | C133: -0.007488514257 | D133: =CORREL(C133:C384, 'RUS Data'!C133:C384) -> 0.9192016355 | E133: =CORREL($C$3:C133, 'RUS Data'!$C$3:C133) -> 0.949807206 | W133: 2009-03-03 | X133: 69.18 | Y133: 36 | Z133: 66.61703748 | AB133: -0.007488514257 | AC133: -0.01898529991 | AD133: -0.00539510776
A134: 2009-03-02 | B134: 69.7 | C134: -0.0461221277 | D134: =CORREL(C134:C385, 'RUS Data'!C134:C385) -> 0.9193029771 | E134: =CORREL($C$3:C134, 'RUS Data'!$C$3:C134) -> 0.9523897646 | W134: 2009-03-02 | X134: 69.7 | Y134: 36.69 | Z134: 66.97741484 | AB134: -0.0461221277 | AC134: -0.0582329098 | AD134: -0.04540621012
A135: 2009-02-27 | B135: 72.99 | C135: -0.02262202802 | D135: =CORREL(C135:C386, 'RUS Data'!C135:C386) -> 0.9185604305 | E135: =CORREL($C$3:C135, 'RUS Data'!$C$3:C135) -> 0.9488920493 | W135: 2009-02-27 | X135: 72.99 | Y135: 38.89 | Z135: 70.08870687 | AB135: -0.02262202802 | AC135: -0.006663274269 | AD135: -0.02000147889
A136: 2009-02-26 | B136: 74.66 | C136: -0.01647221092 | D136: =CORREL(C136:C387, 'RUS Data'!C136:C387) -> 0.9191923621 | E136: =CORREL($C$3:C136, 'RUS Data'!$C$3:C136) -> 0.949190933 | W136: 2009-02-26 | X136: 74.66 | Y136: 39.15 | Z136: 71.50469842 | AB136: -0.01647221092 | AC136: -0.01897590146 | AD136: -0.01923958933
A137: 2009-02-25 | B137: 75.9 | C137: -0.007874056431 | D137: =CORREL(C137:C388, 'RUS Data'!C137:C388) -> 0.9191004837 | E137: =CORREL($C$3:C137, 'RUS Data'!$C$3:C137) -> 0.9487796827 | W137: 2009-02-25 | X137: 75.9 | Y137: 39.9 | Z137: 72.89373889 | AB137: -0.007874056431 | AC137: -0.0208340869 | AD137: -0.009243271541
A138: 2009-02-24 | B138: 76.5 | C138: 0.03728794164 | D138: =CORREL(C138:C389, 'RUS Data'!C138:C389) -> 0.9194108084 | E138: =CORREL($C$3:C138, 'RUS Data'!$C$3:C138) -> 0.9487585068 | W138: 2009-02-24 | X138: 76.5 | Y138: 40.74 | Z138: 73.57063908 | AB138: 0.03728794164 | AC138: 0.03624037723 | AD138: 0.036459325
A139: 2009-02-23 | B139: 73.7 | C139: -0.03650332018 | D139: =CORREL(C139:C390, 'RUS Data'!C139:C390) -> 0.9189440641 | E139: =CORREL($C$3:C139, 'RUS Data'!$C$3:C139) -> 0.9495921623 | W139: 2009-02-23 | X139: 73.7 | Y139: 39.29 | Z139: 70.93661243 | AB139: -0.03650332018 | AC139: -0.03918155582 | AD139: -0.02972677135
A140: 2009-02-20 | B140: 76.44 | C140: -0.00976379559 | D140: =CORREL(C140:C391, 'RUS Data'!C140:C391) -> 0.9183361568 | E140: =CORREL($C$3:C140, 'RUS Data'!$C$3:C140) -> 0.9497515196 | W140: 2009-02-20 | X140: 76.44 | Y140: 40.86 | Z140: 73.07698444 | AB140: -0.00976379559 | AC140: -0.01361226658 | AD140: -0.001322450351
A141: 2009-02-19 | B141: 77.19 | C141: -0.01082345317 | D141: =CORREL(C141:C392, 'RUS Data'!C141:C392) -> 0.9181461372 | E141: =CORREL($C$3:C141, 'RUS Data'!$C$3:C141) -> 0.9499262254 | W141: 2009-02-19 | X141: 77.19 | Y141: 41.42 | Z141: 73.17368906 | AB141: -0.01082345317 | AC141: -0.01414382921 | AD141: -0.008329157272
A142: 2009-02-18 | B142: 78.03 | C142: -0.002432001199 | D142: =CORREL(C142:C393, 'RUS Data'!C142:C393) -> 0.9181021033 | E142: =CORREL($C$3:C142, 'RUS Data'!$C$3:C142) -> 0.9493173881 | W142: 2009-02-18 | X142: 78.03 | Y142: 42.01 | Z142: 73.78570949 | AB142: -0.002432001199 | AC142: -0.01418128233 | AD142: -0.009782579966
A143: 2009-02-17 | B143: 78.22 | C143: -0.04365102407 | D143: =CORREL(C143:C394, 'RUS Data'!C143:C394) -> 0.9182539271 | E143: =CORREL($C$3:C143, 'RUS Data'!$C$3:C143) -> 0.9491286304 | W143: 2009-02-17 | X143: 78.22 | Y143: 42.61 | Z143: 74.51106624 | AB143: -0.04365102407 | AC143: -0.04047459788 | AD143: -0.04537774971
A144: 2009-02-13 | B144: 81.71 | C144: -0.01083328713 | D144: =CORREL(C144:C395, 'RUS Data'!C144:C395) -> 0.9176776282 | E144: =CORREL($C$3:C144, 'RUS Data'!$C$3:C144) -> 0.9491629754 | W144: 2009-02-13 | X144: 81.71 | Y144: 44.37 | Z144: 77.97009878 | AB144: -0.01083328713 | AC144: -0.01053703281 | AD144: -0.01446796594
A145: 2009-02-12 | B145: 82.6 | C145: 0.0007266562025 | D145: =CORREL(C145:C396, 'RUS Data'!C145:C396) -> 0.9173146392 | E145: =CORREL($C$3:C145, 'RUS Data'!$C$3:C145) -> 0.9488052011 | W145: 2009-02-12 | X145: 82.6 | Y145: 44.84 | Z145: 79.10636744 | AB145: 0.0007266562025 | AC145: 0.008510689668 | AD145: 0.007651124694
A146: 2009-02-11 | B146: 82.54 | C146: 0.00583233731 | D146: =CORREL(C146:C397, 'RUS Data'!C146:C397) -> 0.9172957342 | E146: =CORREL($C$3:C146, 'RUS Data'!$C$3:C146) -> 0.9487372581 | W146: 2009-02-11 | X146: 82.54 | Y146: 44.46 | Z146: 78.5034243 | AB146: 0.00583233731 | AC146: 0.003830990601 | AD146: 0.003335063552
A147: 2009-02-10 | B147: 82.06 | C147: -0.04689660924 | D147: =CORREL(C147:C398, 'RUS Data'!C147:C398) -> 0.9173241499 | E147: =CORREL($C$3:C147, 'RUS Data'!$C$3:C147) -> 0.9495229299 | W147: 2009-02-10 | X147: 82.06 | Y147: 44.29 | Z147: 78.24204648 | AB147: -0.04689660924 | AC147: =LN(Y147/Y148) -> -0.04740223889 | AD147: -0.04811121205
A148: 2009-02-09 | B148: 86 | C148: 0.001396323243 | D148: =CORREL(C148:C399, 'RUS Data'!C148:C399) -> 0.9164491025 | E148: =CORREL($C$3:C148, 'RUS Data'!$C$3:C148) -> 0.9493197649 | W148: 2009-02-09 | X148: 86 | Y148: 46.44 | Z148: 82.09838901 | AB148: 0.001396323243 | AC148: -0.004297385213 | AD148: 0.003356503762
A149: 2009-02-06 | B149: 85.88 | C149: 0.02810434115 | D149: =CORREL(C149:C400, 'RUS Data'!C149:C400) -> 0.9165389287 | E149: =CORREL($C$3:C149, 'RUS Data'!$C$3:C149) -> 0.950002499 | W149: 2009-02-06 | X149: 85.88 | Y149: 46.64 | Z149: 81.8232874 | AB149: 0.02810434115 | AC149: 0.03490755821 | AD149: 0.03228943236
A150: 2009-02-05 | B150: 83.5 | C150: 0.01484011068 | D150: =CORREL(C150:C401, 'RUS Data'!C150:C401) -> 0.9160236223 | E150: =CORREL($C$3:C150, 'RUS Data'!$C$3:C150) -> 0.9497743732 | W150: 2009-02-05 | X150: 83.5 | Y150: 45.04 | Z150: 79.22345927 | AB150: 0.01484011068 | AC150: 0.0113878645 | AD150: 0.00944024918
A151: 2009-02-04 | B151: 82.27 | C151: -0.004971213633 | D151: =CORREL(C151:C402, 'RUS Data'!C151:C402) -> 0.9159815334 | E151: =CORREL($C$3:C151, 'RUS Data'!$C$3:C151) -> 0.9498156346 | W151: 2009-02-04 | X151: 82.27 | Y151: 44.53 | Z151: 78.47908912 | AB151: -0.004971213633 | AC151: -0.007383409758 | AD151: -0.007846626687
A152: 2009-02-03 | B152: 82.68 | C152: 0.01400668414 | D152: =CORREL(C152:C403, 'RUS Data'!C152:C403) -> 0.9162095423 | E152: =CORREL($C$3:C152, 'RUS Data'!$C$3:C152) -> 0.9492274922 | W152: 2009-02-03 | X152: 82.68 | Y152: 44.86 | Z152: 79.09730753 | AB152: 0.01400668414 | AC152: 0.007158867263 | AD152: 0.01155101785
A153: 2009-02-02 | B153: 81.53 | C153: -0.003061664262 | D153: =CORREL(C153:C404, 'RUS Data'!C153:C404) -> 0.9163414464 | E153: =CORREL($C$3:C153, 'RUS Data'!$C$3:C153) -> 0.9483589974 | W153: 2009-02-02 | X153: 81.53 | Y153: 44.54 | Z153: 78.18890967 | AB153: -0.003061664262 | AC153: 0.008115463837 | AD153: 0.002258188444
A154: 2009-01-30 | B154: 81.78 | C154: -0.02057436727 | D154: =CORREL(C154:C405, 'RUS Data'!C154:C405) -> 0.9167411713 | E154: =CORREL($C$3:C154, 'RUS Data'!$C$3:C154) -> 0.9485093357 | W154: 2009-01-30 | X154: 81.78 | Y154: 44.18 | Z154: 78.01254359 | AB154: -0.02057436727 | AC154: -0.02038829444 | AD154: -0.019118929
A155: 2009-01-29 | B155: 83.48 | C155: -0.03299073931 | D155: =CORREL(C155:C406, 'RUS Data'!C155:C406) -> 0.9167919297 | E155: =CORREL($C$3:C155, 'RUS Data'!$C$3:C155) -> 0.9495448057 | W155: 2009-01-29 | X155: 83.48 | Y155: 45.09 | Z155: 79.51840927 | AB155: -0.03299073931 | AC155: -0.03999663737 | AD155: -0.03131219698
A156: 2009-01-28 | B156: 86.28 | C156: 0.03323034636 | D156: =CORREL(C156:C407, 'RUS Data'!C156:C407) -> 0.9162867871 | E156: =CORREL($C$3:C156, 'RUS Data'!$C$3:C156) -> 0.9504316748 | W156: 2009-01-28 | X156: 86.28 | Y156: 46.93 | Z156: 82.0476975 | AB156: 0.03323034636 | AC156: 0.0404402931 | AD156: 0.02751250385
A157: 2009-01-27 | B157: 83.46 | C157: 0.01011569319 | D157: =CORREL(C157:C408, 'RUS Data'!C157:C408) -> 0.9156664792 | E157: =CORREL($C$3:C157, 'RUS Data'!$C$3:C157) -> 0.9504642415 | W157: 2009-01-27 | X157: 83.46 | Y157: 45.07 | Z157: 79.82112958 | AB157: 0.01011569319 | AC157: 0.01070721806 | AD157: 0.01786493175
A158: 2009-01-26 | B158: 82.62 | C158: 0.006801094955 | D158: =CORREL(C158:C409, 'RUS Data'!C158:C409) -> 0.9157705756 | E158: =CORREL($C$3:C158, 'RUS Data'!$C$3:C158) -> 0.9504636477 | W158: 2009-01-26 | X158: 82.62 | Y158: 44.59 | Z158: 78.40779272 | AB158: 0.006801094955 | AC158: 0.01127661927 | AD158: 0.005488292463
A159: 2009-01-23 | B159: 82.06 | C159: 0.004396685148 | D159: =CORREL(C159:C410, 'RUS Data'!C159:C410) -> 0.9156184531 | E159: =CORREL($C$3:C159, 'RUS Data'!$C$3:C159) -> 0.9504694005 | W159: 2009-01-23 | X159: 82.06 | Y159: 44.09 | Z159: 77.97864654 | AB159: 0.004396685148 | AC159: 0.005002284192 | AD159: 0.001280980951
A160: 2009-01-22 | B160: 81.7 | C160: -0.01554561304 | D160: =CORREL(C160:C411, 'RUS Data'!C160:C411) -> 0.9153761816 | E160: =CORREL($C$3:C160, 'RUS Data'!$C$3:C160) -> 0.9503965022 | W160: 2009-01-22 | X160: 81.7 | Y160: 43.87 | Z160: 77.87882133 | AB160: -0.01554561304 | AC160: -0.02942379586 | AD160: -0.0173229155
A161: 2009-01-21 | B161: 82.98 | C161: 0.04221386012 | D161: =CORREL(C161:C412, 'RUS Data'!C161:C412) -> 0.9158243956 | E161: =CORREL($C$3:C161, 'RUS Data'!$C$3:C161) -> 0.9515534074 | W161: 2009-01-21 | X161: 82.98 | Y161: 45.18 | Z161: 79.23966241 | AB161: 0.04221386012 | AC161: 0.04852459519 | AD161: 0.04642436247
A162: 2009-01-20 | B162: 79.55 | C162: -0.05419292047 | D162: =CORREL(C162:C413, 'RUS Data'!C162:C413) -> 0.9148589396 | E162: =CORREL($C$3:C162, 'RUS Data'!$C$3:C162) -> 0.9541077959 | W162: 2009-01-20 | X162: 79.55 | Y162: 43.04 | Z162: 75.64509492 | AB162: -0.05419292047 | AC162: -0.07020032067 | AD162: -0.05328470494
A163: 2009-01-16 | B163: 83.98 | C163: 0.007770046862 | D163: =CORREL(C163:C414, 'RUS Data'!C163:C414) -> 0.9135007504 | E163: =CORREL($C$3:C163, 'RUS Data'!$C$3:C163) -> 0.95413762 | W163: 2009-01-16 | X163: 83.98 | Y163: 46.17 | Z163: 79.78514258 | AB163: 0.007770046862 | AC163: 0.01110759542 | AD163: 0.004744582327
A164: 2009-01-15 | B164: 83.33 | C164: 0.0003600792213 | D164: =CORREL(C164:C415, 'RUS Data'!C164:C415) -> 0.9136719083 | E164: =CORREL($C$3:C164, 'RUS Data'!$C$3:C164) -> 0.9529379181 | W164: 2009-01-15 | X164: 83.33 | Y164: 45.66 | Z164: 79.40749201 | AB164: 0.0003600792213 | AC164: 0.01589437434 | AD164: -0.0009541060287
A165: 2009-01-14 | B165: 83.3 | C165: -0.03201501939 | D165: =CORREL(C165:C416, 'RUS Data'!C165:C416) -> 0.9139160087 | E165: =CORREL($C$3:C165, 'RUS Data'!$C$3:C165) -> 0.9538162566 | W165: 2009-01-14 | X165: 83.3 | Y165: 44.94 | Z165: 79.48329133 | AB165: -0.03201501939 | AC165: -0.04481933495 | AD165: -0.03358634764
A166: 2009-01-13 | B166: 86.01 | C166: 0.00186198122 | D166: =CORREL(C166:C417, 'RUS Data'!C166:C417) -> 0.9136085254 | E166: =CORREL($C$3:C166, 'RUS Data'!$C$3:C166) -> 0.9532663522 | W166: 2009-01-13 | X166: 86.01 | Y166: 47 | Z166: 82.1981812 | AB166: 0.00186198122 | AC166: 0.01306368295 | AD166: 0.002008817617
A167: 2009-01-12 | B167: 85.85 | C167: -0.02428057834 | D167: =CORREL(C167:C418, 'RUS Data'!C167:C418) -> 0.9138669924 | E167: =CORREL($C$3:C167, 'RUS Data'!$C$3:C167) -> 0.9537310292 | W167: 2009-01-12 | X167: 85.85 | Y167: 46.39 | Z167: 82.03322578 | AB167: -0.02428057834 | AC167: -0.03015090387 | AD167: -0.0206440629
A168: 2009-01-09 | B168: 87.96 | C168: -0.0217045349 | D168: =CORREL(C168:C419, 'RUS Data'!C168:C419) -> 0.9133280762 | E168: =CORREL($C$3:C168, 'RUS Data'!$C$3:C168) -> 0.9538313125 | W168: 2009-01-09 | X168: 87.96 | Y168: 47.81 | Z168: 83.74432612 | AB168: -0.0217045349 | AC168: -0.0375621377 | AD168: -0.02559735925
A169: 2009-01-08 | B169: 89.89 | C169: 0.004124636582 | D169: =CORREL(C169:C420, 'RUS Data'!C169:C420) -> 0.9134005879 | E169: =CORREL($C$3:C169, 'RUS Data'!$C$3:C169) -> 0.953837343 | W169: 2009-01-08 | X169: 89.89 | Y169: 49.64 | Z169: 85.915631 | AB169: 0.004124636582 | AC169: 0.004644127479 | AD169: 0.00292244776
A170: 2009-01-07 | B170: 89.52 | C170: -0.0303653693 | D170: =CORREL(C170:C421, 'RUS Data'!C170:C421) -> 0.9134403597 | E170: =CORREL($C$3:C170, 'RUS Data'!$C$3:C170) -> 0.9539703999 | W170: 2009-01-07 | X170: 89.52 | Y170: 49.41 | Z170: 85.66491359 | AB170: -0.0303653693 | AC170: -0.02990653506 | AD170: -0.02420542073
A171: 2009-01-06 | B171: 92.28 | C171: 0.006632261332 | D171: =CORREL(C171:C422, 'RUS Data'!C171:C422) -> 0.9128816623 | E171: =CORREL($C$3:C171, 'RUS Data'!$C$3:C171) -> 0.9537060445 | W171: 2009-01-06 | X171: 92.28 | Y171: 50.91 | Z171: 87.76376822 | AB171: 0.006632261332 | AC171: 0.01683708191 | AD171: 0.01646765391
A172: 2009-01-05 | B172: 91.67 | C172: -0.001199236993 | D172: =CORREL(C172:C423, 'RUS Data'!C172:C423) -> 0.9129771887 | E172: =CORREL($C$3:C172, 'RUS Data'!$C$3:C172) -> 0.9535794083 | W172: 2009-01-05 | X172: 91.67 | Y172: 50.06 | Z172: 86.33033985 | AB172: -0.001199236993 | AC172: 0.003602165192 | AD172: 0.001580134898
A173: 2009-01-02 | B173: 91.78 | C173: 0.02963507449 | D173: =CORREL(C173:C424, 'RUS Data'!C173:C424) -> 0.9133068341 | E173: =CORREL($C$3:C173, 'RUS Data'!$C$3:C173) -> 0.9523244932 | W173: 2009-01-02 | X173: 91.78 | Y173: 49.88 | Z173: 86.19403399 | AB173: 0.02963507449 | AC173: 0.01963824626 | AD173: 0.02955715499
A174: 2008-12-31 | B174: 89.1 | C174: 0.01424235672 | D174: =CORREL(C174:C425, 'RUS Data'!C174:C425) -> 0.9131451022 | E174: =CORREL($C$3:C174, 'RUS Data'!$C$3:C174) -> 0.9523956235 | W174: 2008-12-31 | X174: 89.1 | Y174: 48.91 | Z174: 83.68366599 | AB174: 0.01424235672 | AC174: 0.02295623505 | AD174: 0.01038220029
A175: 2008-12-30 | B175: 87.84 | C175: 0.02338142794 | D175: =CORREL(C175:C426, 'RUS Data'!C175:C426) -> 0.913088563 | E175: =CORREL($C$3:C175, 'RUS Data'!$C$3:C175) -> 0.9527148744 | W175: 2008-12-30 | X175: 87.84 | Y175: 47.8 | Z175: 82.81933998 | AB175: 0.02338142794 | AC175: 0.0275733269 | AD175: 0.02341110908
A176: 2008-12-29 | B176: 85.81 | C176: -0.002792972839 | D176: =CORREL(C176:C427, 'RUS Data'!C176:C427) -> 0.9127626213 | E176: =CORREL($C$3:C176, 'RUS Data'!$C$3:C176) -> 0.9521183632 | W176: 2008-12-29 | X176: 85.81 | Y176: 46.5 | Z176: 80.90296711 | AB176: -0.002792972839 | AC176: -0.01557697131 | AD176: -0.002467363924
A177: 2008-12-26 | B177: 86.05 | C177: 0.005710638443 | D177: =CORREL(C177:C428, 'RUS Data'!C177:C428) -> 0.912966522 | E177: =CORREL($C$3:C177, 'RUS Data'!$C$3:C177) -> 0.9519284272 | W177: 2008-12-26 | X177: 86.05 | Y177: 47.23 | Z177: 81.10283064 | AB177: 0.005710638443 | AC177: 0.01428748048 | AD177: 0.006119689679
A178: 2008-12-24 | B178: 85.56 | C178: 0.005743437226 | D178: =CORREL(C178:C429, 'RUS Data'!C178:C429) -> 0.9129138291 | E178: =CORREL($C$3:C178, 'RUS Data'!$C$3:C178) -> 0.9518692502 | W178: 2008-12-24 | X178: 85.56 | Y178: 46.56 | Z178: 80.60802206 | AB178: 0.005743437226 | AC178: 0.003442344191 | AD178: 0.009313940434
A179: 2008-12-23 | B179: 85.07 | C179: -0.01040762479 | D179: =CORREL(C179:C430, 'RUS Data'!C179:C430) -> 0.9129209803 | E179: =CORREL($C$3:C179, 'RUS Data'!$C$3:C179) -> 0.9519698194 | W179: 2008-12-23 | X179: 85.07 | Y179: 46.4 | Z179: 79.86072927 | AB179: -0.01040762479 | AC179: -0.01454882316 | AD179: -0.01142912258
A180: 2008-12-22 | B180: 85.96 | C180: -0.01283032107 | D180: =CORREL(C180:C431, 'RUS Data'!C180:C431) -> 0.9129327256 | E180: =CORREL($C$3:C180, 'RUS Data'!$C$3:C180) -> 0.9520987202 | W180: 2008-12-22 | X180: 85.96 | Y180: 47.08 | Z180: 80.77870316 | AB180: -0.01283032107 | AC180: -0.01956104015 | AD180: -0.01350703618
A181: 2008-12-19 | B181: 87.07 | C181: -0.004354808624 | D181: =CORREL(C181:C432, 'RUS Data'!C181:C432) -> 0.9130058747 | E181: =CORREL($C$3:C181, 'RUS Data'!$C$3:C181) -> 0.9515664311 | W181: 2008-12-19 | X181: 87.07 | Y181: 48.01 | Z181: 81.87718595 | AB181: -0.004354808624 | AC181: 0.005011495141 | AD181: -0.007275649788
A182: 2008-12-18 | B182: 87.45 | C182: -0.01880436016 | D182: =CORREL(C182:C433, 'RUS Data'!C182:C433) -> 0.91314632 | E182: =CORREL($C$3:C182, 'RUS Data'!$C$3:C182) -> 0.9502339493 | W182: 2008-12-18 | X182: 87.45 | Y182: 47.77 | Z182: 82.47506803 | AB182: -0.01880436016 | AC182: -0.006468462825 | AD182: -0.01669020535
A183: 2008-12-17 | B183: 89.11 | C183: -0.009715861788 | D183: =CORREL(C183:C434, 'RUS Data'!C183:C434) -> 0.9134587661 | E183: =CORREL($C$3:C183, 'RUS Data'!$C$3:C183) -> 0.9480925903 | W183: 2008-12-17 | X183: 89.11 | Y183: 48.08 | Z183: 83.86314528 | AB183: -0.009715861788 | AC183: 0.00919354574 | AD183: -0.007358588008
A184: 2008-12-16 | B184: 89.98 | C184: 0.04593804507 | D184: =CORREL(C184:C435, 'RUS Data'!C184:C435) -> 0.9141324592 | E184: =CORREL($C$3:C184, 'RUS Data'!$C$3:C184) -> 0.9497222199 | W184: 2008-12-16 | X184: 89.98 | Y184: 47.64 | Z184: 84.48253574 | AB184: 0.04593804507 | AC184: 0.06302832704 | AD184: 0.04817659685
A185: 2008-12-15 | B185: 85.94 | C185: -0.01398139362 | D185: =CORREL(C185:C436, 'RUS Data'!C185:C436) -> 0.9130767487 | E185: =CORREL($C$3:C185, 'RUS Data'!$C$3:C185) -> 0.949082519 | W185: 2008-12-15 | X185: 85.94 | Y185: 44.73 | Z185: 80.50894035 | AB185: -0.01398139362 | AC185: -0.0327681874 | AD185: -0.01218139789
A186: 2008-12-12 | B186: 87.15 | C186: 0.01177298916 | D186: =CORREL(C186:C437, 'RUS Data'!C186:C437) -> 0.913602046 | E186: =CORREL($C$3:C186, 'RUS Data'!$C$3:C186) -> 0.947836855 | W186: 2008-12-12 | X186: 87.15 | Y186: 46.22 | Z186: 81.49564933 | AB186: 0.01177298916 | AC186: 0.03388663065 | AD186: 0.006046431481
A187: 2008-12-11 | B187: 86.13 | C187: -0.02431591301 | D187: =CORREL(C187:C438, 'RUS Data'!C187:C438) -> 0.9143038937 | E187: =CORREL($C$3:C187, 'RUS Data'!$C$3:C187) -> 0.9468973471 | W187: 2008-12-11 | X187: 86.13 | Y187: 44.68 | Z187: 81.00437819 | AB187: -0.02431591301 | AC187: -0.05210988121 | AD187: -0.02533281584
A188: 2008-12-10 | B188: 88.25 | C188: 0.006822084446 | D188: =CORREL(C188:C439, 'RUS Data'!C188:C439) -> 0.9152754886 | E188: =CORREL($C$3:C188, 'RUS Data'!$C$3:C188) -> 0.9461489602 | W188: 2008-12-10 | X188: 88.25 | Y188: 47.07 | Z188: 83.08266041 | AB188: 0.006822084446 | AC188: 0.02321187386 | AD188: -0.003060030386
A189: 2008-12-09 | B189: 87.65 | C189: -0.01663216481 | D189: =CORREL(C189:C440, 'RUS Data'!C189:C440) -> 0.9160632685 | E189: =CORREL($C$3:C189, 'RUS Data'!$C$3:C189) -> 0.946124165 | W189: 2008-12-09 | X189: 87.65 | Y189: 45.99 | Z189: 83.33728526 | AB189: -0.01663216481 | AC189: -0.0312525435 | AD189: -0.01744041792
A190: 2008-12-08 | B190: 89.12 | C190: 0.03424210368 | D190: =CORREL(C190:C441, 'RUS Data'!C190:C441) -> 0.9163044006 | E190: =CORREL($C$3:C190, 'RUS Data'!$C$3:C190) -> 0.9469526985 | W190: 2008-12-08 | X190: 89.12 | Y190: 47.45 | Z190: 84.80347062 | AB190: 0.03424210368 | AC190: 0.04328375064 | AD190: 0.03548960042
A191: 2008-12-05 | B191: 86.12 | C191: 0.03041611343 | D191: =CORREL(C191:C442, 'RUS Data'!C191:C442) -> 0.9155980583 | E191: =CORREL($C$3:C191, 'RUS Data'!$C$3:C191) -> 0.9475919431 | W191: 2008-12-05 | X191: 86.12 | Y191: 45.44 | Z191: 81.8466086 | AB191: 0.03041611343 | AC191: 0.04524232787 | AD191: 0.03470682252
A192: 2008-12-04 | B192: 83.54 | C192: -0.02342470765 | D192: =CORREL(C192:C443, 'RUS Data'!C192:C443) -> 0.9152556829 | E192: =CORREL($C$3:C192, 'RUS Data'!$C$3:C192) -> 0.9480426901 | W192: 2008-12-04 | X192: 83.54 | Y192: 43.43 | Z192: 79.05470223 | AB192: -0.02342470765 | AC192: -0.03373268332 | AD192: -0.02308910734
A193: 2008-12-03 | B193: 85.52 | C193: 0.02378388155 | D193: =CORREL(C193:C444, 'RUS Data'!C193:C444) -> 0.9152833217 | E193: =CORREL($C$3:C193, 'RUS Data'!$C$3:C193) -> 0.9483958918 | W193: 2008-12-03 | X193: 85.52 | Y193: 44.92 | Z193: 80.90124016 | AB193: 0.02378388155 | AC193: 0.02982597952 | AD193: 0.01914748379
A194: 2008-12-02 | B194: 83.51 | C194: 0.0377034837 | D194: =CORREL(C194:C445, 'RUS Data'!C194:C445) -> 0.9149505426 | E194: =CORREL($C$3:C194, 'RUS Data'!$C$3:C194) -> 0.9493728871 | W194: 2008-12-02 | X194: 83.51 | Y194: 43.6 | Z194: 79.36692103 | AB194: 0.0377034837 | AC194: 0.05129329439 | AD194: 0.03966635289
A195: 2008-12-01 | B195: 80.42 | C195: -0.09268413976 | D195: =CORREL(C195:C446, 'RUS Data'!C195:C446) -> 0.9141236193 | E195: =CORREL($C$3:C195, 'RUS Data'!$C$3:C195) -> 0.9547328414 | W195: 2008-12-01 | X195: 80.42 | Y195: 41.42 | Z195: =Z196*EXP(AD195) -> 76.28034601 | AB195: -0.09268413976 | AC195: -0.119337704 | AD195: =AB195+($AB$1/SQRT(252))*SQRT(2*PI())*NORMSINV(RAND()) -> -0.09411331127
A196: 2008-11-28 | B196: 88.23 | C196: =LN(B196/B197) -> 0.01254578499 | D196: =CORREL(C196:C447, 'RUS Data'!C196:C447) -> 0.9095202639 | E196: =CORREL($C$3:C196, 'RUS Data'!$C$3:C196) -> 0.9546389979 | W196: 2008-11-28 | X196: 88.23 | Y196: 46.67 | Z196: 83.80801339 | AB196: =LN(X196/X197) -> 0.01254578499 | AC196: 0.01012176187 | AD196: 0.01177968572
A197: 2008-11-26 | B197: 87.13 | C197: 0.03789483938 | D197: =CORREL(C197:C448, 'RUS Data'!C197:C448) -> 0.9092344815 | E197: =CORREL($C$3:C197, 'RUS Data'!$C$3:C197) -> 0.9552878974 | W197: 2008-11-26 | X197: 87.13 | Y197: 46.2 | Z197: 82.82657321 | AB197: 0.03789483938 | AC197: 0.05815203184 | AD197: 0.03899752346
A198: 2008-11-25 | B198: 83.89 | C198: 0.007297992551 | D198: =CORREL(C198:C449, 'RUS Data'!C198:C449) -> 0.9093714148 | E198: =CORREL($C$3:C198, 'RUS Data'!$C$3:C198) -> 0.9551752267 | W198: 2008-11-25 | X198: 83.89 | Y198: 43.59 | Z198: 79.65871279 | AB198: 0.007297992551 | AC198: 0.01642224949 | AD198: 0.01336696228
A199: 2008-11-24 | B199: 83.28 | C199: 0.0670392438 | D199: =CORREL(C199:C450, 'RUS Data'!C199:C450) -> 0.9095637723 | E199: =CORREL($C$3:C199, 'RUS Data'!$C$3:C199) -> 0.9556346527 | W199: 2008-11-24 | X199: 83.28 | Y199: 42.88 | Z199: 78.60100272 | AB199: 0.0670392438 | AC199: 0.06802718652 | AD199: 0.06844368069
A200: 2008-11-21 | B200: 77.88 | C200: 0.0525916797 | D200: =CORREL(C200:C451, 'RUS Data'!C200:C451) -> 0.9071218575 | E200: =CORREL($C$3:C200, 'RUS Data'!$C$3:C200) -> 0.9559245687 | W200: 2008-11-21 | X200: 77.88 | Y200: 40.06 | Z200: 73.40123609 | AB200: 0.0525916797 | AC200: 0.05331862485 | AD200: 0.04798501385
... 3985 more rows

Sheet RUS Data
H1: Daily Returns | M1: Weekly Returns | R1: Monthly Returns
A2: Date | B2: Adjusted Close | C2: Ln of Return | D2: Past Year's Correlation | E2: Cumulative Correlation | F2: Correlation with S&P 500 | H2: Annual Volatility | I2: Daily Mean | J2: Annual Mean | K2: Volatility Squared | M2: Annual Volatility | N2: Weekly Mean | O2: Annual Mean | P2: Volatility Squared | R2: Annual Volatility | S2: MonthlyMean | T2: Annual Mean | U2: Volatility Squared
A3: 2009-09-04 | B3: 57.05 | C3: =LN(B3/B4) -> 0.01394427325 | D3: =CORREL(C3:C254,'SPY Data'!C3:C254) -> 0.9255916471 | F3: =CORREL('SPY Data'!C3:C2334,'RUS Data'!C3:C2334) -> 0.8937852174 | H3: =STDEV(C3:C2334)/SQRT(1/252) -> 0.2667724926 | I3: =AVERAGE(C3:C2334) -> 0.0001399919234 | J3: =(1+I3)^(252)-1 -> 0.03590505679 | K3: =(H3^2) -> 0.07116756283
A4: 2009-09-03 | B4: 56.26 | C4: 0.01108143601 | D4: =CORREL(C4:C255,'SPY Data'!C4:C255) -> 0.9254640836 | E4: =CORREL($C$3:C4,'SPY Data'!$C$3:C4) -> 1
A5: 2009-09-02 | B5: 55.64 | C5: -0.00501973087 | D5: =CORREL(C5:C256,'SPY Data'!C5:C256) -> 0.9257063478 | E5: =CORREL($C$3:C5,'SPY Data'!$C$3:C5) -> 0.984567396
A6: 2009-09-01 | B6: 55.92 | C6: -0.02263180046 | D6: =CORREL(C6:C257,'SPY Data'!C6:C257) -> 0.9256572556 | E6: =CORREL($C$3:C6,'SPY Data'!$C$3:C6) -> 0.9957314045
A7: 2009-08-31 | B7: 57.2 | C7: -0.01475080976 | D7: =CORREL(C7:C258,'SPY Data'!C7:C258) -> 0.9254428495 | E7: =CORREL($C$3:C7,'SPY Data'!$C$3:C7) -> 0.9840084798
A8: 2009-08-28 | B8: 58.05 | C8: -0.006353588816 | D8: =CORREL(C8:C259,'SPY Data'!C8:C259) -> 0.92544157 | E8: =CORREL($C$3:C8,'SPY Data'!$C$3:C8) -> 0.9716531401
A9: 2009-08-27 | B9: 58.42 | C9: -0.001539382841 | D9: =CORREL(C9:C260,'SPY Data'!C9:C260) -> 0.925528604 | E9: =CORREL($C$3:C9,'SPY Data'!$C$3:C9) -> 0.9694897767
A10: 2009-08-26 | B10: 58.51 | C10: 0.002224314374 | D10: =CORREL(C10:C261,'SPY Data'!C10:C261) -> 0.9255999762 | E10: =CORREL($C$3:C10,'SPY Data'!$C$3:C10) -> 0.9632391736
A11: 2009-08-25 | B11: 58.38 | C11: 0.004291483713 | D11: =CORREL(C11:C262,'SPY Data'!C11:C262) -> 0.9256031605 | E11: =CORREL($C$3:C11,'SPY Data'!$C$3:C11) -> 0.9592817916
A12: 2009-08-24 | B12: 58.13 | C12: -0.0003439972514 | D12: =CORREL(C12:C263,'SPY Data'!C12:C263) -> 0.9257369524 | E12: =CORREL($C$3:C12,'SPY Data'!$C$3:C12) -> 0.9591232381
A13: 2009-08-21 | B13: 58.15 | C13: 0.02278557574 | D13: =CORREL(C13:C264,'SPY Data'!C13:C264) -> 0.9258080801 | E13: =CORREL($C$3:C13,'SPY Data'!$C$3:C13) -> 0.9716855652
A14: 2009-08-20 | B14: 56.84 | C14: 0.01078988092 | D14: =CORREL(C14:C265,'SPY Data'!C14:C265) -> 0.9253338735 | E14: =CORREL($C$3:C14,'SPY Data'!$C$3:C14) -> 0.9733225282
A15: 2009-08-19 | B15: 56.23 | C15: 0.01216690622 | D15: =CORREL(C15:C266,'SPY Data'!C15:C266) -> 0.9252712895 | E15: =CORREL($C$3:C15,'SPY Data'!$C$3:C15) -> 0.9726346345
A16: 2009-08-18 | B16: 55.55 | C16: 0.01322842521 | D16: =CORREL(C16:C267,'SPY Data'!C16:C267) -> 0.9252610802 | E16: =CORREL($C$3:C16,'SPY Data'!$C$3:C16) -> 0.9689436178
A17: 2009-08-17 | B17: 54.82 | C17: -0.02859135688 | D17: =CORREL(C17:C268,'SPY Data'!C17:C268) -> 0.9252841812 | E17: =CORREL($C$3:C17,'SPY Data'!$C$3:C17) -> 0.9788746241
A18: 2009-08-14 | B18: 56.41 | C18: -0.02070249377 | D18: =CORREL(C18:C269,'SPY Data'!C18:C269) -> 0.9249573669 | E18: =CORREL($C$3:C18,'SPY Data'!$C$3:C18) -> 0.962802276
A19: 2009-08-13 | B19: 57.59 | C19: 0.008194623487 | D19: =CORREL(C19:C270,'SPY Data'!C19:C270) -> 0.9251802721 | E19: =CORREL($C$3:C19,'SPY Data'!$C$3:C19) -> 0.9636090279
A20: 2009-08-12 | B20: 57.12 | C20: 0.01499278459 | D20: =CORREL(C20:C271,'SPY Data'!C20:C271) -> 0.9249603966 | E20: =CORREL($C$3:C20,'SPY Data'!$C$3:C20) -> 0.9644956383
A21: 2009-08-11 | B21: 56.27 | C21: -0.01621752448 | D21: =CORREL(C21:C272,'SPY Data'!C21:C272) -> 0.9248983893 | E21: =CORREL($C$3:C21,'SPY Data'!$C$3:C21) -> 0.9670196308
A22: 2009-08-10 | B22: 57.19 | C22: 0.001750087951 | D22: =CORREL(C22:C273,'SPY Data'!C22:C273) -> 0.9247027822 | E22: =CORREL($C$3:C22,'SPY Data'!$C$3:C22) -> 0.9638213268
A23: 2009-08-07 | B23: 57.09 | C23: 0.02375155964 | D23: =CORREL(C23:C274,'SPY Data'!C23:C274) -> 0.9248580431 | E23: =CORREL($C$3:C23,'SPY Data'!$C$3:C23) -> 0.9605467864
A24: 2009-08-06 | B24: 55.75 | C24: -0.01407094193 | D24: =CORREL(C24:C275,'SPY Data'!C24:C275) -> 0.9249342062 | E24: =CORREL($C$3:C24,'SPY Data'!$C$3:C24) -> 0.9566250653
A25: 2009-08-05 | B25: 56.54 | C25: -0.01003088041 | D25: =CORREL(C25:C276,'SPY Data'!C25:C276) -> 0.9250409449 | E25: =CORREL($C$3:C25,'SPY Data'!$C$3:C25) -> 0.9539945964
A26: 2009-08-04 | B26: 57.11 | C26: 0.01003088041 | D26: =CORREL(C26:C277,'SPY Data'!C26:C277) -> 0.9249512579 | E26: =CORREL($C$3:C26,'SPY Data'!$C$3:C26) -> 0.9490635635
A27: 2009-08-03 | B27: 56.54 | C27: 0.01730486497 | D27: =CORREL(C27:C278,'SPY Data'!C27:C278) -> 0.925042396 | E27: =CORREL($C$3:C27,'SPY Data'!$C$3:C27) -> 0.9510151901
A28: 2009-07-31 | B28: 55.57 | C28: -0.004130382095 | D28: =CORREL(C28:C279,'SPY Data'!C28:C279) -> 0.9248573541 | E28: =CORREL($C$3:C28,'SPY Data'!$C$3:C28) -> 0.9484737031
A29: 2009-07-30 | B29: 55.8 | C29: 0.01735401469 | D29: =CORREL(C29:C280,'SPY Data'!C29:C280) -> 0.9247200655 | E29: =CORREL($C$3:C29,'SPY Data'!$C$3:C29) -> 0.9486944475
A30: 2009-07-29 | B30: 54.84 | C30: -0.005092772011 | D30: =CORREL(C30:C281,'SPY Data'!C30:C281) -> 0.9243914239 | E30: =CORREL($C$3:C30,'SPY Data'!$C$3:C30) -> 0.9489253481
A31: 2009-07-28 | B31: 55.12 | C31: 0.0005444152208 | D31: =CORREL(C31:C282,'SPY Data'!C31:C282) -> 0.9245749542 | E31: =CORREL($C$3:C31,'SPY Data'!$C$3:C31) -> 0.9441667201
A32: 2009-07-27 | B32: 55.09 | C32: 0.005095552427 | D32: =CORREL(C32:C283,'SPY Data'!C32:C283) -> 0.9247066441 | E32: =CORREL($C$3:C32,'SPY Data'!$C$3:C32) -> 0.9440253004
A33: 2009-07-24 | B33: 54.81 | C33: 0.00512165012 | D33: =CORREL(C33:C284,'SPY Data'!C33:C284) -> 0.9245883476 | E33: =CORREL($C$3:C33,'SPY Data'!$C$3:C33) -> 0.944161769
A34: 2009-07-23 | B34: 54.53 | C34: 0.03110409976 | D34: =CORREL(C34:C285,'SPY Data'!C34:C285) -> 0.9247310455 | E34: =CORREL($C$3:C34,'SPY Data'!$C$3:C34) -> 0.9507734978
A35: 2009-07-22 | B35: 52.86 | C35: 0.007786574334 | D35: =CORREL(C35:C286,'SPY Data'!C35:C286) -> 0.9245746437 | E35: =CORREL($C$3:C35,'SPY Data'!$C$3:C35) -> 0.9454593073
A36: 2009-07-21 | B36: 52.45 | C36: -0.001714449415 | D36: =CORREL(C36:C287,'SPY Data'!C36:C287) -> 0.9245433414 | E36: =CORREL($C$3:C36,'SPY Data'!$C$3:C36) -> 0.9409546521
A37: 2009-07-20 | B37: 52.54 | C37: 0.01225599409 | D37: =CORREL(C37:C288,'SPY Data'!C37:C288) -> 0.9244208576 | E37: =CORREL($C$3:C37,'SPY Data'!$C$3:C37) -> 0.9417606971
A38: 2009-07-17 | B38: 51.9 | C38: -0.003846158587 | D38: =CORREL(C38:C289,'SPY Data'!C38:C289) -> 0.9243904914 | E38: =CORREL($C$3:C38,'SPY Data'!$C$3:C38) -> 0.9182307137
A39: 2009-07-16 | B39: 52.1 | C39: 0.01236014191 | D39: =CORREL(C39:C290,'SPY Data'!C39:C290) -> 0.9246937176 | E39: =CORREL($C$3:C39,'SPY Data'!$C$3:C39) -> 0.9014774703
A40: 2009-07-15 | B40: 51.46 | C40: 0.03782254608 | D40: =CORREL(C40:C291,'SPY Data'!C40:C291) -> 0.9252115702 | E40: =CORREL($C$3:C40,'SPY Data'!$C$3:C40) -> 0.916710419
A41: 2009-07-14 | B41: 49.55 | C41: 0.005869868084 | D41: =CORREL(C41:C292,'SPY Data'!C41:C292) -> 0.9246566701 | E41: =CORREL($C$3:C41,'SPY Data'!$C$3:C41) -> 0.916701818
A42: 2009-07-13 | B42: 49.26 | C42: 0.02383021558 | D42: =CORREL(C42:C293,'SPY Data'!C42:C293) -> 0.9246123905 | E42: =CORREL($C$3:C42,'SPY Data'!$C$3:C42) -> 0.9190145326
A43: 2009-07-10 | B43: 48.1 | C43: 0.004793173707 | D43: =CORREL(C43:C294,'SPY Data'!C43:C294) -> 0.9238186422 | E43: =CORREL($C$3:C43,'SPY Data'!$C$3:C43) -> 0.9150131252
A44: 2009-07-09 | B44: 47.87 | C44: -0.004169278501 | D44: =CORREL(C44:C295,'SPY Data'!C44:C295) -> 0.9238907287 | E44: =CORREL($C$3:C44,'SPY Data'!$C$3:C44) -> 0.9130512112
A45: 2009-07-08 | B45: 48.07 | C45: -0.006841531817 | D45: =CORREL(C45:C296,'SPY Data'!C45:C296) -> 0.924076381 | E45: =CORREL($C$3:C45,'SPY Data'!$C$3:C45) -> 0.9121290545
A46: 2009-07-07 | B46: 48.4 | C46: -0.02186661152 | D46: =CORREL(C46:C297,'SPY Data'!C46:C297) -> 0.9239807551 | E46: =CORREL($C$3:C46,'SPY Data'!$C$3:C46) -> 0.9184575283
A47: 2009-07-06 | B47: 49.47 | C47: -0.008854958242 | D47: =CORREL(C47:C298,'SPY Data'!C47:C298) -> 0.9238775708 | E47: =CORREL($C$3:C47,'SPY Data'!$C$3:C47) -> 0.9156175016
A48: 2009-07-02 | B48: 49.91 | C48: -0.03504295573 | D48: =CORREL(C48:C299,'SPY Data'!C48:C299) -> 0.9238446644 | E48: =CORREL($C$3:C48,'SPY Data'!$C$3:C48) -> 0.9272325075
A49: 2009-07-01 | B49: 51.69 | C49: 0.01540141565 | D49: =CORREL(C49:C300,'SPY Data'!C49:C300) -> 0.9234553118 | E49: =CORREL($C$3:C49,'SPY Data'!$C$3:C49) -> 0.922604626
A50: 2009-06-30 | B50: 50.9 | C50: -0.002942621054 | D50: =CORREL(C50:C301,'SPY Data'!C50:C301) -> 0.9235965437 | E50: =CORREL($C$3:C50,'SPY Data'!$C$3:C50) -> 0.9203405255
A51: 2009-06-29 | B51: 51.05 | C51: 0 | D51: =CORREL(C51:C302,'SPY Data'!C51:C302) -> 0.9233076191 | E51: =CORREL($C$3:C51,'SPY Data'!$C$3:C51) -> 0.9143547781
A52: 2009-06-26 | B52: 51.05 | C52: 0.003532185776 | D52: =CORREL(C52:C303,'SPY Data'!C52:C303) -> 0.9234168864 | E52: =CORREL($C$3:C52,'SPY Data'!$C$3:C52) -> 0.9120002409
A53: 2009-06-25 | B53: 50.87 | C53: 0.02831130077 | D53: =CORREL(C53:C304,'SPY Data'!C53:C304) -> 0.9236484901 | E53: =CORREL($C$3:C53,'SPY Data'!$C$3:C53) -> 0.9169188646
A54: 2009-06-24 | B54: 49.45 | C54: 0.01077574725 | D54: =CORREL(C54:C305,'SPY Data'!C54:C305) -> 0.9234234615 | E54: =CORREL($C$3:C54,'SPY Data'!$C$3:C54) -> 0.9173678686
A55: 2009-06-23 | B55: 48.92 | C55: -0.008143367477 | D55: =CORREL(C55:C306,'SPY Data'!C55:C306) -> 0.9230281903 | E55: =CORREL($C$3:C55,'SPY Data'!$C$3:C55) -> 0.9145553279
A56: 2009-06-22 | B56: 49.32 | C56: -0.0360417308 | D56: =CORREL(C56:C307,'SPY Data'!C56:C307) -> 0.9230525161 | E56: =CORREL($C$3:C56,'SPY Data'!$C$3:C56) -> 0.9245463501
A57: 2009-06-19 | B57: 51.13 | C57: 0.0060814312 | D57: =CORREL(C57:C308,'SPY Data'!C57:C308) -> 0.9227864382 | E57: =CORREL($C$3:C57,'SPY Data'!$C$3:C57) -> 0.9244932322
A58: 2009-06-18 | B58: 50.82 | C58: 0.004536049588 | D58: =CORREL(C58:C309,'SPY Data'!C58:C309) -> 0.9227127972 | E58: =CORREL($C$3:C58,'SPY Data'!$C$3:C58) -> 0.9239301325
A59: 2009-06-17 | B59: 50.59 | C59: 0.005351315912 | D59: =CORREL(C59:C310,'SPY Data'!C59:C310) -> 0.9227260019 | E59: =CORREL($C$3:C59,'SPY Data'!$C$3:C59) -> 0.9221205265
A60: 2009-06-16 | B60: 50.32 | C60: -0.01694621834 | D60: =CORREL(C60:C311,'SPY Data'!C60:C311) -> 0.9227560295 | E60: =CORREL($C$3:C60,'SPY Data'!$C$3:C60) -> 0.924265389
A61: 2009-06-15 | B61: 51.18 | C61: -0.02736728901 | D61: =CORREL(C61:C312,'SPY Data'!C61:C312) -> 0.9226533668 | E61: =CORREL($C$3:C61,'SPY Data'!$C$3:C61) -> 0.9288613809
A62: 2009-06-12 | B62: 52.6 | C62: 0.003046460848 | D62: =CORREL(C62:C313,'SPY Data'!C62:C313) -> 0.9225364601 | E62: =CORREL($C$3:C62,'SPY Data'!$C$3:C62) -> 0.9288753448
A63: 2009-06-11 | B63: 52.44 | C63: 0.0003814610002 | D63: =CORREL(C63:C314,'SPY Data'!C63:C314) -> 0.9225238994 | E63: =CORREL($C$3:C63,'SPY Data'!$C$3:C63) -> 0.9280485114
A64: 2009-06-10 | B64: 52.42 | C64: =LN(B64/B65) -> -0.00399810147 | D64: =CORREL(C64:C315,'SPY Data'!C64:C315) -> 0.9226354032 | E64: =CORREL($C$3:C64,'SPY Data'!$C$3:C64) -> 0.9281767604
A65: 2009-06-09 | B65: 52.63 | C65: 0.004570565946 | D65: =CORREL(C65:C316,'SPY Data'!C65:C316) -> 0.9226386565 | E65: =CORREL($C$3:C65,'SPY Data'!$C$3:C65) -> 0.9281747455
A66: 2009-06-08 | B66: 52.39 | C66: -0.01176484158 | D66: =CORREL(C66:C317,'SPY Data'!C66:C317) -> 0.9225620934 | E66: =CORREL($C$3:C66,'SPY Data'!$C$3:C66) -> 0.9274754209
A67: 2009-06-05 | B67: 53.01 | C67: 0.000377358495 | D67: =CORREL(C67:C318,'SPY Data'!C67:C318) -> 0.9228683612 | E67: =CORREL($C$3:C67,'SPY Data'!$C$3:C67) -> 0.9274693096
A68: 2009-06-04 | B68: 52.99 | C68: 0.01406332566 | D68: =CORREL(C68:C319,'SPY Data'!C68:C319) -> 0.9230423049 | E68: =CORREL($C$3:C68,'SPY Data'!$C$3:C68) -> 0.9279324563
A69: 2009-06-03 | B69: 52.25 | C69: -0.006676228899 | D69: =CORREL(C69:C320,'SPY Data'!C69:C320) -> 0.9229337873 | E69: =CORREL($C$3:C69,'SPY Data'!$C$3:C69) -> 0.9254684618
A70: 2009-06-02 | B70: 52.6 | C70: 0.0124344022 | D70: =CORREL(C70:C321,'SPY Data'!C70:C321) -> 0.9229829104 | E70: =CORREL($C$3:C70,'SPY Data'!$C$3:C70) -> 0.9212982763
A71: 2009-06-01 | B71: 51.95 | C71: 0.03845873212 | D71: =CORREL(C71:C322,'SPY Data'!C71:C322) -> 0.9231967059 | E71: =CORREL($C$3:C71,'SPY Data'!$C$3:C71) -> 0.9248430932
A72: 2009-05-29 | B72: 49.99 | C72: 0.02020678977 | D72: =CORREL(C72:C323,'SPY Data'!C72:C323) -> 0.9230689402 | E72: =CORREL($C$3:C72,'SPY Data'!$C$3:C72) -> 0.9263645042
A73: 2009-05-28 | B73: 48.99 | C73: 0.001225490349 | D73: =CORREL(C73:C324,'SPY Data'!C73:C324) -> 0.9229275775 | E73: =CORREL($C$3:C73,'SPY Data'!$C$3:C73) -> 0.9188102343
A74: 2009-05-27 | B74: 48.93 | C74: -0.01963029746 | D74: =CORREL(C74:C325,'SPY Data'!C74:C325) -> 0.9233047469 | E74: =CORREL($C$3:C74,'SPY Data'!$C$3:C74) -> 0.9210413702
A75: 2009-05-26 | B75: 49.9 | C75: 0.0467681617 | D75: =CORREL(C75:C326,'SPY Data'!C75:C326) -> 0.9231867457 | E75: =CORREL($C$3:C75,'SPY Data'!$C$3:C75) -> 0.9219339337
A76: 2009-05-22 | B76: 47.62 | C76: -0.01044505005 | D76: =CORREL(C76:C327,'SPY Data'!C76:C327) -> 0.9233247481 | E76: =CORREL($C$3:C76,'SPY Data'!$C$3:C76) -> 0.9208754544
A77: 2009-05-21 | B77: 48.12 | C77: -0.01300730634 | D77: =CORREL(C77:C328,'SPY Data'!C77:C328) -> 0.9233686026 | E77: =CORREL($C$3:C77,'SPY Data'!$C$3:C77) -> 0.9212935312
A78: 2009-05-20 | B78: 48.75 | C78: -0.009391657434 | D78: =CORREL(C78:C329,'SPY Data'!C78:C329) -> 0.9233650741 | E78: =CORREL($C$3:C78,'SPY Data'!$C$3:C78) -> 0.9217942632
A79: 2009-05-19 | B79: 49.21 | C79: 0.0004065040706 | D79: =CORREL(C79:C330,'SPY Data'!C79:C330) -> 0.9233127917 | E79: =CORREL($C$3:C79,'SPY Data'!$C$3:C79) -> 0.9217127124
A80: 2009-05-18 | B80: 49.19 | C80: 0.03306769567 | D80: =CORREL(C80:C331,'SPY Data'!C80:C331) -> 0.9233006315 | E80: =CORREL($C$3:C80,'SPY Data'!$C$3:C80) -> 0.9254815038
A81: 2009-05-15 | B81: 47.59 | C81: -0.003775172269 | D81: =CORREL(C81:C332,'SPY Data'!C81:C332) -> 0.9229406305 | E81: =CORREL($C$3:C81,'SPY Data'!$C$3:C81) -> 0.9246555533
A82: 2009-05-14 | B82: 47.77 | C82: 0.01370028806 | D82: =CORREL(C82:C333,'SPY Data'!C82:C333) -> 0.9227351065 | E82: =CORREL($C$3:C82,'SPY Data'!$C$3:C82) -> 0.9248799281
A83: 2009-05-13 | B83: 47.12 | C83: -0.04684794457 | D83: =CORREL(C83:C334,'SPY Data'!C83:C334) -> 0.9226796389 | E83: =CORREL($C$3:C83,'SPY Data'!$C$3:C83) -> 0.927221049
A84: 2009-05-12 | B84: 49.38 | C84: -0.01407624287 | D84: =CORREL(C84:C335,'SPY Data'!C84:C335) -> 0.9228432941 | E84: =CORREL($C$3:C84,'SPY Data'!$C$3:C84) -> 0.9256011669
A85: 2009-05-11 | B85: 50.08 | C85: -0.01486500467 | D85: =CORREL(C85:C336,'SPY Data'!C85:C336) -> 0.9230184417 | E85: =CORREL($C$3:C85,'SPY Data'!$C$3:C85) -> 0.9247761531
A86: 2009-05-08 | B86: 50.83 | C86: 0.03401688528 | D86: =CORREL(C86:C337,'SPY Data'!C86:C337) -> 0.9230060058 | E86: =CORREL($C$3:C86,'SPY Data'!$C$3:C86) -> 0.9274298991
A87: 2009-05-07 | B87: 49.13 | C87: -0.02373401832 | D87: =CORREL(C87:C338,'SPY Data'!C87:C338) -> 0.9227688298 | E87: =CORREL($C$3:C87,'SPY Data'!$C$3:C87) -> 0.9284914146
A88: 2009-05-06 | B88: 50.31 | C88: 0.002786626007 | D88: =CORREL(C88:C339,'SPY Data'!C88:C339) -> 0.9228794602 | E88: =CORREL($C$3:C88,'SPY Data'!$C$3:C88) -> 0.9213984765
A89: 2009-05-05 | B89: 50.17 | C89: -0.004970683264 | D89: =CORREL(C89:C340,'SPY Data'!C89:C340) -> 0.9233998303 | E89: =CORREL($C$3:C89,'SPY Data'!$C$3:C89) -> 0.9215272281
A90: 2009-05-04 | B90: 50.42 | C90: 0.03573611313 | D90: =CORREL(C90:C341,'SPY Data'!C90:C341) -> 0.9234026349 | E90: =CORREL($C$3:C90,'SPY Data'!$C$3:C90) -> 0.9246519371
A91: 2009-05-01 | B91: 48.65 | C91: 0.006185586733 | D91: =CORREL(C91:C342,'SPY Data'!C91:C342) -> 0.922943482 | E91: =CORREL($C$3:C91,'SPY Data'!$C$3:C91) -> 0.9247078066
A92: 2009-04-30 | B92: 48.35 | C92: -0.00926409096 | D92: =CORREL(C92:C343,'SPY Data'!C92:C343) -> 0.9229839137 | E92: =CORREL($C$3:C92,'SPY Data'!$C$3:C92) -> 0.9233138055
A93: 2009-04-29 | B93: 48.8 | C93: 0.03715726975 | D93: =CORREL(C93:C344,'SPY Data'!C93:C344) -> 0.9231724033 | E93: =CORREL($C$3:C93,'SPY Data'!$C$3:C93) -> 0.9241696527
A94: 2009-04-28 | B94: 47.02 | C94: 0.001489837458 | D94: =CORREL(C94:C345,'SPY Data'!C94:C345) -> 0.9231258809 | E94: =CORREL($C$3:C94,'SPY Data'!$C$3:C94) -> 0.9235434702
A95: 2009-04-27 | B95: 46.95 | C95: -0.0105933194 | D95: =CORREL(C95:C346,'SPY Data'!C95:C346) -> 0.9231090932 | E95: =CORREL($C$3:C95,'SPY Data'!$C$3:C95) -> 0.9239653681
A96: 2009-04-24 | B96: 47.45 | C96: 0.01829059923 | D96: =CORREL(C96:C347,'SPY Data'!C96:C347) -> 0.923122305 | E96: =CORREL($C$3:C96,'SPY Data'!$C$3:C96) -> 0.9246995814
A97: 2009-04-23 | B97: 46.59 | C97: -0.002358238846 | D97: =CORREL(C97:C348,'SPY Data'!C97:C348) -> 0.9230046517 | E97: =CORREL($C$3:C97,'SPY Data'!$C$3:C97) -> 0.9210494577
A98: 2009-04-22 | B98: 46.7 | C98: -0.0002141098392 | D98: =CORREL(C98:C349,'SPY Data'!C98:C349) -> 0.9233227398 | E98: =CORREL($C$3:C98,'SPY Data'!$C$3:C98) -> 0.9199860964
A99: 2009-04-21 | B99: 46.71 | C99: 0.03418950312 | D99: =CORREL(C99:C350,'SPY Data'!C99:C350) -> 0.92306235 | E99: =CORREL($C$3:C99,'SPY Data'!$C$3:C99) -> 0.920734981
A100: 2009-04-20 | B100: 45.14 | C100: -0.05264373349 | D100: =CORREL(C100:C351,'SPY Data'!C100:C351) -> 0.9230510749 | E100: =CORREL($C$3:C100,'SPY Data'!$C$3:C100) -> 0.9283613447
A101: 2009-04-17 | B101: 47.58 | C101: 0.008866429206 | D101: =CORREL(C101:C352,'SPY Data'!C101:C352) -> 0.922418454 | E101: =CORREL($C$3:C101,'SPY Data'!$C$3:C101) -> 0.9284620963
A102: 2009-04-16 | B102: 47.16 | C102: 0.02838900326 | D102: =CORREL(C102:C353,'SPY Data'!C102:C353) -> 0.9223196659 | E102: =CORREL($C$3:C102,'SPY Data'!$C$3:C102) -> 0.9281763075
A103: 2009-04-15 | B103: 45.84 | C103: 0.01516679254 | D103: =CORREL(C103:C354,'SPY Data'!C103:C354) -> 0.9227160711 | E103: =CORREL($C$3:C103,'SPY Data'!$C$3:C103) -> 0.9284709438
A104: 2009-04-14 | B104: 45.15 | C104: -0.02946203273 | D104: =CORREL(C104:C355,'SPY Data'!C104:C355) -> 0.9226509585 | E104: =CORREL($C$3:C104,'SPY Data'!$C$3:C104) -> 0.9296895691
A105: 2009-04-13 | B105: 46.5 | C105: 0.0004302000497 | D105: =CORREL(C105:C356,'SPY Data'!C105:C356) -> 0.9226854767 | E105: =CORREL($C$3:C105,'SPY Data'!$C$3:C105) -> 0.9296932358
A106: 2009-04-09 | B106: 46.48 | C106: 0.05688002797 | D106: =CORREL(C106:C357,'SPY Data'!C106:C357) -> 0.9228038587 | E106: =CORREL($C$3:C106,'SPY Data'!$C$3:C106) -> 0.9345457038
A107: 2009-04-08 | B107: 43.91 | C107: 0.01838709581 | D107: =CORREL(C107:C358,'SPY Data'!C107:C358) -> 0.9221386451 | E107: =CORREL($C$3:C107,'SPY Data'!$C$3:C107) -> 0.9346550863
A108: 2009-04-07 | B108: 43.11 | C108: -0.03599477419 | D108: =CORREL(C108:C359,'SPY Data'!C108:C359) -> 0.9220058369 | E108: =CORREL($C$3:C108,'SPY Data'!$C$3:C108) -> 0.9367303048
A109: 2009-04-06 | B109: 44.69 | C109: -0.01730300489 | D109: =CORREL(C109:C360,'SPY Data'!C109:C360) -> 0.9219145385 | E109: =CORREL($C$3:C109,'SPY Data'!$C$3:C109) -> 0.9366879354
A110: 2009-04-03 | B110: 45.47 | C110: 0.01573788439 | D110: =CORREL(C110:C361,'SPY Data'!C110:C361) -> 0.9220072012 | E110: =CORREL($C$3:C110,'SPY Data'!$C$3:C110) -> 0.9368475873
A111: 2009-04-02 | B111: 44.76 | C111: 0.04875665267 | D111: =CORREL(C111:C362,'SPY Data'!C111:C362) -> 0.9219659931 | E111: =CORREL($C$3:C111,'SPY Data'!$C$3:C111) -> 0.9383824665
A112: 2009-04-01 | B112: 42.63 | C112: 0.01727240385 | D112: =CORREL(C112:C363,'SPY Data'!C112:C363) -> 0.9218903101 | E112: =CORREL($C$3:C112,'SPY Data'!$C$3:C112) -> 0.9380376739
A113: 2009-03-31 | B113: 41.9 | C113: 0.009351464863 | D113: =CORREL(C113:C364,'SPY Data'!C113:C364) -> 0.9217857549 | E113: =CORREL($C$3:C113,'SPY Data'!$C$3:C113) -> 0.938040619
A114: 2009-03-30 | B114: 41.51 | C114: -0.02920088783 | D114: =CORREL(C114:C365,'SPY Data'!C114:C365) -> 0.922209973 | E114: =CORREL($C$3:C114,'SPY Data'!$C$3:C114) -> 0.9365800636
A115: 2009-03-27 | B115: 42.74 | C115: -0.03426804199 | D115: =CORREL(C115:C366,'SPY Data'!C115:C366) -> 0.9220730267 | E115: =CORREL($C$3:C115,'SPY Data'!$C$3:C115) -> 0.9370494342
A116: 2009-03-26 | B116: 44.23 | C116: 0.03801863241 | D116: =CORREL(C116:C367,'SPY Data'!C116:C367) -> 0.9222737812 | E116: =CORREL($C$3:C116,'SPY Data'!$C$3:C116) -> 0.9370501254
A117: 2009-03-25 | B117: 42.58 | C117: 0.02786226191 | D117: =CORREL(C117:C368,'SPY Data'!C117:C368) -> 0.9223273429 | E117: =CORREL($C$3:C117,'SPY Data'!$C$3:C117) -> 0.9355183792
A118: 2009-03-24 | B118: 41.41 | C118: -0.03976855407 | D118: =CORREL(C118:C369,'SPY Data'!C118:C369) -> 0.9226462482 | E118: =CORREL($C$3:C118,'SPY Data'!$C$3:C118) -> 0.9357762673
A119: 2009-03-23 | B119: 43.09 | C119: 0.08168790648 | D119: =CORREL(C119:C370,'SPY Data'!C119:C370) -> 0.922989975 | E119: =CORREL($C$3:C119,'SPY Data'!$C$3:C119) -> 0.9428404994
A120: 2009-03-20 | B120: 39.71 | C120: -0.0351347371 | D120: =CORREL(C120:C371,'SPY Data'!C120:C371) -> 0.9207774567 | E120: =CORREL($C$3:C120,'SPY Data'!$C$3:C120) -> 0.9438388114
A121: 2009-03-19 | B121: 41.13 | C121: -0.01064097102 | D121: =CORREL(C121:C372,'SPY Data'!C121:C372) -> 0.9208937704 | E121: =CORREL($C$3:C121,'SPY Data'!$C$3:C121) -> 0.9437376984
A122: 2009-03-18 | B122: 41.57 | C122: 0.03400939388 | D122: =CORREL(C122:C373,'SPY Data'!C122:C373) -> 0.9210663432 | E122: =CORREL($C$3:C122,'SPY Data'!$C$3:C122) -> 0.9444278857
A123: 2009-03-17 | B123: 40.18 | C123: 0.04531189979 | D123: =CORREL(C123:C374,'SPY Data'!C123:C374) -> 0.9216345435 | E123: =CORREL($C$3:C123,'SPY Data'!$C$3:C123) -> 0.9457684455
A124: 2009-03-16 | B124: 38.4 | C124: -0.01832072917 | D124: =CORREL(C124:C375,'SPY Data'!C124:C375) -> 0.9213200043 | E124: =CORREL($C$3:C124,'SPY Data'!$C$3:C124) -> 0.9443363935
A125: 2009-03-13 | B125: 39.11 | C125: 0.01053858873 | D125: =CORREL(C125:C376,'SPY Data'!C125:C376) -> 0.9217509297 | E125: =CORREL($C$3:C125,'SPY Data'!$C$3:C125) -> 0.9443855341
A126: 2009-03-12 | B126: 38.7 | C126: 0.06044698902 | D126: =CORREL(C126:C377,'SPY Data'!C126:C377) -> 0.9211768738 | E126: =CORREL($C$3:C126,'SPY Data'!$C$3:C126) -> 0.9464291119
A127: 2009-03-11 | B127: 36.43 | C127: 0.00137343793 | D127: =CORREL(C127:C378,'SPY Data'!C127:C378) -> 0.9208240989 | E127: =CORREL($C$3:C127,'SPY Data'!$C$3:C127) -> 0.9460099425
A128: 2009-03-10 | B128: 36.38 | C128: =LN(B128/B129) -> 0.06296380417 | D128: =CORREL(C128:C379,'SPY Data'!C128:C379) -> 0.92149456 | E128: =CORREL($C$3:C128,'SPY Data'!$C$3:C128) -> 0.9478785198
A129: 2009-03-09 | B129: 34.16 | C129: -0.02314918187 | D129: =CORREL(C129:C380,'SPY Data'!C129:C380) -> 0.9199812938 | E129: =CORREL($C$3:C129,'SPY Data'!$C$3:C129) -> 0.9479962272
A130: 2009-03-06 | B130: 34.96 | C130: 0.005162041861 | D130: =CORREL(C130:C381,'SPY Data'!C130:C381) -> 0.9199843614 | E130: =CORREL($C$3:C130,'SPY Data'!$C$3:C130) -> 0.9479200827
A131: 2009-03-05 | B131: 34.78 | C131: -0.05482357086 | D131: =CORREL(C131:C382,'SPY Data'!C131:C382) -> 0.9199798735 | E131: =CORREL($C$3:C131,'SPY Data'!$C$3:C131) -> 0.9505194257
A132: 2009-03-04 | B132: 36.74 | C132: 0.02034714133 | D132: =CORREL(C132:C383,'SPY Data'!C132:C383) -> 0.919365645 | E132: =CORREL($C$3:C132,'SPY Data'!$C$3:C132) -> 0.9500488647
A133: 2009-03-03 | B133: 36 | C133: -0.01898529991 | D133: =CORREL(C133:C384,'SPY Data'!C133:C384) -> 0.9192016355 | E133: =CORREL($C$3:C133,'SPY Data'!$C$3:C133) -> 0.949807206
A134: 2009-03-02 | B134: 36.69 | C134: -0.0582329098 | D134: =CORREL(C134:C385,'SPY Data'!C134:C385) -> 0.9193029771 | E134: =CORREL($C$3:C134,'SPY Data'!$C$3:C134) -> 0.9523897646
A135: 2009-02-27 | B135: 38.89 | C135: -0.006663274269 | D135: =CORREL(C135:C386,'SPY Data'!C135:C386) -> 0.9185604305 | E135: =CORREL($C$3:C135,'SPY Data'!$C$3:C135) -> 0.9488920493
A136: 2009-02-26 | B136: 39.15 | C136: -0.01897590146 | D136: =CORREL(C136:C387,'SPY Data'!C136:C387) -> 0.9191923621 | E136: =CORREL($C$3:C136,'SPY Data'!$C$3:C136) -> 0.949190933
A137: 2009-02-25 | B137: 39.9 | C137: -0.0208340869 | D137: =CORREL(C137:C388,'SPY Data'!C137:C388) -> 0.9191004837 | E137: =CORREL($C$3:C137,'SPY Data'!$C$3:C137) -> 0.9487796827
A138: 2009-02-24 | B138: 40.74 | C138: 0.03624037723 | D138: =CORREL(C138:C389,'SPY Data'!C138:C389) -> 0.9194108084 | E138: =CORREL($C$3:C138,'SPY Data'!$C$3:C138) -> 0.9487585068
A139: 2009-02-23 | B139: 39.29 | C139: -0.03918155582 | D139: =CORREL(C139:C390,'SPY Data'!C139:C390) -> 0.9189440641 | E139: =CORREL($C$3:C139,'SPY Data'!$C$3:C139) -> 0.9495921623
A140: 2009-02-20 | B140: 40.86 | C140: -0.01361226658 | D140: =CORREL(C140:C391,'SPY Data'!C140:C391) -> 0.9183361568 | E140: =CORREL($C$3:C140,'SPY Data'!$C$3:C140) -> 0.9497515196
A141: 2009-02-19 | B141: 41.42 | C141: -0.01414382921 | D141: =CORREL(C141:C392,'SPY Data'!C141:C392) -> 0.9181461372 | E141: =CORREL($C$3:C141,'SPY Data'!$C$3:C141) -> 0.9499262254
A142: 2009-02-18 | B142: 42.01 | C142: -0.01418128233 | D142: =CORREL(C142:C393,'SPY Data'!C142:C393) -> 0.9181021033 | E142: =CORREL($C$3:C142,'SPY Data'!$C$3:C142) -> 0.9493173881
A143: 2009-02-17 | B143: 42.61 | C143: -0.04047459788 | D143: =CORREL(C143:C394,'SPY Data'!C143:C394) -> 0.9182539271 | E143: =CORREL($C$3:C143,'SPY Data'!$C$3:C143) -> 0.9491286304
A144: 2009-02-13 | B144: 44.37 | C144: -0.01053703281 | D144: =CORREL(C144:C395,'SPY Data'!C144:C395) -> 0.9176776282 | E144: =CORREL($C$3:C144,'SPY Data'!$C$3:C144) -> 0.9491629754
A145: 2009-02-12 | B145: 44.84 | C145: 0.008510689668 | D145: =CORREL(C145:C396,'SPY Data'!C145:C396) -> 0.9173146392 | E145: =CORREL($C$3:C145,'SPY Data'!$C$3:C145) -> 0.9488052011
A146: 2009-02-11 | B146: 44.46 | C146: 0.003830990601 | D146: =CORREL(C146:C397,'SPY Data'!C146:C397) -> 0.9172957342 | E146: =CORREL($C$3:C146,'SPY Data'!$C$3:C146) -> 0.9487372581
A147: 2009-02-10 | B147: 44.29 | C147: -0.04740223889 | D147: =CORREL(C147:C398,'SPY Data'!C147:C398) -> 0.9173241499 | E147: =CORREL($C$3:C147,'SPY Data'!$C$3:C147) -> 0.9495229299
A148: 2009-02-09 | B148: 46.44 | C148: -0.004297385213 | D148: =CORREL(C148:C399,'SPY Data'!C148:C399) -> 0.9164491025 | E148: =CORREL($C$3:C148,'SPY Data'!$C$3:C148) -> 0.9493197649
A149: 2009-02-06 | B149: 46.64 | C149: 0.03490755821 | D149: =CORREL(C149:C400,'SPY Data'!C149:C400) -> 0.9165389287 | E149: =CORREL($C$3:C149,'SPY Data'!$C$3:C149) -> 0.950002499
A150: 2009-02-05 | B150: 45.04 | C150: 0.0113878645 | D150: =CORREL(C150:C401,'SPY Data'!C150:C401) -> 0.9160236223 | E150: =CORREL($C$3:C150,'SPY Data'!$C$3:C150) -> 0.9497743732
A151: 2009-02-04 | B151: 44.53 | C151: -0.007383409758 | D151: =CORREL(C151:C402,'SPY Data'!C151:C402) -> 0.9159815334 | E151: =CORREL($C$3:C151,'SPY Data'!$C$3:C151) -> 0.9498156346
A152: 2009-02-03 | B152: 44.86 | C152: 0.007158867263 | D152: =CORREL(C152:C403,'SPY Data'!C152:C403) -> 0.9162095423 | E152: =CORREL($C$3:C152,'SPY Data'!$C$3:C152) -> 0.9492274922
A153: 2009-02-02 | B153: 44.54 | C153: 0.008115463837 | D153: =CORREL(C153:C404,'SPY Data'!C153:C404) -> 0.9163414464 | E153: =CORREL($C$3:C153,'SPY Data'!$C$3:C153) -> 0.9483589974
A154: 2009-01-30 | B154: 44.18 | C154: -0.02038829444 | D154: =CORREL(C154:C405,'SPY Data'!C154:C405) -> 0.9167411713 | E154: =CORREL($C$3:C154,'SPY Data'!$C$3:C154) -> 0.9485093357
A155: 2009-01-29 | B155: 45.09 | C155: -0.03999663737 | D155: =CORREL(C155:C406,'SPY Data'!C155:C406) -> 0.9167919297 | E155: =CORREL($C$3:C155,'SPY Data'!$C$3:C155) -> 0.9495448057
A156: 2009-01-28 | B156: 46.93 | C156: 0.0404402931 | D156: =CORREL(C156:C407,'SPY Data'!C156:C407) -> 0.9162867871 | E156: =CORREL($C$3:C156,'SPY Data'!$C$3:C156) -> 0.9504316748
A157: 2009-01-27 | B157: 45.07 | C157: 0.01070721806 | D157: =CORREL(C157:C408,'SPY Data'!C157:C408) -> 0.9156664792 | E157: =CORREL($C$3:C157,'SPY Data'!$C$3:C157) -> 0.9504642415
A158: 2009-01-26 | B158: 44.59 | C158: 0.01127661927 | D158: =CORREL(C158:C409,'SPY Data'!C158:C409) -> 0.9157705756 | E158: =CORREL($C$3:C158,'SPY Data'!$C$3:C158) -> 0.9504636477
A159: 2009-01-23 | B159: 44.09 | C159: 0.005002284192 | D159: =CORREL(C159:C410,'SPY Data'!C159:C410) -> 0.9156184531 | E159: =CORREL($C$3:C159,'SPY Data'!$C$3:C159) -> 0.9504694005
A160: 2009-01-22 | B160: 43.87 | C160: -0.02942379586 | D160: =CORREL(C160:C411,'SPY Data'!C160:C411) -> 0.9153761816 | E160: =CORREL($C$3:C160,'SPY Data'!$C$3:C160) -> 0.9503965022
A161: 2009-01-21 | B161: 45.18 | C161: 0.04852459519 | D161: =CORREL(C161:C412,'SPY Data'!C161:C412) -> 0.9158243956 | E161: =CORREL($C$3:C161,'SPY Data'!$C$3:C161) -> 0.9515534074
A162: 2009-01-20 | B162: 43.04 | C162: -0.07020032067 | D162: =CORREL(C162:C413,'SPY Data'!C162:C413) -> 0.9148589396 | E162: =CORREL($C$3:C162,'SPY Data'!$C$3:C162) -> 0.9541077959
A163: 2009-01-16 | B163: 46.17 | C163: 0.01110759542 | D163: =CORREL(C163:C414,'SPY Data'!C163:C414) -> 0.9135007504 | E163: =CORREL($C$3:C163,'SPY Data'!$C$3:C163) -> 0.95413762
A164: 2009-01-15 | B164: 45.66 | C164: 0.01589437434 | D164: =CORREL(C164:C415,'SPY Data'!C164:C415) -> 0.9136719083 | E164: =CORREL($C$3:C164,'SPY Data'!$C$3:C164) -> 0.9529379181
A165: 2009-01-14 | B165: 44.94 | C165: -0.04481933495 | D165: =CORREL(C165:C416,'SPY Data'!C165:C416) -> 0.9139160087 | E165: =CORREL($C$3:C165,'SPY Data'!$C$3:C165) -> 0.9538162566
A166: 2009-01-13 | B166: 47 | C166: 0.01306368295 | D166: =CORREL(C166:C417,'SPY Data'!C166:C417) -> 0.9136085254 | E166: =CORREL($C$3:C166,'SPY Data'!$C$3:C166) -> 0.9532663522
A167: 2009-01-12 | B167: 46.39 | C167: -0.03015090387 | D167: =CORREL(C167:C418,'SPY Data'!C167:C418) -> 0.9138669924 | E167: =CORREL($C$3:C167,'SPY Data'!$C$3:C167) -> 0.9537310292
A168: 2009-01-09 | B168: 47.81 | C168: -0.0375621377 | D168: =CORREL(C168:C419,'SPY Data'!C168:C419) -> 0.9133280762 | E168: =CORREL($C$3:C168,'SPY Data'!$C$3:C168) -> 0.9538313125
A169: 2009-01-08 | B169: 49.64 | C169: 0.004644127479 | D169: =CORREL(C169:C420,'SPY Data'!C169:C420) -> 0.9134005879 | E169: =CORREL($C$3:C169,'SPY Data'!$C$3:C169) -> 0.953837343
A170: 2009-01-07 | B170: 49.41 | C170: -0.02990653506 | D170: =CORREL(C170:C421,'SPY Data'!C170:C421) -> 0.9134403597 | E170: =CORREL($C$3:C170,'SPY Data'!$C$3:C170) -> 0.9539703999
A171: 2009-01-06 | B171: 50.91 | C171: 0.01683708191 | D171: =CORREL(C171:C422,'SPY Data'!C171:C422) -> 0.9128816623 | E171: =CORREL($C$3:C171,'SPY Data'!$C$3:C171) -> 0.9537060445
A172: 2009-01-05 | B172: 50.06 | C172: 0.003602165192 | D172: =CORREL(C172:C423,'SPY Data'!C172:C423) -> 0.9129771887 | E172: =CORREL($C$3:C172,'SPY Data'!$C$3:C172) -> 0.9535794083
A173: 2009-01-02 | B173: 49.88 | C173: 0.01963824626 | D173: =CORREL(C173:C424,'SPY Data'!C173:C424) -> 0.9133068341 | E173: =CORREL($C$3:C173,'SPY Data'!$C$3:C173) -> 0.9523244932
A174: 2008-12-31 | B174: 48.91 | C174: 0.02295623505 | D174: =CORREL(C174:C425,'SPY Data'!C174:C425) -> 0.9131451022 | E174: =CORREL($C$3:C174,'SPY Data'!$C$3:C174) -> 0.9523956235
A175: 2008-12-30 | B175: 47.8 | C175: 0.0275733269 | D175: =CORREL(C175:C426,'SPY Data'!C175:C426) -> 0.913088563 | E175: =CORREL($C$3:C175,'SPY Data'!$C$3:C175) -> 0.9527148744
A176: 2008-12-29 | B176: 46.5 | C176: -0.01557697131 | D176: =CORREL(C176:C427,'SPY Data'!C176:C427) -> 0.9127626213 | E176: =CORREL($C$3:C176,'SPY Data'!$C$3:C176) -> 0.9521183632
A177: 2008-12-26 | B177: 47.23 | C177: 0.01428748048 | D177: =CORREL(C177:C428,'SPY Data'!C177:C428) -> 0.912966522 | E177: =CORREL($C$3:C177,'SPY Data'!$C$3:C177) -> 0.9519284272
A178: 2008-12-24 | B178: 46.56 | C178: 0.003442344191 | D178: =CORREL(C178:C429,'SPY Data'!C178:C429) -> 0.9129138291 | E178: =CORREL($C$3:C178,'SPY Data'!$C$3:C178) -> 0.9518692502
A179: 2008-12-23 | B179: 46.4 | C179: -0.01454882316 | D179: =CORREL(C179:C430,'SPY Data'!C179:C430) -> 0.9129209803 | E179: =CORREL($C$3:C179,'SPY Data'!$C$3:C179) -> 0.9519698194
A180: 2008-12-22 | B180: 47.08 | C180: -0.01956104015 | D180: =CORREL(C180:C431,'SPY Data'!C180:C431) -> 0.9129327256 | E180: =CORREL($C$3:C180,'SPY Data'!$C$3:C180) -> 0.9520987202
A181: 2008-12-19 | B181: 48.01 | C181: 0.005011495141 | D181: =CORREL(C181:C432,'SPY Data'!C181:C432) -> 0.9130058747 | E181: =CORREL($C$3:C181,'SPY Data'!$C$3:C181) -> 0.9515664311
A182: 2008-12-18 | B182: 47.77 | C182: -0.006468462825 | D182: =CORREL(C182:C433,'SPY Data'!C182:C433) -> 0.91314632 | E182: =CORREL($C$3:C182,'SPY Data'!$C$3:C182) -> 0.9502339493
A183: 2008-12-17 | B183: 48.08 | C183: 0.00919354574 | D183: =CORREL(C183:C434,'SPY Data'!C183:C434) -> 0.9134587661 | E183: =CORREL($C$3:C183,'SPY Data'!$C$3:C183) -> 0.9480925903
A184: 2008-12-16 | B184: 47.64 | C184: 0.06302832704 | D184: =CORREL(C184:C435,'SPY Data'!C184:C435) -> 0.9141324592 | E184: =CORREL($C$3:C184,'SPY Data'!$C$3:C184) -> 0.9497222199
A185: 2008-12-15 | B185: 44.73 | C185: -0.0327681874 | D185: =CORREL(C185:C436,'SPY Data'!C185:C436) -> 0.9130767487 | E185: =CORREL($C$3:C185,'SPY Data'!$C$3:C185) -> 0.949082519
A186: 2008-12-12 | B186: 46.22 | C186: 0.03388663065 | D186: =CORREL(C186:C437,'SPY Data'!C186:C437) -> 0.913602046 | E186: =CORREL($C$3:C186,'SPY Data'!$C$3:C186) -> 0.947836855
A187: 2008-12-11 | B187: 44.68 | C187: -0.05210988121 | D187: =CORREL(C187:C438,'SPY Data'!C187:C438) -> 0.9143038937 | E187: =CORREL($C$3:C187,'SPY Data'!$C$3:C187) -> 0.9468973471
A188: 2008-12-10 | B188: 47.07 | C188: 0.02321187386 | D188: =CORREL(C188:C439,'SPY Data'!C188:C439) -> 0.9152754886 | E188: =CORREL($C$3:C188,'SPY Data'!$C$3:C188) -> 0.9461489602
A189: 2008-12-09 | B189: 45.99 | C189: -0.0312525435 | D189: =CORREL(C189:C440,'SPY Data'!C189:C440) -> 0.9160632685 | E189: =CORREL($C$3:C189,'SPY Data'!$C$3:C189) -> 0.946124165
A190: 2008-12-08 | B190: 47.45 | C190: 0.04328375064 | D190: =CORREL(C190:C441,'SPY Data'!C190:C441) -> 0.9163044006 | E190: =CORREL($C$3:C190,'SPY Data'!$C$3:C190) -> 0.9469526985
A191: 2008-12-05 | B191: 45.44 | C191: 0.04524232787 | D191: =CORREL(C191:C442,'SPY Data'!C191:C442) -> 0.9155980583 | E191: =CORREL($C$3:C191,'SPY Data'!$C$3:C191) -> 0.9475919431
A192: 2008-12-04 | B192: 43.43 | C192: =LN(B192/B193) -> -0.03373268332 | D192: =CORREL(C192:C443,'SPY Data'!C192:C443) -> 0.9152556829 | E192: =CORREL($C$3:C192,'SPY Data'!$C$3:C192) -> 0.9480426901
A193: 2008-12-03 | B193: 44.92 | C193: 0.02982597952 | D193: =CORREL(C193:C444,'SPY Data'!C193:C444) -> 0.9152833217 | E193: =CORREL($C$3:C193,'SPY Data'!$C$3:C193) -> 0.9483958918
A194: 2008-12-02 | B194: 43.6 | C194: 0.05129329439 | D194: =CORREL(C194:C445,'SPY Data'!C194:C445) -> 0.9149505426 | E194: =CORREL($C$3:C194,'SPY Data'!$C$3:C194) -> 0.9493728871
A195: 2008-12-01 | B195: 41.42 | C195: -0.119337704 | D195: =CORREL(C195:C446,'SPY Data'!C195:C446) -> 0.9141236193 | E195: =CORREL($C$3:C195,'SPY Data'!$C$3:C195) -> 0.9547328414
A196: 2008-11-28 | B196: 46.67 | C196: 0.01012176187 | D196: =CORREL(C196:C447,'SPY Data'!C196:C447) -> 0.9095202639 | E196: =CORREL($C$3:C196,'SPY Data'!$C$3:C196) -> 0.9546389979
A197: 2008-11-26 | B197: 46.2 | C197: 0.05815203184 | D197: =CORREL(C197:C448,'SPY Data'!C197:C448) -> 0.9092344815 | E197: =CORREL($C$3:C197,'SPY Data'!$C$3:C197) -> 0.9552878974
A198: 2008-11-25 | B198: 43.59 | C198: 0.01642224949 | D198: =CORREL(C198:C449,'SPY Data'!C198:C449) -> 0.9093714148 | E198: =CORREL($C$3:C198,'SPY Data'!$C$3:C198) -> 0.9551752267
A199: 2008-11-24 | B199: 42.88 | C199: 0.06802718652 | D199: =CORREL(C199:C450,'SPY Data'!C199:C450) -> 0.9095637723 | E199: =CORREL($C$3:C199,'SPY Data'!$C$3:C199) -> 0.9556346527
A200: 2008-11-21 | B200: 40.06 | C200: 0.05331862485 | D200: =CORREL(C200:C451,'SPY Data'!C200:C451) -> 0.9071218575 | E200: =CORREL($C$3:C200,'SPY Data'!$C$3:C200) -> 0.9559245687
... 2135 more rows

Sheet Data Validation (hidden)
A1: Name: | B1: Time | C1: Print | D1: FP_Display | E1: FF_Display | F1: Regression
B2: Daily | C2: LN Return | D2: =IF(Input!D4="Monthly","Monthly","Daily") -> Daily | E2: =IF(Input!D28="Monthly","Monthly","Daily") -> Daily | F2: =IF(Input!E4="Monthly","Monthly","Daily") -> Daily
B3: Monthly | C3: Values | D3: Monthly | E3: Monthly | F3: Monthly

Sheet Input
B2: Future Past
B3: # of FP Scenarios | C3: Projection Years | D3: Calculate: | E3: Display: | F3: Print: | G3: Δt
B4: 50 | C4: 10 | D4: Daily | E4: Daily | F4: Values | G4: =IF(D4="Daily", 1/252, 1/12) -> 0.003968253968
B6: SPY
B7: σ | C7: μ | D7: S(0) | E7: Correllation
B8: ='SPY Data'!H3 -> 0.2234451745 | C8: 0.08 | D8: ='SPY Data'!B3 -> 102.06 | E8: ='SPY Data'!F3 -> 0.8937852174
B10: Mutual Fund
B11: α | C11: Portion of SPY | D11: S(0)
B12: 0.025 | C12: 0 | D12: ='SPY Data'!B3 -> 102.06
B14: Russell 2000
B15: σ | C15: μ | D15: S(0)
B16: ='RUS Data'!H3 -> 0.2667724926 | C16: 0.09 | D16: ='RUS Data'!B3 -> 57.05
B18: Cholesky Decomposed Matrix
B19: =B8 -> 0.2234451745 | C19: 0
B20: =B16*E8 -> 0.2384373103 | C20: =SQRT(1-E8^2)*B16 -> 0.1196461946
B22: Regressions
B23: Max years to Regress | C23: Calculate: | D23: Regress:
B24: 10 | C24: Daily | D24: LN Return
B26: Future Future
B27: # of FF Scenarios | C27: Projection Years | D27: Calculate: | E27: Display: | F27: Print: | G27: Δt
B28: 50 | C28: 10 | D28: Daily | E28: Monthly | F28: Values | G28: =IF(D28="Daily", 1/252, 1/12) -> 0.003968253968

Sheet Output
I1: Scenario 1 | J1: Scenario 2 | K1: Scenario 3 | M1: Average | N1: StDev
B2: Start Time | C2: Finish Time | H2: Avg. SPY Yearly Return | I2: 0.06962772344 | J2: 0.005682351905 | K2: 0.01816918896 | M2: 0.03115975477 | N2: 0.03389422864
B3: 40132.82525 | C3: 40132.82698 | H3: Avg. MFI Yearly Return | I3: 0.08958664585 | J3: 0.005008599991 | K3: 0.03100194114 | M3: 0.04186572899 | N3: 0.0433229486
H4: Avg. RUS Yearly Return | I4: 0.06970945453 | J4: 0.04668166356 | K4: 0.01972172331 | M4: 0.04537094714 | N4: 0.02501962832
B5: Future Past | H5: Realized α (Tracking Error) | I5: 0.05165243366 | J5: 0.05221301845 | K5: 0.04930422735 | M5: 0.05105655982 | N5: 0.001543232207
B6: # of FP Scenarios | C6: Projection Years | D6: Calculate: | E6: Display: | F6: Print: | H6: SPY/RUS Correlation | I6: 0.8968505226 | J6: 0.8916716049 | K6: 0.8887386448 | M6: 0.8924202574 | N6: 0.004107432371
B7: 3 | C7: 10 | D7: Daily | E7: Daily | F7: Values
I8: 10-year Regression | J8: 9-year Regression | K8: 8-year Regression | L8: 7-year Regression | M8: 6-year Regression | N8: 5-year Regression | O8: 4-year Regression | P8: 3-year Regression | Q8: 2-year Regression | R8: 1-year Regression | T8: Average | U8: StDev
B9: SPY | H9: 2-Var Intercept Avg. | I9: 3.959257117e-05 | J9: 5.781490368e-06 | K9: 6.122079871e-06 | L9: 5.576368489e-06 | M9: 1.157516383e-05 | N9: 1.5136924e-05 | O9: -3.362696527e-06 | P9: 1.497939981e-05 | Q9: 3.082418163e-05 | R9: -9.66401819e-06
B10: σ | C10: μ | D10: S(0) | E10: Correllation | H10: 2-Var Intercept Avg. Error | I10: 6.397101082e-05 | J10: 6.727552668e-05 | K10: 7.138114241e-05 | L10: 7.665431383e-05 | M10: 0.000101279592 | N10: 4.396598591e-05 | O10: 9.985270815e-05 | P10: 0.0001144932519 | Q10: 0.0001406868262 | R10: 0.0002067217627
B11: 0.2234451745 | C11: 0.08 | D11: 102.06 | E11: 0.8937852174 | H11: 2-Var SPY Coef. Avg. | I11: 1.006564651 | J11: 1.004403724 | K11: 1.002726558 | L11: 1.003730013 | M11: 1.003660288 | N11: 0.005298055439 | O11: 0.9977164122 | P11: 0.996091053 | Q11: 0.9990691176 | R11: 1.014553097
H12: 2-Var SPY Coef. Avg. Error | I12: 0.01017406468 | J12: 0.01069927805 | K12: 0.0113785436 | L12: 0.01221020426 | M12: 0.0161212181 | N12: 0.00695446968 | O12: 0.01599978033 | P12: 0.01821996829 | Q12: 0.02244789274 | R12: 0.03272073925
B13: Mutual Fund | H13: 2-Var RUS Coef. Avg. | I13: -0.007278037301 | J13: -0.006046820043 | K13: -0.006978235175 | L13: -0.008983992914 | M13: -0.01083561965 | N13: 0.004720414851 | O13: -0.009913408287 | P13: -0.009825254725 | Q13: -0.01182248566 | R13: -0.02260591627
B14: α | C14: Portion of SPY | D14: S(0) | H14: 2-Var RUS Coef. Avg. Error | I14: 0.008486917779 | J14: 0.008937926247 | K14: 0.009511160041 | L14: 0.01020914855 | M14: 0.01353415384 | N14: 0.005887256313 | O14: 0.01347990733 | P14: 0.01533093912 | Q14: 0.01882840126 | R14: 0.02759962987
B15: 0.025 | C15: 2 | D15: 102.06 | H15: 2-Var R Squared | I15: 0.9495451251 | J15: 0.9500144724 | K15: 0.9497014413 | L15: 0.9495164288 | M15: 0.9496971676 | N15: 0.0009309093446 | O15: 0.9495889034 | P15: 0.9512676104 | Q15: 0.9508094516 | R15: 0.9478412781
H16: 1-Var SPY Intercept Avg. | I16: 3.964002375e-05 | J16: 6.302187958e-06 | K16: 6.759738148e-06 | L16: 5.904299728e-06 | M16: 1.253587565e-05 | N16: 1.439209294e-05 | O16: -4.354900012e-06 | P16: 1.408227779e-05 | Q16: 3.317402209e-05 | R16: -1.165604402e-06
B17: Russell 2000 | H17: 1-Var SPY Intercept Avg. Error | I17: 6.397013771e-05 | J17: 6.72605088e-05 | K17: 7.138547194e-05 | L17: 7.666280185e-05 | M17: 0.0001012497197 | N17: 4.390714376e-05 | O17: 9.98181907e-05 | P17: 0.0001144275566 | Q17: 0.0001406442982 | R17: 0.0002065288644
B18: σ | C18: μ | D18: S(0) | H18: 1-Var SPY Coef. Avg. | I18: 0.9987210558 | J18: 0.9979091411 | K18: 0.9952139303 | L18: 0.9940897582 | M18: 0.9921600315 | N18: 0.004604322797 | O18: 0.9872007819 | P18: 0.9856446148 | Q18: 0.9864372459 | R18: 0.9911385843
B19: 0.2667724926 | C19: 0.09 | D19: 57.05 | H19: 1-Var SPY Coef. Avg. Error | I19: 0.004588160467 | J19: 0.004808635018 | K19: 0.005103399729 | L19: 0.005462009487 | M19: 0.007235524707 | N19: 0.003114537166 | O19: 0.007170836221 | P19: 0.008126403182 | Q19: 0.01002391582 | R19: 0.01470503059
H20: 1-Var SPY R Squared | I20: 0.9495184897 | J20: 0.9499931923 | K20: 0.9496601972 | L20: 0.9494654821 | M20: 0.9496256844 | N20: 0.0009716949934 | O20: 0.9495614331 | P20: 0.9512273771 | Q20: 0.9506869178 | R20: 0.9475900422
B21: Cholesky Decomposed Matrix | H21: 1-Var RUS Intercept Avg. | I21: 2.933282849e-05 | J21: 4.859197157e-06 | K21: 1.54153319e-06 | L21: 2.413691454e-05 | M21: 4.677333526e-05 | N21: 0.0001048504911 | O21: -9.425174214e-06 | P21: -3.660442301e-05 | Q21: 5.537222041e-05 | R21: 0.0003357522157
B22: 0.2234451745 | C22: 0 | H22: 1-Var RUS Intercept Avg. Error | I22: 0.0001413972125 | J22: 0.0001487141554 | K22: 0.0001572791903 | L22: 0.0001685503538 | M22: 0.000223951247 | N22: 9.675616133e-05 | O22: 0.0002201804898 | P22: 0.000254937209 | Q22: 0.0003128772679 | R22: 0.0004542669513
B23: 0.2384373103 | C23: 0.1196461946 | H23: 1-Var RUS Coef. Avg. | I23: 0.7419569631 | J23: 0.7432925638 | K23: 0.7420098259 | L23: 0.7412623354 | M23: 0.7408961529 | N23: 0.001823434694 | O23: 0.7414067587 | P23: 0.7398903523 | Q23: 0.7366577652 | R23: 0.7420629138
H24: 1-Var RUS Coef. Avg. Error | I24: 0.008459032231 | J24: 0.008881745202 | K24: 0.009398213407 | L24: 0.01004260882 | M24: 0.01344285621 | N24: 0.00582498762 | O24: 0.01332590252 | P24: 0.01523977949 | Q24: 0.01871543149 | R24: 0.02733321249
B25: Regressions | H25: 1-Var RUS R Squared | I25: 0.7532751886 | J25: 0.7553886514 | K25: 0.7556240763 | L25: 0.755355434 | M25: 0.7531587171 | N25: 0.003624572035 | O25: 0.7544937506 | P25: 0.7572959142 | Q25: 0.7543197594 | R25: 0.746188396
B26: Max years to Regress | C26: Calculate: | D26: Regress:
B27: 10 | C27: Daily | D27: LN Return
B29: Future Future
B30: # of FF Scenarios | C30: Projection Years | D30: Calculate: | E30: Display: | F30: Print:
B31: 50 | C31: 10 | D31: Daily | E31: Monthly | F31: Values

Sheet Graph Data
B1: Regression Years | C1: 1 | D1: 2 | E1: 3 | F1: 4 | G1: 5 | H1: 6 | I1: 7 | J1: 8 | K1: 9 | L1: 10
A2: 2-VAR SPY | B2: Min | C2: 0.9877250464 | D2: 0.9793457406 | E2: 0.9862359554 | F2: 0.994979757 | G2: 0.9895759142 | H2: 0.9888197232 | I2: 0.9884803369 | J2: 0.9847590088 | K2: 0.991544227 | L2: 0.9952307362
B3: Min valid | C3: 0.9877250464 | D3: 0.9793457406 | E3: 0.9862359554 | F3: 0.994979757 | G3: 0.9895759142 | H3: 0.9888197232 | I3: 0.9884803369 | J3: 0.9847590088 | K3: 0.991544227 | L3: 0.9952307362
B4: 1st Quartile | C4: 1.007246332 | D4: 0.9851211418 | E4: 0.9899941677 | F4: 0.9967461805 | G4: 1.001110128 | H4: 1.000436921 | I4: 0.9978035229 | J4: 0.9927629919 | K4: 0.9985464367 | L4: 1.002214769
B5: Median | C5: 1.026767619 | D5: 0.990896543 | E5: 0.9937523801 | F5: 0.9985126039 | G5: 1.012644342 | H5: 1.012054119 | I5: 1.007126709 | J5: 1.000766975 | K5: 1.005548646 | L5: 1.009198802
B6: Mean | C6: 1.014553097 | D6: 0.9990691176 | E6: 0.996091053 | F6: 0.9977164122 | G6: 1.005325263 | H6: 1.006422992 | I6: 1.003730013 | J6: 1.002726558 | K6: 1.004403724 | L6: 1.006564651
B7: 3rd Quartile | C7: 1.027967122 | D7: 1.008930806 | E7: 1.001018602 | F7: 0.9990847398 | G7: 1.013199938 | H7: 1.015224626 | I7: 1.011354852 | J7: 1.011710333 | K7: 1.010833472 | L7: 1.012231609
B8: Max valid | C8: 1.029166626 | D8: 1.026965069 | E8: 1.008284824 | F8: 0.9996568756 | G8: 1.013755534 | H8: 1.018395132 | I8: 1.015582994 | J8: 1.022653691 | K8: 1.016118298 | L8: 1.015264416
B9: Max | C9: 1.029166626 | D9: 1.026965069 | E9: 1.008284824 | F9: 0.9996568756 | G9: 1.013755534 | H9: 1.018395132 | I9: 1.015582994 | J9: 1.022653691 | K9: 1.016118298 | L9: 1.015264416
A11: 2-VAR RUS | B11: Min | C11: -0.04234272741 | D11: -0.03238965511 | E11: -0.01840911614 | F11: -0.01058925014 | G11: -0.01939917428 | H11: -0.02169493075 | I11: -0.01893349059 | J11: -0.01443605265 | K11: -0.01229904551 | L11: -0.01501041651
B12: Min valid | C12: -0.04234272741 | D12: -0.03238965511 | E12: -0.01840911614 | F12: -0.01058925014 | G12: -0.01939917428 | H12: -0.02169493075 | I12: -0.01893349059 | J12: -0.01443605265 | K12: -0.01229904551 | L12: -0.01501041651
B13: 1st Quartile | C13: -0.03489473578 | D13: -0.01974596016 | E13: -0.01209319161 | F13: -0.0103100612 | G13: -0.01764025577 | H13: -0.01901381425 | I13: -0.01554115769 | J13: -0.01396979866 | K13: -0.01020786998 | L13: -0.0109750159
B14: Median | C14: -0.02744674415 | D14: -0.007102265215 | E14: -0.005777267082 | F14: -0.01003087226 | G14: -0.01588133726 | H14: -0.01633269774 | I14: -0.01214882478 | J14: -0.01350354467 | K14: -0.00811669444 | L14: -0.006939615288
B15: Mean | C15: -0.02260591627 | D15: -0.01182248566 | E15: -0.009825254725 | F15: -0.009913408287 | G15: -0.01231002233 | H15: -0.01259202379 | I15: -0.008983992914 | J15: -0.006978235175 | K15: -0.006046820043 | L15: -0.007278037301
B16: 3rd Quartile | C16: -0.0127375107 | D16: -0.001538900942 | E16: -0.005533324018 | F16: -0.009575487358 | G16: -0.008765446351 | H16: -0.008040570305 | I16: -0.004009244076 | J16: -0.003249326436 | K16: -0.002920707307 | L16: -0.003411847696
B17: Max valid | C17: 0.001971722751 | D17: 0.004024463331 | E17: -0.005289380955 | F17: -0.009120102457 | G17: -0.001649555441 | H17: 0.0002515571339 | I17: 0.00413033663 | J17: 0.007004891801 | K17: 0.002275279825 | L17: 0.000115919895
B18: Max | C18: 0.001971722751 | D18: 0.004024463331 | E18: -0.005289380955 | F18: -0.009120102457 | G18: -0.001649555441 | H18: 0.0002515571339 | I18: 0.00413033663 | J18: 0.007004891801 | K18: 0.002275279825 | L18: 0.000115919895
A20: 1-VAR SPY | B20: Min | C20: 0.9829751958 | D20: 0.9717084279 | E20: 0.9800793102 | F20: 0.9843727276 | G20: 0.9878227822 | H20: 0.9888872094 | I20: 0.9867423236 | J20: 0.9851535996 | K20: 0.9923250473 | L20: 0.9929717573
B21: Min valid | C21: 0.9829751958 | D21: 0.9717084279 | E21: 0.9800793102 | F21: 0.9843727276 | G21: 0.9878227822 | H21: 0.9888872094 | I21: 0.9867423236 | J21: 0.9851535996 | K21: 0.9923250473 | L21: 0.9929717573
B22: 1st Quartile | C22: 0.9864332289 | D22: 0.9820790055 | E22: 0.9841087887 | F22: 0.9858213916 | G22: 0.9898507761 | H22: 0.9889868756 | I22: 0.9898153459 | J22: 0.9886788803 | K22: 0.9931447247 | L22: 0.9941626482
B23: Median | C23: 0.9898912621 | D23: 0.992449583 | E23: 0.9881382672 | F23: 0.9872700555 | G23: 0.99187877 | H23: 0.9890865418 | I23: 0.9928883682 | J23: 0.992204161 | K23: 0.9939644021 | L23: 0.995353539
B24: Mean | C24: 0.9911385843 | D24: 0.9864372459 | E24: 0.9856446148 | F24: 0.9872007819 | G24: 0.9921854117 | H24: 0.9930597914 | I24: 0.9940897582 | J24: 0.9952139303 | K24: 0.9979091411 | L24: 0.9987210558
B25: 3rd Quartile | C25: 0.9952202785 | D25: 0.9938016549 | E25: 0.9884272671 | F25: 0.988614809 | G25: 0.9943667265 | H25: 0.9951460824 | I25: 0.9977634754 | J25: 1.000244096 | K25: 1.000701188 | L25: 1.001595705
B26: Max valid | C26: 1.000549295 | D26: 0.9951537268 | E26: 0.9887162671 | F26: 0.9899595625 | G26: 0.996854683 | H26: 1.001205623 | I26: 1.002638583 | J26: 1.00828403 | K26: 1.007437974 | L26: 1.007837871
B27: Max | C27: 1.000549295 | D27: 0.9951537268 | E27: 0.9887162671 | F27: 0.9899595625 | G27: 0.996854683 | H27: 1.001205623 | I27: 1.002638583 | J27: 1.00828403 | K27: 1.007437974 | L27: 1.007837871
A29: 1-VAR RUS | B29: Min | C29: 0.7191026762 | D29: 0.7057978034 | E29: 0.7213382011 | F29: 0.7246392363 | G29: 0.7199933462 | H29: 0.7160374779 | I29: 0.7176125036 | J29: 0.7175161701 | K29: 0.7248839289 | L29: 0.7227314083
B30: Min valid | C30: 0.7191026762 | D30: 0.7057978034 | E30: 0.7213382011 | F30: 0.7246392363 | G30: 0.7199933462 | H30: 0.7160374779 | I30: 0.7176125036 | J30: 0.7175161701 | K30: 0.7248839289 | L30: 0.7227314083
B31: 1st Quartile | C31: 0.7286810249 | D31: 0.7207683559 | E31: 0.7345628724 | F31: 0.7367865712 | G31: 0.7331418431 | H31: 0.7313225081 | I31: 0.7351593962 | J31: 0.7342245249 | K31: 0.7365443703 | L31: 0.7348792956
B32: Median | C32: 0.7382593735 | D32: 0.7357389083 | E32: 0.7477875438 | F32: 0.7489339062 | G32: 0.74629034 | H32: 0.7466075383 | I32: 0.7527062888 | J32: 0.7509328796 | K32: 0.7482048117 | L32: 0.747027183
B33: Mean | C33: 0.7420629138 | D33: 0.7366577652 | E33: 0.7398903523 | F33: 0.7414067587 | G33: 0.7399414401 | H33: 0.7404806108 | I33: 0.7412623354 | J33: 0.7420098259 | K33: 0.7432925638 | L33: 0.7419569631
B34: 3rd Quartile | C34: 0.7535430327 | D34: 0.7520877461 | E34: 0.749166428 | F34: 0.7497905199 | G34: 0.749915487 | H34: 0.7527021773 | I34: 0.7530872514 | J34: 0.7542566538 | K34: 0.7524968813 | L34: 0.7515697404
B35: Max valid | C35: 0.7688266918 | D35: 0.7684365839 | E35: 0.7505453121 | F35: 0.7506471336 | G35: 0.7535406341 | H35: 0.7587968163 | I35: 0.753468214 | J35: 0.757580428 | K35: 0.7567889508 | L35: 0.7561122979
B36: Max | C36: 0.7688266918 | D36: 0.7684365839 | E36: 0.7505453121 | F36: 0.7506471336 | G36: 0.7535406341 | H36: 0.7587968163 | I36: 0.753468214 | J36: 0.757580428 | K36: 0.7567889508 | L36: 0.7561122979
B38: Month | C38: 1 | D38: 2 | E38: 3 | F38: 4 | G38: 5 | H38: 6 | I38: 7 | J38: 8 | K38: 9 | L38: 10 | M38: 11 | N38: 12 | O38: 13 | P38: 14 | Q38: 15 | R38: 16 | S38: 17 | T38: 18 | U38: 19 | V38: 20 | W38: 21 | X38: 22 | Y38: 23 | Z38: 24 | AA38: 25 | AB38: 26 | AC38: 27 | AD38: 28 | AE38: 29 | AF38: 30 | AG38: 31 | AH38: 32 | AI38: 33 | AJ38: 34 | AK38: 35 | AL38: 36 | AM38: 37 | AN38: 38 | AO38: 39 | AP38: 40 | AQ38: 41 | AR38: 42 | AS38: 43 | AT38: 44 | AU38: 45 | AV38: 46 | AW38: 47 | AX38: 48 | AY38: 49 | AZ38: 50 | BA38: 51 | BB38: 52 | BC38: 53 | BD38: 54 | BE38: 55 | BF38: 56 | BG38: 57 | BH38: 58 | BI38: 59 | BJ38: 60 | BK38: 61 | BL38: 62 | BM38: 63 | BN38: 64 | BO38: 65 | BP38: 66 | BQ38: 67 | BR38: 68 | BS38: 69 | BT38: 70 | BU38: 71 | BV38: 72 | BW38: 73 | BX38: 74 | BY38: 75 | BZ38: 76 | CA38: 77 | CB38: 78 | CC38: 79 | CD38: 80 | CE38: 81 | CF38: 82 | CG38: 83 | CH38: 84 | CI38: 85 | CJ38: 86 | CK38: 87 | CL38: 88 | CM38: 89 | CN38: 90 | CO38: 91 | CP38: 92 | CQ38: 93 | CR38: 94 | CS38: 95 | CT38: 96 | CU38: 97 | CV38: 98 | CW38: 99 | CX38: 100 | CY38: 101 | CZ38: 102 | DA38: 103 | DB38: 104 | DC38: 105 | DD38: 106 | DE38: 107 | DF38: 108 | DG38: 109 | DH38: 110 | DI38: 111 | DJ38: 112 | DK38: 113 | DL38: 114 | DM38: 115 | DN38: 116 | DO38: 117 | DP38: 118 | DQ38: 119 | DR38: 120
A39: MFI 2-Var 1-Yr. REG | B39: Min | C39: -0.03018807679 | D39: -0.04728039924 | E39: -0.06436129146 | F39: -0.0640324475 | G39: -0.06921753414 | H39: -0.08269368285 | I39: -0.08458300544 | J39: -0.09659193019 | K39: -0.1011854752 | L39: -0.1052664863 | M39: -0.1044143086 | N39: -0.1160840207 | O39: -0.110631905 | P39: -0.1109228291 | Q39: -0.1357033679 | R39: -0.1418781021 | S39: -0.1445559713 | T39: -0.1484882056 | U39: -0.1541524371 | V39: -0.1575941503 | W39: -0.1564644137 | X39: -0.152663383 | Y39: -0.1575771493 | Z39: -0.1673980205 | AA39: -0.1613737973 | AB39: -0.1731237227 | AC39: -0.1776754289 | AD39: -0.1780962917 | AE39: -0.1845660965 | AF39: -0.186994802 | AG39: -0.1904493571 | AH39: -0.1915977715 | AI39: -0.198983769 | AJ39: -0.1883288213 | AK39: -0.1873829916 | AL39: -0.1781693129 | AM39: -0.1927938053 | AN39: -0.1756862796 | AO39: -0.1858812289 | AP39: -0.1885831361 | AQ39: -0.1974105478 | AR39: -0.2062656583 | AS39: -0.2253640546 | AT39: -0.2407473715 | AU39: -0.2605360885 | AV39: -0.2730404607 | AW39: -0.2632188699 | AX39: -0.2652497917 | AY39: -0.2654058268 | AZ39: -0.256534003 | BA39: -0.2552596023 | BB39: -0.2554013354 | BC39: -0.2640730978 | BD39: -0.2656768354 | BE39: -0.2777687018 | BF39: -0.2806271828 | BG39: -0.2951469522 | BH39: -0.3006487443 | BI39: -0.2929166021 | BJ39: -0.3025946661 | BK39: -0.2935504876 | BL39: -0.2890024775 | BM39: -0.2999621106 | BN39: -0.306818527 | BO39: -0.3016525603 | BP39: -0.3103717683 | BQ39: -0.3111201552 | BR39: -0.317877111 | BS39: -0.3090840075 | BT39: -0.3194165197 | BU39: -0.3296813096 | BV39: -0.337531618 | BW39: -0.3575202876 | BX39: -0.3580815418 | BY39: -0.3585385655 | BZ39: -0.3605946952 | CA39: -0.3449928511 | CB39: -0.3427626726 | CC39: -0.3211603316 | CD39: -0.3326615402 | CE39: -0.3291528589 | CF39: -0.3195909228 | CG39: -0.3233386325 | CH39: -0.3309082242 | CI39: -0.3405064455 | CJ39: -0.3214574394 | CK39: -0.3372471436 | CL39: -0.3464855974 | CM39: -0.3393248182 | CN39: -0.3367983635 | CO39: -0.3546216105 | CP39: -0.3498791162 | CQ39: -0.3505874172 | CR39: -0.3622899252 | CS39: -0.3806046097 | CT39: -0.3865103502 | CU39: -0.3779787467 | CV39: -0.3820766867 | CW39: -0.3860236507 | CX39: -0.3738650073 | CY39: -0.3781129184 | CZ39: -0.3730200203 | DA39: -0.382827965 | DB39: -0.3713696987 | DC39: -0.3665633057 | DD39: -0.3750869264 | DE39: -0.3776654492 | DF39: -0.381729452 | DG39: -0.3808720209 | DH39: -0.3808373722 | DI39: -0.3841016194 | DJ39: -0.3735921236 | DK39: -0.3764798954 | DL39: -0.3594472928 | DM39: -0.3649951369 | DN39: -0.3689564805 | DO39: -0.378534497 | DP39: -0.3814609883 | DQ39: -0.3793641138 | DR39: -0.3869182432
B40: 1st Quartile | C40: -0.008188689328 | D40: -0.01313035712 | E40: -0.01686843576 | F40: -0.02149421304 | G40: -0.02594051847 | H40: -0.0227531485 | I40: -0.02778236872 | J40: -0.03582667637 | K40: -0.03718569085 | L40: -0.03446174793 | M40: -0.03628276128 | N40: -0.03590700622 | O40: -0.03533366588 | P40: -0.04132199365 | Q40: -0.0395087778 | R40: -0.04178615525 | S40: -0.04823829261 | T40: -0.05499949539 | U40: -0.05095240807 | V40: -0.05969687611 | W40: -0.05424027707 | X40: -0.05913401852 | Y40: -0.05811895415 | Z40: -0.0541961754 | AA40: -0.04929540071 | AB40: -0.05529922458 | AC40: -0.05718049891 | AD40: -0.06234038102 | AE40: -0.06080297454 | AF40: -0.06237350959 | AG40: -0.06471291216 | AH40: -0.06568931028 | AI40: -0.06335984795 | AJ40: -0.06268622497 | AK40: -0.06433210306 | AL40: -0.06210427909 | AM40: -0.07283145121 | AN40: -0.07126172007 | AO40: -0.07438348248 | AP40: -0.07138492162 | AQ40: -0.07588821919 | AR40: -0.07272548111 | AS40: -0.07582820242 | AT40: -0.07881514063 | AU40: -0.0758228141 | AV40: -0.079109923 | AW40: -0.07458852902 | AX40: -0.07374999568 | AY40: -0.07312640533 | AZ40: -0.07518462723 | BA40: -0.07842624059 | BB40: -0.08164880847 | BC40: -0.08134632998 | BD40: -0.08008345358 | BE40: -0.09119724393 | BF40: -0.08558305201 | BG40: -0.08572834148 | BH40: -0.0906522841 | BI40: -0.09540459429 | BJ40: -0.09720115845 | BK40: -0.09190721175 | BL40: -0.09590642337 | BM40: -0.0957675354 | BN40: -0.1015714878 | BO40: -0.09328888061 | BP40: -0.09092219535 | BQ40: -0.09822198421 | BR40: -0.0936729944 | BS40: -0.08939271948 | BT40: -0.08824385836 | BU40: -0.09452263444 | BV40: -0.09525532041 | BW40: -0.09279347155 | BX40: -0.09997419444 | BY40: -0.1003106635 | BZ40: -0.1095132746 | CA40: -0.1112386498 | CB40: -0.1132689201 | CC40: -0.1156862945 | CD40: -0.1165586326 | CE40: -0.1201963326 | CF40: -0.1158664685 | CG40: -0.1144559525 | CH40: -0.1117857376 | CI40: -0.115380937 | CJ40: -0.1152308956 | CK40: -0.1135474424 | CL40: -0.1118085904 | CM40: -0.110082527 | CN40: -0.109655237 | CO40: -0.1078846398 | CP40: -0.1141140829 | CQ40: -0.1099070555 | CR40: -0.1104422216 | CS40: -0.1158744493 | CT40: -0.1178997203 | CU40: -0.1226828521 | CV40: -0.1218716514 | CW40: -0.1177839467 | CX40: -0.1146050267 | CY40: -0.1197810972 | CZ40: -0.1216428684 | DA40: -0.1193857982 | DB40: -0.1204723021 | DC40: -0.1210872539 | DD40: -0.1209694823 | DE40: -0.1238023731 | DF40: -0.1237770002 | DG40: -0.1199849578 | DH40: -0.1275096767 | DI40: -0.1317900416 | DJ40: -0.1343288237 | DK40: -0.1339807324 | DL40: -0.1332935361 | DM40: -0.1278076752 | DN40: -0.1259166313 | DO40: -0.1239941258 | DP40: -0.1281271982 | DQ40: -0.1311832786 | DR40: -0.1296606453
B41: Median | C41: 0.001617629297 | D41: -0.0008146540707 | E41: -0.004323439179 | F41: -0.003473935951 | G41: -0.002959031015 | H41: -0.004894586858 | I41: -0.005600982722 | J41: -0.007176702963 | K41: -0.001445988592 | L41: -0.003073776745 | M41: 0.001249356036 | N41: 0.001435938775 | O41: 0.001120942409 | P41: -0.002086884754 | Q41: 0.0002783374647 | R41: 0.002997018131 | S41: -0.001008233239 | T41: -0.001273893225 | U41: 0.005004557234 | V41: 0.0007658359447 | W41: 0.002372666479 | X41: -0.003073533438 | Y41: -0.002852589222 | Z41: -0.007492195675 | AA41: -0.004024425447 | AB41: -0.009668645391 | AC41: -0.01080224478 | AD41: -0.007770069135 | AE41: -0.01347758633 | AF41: -0.0129042391 | AG41: -0.006993599822 | AH41: 0.00438119021 | AI41: 2.469457821e-05 | AJ41: -0.006477183635 | AK41: -0.004967540469 | AL41: -0.006788254183 | AM41: -0.005733227351 | AN41: -0.003764850985 | AO41: 0.003665875477 | AP41: -0.002029066686 | AQ41: -0.002939260614 | AR41: -0.0106876123 | AS41: -0.008297800238 | AT41: -0.005991563059 | AU41: -0.00435121018 | AV41: -0.002363110637 | AW41: -0.007982375872 | AX41: -0.006620708203 | AY41: -0.008726802189 | AZ41: -0.0131508173 | BA41: -0.008414171211 | BB41: -0.005001869504 | BC41: -0.007435703403 | BD41: -0.005070227543 | BE41: -0.005523121893 | BF41: -0.005885329517 | BG41: -0.01037754483 | BH41: -0.01050690539 | BI41: -0.01060773396 | BJ41: -0.01833568775 | BK41: -0.01527843478 | BL41: -0.02171799228 | BM41: -0.01414581384 | BN41: -0.01503367829 | BO41: -0.01223896244 | BP41: -0.012591795 | BQ41: -0.01898720236 | BR41: -0.01788490827 | BS41: -0.02243603101 | BT41: -0.02332964396 | BU41: -0.02616076927 | BV41: -0.02437445414 | BW41: -0.02093703455 | BX41: -0.01916641731 | BY41: -0.01363595922 | BZ41: -0.01162778685 | CA41: -0.02672196238 | CB41: -0.01910454126 | CC41: -0.02356156415 | CD41: -0.02822426247 | CE41: -0.02493404166 | CF41: -0.02357378721 | CG41: -0.02355566667 | CH41: -0.01988296049 | CI41: -0.02678668838 | CJ41: -0.02425162513 | CK41: -0.02875021185 | CL41: -0.02929528185 | CM41: -0.0333758282 | CN41: -0.01995675762 | CO41: -0.03057718401 | CP41: -0.01593230855 | CQ41: -0.01290593646 | CR41: -0.009364510292 | CS41: -0.02044573682 | CT41: -0.02104364753 | CU41: -0.02431843279 | CV41: -0.02308677844 | CW41: -0.01834544133 | CX41: -0.01713899039 | CY41: -0.022153951 | CZ41: -0.02208345577 | DA41: -0.01371048577 | DB41: -0.01922904445 | DC41: -0.02241170027 | DD41: -0.02144428729 | DE41: -0.02363639356 | DF41: -0.02324210474 | DG41: -0.02296445294 | DH41: -0.01913205999 | DI41: -0.01824013083 | DJ41: -0.02281202926 | DK41: -0.02459482252 | DL41: -0.01897971057 | DM41: -0.01562063308 | DN41: -0.01971762081 | DO41: -0.01592054941 | DP41: -0.02522574276 | DQ41: -0.01986362767 | DR41: -0.01689805075
B42: Mean | C42: 0.001552892518 | D42: -0.0001229367407 | E42: -0.0001235443467 | F42: 0.0002297407884 | G42: -0.001491873116 | H42: -0.003308983442 | I42: -0.002546705352 | J42: -0.003958022628 | K42: -0.001962012334 | L42: -0.001077999705 | M42: 8.871966951e-06 | N42: -0.0008557019709 | O42: 0.0004280521082 | P42: 0.0007453890932 | Q42: -0.0005442715801 | R42: 0.0009550008579 | S42: 0.000433626466 | T42: 0.0005255006635 | U42: 0.001036892077 | V42: 0.0002914968972 | W42: 0.0007716304837 | X42: -3.782402995e-05 | Y42: 0.001080806944 | Z42: 0.001949378904 | AA42: 0.001935546756 | AB42: 2.458232344e-05 | AC42: 0.0008350104617 | AD42: -3.672965602e-05 | AE42: -0.0004565640206 | AF42: -0.0001005927386 | AG42: 0.0001266966583 | AH42: 0.001159687156 | AI42: 0.002191651061 | AJ42: 0.003369329302 | AK42: 0.001479975475 | AL42: 0.001051834136 | AM42: -0.00285993533 | AN42: -0.004353481011 | AO42: -0.002536032724 | AP42: -0.003338265627 | AQ42: -0.003734024018 | AR42: -0.00383117101 | AS42: -0.003537080782 | AT42: -0.003628942574 | AU42: -0.001936371612 | AV42: -0.003407262016 | AW42: -0.003811468375 | AX42: -0.003935082596 | AY42: -0.004228432583 | AZ42: -0.00392807993 | BA42: -0.004155997727 | BB42: -0.003907432981 | BC42: -0.002699232549 | BD42: -0.003165498229 | BE42: -0.005630430111 | BF42: -0.006868259935 | BG42: -0.00721691742 | BH42: -0.007590498879 | BI42: -0.008521360491 | BJ42: -0.009979703998 | BK42: -0.01191558698 | BL42: -0.01230416425 | BM42: -0.01188686181 | BN42: -0.01149951776 | BO42: -0.01138550732 | BP42: -0.01216831443 | BQ42: -0.01268246057 | BR42: -0.01062014716 | BS42: -0.01011015242 | BT42: -0.008920029115 | BU42: -0.009500614833 | BV42: -0.009979379792 | BW42: -0.009520553583 | BX42: -0.008078424958 | BY42: -0.007255403154 | BZ42: -0.008008793855 | CA42: -0.009269348266 | CB42: -0.01062356392 | CC42: -0.009906282864 | CD42: -0.009632173629 | CE42: -0.008960966254 | CF42: -0.009802904112 | CG42: -0.008774903925 | CH42: -0.01134305169 | CI42: -0.01191584185 | CJ42: -0.01240365501 | CK42: -0.01175396281 | CL42: -0.01011665064 | CM42: -0.009200385651 | CN42: -0.009160640682 | CO42: -0.009692784539 | CP42: -0.00734104198 | CQ42: -0.005605773822 | CR42: -0.006046563827 | CS42: -0.00560882705 | CT42: -0.005864027282 | CU42: -0.006331384307 | CV42: -0.00504324888 | CW42: -0.003895030726 | CX42: -0.003825378847 | CY42: -0.005279363334 | CZ42: -0.00419621279 | DA42: -0.002535380192 | DB42: -0.002720840872 | DC42: -0.004525684511 | DD42: -0.007277217016 | DE42: -0.005599718969 | DF42: -0.006168141819 | DG42: -0.006403413947 | DH42: -0.005926364421 | DI42: -0.008937941068 | DJ42: -0.007467998541 | DK42: -0.007443126318 | DL42: -0.008569370575 | DM42: -0.005510468291 | DN42: -0.005774100322 | DO42: -0.0061208563 | DP42: -0.008160589151 | DQ42: -0.007614521224 | DR42: -0.00832784047
B43: 3rd Quartile | C43: 0.01419227345 | D43: 0.01290845693 | E43: 0.01798427749 | F43: 0.02145330203 | G43: 0.01962741786 | H43: 0.01902411883 | I43: 0.0228457049 | J43: 0.0260816517 | K43: 0.03174656664 | L43: 0.03156523411 | M43: 0.03272724833 | N43: 0.03187973738 | O43: 0.03114889008 | P43: 0.03702417147 | Q43: 0.03654761795 | R43: 0.03953047275 | S43: 0.04371677849 | T43: 0.04636334863 | U43: 0.04633605292 | V43: 0.05378879356 | W43: 0.05565979278 | X43: 0.05987155737 | Y43: 0.06850837387 | Z43: 0.06490620716 | AA43: 0.0695731015 | AB43: 0.06123616023 | AC43: 0.06258949304 | AD43: 0.06083632523 | AE43: 0.0655350748 | AF43: 0.0650471225 | AG43: 0.06491754438 | AH43: 0.07132741332 | AI43: 0.06799193453 | AJ43: 0.07174409562 | AK43: 0.07687105105 | AL43: 0.07161210196 | AM43: 0.06532339798 | AN43: 0.06633499187 | AO43: 0.06624372024 | AP43: 0.06712637332 | AQ43: 0.07031220711 | AR43: 0.07118443172 | AS43: 0.07208846466 | AT43: 0.07096216621 | AU43: 0.07026111997 | AV43: 0.07383886091 | AW43: 0.06858328309 | AX43: 0.07242221126 | AY43: 0.06980466531 | AZ43: 0.07312255218 | BA43: 0.06943594661 | BB43: 0.07584617665 | BC43: 0.07493951117 | BD43: 0.0719758892 | BE43: 0.08355836305 | BF43: 0.08501027377 | BG43: 0.08029005359 | BH43: 0.0831723565 | BI43: 0.08560078335 | BJ43: 0.08067097932 | BK43: 0.07328341944 | BL43: 0.07274334289 | BM43: 0.07148482679 | BN43: 0.07612208504 | BO43: 0.07268278978 | BP43: 0.07591691093 | BQ43: 0.07755285734 | BR43: 0.08142832427 | BS43: 0.07544084957 | BT43: 0.08092418402 | BU43: 0.0861660262 | BV43: 0.08605898873 | BW43: 0.08282220254 | BX43: 0.07900210885 | BY43: 0.08765320631 | BZ43: 0.09021819499 | CA43: 0.09495137308 | CB43: 0.09574086651 | CC43: 0.08380245116 | CD43: 0.0875840533 | CE43: 0.08548018928 | CF43: 0.09058131371 | CG43: 0.09344025489 | CH43: 0.0916423612 | CI43: 0.08398114 | CJ43: 0.08505281088 | CK43: 0.08918046199 | CL43: 0.08854280859 | CM43: 0.08506726595 | CN43: 0.08257600635 | CO43: 0.08305789798 | CP43: 0.08647543087 | CQ43: 0.09045357505 | CR43: 0.08784036313 | CS43: 0.08974593515 | CT43: 0.09243606284 | CU43: 0.09817430827 | CV43: 0.1032377447 | CW43: 0.1064467803 | CX43: 0.1036646549 | CY43: 0.1014020831 | CZ43: 0.1058691558 | DA43: 0.1121360512 | DB43: 0.1039783782 | DC43: 0.09806299578 | DD43: 0.0906488074 | DE43: 0.09447337061 | DF43: 0.1059933239 | DG43: 0.1060574251 | DH43: 0.1063392681 | DI43: 0.1061879308 | DJ43: 0.106410877 | DK43: 0.1075227291 | DL43: 0.1030072517 | DM43: 0.1043617365 | DN43: 0.1060023962 | DO43: 0.1061562444 | DP43: 0.1051237059 | DQ43: 0.1047963977 | DR43: 0.1101609104
B44: Max | C44: 0.03616199571 | D44: 0.05082893434 | E44: 0.06301128274 | F44: 0.0952383941 | G44: 0.09370892154 | H44: 0.1039545274 | I44: 0.1110159689 | J44: 0.1369237355 | K44: 0.1051092936 | L44: 0.1038292276 | M44: 0.1021494218 | N44: 0.133722257 | O44: 0.1576001681 | P44: 0.2164540151 | Q44: 0.2241438728 | R44: 0.2030912186 | S44: 0.1978690456 | T44: 0.2139016114 | U44: 0.1916408976 | V44: 0.1866534704 | W44: 0.1831914033 | X44: 0.189364257 | Y44: 0.1748089159 | Z44: 0.1926711538 | AA44: 0.2078395589 | AB44: 0.2113533765 | AC44: 0.2107562839 | AD44: 0.2097081416 | AE44: 0.1994301077 | AF44: 0.1965136408 | AG44: 0.185520256 | AH44: 0.1999633073 | AI44: 0.1746820331 | AJ44: 0.2072425285 | AK44: 0.2152963277 | AL44: 0.2334442129 | AM44: 0.2322147528 | AN44: 0.2626025479 | AO44: 0.2732286376 | AP44: 0.2578886907 | AQ44: 0.2765292288 | AR44: 0.2546481204 | AS44: 0.2659846885 | AT44: 0.2706355733 | AU44: 0.3149695582 | AV44: 0.3181720874 | AW44: 0.2806554727 | AX44: 0.268910341 | AY44: 0.2822564431 | AZ44: 0.274327511 | BA44: 0.2765775718 | BB44: 0.2554088791 | BC44: 0.232104186 | BD44: 0.2522260336 | BE44: 0.2792176309 | BF44: 0.2690891563 | BG44: 0.2449452648 | BH44: 0.2481995123 | BI44: 0.259374402 | BJ44: 0.224188588 | BK44: 0.2414633867 | BL44: 0.2206934558 | BM44: 0.2405410604 | BN44: 0.2412697651 | BO44: 0.2454476408 | BP44: 0.2558779162 | BQ44: 0.2973872019 | BR44: 0.2833263219 | BS44: 0.2911252891 | BT44: 0.2996669027 | BU44: 0.2775677015 | BV44: 0.2915049477 | BW44: 0.3095561093 | BX44: 0.3074317425 | BY44: 0.2991833502 | BZ44: 0.3030255949 | CA44: 0.2982959298 | CB44: 0.2907648038 | CC44: 0.3156519276 | CD44: 0.32909377 | CE44: 0.3419083214 | CF44: 0.3442613536 | CG44: 0.3380185094 | CH44: 0.3363958874 | CI44: 0.3397693503 | CJ44: 0.3291517851 | CK44: 0.3515019318 | CL44: 0.3585808567 | CM44: 0.3667820891 | CN44: 0.3569889423 | CO44: 0.3863861342 | CP44: 0.3962227778 | CQ44: 0.4273254594 | CR44: 0.4494324364 | CS44: 0.4684340846 | CT44: 0.4645632469 | CU44: 0.4565125402 | CV44: 0.4531023192 | CW44: 0.4592000519 | CX44: 0.4479294821 | CY44: 0.3954212969 | CZ44: 0.4003094051 | DA44: 0.3961836303 | DB44: 0.3955382295 | DC44: 0.4137708521 | DD44: 0.3801176678 | DE44: 0.3760869891 | DF44: 0.3776405968 | DG44: 0.3813379456 | DH44: 0.3905489343 | DI44: 0.4028677881 | DJ44: 0.4445208445 | DK44: 0.4394936392 | DL44: 0.4400045904 | DM44: 0.4377645588 | DN44: 0.4424815028 | DO44: 0.4659406146 | DP44: 0.4448517506 | DQ44: 0.4485391673 | DR44: 0.4514599619
A46: MFI SPY 1-Yr. REG | B46: Min | C46: -0.03141945956 | D46: -0.0472468889 | E46: -0.06446222061 | F46: -0.06442341745 | G46: -0.06908556219 | H46: -0.07718443778 | I46: -0.08500061663 | J46: -0.09036478928 | K46: -0.09248882673 | L46: -0.1046678405 | M46: -0.1038119965 | N46: -0.1147831924 | O46: -0.1103025697 | P46: -0.1087325444 | Q46: -0.1233983379 | R46: -0.1373716918 | S46: -0.1400218986 | T46: -0.1477267752 | U46: -0.150388851 | V46: -0.1557163779 | W46: -0.153726524 | X46: -0.1505054779 | Y46: -0.1436001311 | Z46: -0.1664519337 | AA46: -0.1576184502 | AB46: -0.1690994649 | AC46: -0.1776783616 | AD46: -0.1727216521 | AE46: -0.1813371125 | AF46: -0.1893150532 | AG46: -0.1872197318 | AH46: -0.189476863 | AI46: -0.1961847818 | AJ46: -0.1848729916 | AK46: -0.1852839011 | AL46: -0.1769260843 | AM46: -0.1901036634 | AN46: -0.1729009389 | AO46: -0.177049217 | AP46: -0.1799972716 | AQ46: -0.1941546592 | AR46: -0.1975013209 | AS46: -0.2174500355 | AT46: -0.2347183472 | AU46: -0.2535847975 | AV46: -0.2639114434 | AW46: -0.2631716133 | AX46: -0.2662505981 | AY46: -0.2566259934 | AZ46: -0.2503097321 | BA46: -0.2607067296 | BB46: -0.2631582021 | BC46: -0.2543926987 | BD46: -0.2688287598 | BE46: -0.2782769412 | BF46: -0.2811145984 | BG46: -0.295589906 | BH46: -0.3011702212 | BI46: -0.2933912895 | BJ46: -0.3030617 | BK46: -0.2940403112 | BL46: -0.2894170548 | BM46: -0.3003857795 | BN46: -0.3072562304 | BO46: -0.3022019777 | BP46: -0.3109759292 | BQ46: -0.3116652193 | BR46: -0.3184228368 | BS46: -0.3097481377 | BT46: -0.3200017566 | BU46: -0.3302631154 | BV46: -0.3380701994 | BW46: -0.3581030356 | BX46: -0.3586527617 | BY46: -0.3591706137 | BZ46: -0.3612711588 | CA46: -0.3456913571 | CB46: -0.3434866805 | CC46: -0.3219350214 | CD46: -0.3334391813 | CE46: -0.3298975946 | CF46: -0.3195725022 | CG46: -0.3233039747 | CH46: -0.3308382207 | CI46: -0.3404122739 | CJ46: -0.3213600656 | CK46: -0.3371525157 | CL46: -0.3463593895 | CM46: -0.3392384596 | CN46: -0.3367429764 | CO46: -0.3545512441 | CP46: -0.3508058617 | CQ46: -0.3505322906 | CR46: -0.3622721848 | CS46: -0.3805563313 | CT46: -0.38649382 | CU46: -0.3779501173 | CV46: -0.3820287959 | CW46: -0.3860304723 | CX46: -0.3738470453 | CY46: -0.3781342135 | CZ46: -0.3730060834 | DA46: -0.3828116094 | DB46: -0.3713290961 | DC46: -0.3664820405 | DD46: -0.3750490591 | DE46: -0.3777191712 | DF46: -0.3817627608 | DG46: -0.3808824441 | DH46: -0.3807916602 | DI46: -0.3840805329 | DJ46: -0.3735488431 | DK46: -0.3764093881 | DL46: -0.3593658802 | DM46: -0.3648336704 | DN46: -0.3687401843 | DO46: -0.3783248741 | DP46: -0.3812287894 | DQ46: -0.3791380768 | DR46: -0.3866343567
B47: 1st Quartile | C47: -0.008612516917 | D47: -0.0120919739 | E47: -0.0169674682 | F47: -0.0223993843 | G47: -0.02553728386 | H47: -0.02258831105 | I47: -0.02752493832 | J47: -0.03609898331 | K47: -0.03360999122 | L47: -0.03079856232 | M47: -0.03710062199 | N47: -0.03754278408 | O47: -0.03489708718 | P47: -0.04179091612 | Q47: -0.03953278684 | R47: -0.04176083334 | S47: -0.04721783759 | T47: -0.0542843704 | U47: -0.05099866686 | V47: -0.05980750594 | W47: -0.05268206929 | X47: -0.05808229949 | Y47: -0.05770137114 | Z47: -0.05501548163 | AA47: -0.05322306239 | AB47: -0.05498492468 | AC47: -0.05726449774 | AD47: -0.05798929158 | AE47: -0.05680244637 | AF47: -0.06095773616 | AG47: -0.06403773992 | AH47: -0.06500006976 | AI47: -0.06333909403 | AJ47: -0.05958989967 | AK47: -0.06686239396 | AL47: -0.06234895291 | AM47: -0.0711921768 | AN47: -0.07428756011 | AO47: -0.07478040317 | AP47: -0.07451632146 | AQ47: -0.07618006965 | AR47: -0.07180570528 | AS47: -0.07175341779 | AT47: -0.0741954273 | AU47: -0.07519278488 | AV47: -0.08046515151 | AW47: -0.07415204415 | AX47: -0.07599158707 | AY47: -0.07400919157 | AZ47: -0.07480776381 | BA47: -0.07787296476 | BB47: -0.07985546368 | BC47: -0.07617522353 | BD47: -0.08028283176 | BE47: -0.08638033983 | BF47: -0.08334583852 | BG47: -0.08554868207 | BH47: -0.08965876883 | BI47: -0.09604191307 | BJ47: -0.09584385636 | BK47: -0.09347433614 | BL47: -0.09612324972 | BM47: -0.09688322193 | BN47: -0.1026424069 | BO47: -0.09197262455 | BP47: -0.09077477724 | BQ47: -0.09657105914 | BR47: -0.09340924835 | BS47: -0.08842345908 | BT47: -0.08636176479 | BU47: -0.09287857362 | BV47: -0.09236963049 | BW47: -0.09541609229 | BX47: -0.09823585655 | BY47: -0.1019135912 | BZ47: -0.1084408128 | CA47: -0.1046260484 | CB47: -0.1113734919 | CC47: -0.1146628654 | CD47: -0.1146408653 | CE47: -0.1199915185 | CF47: -0.1175829771 | CG47: -0.1134860784 | CH47: -0.1143744814 | CI47: -0.1141470947 | CJ47: -0.1134366897 | CK47: -0.1105997084 | CL47: -0.1100407065 | CM47: -0.1081186374 | CN47: -0.1074090769 | CO47: -0.1114905339 | CP47: -0.1152811819 | CQ47: -0.1065652935 | CR47: -0.1081392976 | CS47: -0.1124862326 | CT47: -0.1168077974 | CU47: -0.1219618729 | CV47: -0.1166351495 | CW47: -0.1123901013 | CX47: -0.109935402 | CY47: -0.1132202902 | CZ47: -0.1129180273 | DA47: -0.1134928007 | DB47: -0.120806816 | DC47: -0.1207354391 | DD47: -0.122242285 | DE47: -0.1246664781 | DF47: -0.1242130834 | DG47: -0.1207990373 | DH47: -0.1266388298 | DI47: -0.1318198416 | DJ47: -0.1270082445 | DK47: -0.1230390116 | DL47: -0.1225099359 | DM47: -0.1180968263 | DN47: -0.1228570779 | DO47: -0.1250593036 | DP47: -0.1332029082 | DQ47: -0.1355647146 | DR47: -0.133694045
B48: Median | C48: 0.001104157104 | D48: 0.000150317154 | E48: -0.004550965082 | F48: -0.002414818068 | G48: -0.001965044688 | H48: -0.005383662586 | I48: -0.005612449092 | J48: -0.007729346804 | K48: -0.001826580591 | L48: -0.002305742566 | M48: 0.0003508845514 | N48: 0.001276622031 | O48: 0.001244821691 | P48: -0.0008474314853 | Q48: 0.002387320093 | R48: 0.002970982296 | S48: -0.0001536227297 | T48: 0.00319845296 | U48: 0.004652309312 | V48: 0.003761630823 | W48: 0.001608010329 | X48: 1.296989753e-05 | Y48: 0.0002256098228 | Z48: -0.004794882408 | AA48: 3.025419768e-05 | AB48: -0.007592031946 | AC48: -0.008289684241 | AD48: -0.009498898893 | AE48: -0.009264677934 | AF48: -0.009691805757 | AG48: -0.008906103907 | AH48: 0.003182850723 | AI48: 0.0001493065743 | AJ48: -0.004867445198 | AK48: -0.002857990827 | AL48: -0.006100788015 | AM48: -0.005294579771 | AN48: -0.004975660365 | AO48: 0.00170596129 | AP48: -0.00237331348 | AQ48: -0.002257112717 | AR48: -0.007348511735 | AS48: -0.007244206412 | AT48: -0.0003874330392 | AU48: 0.0004992881795 | AV48: 0.0003616464265 | AW48: -0.005865967199 | AX48: -0.005421315392 | AY48: -0.009026061559 | AZ48: -0.009791440066 | BA48: -0.005611150315 | BB48: -0.006645463711 | BC48: -0.008305545031 | BD48: -0.006453206211 | BE48: -0.008522631328 | BF48: -0.01226925952 | BG48: -0.01056775215 | BH48: -0.01381177526 | BI48: -0.008771937064 | BJ48: -0.01597297215 | BK48: -0.01556386549 | BL48: -0.02020794617 | BM48: -0.01405505975 | BN48: -0.01692326668 | BO48: -0.0121363388 | BP48: -0.01119921511 | BQ48: -0.01770384899 | BR48: -0.01717070144 | BS48: -0.01853306726 | BT48: -0.0230093174 | BU48: -0.02543391619 | BV48: -0.02124776271 | BW48: -0.0179556603 | BX48: -0.01425379445 | BY48: -0.01705033334 | BZ48: -0.01034145098 | CA48: -0.02733812113 | CB48: -0.02024421606 | CC48: -0.0214920476 | CD48: -0.02738738336 | CE48: -0.02761692902 | CF48: -0.02327140564 | CG48: -0.02328689616 | CH48: -0.0191731452 | CI48: -0.02373036878 | CJ48: -0.02439497585 | CK48: -0.03004885355 | CL48: -0.02877558543 | CM48: -0.02451097513 | CN48: -0.01613813524 | CO48: -0.03147797449 | CP48: -0.01990001932 | CQ48: -0.02195627595 | CR48: -0.01478998439 | CS48: -0.02221264246 | CT48: -0.02315978593 | CU48: -0.02416463323 | CV48: -0.02446040512 | CW48: -0.01510047149 | CX48: -0.01673252893 | CY48: -0.02283988489 | CZ48: -0.01743756535 | DA48: -0.01035718415 | DB48: -0.01855537194 | DC48: -0.01930978286 | DD48: -0.02188984614 | DE48: -0.01990694952 | DF48: -0.01986762719 | DG48: -0.01839565845 | DH48: -0.01761529715 | DI48: -0.01847334218 | DJ48: -0.01989340632 | DK48: -0.01902432585 | DL48: -0.01613311004 | DM48: -0.01623651184 | DN48: -0.01490150605 | DO48: -0.01449440495 | DP48: -0.02469588913 | DQ48: -0.01732182961 | DR48: -0.01931643289
B49: Mean | C49: 0.001645664856 | D49: -6.649160304e-06 | E49: -2.020308973e-05 | F49: 0.0003700095581 | G49: -0.001318394779 | H49: -0.003040243152 | I49: -0.002244924741 | J49: -0.003711727348 | K49: -0.001706722986 | L49: -0.0009153983753 | M49: 0.0001468209089 | N49: -0.0007657195336 | O49: 0.0005542155647 | P49: 0.0009355435185 | Q49: -0.0003026783137 | R49: 0.001271585151 | S49: 0.0007798502753 | T49: 0.000858507095 | U49: 0.001345315578 | V49: 0.000646974519 | W49: 0.001223263019 | X49: 0.0003078431904 | Y49: 0.001560676821 | Z49: 0.002450645797 | AA49: 0.002400476372 | AB49: 0.0005854644254 | AC49: 0.001391747167 | AD49: 0.0006045291214 | AE49: 0.0001770873634 | AF49: 0.0004746420298 | AG49: 0.0007047543575 | AH49: 0.001714517882 | AI49: 0.002625010503 | AJ49: 0.003842787094 | AK49: 0.001954297264 | AL49: 0.001480823593 | AM49: -0.002344944262 | AN49: -0.003725133976 | AO49: -0.001868665956 | AP49: -0.002681061732 | AQ49: -0.003104949632 | AR49: -0.003241471606 | AS49: -0.002933803983 | AT49: -0.003149162653 | AU49: -0.001657136751 | AV49: -0.003164579761 | AW49: -0.003422271974 | AX49: -0.00344544966 | AY49: -0.003695322078 | AZ49: -0.003514948908 | BA49: -0.003616225624 | BB49: -0.003188059261 | BC49: -0.001948644754 | BD49: -0.002375663916 | BE49: -0.004883616236 | BF49: -0.006033785014 | BG49: -0.006244947801 | BH49: -0.006782905774 | BI49: -0.007721226034 | BJ49: -0.009195450746 | BK49: -0.01118498464 | BL49: -0.01142063805 | BM49: -0.01088392379 | BN49: -0.01048370836 | BO49: -0.01053992507 | BP49: -0.01135208591 | BQ49: -0.01191352733 | BR49: -0.009867085815 | BS49: -0.00919157398 | BT49: -0.008321836631 | BU49: -0.008939120015 | BV49: -0.009493847494 | BW49: -0.008874700145 | BX49: -0.007421588602 | BY49: -0.006513204415 | BZ49: -0.007294845808 | CA49: -0.008517958721 | CB49: -0.009849097276 | CC49: -0.009049619677 | CD49: -0.008804980558 | CE49: -0.008118233829 | CF49: -0.009051907481 | CG49: -0.007931150595 | CH49: -0.01049242072 | CI49: -0.0111180668 | CJ49: -0.01154974546 | CK49: -0.01104539155 | CL49: -0.00928758382 | CM49: -0.008272797907 | CN49: -0.008281199431 | CO49: -0.008816108522 | CP49: -0.006439303052 | CQ49: -0.00476683712 | CR49: -0.004954438883 | CS49: -0.004413857548 | CT49: -0.00471337893 | CU49: -0.005175141763 | CV49: -0.003826288655 | CW49: -0.002688513045 | CX49: -0.002690759286 | CY49: -0.003855105894 | CZ49: -0.002722355962 | DA49: -0.001154406124 | DB49: -0.001363686798 | DC49: -0.003144312481 | DD49: -0.005773049946 | DE49: -0.004012024114 | DF49: -0.004422310057 | DG49: -0.004619251758 | DH49: -0.004031159397 | DI49: -0.007098555068 | DJ49: -0.005621426782 | DK49: -0.00551231262 | DL49: -0.00668675234 | DM49: -0.003670147927 | DN49: -0.003845164064 | DO49: -0.004019085236 | DP49: -0.006126574845 | DQ49: -0.00563015659 | DR49: -0.006385718679
B50: 3rd Quartile | C50: 0.01356229946 | D50: 0.01303958205 | E50: 0.01875868831 | F50: 0.02148732152 | G50: 0.01878054444 | H50: 0.01813975655 | I50: 0.02337844642 | J50: 0.02623300742 | K50: 0.03148567779 | L50: 0.03215105387 | M50: 0.03435380029 | N50: 0.03104507889 | O50: 0.03343722014 | P50: 0.03566363544 | Q50: 0.03505738191 | R50: 0.03956729611 | S50: 0.04373568891 | T50: 0.0466205291 | U50: 0.04480280847 | V50: 0.05335611642 | W50: 0.05503244544 | X50: 0.05889094986 | Y50: 0.066601453 | Z50: 0.06593689668 | AA50: 0.07116390815 | AB50: 0.06124827631 | AC50: 0.06270531087 | AD50: 0.06354300738 | AE50: 0.06273703717 | AF50: 0.06541238157 | AG50: 0.0643906121 | AH50: 0.06362766513 | AI50: 0.0675892352 | AJ50: 0.07114899549 | AK50: 0.07984235559 | AL50: 0.07281852662 | AM50: 0.06696503981 | AN50: 0.06782292275 | AO50: 0.06849249392 | AP50: 0.06826443268 | AQ50: 0.06893327455 | AR50: 0.07002079113 | AS50: 0.07214213798 | AT50: 0.07155657409 | AU50: 0.06861424816 | AV50: 0.0667190832 | AW50: 0.06824712066 | AX50: 0.07276423373 | AY50: 0.07110964649 | AZ50: 0.07378659209 | BA50: 0.07161588359 | BB50: 0.07760390319 | BC50: 0.08246276883 | BD50: 0.0731196239 | BE50: 0.08000808734 | BF50: 0.07991547261 | BG50: 0.07770217857 | BH50: 0.08680229696 | BI50: 0.09019966659 | BJ50: 0.08133702384 | BK50: 0.07171161222 | BL50: 0.07252063317 | BM50: 0.0665263326 | BN50: 0.07550004905 | BO50: 0.07122248907 | BP50: 0.07209495261 | BQ50: 0.07079001174 | BR50: 0.07565102022 | BS50: 0.07500021799 | BT50: 0.08426502091 | BU50: 0.08798240015 | BV50: 0.08142742857 | BW50: 0.08153267019 | BX50: 0.07604105169 | BY50: 0.07640521849 | BZ50: 0.08588941166 | CA50: 0.09452690534 | CB50: 0.08801004531 | CC50: 0.08796847801 | CD50: 0.08451074369 | CE50: 0.08825592575 | CF50: 0.08270607097 | CG50: 0.09493319087 | CH50: 0.08757824806 | CI50: 0.07793804518 | CJ50: 0.0773099248 | CK50: 0.07693819214 | CL50: 0.07999421239 | CM50: 0.08205773641 | CN50: 0.08588625258 | CO50: 0.07996888583 | CP50: 0.08702644209 | CQ50: 0.09383730976 | CR50: 0.0905368205 | CS50: 0.09277326337 | CT50: 0.09880629976 | CU50: 0.09872505203 | CV50: 0.09850531718 | CW50: 0.1020954043 | CX50: 0.09730475568 | CY50: 0.1030025419 | CZ50: 0.1033676683 | DA50: 0.107655927 | DB50: 0.1028761776 | DC50: 0.09094842024 | DD50: 0.08555666406 | DE50: 0.09023525703 | DF50: 0.09687637456 | DG50: 0.09867472721 | DH50: 0.09637800769 | DI50: 0.1020522333 | DJ50: 0.1024509298 | DK50: 0.1014791285 | DL50: 0.1032421447 | DM50: 0.1059161749 | DN50: 0.1100065943 | DO50: 0.1016978009 | DP50: 0.1045946025 | DQ50: 0.1061144494 | DR50: 0.1032161174
B51: Max | C51: 0.03608471904 | D51: 0.05067337285 | E51: 0.06432317975 | F51: 0.09484770652 | G51: 0.09777255703 | H51: 0.1057126081 | I51: 0.1158164952 | J51: 0.1398809288 | K51: 0.1113962831 | L51: 0.1089058506 | M51: 0.1053939055 | N51: 0.1309177674 | O51: 0.1544460227 | P51: 0.2143481505 | Q51: 0.2224986801 | R51: 0.1997912778 | S51: 0.1944858583 | T51: 0.2109514425 | U51: 0.1887010941 | V51: 0.1828577596 | W51: 0.1781888808 | X51: 0.1832784324 | Y51: 0.1697824589 | Z51: 0.1875403141 | AA51: 0.20074771 | AB51: 0.2075474329 | AC51: 0.2012951606 | AD51: 0.2014459957 | AE51: 0.1955630706 | AF51: 0.1930328879 | AG51: 0.1897990325 | AH51: 0.2047282614 | AI51: 0.17505295 | AJ51: 0.2129304728 | AK51: 0.2211284546 | AL51: 0.2375429712 | AM51: 0.2342503827 | AN51: 0.2632894767 | AO51: 0.2731789806 | AP51: 0.2586006298 | AQ51: 0.2787680826 | AR51: 0.2557268248 | AS51: 0.2667843604 | AT51: 0.2712582724 | AU51: 0.3146362831 | AV51: 0.3188756445 | AW51: 0.2815882684 | AX51: 0.2698039734 | AY51: 0.2829790192 | AZ51: 0.274708992 | BA51: 0.2782154551 | BB51: 0.2589610404 | BC51: 0.2319766211 | BD51: 0.2519809128 | BE51: 0.2790747467 | BF51: 0.2690077102 | BG51: 0.2448986232 | BH51: 0.2479983854 | BI51: 0.2590487353 | BJ51: 0.2235995237 | BK51: 0.2349856594 | BL51: 0.2190098757 | BM51: 0.2269196799 | BN51: 0.2436699699 | BO51: 0.2414832931 | BP51: 0.2529415374 | BQ51: 0.2903465204 | BR51: 0.2758375907 | BS51: 0.2854607471 | BT51: 0.2928008693 | BU51: 0.2826693784 | BV51: 0.3070373611 | BW51: 0.326392061 | BX51: 0.3168044002 | BY51: 0.3198692168 | BZ51: 0.3027164413 | CA51: 0.3042638988 | CB51: 0.3056902038 | CC51: 0.3235055217 | CD51: 0.3354112026 | CE51: 0.3399844618 | CF51: 0.3579495269 | CG51: 0.3247502855 | CH51: 0.3337375938 | CI51: 0.3263751475 | CJ51: 0.323362457 | CK51: 0.3383982027 | CL51: 0.3574851089 | CM51: 0.3693347912 | CN51: 0.3586449544 | CO51: 0.3938105534 | CP51: 0.4030581992 | CQ51: 0.4118918854 | CR51: 0.4591479524 | CS51: 0.4780177973 | CT51: 0.4742541124 | CU51: 0.4657284858 | CV51: 0.4613284707 | CW51: 0.467447637 | CX51: 0.4579917745 | CY51: 0.4051266323 | CZ51: 0.4016931941 | DA51: 0.3966866133 | DB51: 0.4013705335 | DC51: 0.4086997752 | DD51: 0.3884884289 | DE51: 0.383485497 | DF51: 0.3777293749 | DG51: 0.3813313182 | DH51: 0.3991313117 | DI51: 0.4097733537 | DJ51: 0.4516512021 | DK51: 0.4494446479 | DL51: 0.4481142231 | DM51: 0.4453411813 | DN51: 0.4499003546 | DO51: 0.4759761547 | DP51: 0.4538350357 | DQ51: 0.4541385183 | DR51: 0.4582740793
A53: MFI RUS 1-Yr. REG | B53: Min | C53: -0.06893079682 | D53: -0.104703381 | E53: -0.1585472555 | F53: -0.1345268056 | G53: -0.190424639 | H53: -0.2070163295 | I53: -0.2246901813 | J53: -0.2400565804 | K53: -0.2458252537 | L53: -0.2312713998 | M53: -0.2655367386 | N53: -0.2690490341 | O53: -0.271260907 | P53: -0.2523145761 | Q53: -0.2537876639 | R53: -0.2556835802 | S53: -0.2791530114 | T53: -0.2815076828 | U53: -0.2742920653 | V53: -0.2944993664 | W53: -0.2767796253 | X53: -0.3101760557 | Y53: -0.3198710903 | Z53: -0.3580539365 | AA53: -0.357562979 | AB53: -0.363204874 | AC53: -0.3887154685 | AD53: -0.398565609 | AE53: -0.4315284824 | AF53: -0.4316590726 | AG53: -0.4467176044 | AH53: -0.463598433 | AI53: -0.4442339615 | AJ53: -0.4361697305 | AK53: -0.4058456789 | AL53: -0.428471945 | AM53: -0.4228300517 | AN53: -0.4318193815 | AO53: -0.4258059424 | AP53: -0.4195233271 | AQ53: -0.4306388233 | AR53: -0.4127534897 | AS53: -0.4165919831 | AT53: -0.429987453 | AU53: -0.4397688427 | AV53: -0.4622762394 | AW53: -0.4410098073 | AX53: -0.4311563843 | AY53: -0.4234485763 | AZ53: -0.4301232967 | BA53: -0.4468464345 | BB53: -0.4535399759 | BC53: -0.4584704232 | BD53: -0.4702065482 | BE53: -0.4780769101 | BF53: -0.4814552266 | BG53: -0.5050712399 | BH53: -0.4785200193 | BI53: -0.4492654454 | BJ53: -0.4444168554 | BK53: -0.4532798654 | BL53: -0.4948277161 | BM53: -0.4939329404 | BN53: -0.5339782911 | BO53: -0.5250181195 | BP53: -0.5438415448 | BQ53: -0.5312012489 | BR53: -0.5020661116 | BS53: -0.5208288184 | BT53: -0.4939119637 | BU53: -0.4807941562 | BV53: -0.5045406416 | BW53: -0.5156358677 | BX53: -0.5114218282 | BY53: -0.5249567116 | BZ53: -0.5341259382 | CA53: -0.5469435197 | CB53: -0.5478977576 | CC53: -0.5503509815 | CD53: -0.5344205464 | CE53: -0.5490187699 | CF53: -0.5495420965 | CG53: -0.5344310919 | CH53: -0.5398105018 | CI53: -0.5423709201 | CJ53: -0.5575779141 | CK53: -0.5590984083 | CL53: -0.5583902437 | CM53: -0.5651866016 | CN53: -0.551198776 | CO53: -0.5776449736 | CP53: -0.600217837 | CQ53: -0.5954620016 | CR53: -0.5900287857 | CS53: -0.5855028751 | CT53: -0.6010051519 | CU53: -0.6132232657 | CV53: -0.6292635578 | CW53: -0.6159161329 | CX53: -0.6434166623 | CY53: -0.654786871 | CZ53: -0.6705997337 | DA53: -0.6715722916 | DB53: -0.6657635517 | DC53: -0.6732654815 | DD53: -0.6656946924 | DE53: -0.6429784948 | DF53: -0.6410626503 | DG53: -0.6403275242 | DH53: -0.656802741 | DI53: -0.6700149138 | DJ53: -0.6616461945 | DK53: -0.6613387517 | DL53: -0.6761995529 | DM53: -0.6810841868 | DN53: -0.680095435 | DO53: -0.6751281455 | DP53: -0.6867177646 | DQ53: -0.6872878811 | DR53: -0.6980571825
B54: 1st Quartile | C54: -0.01620749624 | D54: -0.02596260107 | E54: -0.04002482695 | F54: -0.04496501637 | G54: -0.04961471263 | H54: -0.04717475242 | I54: -0.05676746126 | J54: -0.06342398472 | K54: -0.07066846237 | L54: -0.07211293504 | M54: -0.07488665647 | N54: -0.07369895875 | O54: -0.07073659962 | P54: -0.09370672792 | Q54: -0.08889960068 | R54: -0.09062037164 | S54: -0.09739223067 | T54: -0.09392631578 | U54: -0.09897278854 | V54: -0.1107536147 | W54: -0.09451503966 | X54: -0.1046972638 | Y54: -0.1104676246 | Z54: -0.1132780541 | AA54: -0.1235639979 | AB54: -0.1188361741 | AC54: -0.1192816436 | AD54: -0.1244192852 | AE54: -0.1168370231 | AF54: -0.1315025296 | AG54: -0.1415957075 | AH54: -0.138085293 | AI54: -0.1331600375 | AJ54: -0.1340697815 | AK54: -0.1427773241 | AL54: -0.1562645664 | AM54: -0.1483872839 | AN54: -0.1426518031 | AO54: -0.1576843072 | AP54: -0.1564459713 | AQ54: -0.1737562792 | AR54: -0.176107706 | AS54: -0.17932424 | AT54: -0.1626967502 | AU54: -0.1629719476 | AV54: -0.1729710068 | AW54: -0.1760024969 | AX54: -0.1854359701 | AY54: -0.2014990376 | AZ54: -0.1990293892 | BA54: -0.2000464318 | BB54: -0.1991188036 | BC54: -0.2095359776 | BD54: -0.2021366824 | BE54: -0.2022760353 | BF54: -0.2045357484 | BG54: -0.2068909385 | BH54: -0.2174678869 | BI54: -0.2105748661 | BJ54: -0.2178029705 | BK54: -0.2222789671 | BL54: -0.2288717852 | BM54: -0.2140311652 | BN54: -0.2266559402 | BO54: -0.2273748076 | BP54: -0.2362269028 | BQ54: -0.227892176 | BR54: -0.2529550145 | BS54: -0.2463280242 | BT54: -0.2629819714 | BU54: -0.2503162394 | BV54: -0.2375736591 | BW54: -0.2368171063 | BX54: -0.2448529724 | BY54: -0.2352436939 | BZ54: -0.2457189895 | CA54: -0.2351669537 | CB54: -0.2510918825 | CC54: -0.2442704965 | CD54: -0.267392701 | CE54: -0.2709979436 | CF54: -0.2667548119 | CG54: -0.2771334573 | CH54: -0.2715807621 | CI54: -0.2529401023 | CJ54: -0.2671913315 | CK54: -0.2677125727 | CL54: -0.2658907522 | CM54: -0.2742683424 | CN54: -0.2807540991 | CO54: -0.2883145196 | CP54: -0.2734463665 | CQ54: -0.2675373621 | CR54: -0.2772732139 | CS54: -0.2568765505 | CT54: -0.2743378248 | CU54: -0.2851487825 | CV54: -0.289439915 | CW54: -0.2801590613 | CX54: -0.292548595 | CY54: -0.2947867951 | CZ54: -0.2801985299 | DA54: -0.2837485583 | DB54: -0.2854965036 | DC54: -0.2888228192 | DD54: -0.2866534714 | DE54: -0.2713235705 | DF54: -0.2784512143 | DG54: -0.2989182435 | DH54: -0.290042823 | DI54: -0.2837530027 | DJ54: -0.3000610281 | DK54: -0.2989893753 | DL54: -0.2993998113 | DM54: -0.2939363034 | DN54: -0.3010644092 | DO54: -0.3058353483 | DP54: -0.2973352867 | DQ54: -0.3084105256 | DR54: -0.3106788535
B55: Median | C55: 0.006850513482 | D55: 0.003214214893 | E55: -0.002423343013 | F55: 0.003190862474 | G55: -0.005386753302 | H55: -0.005595388939 | I55: -0.006771410944 | J55: -0.002281223644 | K55: -0.001382639844 | L55: -0.01167682521 | M55: -0.003704124245 | N55: -0.009660953018 | O55: -0.002894037569 | P55: -0.006584051955 | Q55: -0.003254250248 | R55: -0.005664302946 | S55: -0.008987806851 | T55: -0.01279371923 | U55: -0.01301946375 | V55: -0.01844984096 | W55: -0.01882825873 | X55: -0.01387732085 | Y55: -0.01908360499 | Z55: -0.006202323426 | AA55: -0.008796198716 | AB55: -0.0154070958 | AC55: -0.01061333863 | AD55: -0.01977939656 | AE55: -0.02478669345 | AF55: -0.0360928827 | AG55: -0.0276294301 | AH55: -0.0348204602 | AI55: -0.02996190319 | AJ55: -0.03405833448 | AK55: -0.03529720665 | AL55: -0.04175883271 | AM55: -0.05070808662 | AN55: -0.05534049989 | AO55: -0.04972243879 | AP55: -0.05931000552 | AQ55: -0.04331469165 | AR55: -0.04776845471 | AS55: -0.04353583691 | AT55: -0.05586069621 | AU55: -0.06057731164 | AV55: -0.05171467628 | AW55: -0.06169166605 | AX55: -0.06918305781 | AY55: -0.06920963172 | AZ55: -0.06456903566 | BA55: -0.06019631069 | BB55: -0.06584488378 | BC55: -0.06079728246 | BD55: -0.09542980631 | BE55: -0.1012394704 | BF55: -0.08403058088 | BG55: -0.07993649889 | BH55: -0.07808662752 | BI55: -0.08358575745 | BJ55: -0.09552053435 | BK55: -0.08533499079 | BL55: -0.09081045819 | BM55: -0.08295890402 | BN55: -0.08899921982 | BO55: -0.1033247624 | BP55: -0.1097779697 | BQ55: -0.1051804924 | BR55: -0.103024446 | BS55: -0.1015426763 | BT55: -0.1024658342 | BU55: -0.09515429075 | BV55: -0.09772472798 | BW55: -0.09832261722 | BX55: -0.08836955349 | BY55: -0.1013068486 | BZ55: -0.08290616823 | CA55: -0.07558384727 | CB55: -0.08203215025 | CC55: -0.09495787797 | CD55: -0.08759994799 | CE55: -0.1024553943 | CF55: -0.08593351121 | CG55: -0.1012777113 | CH55: -0.09677369121 | CI55: -0.1051316213 | CJ55: -0.08076415347 | CK55: -0.0710224914 | CL55: -0.07542364947 | CM55: -0.06592063991 | CN55: -0.05974940478 | CO55: -0.06748605427 | CP55: -0.05571180643 | CQ55: -0.06259107614 | CR55: -0.057923504 | CS55: -0.05026638267 | CT55: -0.07454176755 | CU55: -0.06787665508 | CV55: -0.0756771178 | CW55: -0.08257975732 | CX55: -0.08960635917 | CY55: -0.09510748849 | CZ55: -0.08266989039 | DA55: -0.08503020478 | DB55: -0.08322830222 | DC55: -0.09787496585 | DD55: -0.1045950995 | DE55: -0.09800572569 | DF55: -0.1027531009 | DG55: -0.1154513383 | DH55: -0.08542868582 | DI55: -0.1046875761 | DJ55: -0.1140544466 | DK55: -0.0930944227 | DL55: -0.08790634976 | DM55: -0.08878113904 | DN55: -0.0861753235 | DO55: -0.0737296985 | DP55: -0.08384343278 | DQ55: -0.09258031652 | DR55: -0.1057730406
B56: Mean | C56: 0.006266055602 | D56: 0.004165163465 | E56: 0.002511091455 | F56: 0.003085711972 | G56: 0.00150803247 | H56: 0.00132165593 | I56: 0.002443544162 | J56: -0.001170719633 | K56: -8.41721143e-05 | L56: -0.0004463832682 | M56: 0.0008455483575 | N56: -0.001969889268 | O56: -0.0002004334123 | P56: 0.0001362116116 | Q56: 0.00221622346 | R56: 0.0002255900336 | S56: -0.005034353705 | T56: -0.007164560958 | U56: -0.006189035541 | V56: -0.005736468527 | W56: -0.001301672985 | X56: -0.0067335227 | Y56: -0.003696783634 | Z56: -0.002871094928 | AA56: -0.003705037882 | AB56: -0.00385860322 | AC56: -0.005010141622 | AD56: -0.005124248501 | AE56: -0.006357249462 | AF56: -0.01033606969 | AG56: -0.01461459016 | AH56: -0.01250657454 | AI56: -0.01517565927 | AJ56: -0.01290607633 | AK56: -0.01491364099 | AL56: -0.0186845856 | AM56: -0.01952472303 | AN56: -0.02119716811 | AO56: -0.0198052608 | AP56: -0.02465481145 | AQ56: -0.02637331658 | AR56: -0.02983267014 | AS56: -0.02869263757 | AT56: -0.03199723431 | AU56: -0.03486059193 | AV56: -0.03648206103 | AW56: -0.03519121038 | AX56: -0.03681073511 | AY56: -0.03564639528 | AZ56: -0.04067808451 | BA56: -0.03820313722 | BB56: -0.03827796751 | BC56: -0.03797180075 | BD56: -0.04278919934 | BE56: -0.04855785332 | BF56: -0.04575161749 | BG56: -0.04328201416 | BH56: -0.04595698922 | BI56: -0.04464264317 | BJ56: -0.04782883348 | BK56: -0.05300773128 | BL56: -0.05092367515 | BM56: -0.04557318205 | BN56: -0.04533367395 | BO56: -0.04702251954 | BP56: -0.05082941179 | BQ56: -0.05491194515 | BR56: -0.05165686972 | BS56: -0.04933946107 | BT56: -0.05351084602 | BU56: -0.05430500957 | BV56: -0.05659232333 | BW56: -0.05761863887 | BX56: -0.0597147045 | BY56: -0.05974759885 | BZ56: -0.05928966842 | CA56: -0.05885882091 | CB56: -0.05719512964 | CC56: -0.05567310688 | CD56: -0.05504708618 | CE56: -0.05616020776 | CF56: -0.05694170165 | CG56: -0.05534835785 | CH56: -0.05917453358 | CI56: -0.06170446517 | CJ56: -0.06206279655 | CK56: -0.06829346449 | CL56: -0.06568964928 | CM56: -0.06252654791 | CN56: -0.06091655842 | CO56: -0.06325840894 | CP56: -0.06329098738 | CQ56: -0.06315349556 | CR56: -0.05793041039 | CS56: -0.05645750491 | CT56: -0.0585486969 | CU56: -0.060273179 | CV56: -0.058279278 | CW56: -0.05810642987 | CX56: -0.06154609097 | CY56: -0.05999157314 | CZ56: -0.06176935509 | DA56: -0.06092185427 | DB56: -0.06458397166 | DC56: -0.06495834727 | DD56: -0.06466336552 | DE56: -0.05793729161 | DF56: -0.05757475489 | DG56: -0.05860480981 | DH56: -0.05577602212 | DI56: -0.05979253746 | DJ56: -0.05958307782 | DK56: -0.05894924707 | DL56: -0.05908071242 | DM56: -0.05668264938 | DN56: -0.05300078293 | DO56: -0.0486606158 | DP56: -0.05212303532 | DQ56: -0.05311723018 | DR56: -0.05429886801
B57: 3rd Quartile | C57: 0.02709715188 | D57: 0.03457375095 | E57: 0.0424389408 | F57: 0.04649394747 | G57: 0.0517785547 | H57: 0.05652437358 | I57: 0.05994022802 | J57: 0.05672160674 | K57: 0.07105817975 | L57: 0.07176431745 | M57: 0.06876093733 | N57: 0.06749174014 | O57: 0.07456750907 | P57: 0.07107362829 | Q57: 0.08185930687 | R57: 0.0724315605 | S57: 0.06997504719 | T57: 0.06883095246 | U57: 0.06046624769 | V57: 0.06565141989 | W57: 0.09118787442 | X57: 0.06960039206 | Y57: 0.08105529211 | Z57: 0.1003884451 | AA57: 0.09452178252 | AB57: 0.08996501243 | AC57: 0.09268423532 | AD57: 0.08111604049 | AE57: 0.1037370574 | AF57: 0.09303646398 | AG57: 0.09074026296 | AH57: 0.09889345005 | AI57: 0.09787447349 | AJ57: 0.09021690525 | AK57: 0.08633880709 | AL57: 0.08616160172 | AM57: 0.09215714224 | AN57: 0.09508738274 | AO57: 0.09038916036 | AP57: 0.07927534589 | AQ57: 0.09228379721 | AR57: 0.0826601611 | AS57: 0.08322576136 | AT57: 0.07217691655 | AU57: 0.07025443753 | AV57: 0.07786863367 | AW57: 0.07352164709 | AX57: 0.06674800925 | AY57: 0.09007504634 | AZ57: 0.09365874342 | BA57: 0.09336433082 | BB57: 0.08902228219 | BC57: 0.09624096675 | BD57: 0.07743478658 | BE57: 0.07530280583 | BF57: 0.08900678927 | BG57: 0.08472117321 | BH57: 0.07456688788 | BI57: 0.08640893411 | BJ57: 0.07695289672 | BK57: 0.06093147139 | BL57: 0.05855682624 | BM57: 0.08345483613 | BN57: 0.08260067134 | BO57: 0.08189331769 | BP57: 0.08023344998 | BQ57: 0.08131639958 | BR57: 0.0859498176 | BS57: 0.08866972191 | BT57: 0.1103464983 | BU57: 0.1129282918 | BV57: 0.1127429006 | BW57: 0.1026844154 | BX57: 0.09203472903 | BY57: 0.1009872717 | BZ57: 0.1054418818 | CA57: 0.1058339817 | CB57: 0.1167679655 | CC57: 0.1139571021 | CD57: 0.1322996362 | CE57: 0.1258076498 | CF57: 0.1206514326 | CG57: 0.1134228704 | CH57: 0.1147048785 | CI57: 0.1054110099 | CJ57: 0.1118700668 | CK57: 0.08311696773 | CL57: 0.09846588708 | CM57: 0.07897044636 | CN57: 0.07720191944 | CO57: 0.08450716582 | CP57: 0.08840476622 | CQ57: 0.08696667824 | CR57: 0.0862330261 | CS57: 0.1006758056 | CT57: 0.1130590825 | CU57: 0.1187363181 | CV57: 0.1146191637 | CW57: 0.1304388413 | CX57: 0.1279326761 | CY57: 0.1226618913 | CZ57: 0.09574343012 | DA57: 0.1091836373 | DB57: 0.1082712919 | DC57: 0.110589865 | DD57: 0.1038152667 | DE57: 0.08438729888 | DF57: 0.094744646 | DG57: 0.1053231958 | DH57: 0.09743314746 | DI57: 0.1091556393 | DJ57: 0.1308431096 | DK57: 0.1175728023 | DL57: 0.1209999969 | DM57: 0.1200631956 | DN57: 0.1211889203 | DO57: 0.1293757339 | DP57: 0.121128883 | DQ57: 0.1197033802 | DR57: 0.122800248
B58: Max | C58: 0.07975044994 | D58: 0.1207106564 | E58: 0.1695802276 | F58: 0.1918806064 | G58: 0.2176280177 | H58: 0.2232854994 | I58: 0.2053850344 | J58: 0.2434731472 | K58: 0.2406260047 | L58: 0.2890760218 | M58: 0.2756497818 | N58: 0.2994377095 | O58: 0.3338412083 | P58: 0.3260984184 | Q58: 0.2917560284 | R58: 0.2903576229 | S58: 0.3223058123 | T58: 0.31008845 | U58: 0.3515231818 | V58: 0.3971426651 | W58: 0.4021383727 | X58: 0.4137349757 | Y58: 0.3995985833 | Z58: 0.3960754816 | AA58: 0.351490731 | AB58: 0.3476705444 | AC58: 0.4216179381 | AD58: 0.4687210416 | AE58: 0.4891019348 | AF58: 0.554886427 | AG58: 0.6148891518 | AH58: 0.692422473 | AI58: 0.7065032181 | AJ58: 0.7370353991 | AK58: 0.7850350162 | AL58: 0.7254617398 | AM58: 0.705526797 | AN58: 0.6188156851 | AO58: 0.7151772067 | AP58: 0.7250219458 | AQ58: 0.7324328077 | AR58: 0.7908328881 | AS58: 0.8398749417 | AT58: 0.7950049006 | AU58: 0.7703089697 | AV58: 0.7783674681 | AW58: 0.7003654526 | AX58: 0.7490745622 | AY58: 0.7537042779 | AZ58: 0.7063114533 | BA58: 0.6917968251 | BB58: 0.6372667603 | BC58: 0.6829221615 | BD58: 0.7832524248 | BE58: 0.7631616365 | BF58: 0.7483983414 | BG58: 0.7810867263 | BH58: 0.7999697904 | BI58: 0.87163845 | BJ58: 0.8191306531 | BK58: 0.9015717041 | BL58: 0.8201899473 | BM58: 0.8272837695 | BN58: 0.8576364749 | BO58: 0.8822747942 | BP58: 0.8693913793 | BQ58: 0.931442988 | BR58: 0.8877899203 | BS58: 0.7954151023 | BT58: 0.7903382271 | BU58: 0.7120988523 | BV58: 0.6504419619 | BW58: 0.6877961281 | BX58: 0.6844067234 | BY58: 0.7023410263 | BZ58: 0.6768403325 | CA58: 0.7508185527 | CB58: 0.7520442508 | CC58: 0.8361447134 | CD58: 0.8000639976 | CE58: 0.8690648357 | CF58: 0.890992827 | CG58: 0.8626869749 | CH58: 0.8274385623 | CI58: 0.7824557745 | CJ58: 0.7454133572 | CK58: 0.7829042894 | CL58: 0.7353167125 | CM58: 0.7516616219 | CN58: 0.7884577906 | CO58: 0.7878515628 | CP58: 0.7892872038 | CQ58: 0.7658993633 | CR58: 0.8051927228 | CS58: 0.8580781714 | CT58: 0.8502280969 | CU58: 0.9587059173 | CV58: 1.017215886 | CW58: 0.9686965435 | CX58: 0.901033577 | CY58: 0.9163189046 | CZ58: 0.9519725553 | DA58: 0.9747287025 | DB58: 0.9069956312 | DC58: 0.9760479192 | DD58: 1.102844778 | DE58: 1.153877352 | DF58: 1.188799724 | DG58: 1.240778693 | DH58: 1.36398934 | DI58: 1.39165676 | DJ58: 1.437700914 | DK58: 1.380382292 | DL58: 1.394553016 | DM58: 1.32559812 | DN58: 1.447532187 | DO58: 1.515983902 | DP58: 1.414456297 | DQ58: 1.404107746 | DR58: 1.615140811
A60: MFI 2-Var 2-Yr. REG | B60: Min | C60: -0.03025469276 | D60: -0.04673123698 | E60: -0.06402887223 | F60: -0.06321519067 | G60: -0.06926095843 | H60: -0.08142160581 | I60: -0.08474060006 | J60: -0.0952514371 | K60: -0.1004372183 | L60: -0.1060221179 | M60: -0.103710917 | N60: -0.1154639632 | O60: -0.110252694 | P60: -0.1104561941 | Q60: -0.1347531672 | R60: -0.1423406727 | S60: -0.1443945156 | T60: -0.1480910869 | U60: -0.1530469654 | V60: -0.1572407255 | W60: -0.1564981431 | X60: -0.1529824292 | Y60: -0.1575533298 | Z60: -0.1665527312 | AA60: -0.1617876339 | AB60: -0.1727304184 | AC60: -0.1778754982 | AD60: -0.1774087774 | AE60: -0.1849599662 | AF60: -0.1861558754 | AG60: -0.1908049864 | AH60: -0.1915909606 | AI60: -0.1983200759 | AJ60: -0.1887576075 | AK60: -0.1879801564 | AL60: -0.1781634666 | AM60: -0.1923425623 | AN60: -0.1766022162 | AO60: -0.1846818151 | AP60: -0.1894860534 | AQ60: -0.1972082014 | AR60: -0.2053882715 | AS60: -0.2254626927 | AT60: -0.2411738076 | AU60: -0.2600752078 | AV60: -0.2730948159 | AW60: -0.2630111288 | AX60: -0.2653339119 | AY60: -0.2645789852 | AZ60: -0.2566361243 | BA60: -0.2548180556 | BB60: -0.2562389658 | BC60: -0.2635057699 | BD60: -0.2650202989 | BE60: -0.2776083516 | BF60: -0.2805121875 | BG60: -0.2953505422 | BH60: -0.3006729404 | BI60: -0.2930290754 | BJ60: -0.3019306571 | BK60: -0.2933754204 | BL60: -0.2890557876 | BM60: -0.2999041847 | BN60: -0.3063833425 | BO60: -0.3014087962 | BP60: -0.3102811923 | BQ60: -0.3108683206 | BR60: -0.3178574912 | BS60: -0.3088489015 | BT60: -0.3194057994 | BU60: -0.3297435434 | BV60: -0.3375689409 | BW60: -0.3573355036 | BX60: -0.3575947484 | BY60: -0.3584849522 | BZ60: -0.3606146427 | CA60: -0.3450248716 | CB60: -0.3424561846 | CC60: -0.320970464 | CD60: -0.3324321827 | CE60: -0.3293493451 | CF60: -0.3195461899 | CG60: -0.3233971166 | CH60: -0.3311145822 | CI60: -0.3402535255 | CJ60: -0.3212571718 | CK60: -0.337552136 | CL60: -0.3465263188 | CM60: -0.3393463805 | CN60: -0.3362934484 | CO60: -0.3550064194 | CP60: -0.3498655546 | CQ60: -0.3505327244 | CR60: -0.3618014629 | CS60: -0.3804539717 | CT60: -0.3862043435 | CU60: -0.3783527556 | CV60: -0.3815468309 | CW60: -0.3857970753 | CX60: -0.3740192879 | CY60: -0.3783150944 | CZ60: -0.3728191621 | DA60: -0.3828852647 | DB60: -0.3712566001 | DC60: -0.3662623435 | DD60: -0.37491164 | DE60: -0.3775918959 | DF60: -0.3816451122 | DG60: -0.3810816031 | DH60: -0.3805974395 | DI60: -0.3839050595 | DJ60: -0.3732842684 | DK60: -0.3764359963 | DL60: -0.3597613444 | DM60: -0.364853309 | DN60: -0.3688946852 | DO60: -0.3784483228 | DP60: -0.3814384012 | DQ60: -0.3793399659 | DR60: -0.3867537649
B61: 1st Quartile | C61: -0.008426972702 | D61: -0.01302359713 | E61: -0.01617419432 | F61: -0.02143855361 | G61: -0.02607850279 | H61: -0.02240122327 | I61: -0.02772870171 | J61: -0.03741347689 | K61: -0.03685711784 | L61: -0.03523470444 | M61: -0.03866037762 | N61: -0.0354451179 | O61: -0.03510751671 | P61: -0.04187972521 | Q61: -0.04029927959 | R61: -0.04173584548 | S61: -0.04829768594 | T61: -0.05494101765 | U61: -0.05088190843 | V61: -0.05973211144 | W61: -0.0535468384 | X61: -0.05999294028 | Y61: -0.05804787523 | Z61: -0.05440515524 | AA61: -0.04894534908 | AB61: -0.05543509244 | AC61: -0.05713677821 | AD61: -0.06196789281 | AE61: -0.06154212347 | AF61: -0.06113511618 | AG61: -0.06390830263 | AH61: -0.0652170191 | AI61: -0.06346555523 | AJ61: -0.06241449138 | AK61: -0.0648733453 | AL61: -0.06219789944 | AM61: -0.07207152291 | AN61: -0.07144761815 | AO61: -0.07467510228 | AP61: -0.07284925093 | AQ61: -0.07585288183 | AR61: -0.0726736113 | AS61: -0.07480209953 | AT61: -0.07902081576 | AU61: -0.0754748047 | AV61: -0.07928221091 | AW61: -0.07437063761 | AX61: -0.07323853899 | AY61: -0.07305185672 | AZ61: -0.07491120535 | BA61: -0.07865024738 | BB61: -0.08055041107 | BC61: -0.07986606011 | BD61: -0.07936844665 | BE61: -0.09100113647 | BF61: -0.08563583727 | BG61: -0.08523843169 | BH61: -0.09055899026 | BI61: -0.09639988232 | BJ61: -0.09722134422 | BK61: -0.09172929929 | BL61: -0.0957973889 | BM61: -0.0960235989 | BN61: -0.101521313 | BO61: -0.09117458142 | BP61: -0.09070589223 | BQ61: -0.09786502116 | BR61: -0.09334534696 | BS61: -0.08820175672 | BT61: -0.08839702329 | BU61: -0.09609513368 | BV61: -0.09677694922 | BW61: -0.09284632345 | BX61: -0.09861857615 | BY61: -0.09994728626 | BZ61: -0.1098571025 | CA61: -0.1107751143 | CB61: -0.113310444 | CC61: -0.1160820768 | CD61: -0.1165807437 | CE61: -0.1196699709 | CF61: -0.1160876614 | CG61: -0.116437784 | CH61: -0.1128714622 | CI61: -0.1150624398 | CJ61: -0.1153499026 | CK61: -0.1132206982 | CL61: -0.111756773 | CM61: -0.1103873207 | CN61: -0.1098052629 | CO61: -0.1076414627 | CP61: -0.1140691724 | CQ61: -0.1105545653 | CR61: -0.1105214923 | CS61: -0.1155548987 | CT61: -0.1176584106 | CU61: -0.122253042 | CV61: -0.12282567 | CW61: -0.118105582 | CX61: -0.1151028327 | CY61: -0.1205845461 | CZ61: -0.121632406 | DA61: -0.1191483485 | DB61: -0.1205064836 | DC61: -0.12092925 | DD61: -0.1215807916 | DE61: -0.1239107005 | DF61: -0.1249872481 | DG61: -0.120066111 | DH61: -0.1276706523 | DI61: -0.1317177858 | DJ61: -0.1344452068 | DK61: -0.1336956702 | DL61: -0.1339643786 | DM61: -0.1281996423 | DN61: -0.126872411 | DO61: -0.1241183826 | DP61: -0.1282054261 | DQ61: -0.1305307478 | DR61: -0.1311605701
B62: Median | C62: 0.0006815211173 | D62: -0.001146465389 | E62: -0.004393941456 | F62: -0.004196642544 | G62: -0.002478629683 | H62: -0.004023408128 | I62: -0.004844609541 | J62: -0.007846577291 | K62: -0.001181149912 | L62: -0.003052929286 | M62: 0.0002946050718 | N62: 0.001249540962 | O62: 0.0008335030397 | P62: -0.001911560872 | Q62: 0.001206204698 | R62: 0.003155278868 | S62: -0.0001792937744 | T62: -0.001646820012 | U62: 0.003211642719 | V62: 0.0003930336947 | W62: 0.0009332996476 | X62: -0.003572843522 | Y62: -0.001718048047 | Z62: -0.007467884931 | AA62: -0.006183936691 | AB62: -0.01016462349 | AC62: -0.009236973336 | AD62: -0.008450681275 | AE62: -0.01320516581 | AF62: -0.01422578274 | AG62: -0.006349951379 | AH62: 0.003423896245 | AI62: -0.0002346309027 | AJ62: -0.005528806666 | AK62: -0.005516242013 | AL62: -0.006091727917 | AM62: -0.006523238347 | AN62: -0.004017767669 | AO62: 0.00407393603 | AP62: -0.002136330296 | AQ62: -0.002836260347 | AR62: -0.0109008391 | AS62: -0.007635871901 | AT62: -0.006222353178 | AU62: -0.004406933787 | AV62: -0.001899506542 | AW62: -0.008025074983 | AX62: -0.006053928365 | AY62: -0.008558599837 | AZ62: -0.01364121085 | BA62: -0.008108639281 | BB62: -0.004401470676 | BC62: -0.006736231783 | BD62: -0.006023904223 | BE62: -0.004891702071 | BF62: -0.005176075568 | BG62: -0.01020395961 | BH62: -0.01073259977 | BI62: -0.01003827914 | BJ62: -0.01847537273 | BK62: -0.01427333831 | BL62: -0.02148282757 | BM62: -0.01543605272 | BN62: -0.01486458446 | BO62: -0.01280189792 | BP62: -0.01323942254 | BQ62: -0.0226210577 | BR62: -0.01767504399 | BS62: -0.02086572973 | BT62: -0.02393861149 | BU62: -0.02421208489 | BV62: -0.02382471402 | BW62: -0.02158320263 | BX62: -0.01962722443 | BY62: -0.01210316726 | BZ62: -0.01159430562 | CA62: -0.02587890911 | CB62: -0.02034626865 | CC62: -0.02334117377 | CD62: -0.02774127419 | CE62: -0.02603403773 | CF62: -0.02365441583 | CG62: -0.02318155291 | CH62: -0.01982241412 | CI62: -0.02661898774 | CJ62: -0.02392945441 | CK62: -0.02891724633 | CL62: -0.02978130716 | CM62: -0.03367376278 | CN62: -0.01975872661 | CO62: -0.03094824684 | CP62: -0.01668131277 | CQ62: -0.01286533554 | CR62: -0.00823442741 | CS62: -0.02124054476 | CT62: -0.02104859187 | CU62: -0.02379996587 | CV62: -0.02319483326 | CW62: -0.01874990297 | CX62: -0.01706837723 | CY62: -0.02124795545 | CZ62: -0.01981114098 | DA62: -0.01356833893 | DB62: -0.01941762967 | DC62: -0.02370208063 | DD62: -0.02128643759 | DE62: -0.02264030424 | DF62: -0.02357393654 | DG62: -0.02225699095 | DH62: -0.01810472231 | DI62: -0.01857094192 | DJ62: -0.02296550905 | DK62: -0.02489479264 | DL62: -0.01740928092 | DM62: -0.01595064157 | DN62: -0.01923519359 | DO62: -0.01558807359 | DP62: -0.02516102385 | DQ62: -0.01967957179 | DR62: -0.01638130939
B63: Mean | C63: 0.00157302254 | D63: -4.71017727e-05 | E63: -6.914201779e-05 | F63: 0.0004271492236 | G63: -0.001614003429 | H63: -0.003256511103 | I63: -0.00242628076 | J63: -0.004026170911 | K63: -0.001930511538 | L63: -0.001069071778 | M63: -5.267060881e-06 | N63: -0.0009540147607 | O63: 0.0004889172374 | P63: 0.0006909182899 | Q63: -0.0004982721326 | R63: 0.001061136809 | S63: 0.0003849546378 | T63: 0.0003225322588 | U63: 0.001105261324 | V63: 0.000359563572 | W63: 0.0009241473497 | X63: -0.0002206008201 | Y63: 0.001191984159 | Z63: 0.001933920505 | AA63: 0.001944433771 | AB63: -0.0001404120403 | AC63: 0.0009584496741 | AD63: 6.076240768e-05 | AE63: -0.000458878965 | AF63: -0.0002104075426 | AG63: 0.0001381724739 | AH63: 0.001271907814 | AI63: 0.002291489629 | AJ63: 0.003480132063 | AK63: 0.00145261326 | AL63: 0.000925448304 | AM63: -0.00273795142 | AN63: -0.00440145895 | AO63: -0.002540236918 | AP63: -0.003425635225 | AQ63: -0.003906168303 | AR63: -0.003887872515 | AS63: -0.003628335322 | AT63: -0.003713263477 | AU63: -0.001995821448 | AV63: -0.003440880464 | AW63: -0.003659025418 | AX63: -0.00372280603 | AY63: -0.004120749047 | AZ63: -0.003993303072 | BA63: -0.004132717761 | BB63: -0.003830329592 | BC63: -0.002715488487 | BD63: -0.003295974317 | BE63: -0.005686609352 | BF63: -0.006787228517 | BG63: -0.007140698979 | BH63: -0.00768931913 | BI63: -0.008488299144 | BJ63: -0.01001859404 | BK63: -0.01198985955 | BL63: -0.01218300952 | BM63: -0.01187800752 | BN63: -0.0114064501 | BO63: -0.01124958441 | BP63: -0.01241920849 | BQ63: -0.01251188832 | BR63: -0.01057322514 | BS63: -0.01012861345 | BT63: -0.009008585542 | BU63: -0.009592169559 | BV63: -0.01006484799 | BW63: -0.009476215987 | BX63: -0.007956147046 | BY63: -0.007268882504 | BZ63: -0.007827038512 | CA63: -0.00918106581 | CB63: -0.01042875466 | CC63: -0.009868117807 | CD63: -0.009570784565 | CE63: -0.009067286798 | CF63: -0.009913109981 | CG63: -0.008863802792 | CH63: -0.0112841551 | CI63: -0.01186624558 | CJ63: -0.0124817103 | CK63: -0.01173034095 | CL63: -0.01005528941 | CM63: -0.009290669472 | CN63: -0.009163666413 | CO63: -0.00958863893 | CP63: -0.00729679805 | CQ63: -0.005769796236 | CR63: -0.005754202749 | CS63: -0.005610388847 | CT63: -0.005965542856 | CU63: -0.006360612399 | CV63: -0.00509861455 | CW63: -0.003861906728 | CX63: -0.003746041214 | CY63: -0.005235844782 | CZ63: -0.004156092831 | DA63: -0.002392921901 | DB63: -0.002754869768 | DC63: -0.004448257456 | DD63: -0.007066903448 | DE63: -0.005436508581 | DF63: -0.00606041955 | DG63: -0.006289128958 | DH63: -0.005789909534 | DI63: -0.008734883062 | DJ63: -0.007528474466 | DK63: -0.007536902248 | DL63: -0.008650495198 | DM63: -0.005671916244 | DN63: -0.005643989567 | DO63: -0.006145787815 | DP63: -0.008356015481 | DQ63: -0.007569063257 | DR63: -0.008454188532
B64: 3rd Quartile | C64: 0.01367633201 | D64: 0.01297560549 | E64: 0.01835178726 | F64: 0.02290943468 | G64: 0.0188999596 | H64: 0.01968906121 | I64: 0.02189275562 | J64: 0.02535049169 | K64: 0.0319649879 | L64: 0.03140405979 | M64: 0.03379192946 | N64: 0.03149195497 | O64: 0.03106423255 | P64: 0.03798566741 | Q64: 0.03688843781 | R64: 0.03978527321 | S64: 0.04378265183 | T64: 0.04632434099 | U64: 0.04649126575 | V64: 0.05333972261 | W64: 0.0563729313 | X64: 0.05797436565 | Y64: 0.06911931156 | Z64: 0.0652080329 | AA64: 0.07087351925 | AB64: 0.05844591864 | AC64: 0.06286981247 | AD64: 0.06235323678 | AE64: 0.06612212412 | AF64: 0.06538709654 | AG64: 0.06483367061 | AH64: 0.06932391555 | AI64: 0.06793370485 | AJ64: 0.07269390517 | AK64: 0.07678851032 | AL64: 0.07176540982 | AM64: 0.06626757521 | AN64: 0.06612709023 | AO64: 0.06507622922 | AP64: 0.0684975241 | AQ64: 0.06915092839 | AR64: 0.0708383122 | AS64: 0.07227393897 | AT64: 0.07054630405 | AU64: 0.07105927096 | AV64: 0.07500808073 | AW64: 0.06825992739 | AX64: 0.07246066401 | AY64: 0.06990991665 | AZ64: 0.07259542315 | BA64: 0.06980031546 | BB64: 0.07474476241 | BC64: 0.07407231554 | BD64: 0.07132463329 | BE64: 0.08314595365 | BF64: 0.08604790583 | BG64: 0.07886991605 | BH64: 0.08591846204 | BI64: 0.08645953275 | BJ64: 0.07968011364 | BK64: 0.07301168664 | BL64: 0.07298564968 | BM64: 0.07097234626 | BN64: 0.07569701427 | BO64: 0.07297536391 | BP64: 0.07682845843 | BQ64: 0.07794461496 | BR64: 0.081566916 | BS64: 0.07465984626 | BT64: 0.0819235823 | BU64: 0.08589674023 | BV64: 0.08626451554 | BW64: 0.08130162438 | BX64: 0.07993291363 | BY64: 0.08745958265 | BZ64: 0.09164982838 | CA64: 0.09532866537 | CB64: 0.09609471653 | CC64: 0.08439884017 | CD64: 0.08612309627 | CE64: 0.08542146198 | CF64: 0.0899642826 | CG64: 0.09182757267 | CH64: 0.09196574363 | CI64: 0.08453380297 | CJ64: 0.08369884783 | CK64: 0.08763276319 | CL64: 0.08876562649 | CM64: 0.08129873298 | CN64: 0.08212633845 | CO64: 0.08381976887 | CP64: 0.08640411169 | CQ64: 0.09049607019 | CR64: 0.08829803739 | CS64: 0.0891558199 | CT64: 0.09215409677 | CU64: 0.09815930457 | CV64: 0.1019854785 | CW64: 0.1077737486 | CX64: 0.102599252 | CY64: 0.1024407822 | CZ64: 0.1039585903 | DA64: 0.1110999378 | DB64: 0.1055095713 | DC64: 0.09807225897 | DD64: 0.08977277923 | DE64: 0.09466388599 | DF64: 0.1064941324 | DG64: 0.1051582193 | DH64: 0.1056111555 | DI64: 0.106690229 | DJ64: 0.105883935 | DK64: 0.1088257397 | DL64: 0.1028771537 | DM64: 0.1031960122 | DN64: 0.1070773539 | DO64: 0.1070461537 | DP64: 0.1053579017 | DQ64: 0.106677034 | DR64: 0.1095513419
B65: Max | C65: 0.03594290561 | D65: 0.05108402419 | E65: 0.06486693769 | F65: 0.09516554977 | G65: 0.09368840852 | H65: 0.1064428031 | I65: 0.1119245714 | J65: 0.1363273294 | K65: 0.1053243451 | L65: 0.1040268188 | M65: 0.1026586514 | N65: 0.1303126325 | O65: 0.1573645759 | P65: 0.2117244233 | Q65: 0.2233333758 | R65: 0.1978845084 | S65: 0.1974300373 | T65: 0.2100463027 | U65: 0.1908898828 | V65: 0.1848815226 | W65: 0.1827275519 | X65: 0.183355393 | Y65: 0.1743666129 | Z65: 0.1916125769 | AA65: 0.2056171587 | AB65: 0.2090945623 | AC65: 0.2085841739 | AD65: 0.2136248761 | AE65: 0.2010721499 | AF65: 0.1960956671 | AG65: 0.1876608272 | AH65: 0.1989066422 | AI65: 0.1749623612 | AJ65: 0.2063333481 | AK65: 0.2155712573 | AL65: 0.2341011489 | AM65: 0.2298732953 | AN65: 0.2601056483 | AO65: 0.2729812093 | AP65: 0.2616336813 | AQ65: 0.2740190828 | AR65: 0.2530479811 | AS65: 0.2642221395 | AT65: 0.2724986964 | AU65: 0.3156297548 | AV65: 0.3238624779 | AW65: 0.2857624443 | AX65: 0.2726526032 | AY65: 0.284279128 | AZ65: 0.2755590458 | BA65: 0.2768133067 | BB65: 0.2581824706 | BC65: 0.2328989727 | BD65: 0.2522753344 | BE65: 0.2793543996 | BF65: 0.2692387886 | BG65: 0.2451339162 | BH65: 0.2479121506 | BI65: 0.25974466 | BJ65: 0.2239841155 | BK65: 0.2390303594 | BL65: 0.2212511526 | BM65: 0.2415870522 | BN65: 0.2450087477 | BO65: 0.2459517453 | BP65: 0.2547917243 | BQ65: 0.2964334372 | BR65: 0.2840881103 | BS65: 0.2916847643 | BT65: 0.2998542165 | BU65: 0.2777606449 | BV65: 0.2937196911 | BW65: 0.3102250773 | BX65: 0.3092772561 | BY65: 0.2995254356 | BZ65: 0.3004779896 | CA65: 0.2988795455 | CB65: 0.2911235629 | CC65: 0.3159598979 | CD65: 0.3316177238 | CE65: 0.3419463541 | CF65: 0.3455548614 | CG65: 0.3394721277 | CH65: 0.3351257716 | CI65: 0.3400994739 | CJ65: 0.3279285195 | CK65: 0.3511462555 | CL65: 0.3589934658 | CM65: 0.3673357674 | CN65: 0.3560955023 | CO65: 0.3870820721 | CP65: 0.397305891 | CQ65: 0.4257870823 | CR65: 0.4506120066 | CS65: 0.4644590003 | CT65: 0.4653936843 | CU65: 0.4529047889 | CV65: 0.4528354065 | CW65: 0.4600932528 | CX65: 0.4535513676 | CY65: 0.3946835642 | CZ65: 0.4002433354 | DA65: 0.39734871 | DB65: 0.3956276983 | DC65: 0.4141674738 | DD65: 0.3770123069 | DE65: 0.3767813371 | DF65: 0.3777292988 | DG65: 0.3816638366 | DH65: 0.392562549 | DI65: 0.4026790946 | DJ65: 0.4447748307 | DK65: 0.4393286867 | DL65: 0.4397249488 | DM65: 0.435910896 | DN65: 0.445534575 | DO65: 0.4627326691 | DP65: 0.4406934986 | DQ65: 0.44553183 | DR65: 0.4535518659
A67: MFI SPY 2-Yr. REG | B67: Min | C67: -0.03122456431 | D67: -0.04661072127 | E67: -0.06419926544 | F67: -0.063849497 | G67: -0.06914441626 | H67: -0.07543867806 | I67: -0.08517359261 | J67: -0.08916176 | K67: -0.09234437379 | L67: -0.1052095059 | M67: -0.1037115959 | N67: -0.1152160562 | O67: -0.1099568427 | P67: -0.1090091191 | Q67: -0.123093023 | R67: -0.1377389424 | S67: -0.1396937167 | T67: -0.1471238386 | U67: -0.1502680977 | V67: -0.1558430698 | W67: -0.1539446706 | X67: -0.1506741752 | Y67: -0.1446428365 | Z67: -0.1656959967 | AA67: -0.1575028772 | AB67: -0.1688162322 | AC67: -0.1777695439 | AD67: -0.1723837999 | AE67: -0.1820399018 | AF67: -0.1887304838 | AG67: -0.1868678207 | AH67: -0.1890697797 | AI67: -0.1958996398 | AJ67: -0.1853986504 | AK67: -0.1855413891 | AL67: -0.1767394693 | AM67: -0.1900122736 | AN67: -0.1736764959 | AO67: -0.1761430087 | AP67: -0.1807806655 | AQ67: -0.193618893 | AR67: -0.1966587362 | AS67: -0.2174094092 | AT67: -0.2347452038 | AU67: -0.2533989106 | AV67: -0.2644537031 | AW67: -0.2636404434 | AX67: -0.2656063004 | AY67: -0.2570325028 | AZ67: -0.2485654149 | BA67: -0.2601656481 | BB67: -0.2639512608 | BC67: -0.2556304604 | BD67: -0.2706622844 | BE67: -0.2781091595 | BF67: -0.2809818395 | BG67: -0.2957499867 | BH67: -0.3012741623 | BI67: -0.2934449475 | BJ67: -0.3024148065 | BK67: -0.2938852759 | BL67: -0.2893872706 | BM67: -0.3003430109 | BN67: -0.3068506171 | BO67: -0.302073034 | BP67: -0.3109481402 | BQ67: -0.311359949 | BR67: -0.3184076886 | BS67: -0.3096305921 | BT67: -0.3199195414 | BU67: -0.3303266953 | BV67: -0.3380674641 | BW67: -0.35798294 | BX67: -0.3581679206 | BY67: -0.3591784236 | BZ67: -0.361335299 | CA67: -0.3457258495 | CB67: -0.3432110306 | CC67: -0.3217760682 | CD67: -0.3332311064 | CE67: -0.3300484177 | CF67: -0.3195575199 | CG67: -0.3233420103 | CH67: -0.3310001251 | CI67: -0.3401394191 | CJ67: -0.3211631517 | CK67: -0.3374466635 | CL67: -0.3463635593 | CM67: -0.3392988594 | CN67: -0.3364725615 | CO67: -0.3549057481 | CP67: -0.3507718761 | CQ67: -0.3504919885 | CR67: -0.3618332036 | CS67: -0.3803768854 | CT67: -0.3862266872 | CU67: -0.3782988399 | CV67: -0.3814932923 | CW67: -0.3858637158 | CX67: -0.373969485 | CY67: -0.37836775 | CZ67: -0.3727735155 | DA67: -0.3828625196 | DB67: -0.3711932037 | DC67: -0.3661473438 | DD67: -0.3749197665 | DE67: -0.3777381451 | DF67: -0.3816587218 | DG67: -0.3810605349 | DH67: -0.3805002715 | DI67: -0.3839125502 | DJ67: -0.3732262072 | DK67: -0.3763371051 | DL67: -0.3596593359 | DM67: -0.3646124865 | DN67: -0.3686218162 | DO67: -0.3782426937 | DP67: -0.3811810871 | DQ67: -0.3791196601 | DR67: -0.3864115972
B68: 1st Quartile | C68: -0.0080447887 | D68: -0.01156689359 | E68: -0.0167616278 | F68: -0.0223472837 | G68: -0.02565823126 | H68: -0.02266437441 | I68: -0.0274034696 | J68: -0.03809202123 | K68: -0.03374132202 | L68: -0.03117807177 | M68: -0.03736926181 | N68: -0.03729226382 | O68: -0.03584294713 | P68: -0.04295880252 | Q68: -0.03997672023 | R68: -0.04116152861 | S68: -0.04728934844 | T68: -0.05394156327 | U68: -0.05084376087 | V68: -0.06004151902 | W68: -0.0514375222 | X68: -0.05819842051 | Y68: -0.05797768133 | Z68: -0.05440089079 | AA68: -0.05291340103 | AB68: -0.05509255727 | AC68: -0.05681208077 | AD68: -0.05877581105 | AE68: -0.05691039456 | AF68: -0.06082396746 | AG68: -0.06363591958 | AH68: -0.06502825712 | AI68: -0.06313978013 | AJ68: -0.05932735285 | AK68: -0.06820031476 | AL68: -0.06201234821 | AM68: -0.07225867025 | AN68: -0.07483012338 | AO68: -0.0756299999 | AP68: -0.07487214137 | AQ68: -0.07649791864 | AR68: -0.07150254854 | AS68: -0.07192539117 | AT68: -0.07463845761 | AU68: -0.07418692796 | AV68: -0.08047308999 | AW68: -0.07387637295 | AX68: -0.07619015014 | AY68: -0.07360157878 | AZ68: -0.07469576275 | BA68: -0.07738727367 | BB68: -0.07954758193 | BC68: -0.07749775458 | BD68: -0.08056111102 | BE68: -0.08606547649 | BF68: -0.08339623621 | BG68: -0.08552657054 | BH68: -0.09016718405 | BI68: -0.09580741399 | BJ68: -0.09567975396 | BK68: -0.09303789863 | BL68: -0.09641450545 | BM68: -0.09747885906 | BN68: -0.1029046186 | BO68: -0.09118654121 | BP68: -0.09062563812 | BQ68: -0.09718096929 | BR68: -0.09368050054 | BS68: -0.08761048055 | BT68: -0.08624152234 | BU68: -0.09354700521 | BV68: -0.0933603253 | BW68: -0.09496296889 | BX68: -0.09802993743 | BY68: -0.1015327187 | BZ68: -0.1079087662 | CA68: -0.104469396 | CB68: -0.1106808919 | CC68: -0.1150062552 | CD68: -0.114719303 | CE68: -0.1199665478 | CF68: -0.1180189006 | CG68: -0.1128636136 | CH68: -0.114234319 | CI68: -0.1139622771 | CJ68: -0.1134845566 | CK68: -0.1116580043 | CL68: -0.1106030051 | CM68: -0.108135658 | CN68: -0.1073390822 | CO68: -0.1112844129 | CP68: -0.1153211787 | CQ68: -0.1075578556 | CR68: -0.1078871161 | CS68: -0.1138698253 | CT68: -0.116595852 | CU68: -0.1217848924 | CV68: -0.1170451544 | CW68: -0.1124575958 | CX68: -0.1099130009 | CY68: -0.1128474925 | CZ68: -0.1129668442 | DA68: -0.113396555 | DB68: -0.1207411704 | DC68: -0.1205949118 | DD68: -0.1226003645 | DE68: -0.1247864107 | DF68: -0.1245982397 | DG68: -0.1198765126 | DH68: -0.1265143953 | DI68: -0.1315242954 | DJ68: -0.1270458116 | DK68: -0.1229079246 | DL68: -0.1229949416 | DM68: -0.1187753797 | DN68: -0.1228622417 | DO68: -0.1250459657 | DP68: -0.133183856 | DQ68: -0.1353034556 | DR68: -0.1329869054
B69: Median | C69: 0.0003406646535 | D69: -0.0002976893697 | E69: -0.004344185117 | F69: -0.002940119949 | G69: -0.002345237058 | H69: -0.005159961453 | I69: -0.005063634898 | J69: -0.008149871896 | K69: -0.001778706003 | L69: -0.002171045215 | M69: 0.0001167337218 | N69: 0.001817536026 | O69: 0.001026648356 | P69: -0.0006966648203 | Q69: 0.002439654977 | R69: 0.003337378521 | S69: 0.0004158834115 | T69: 0.003003463571 | U69: 0.003917389625 | V69: 0.004169033141 | W69: 0.002425676283 | X69: -0.001210931895 | Y69: 0.001579687799 | Z69: -0.004083116241 | AA69: 0.0003209090783 | AB69: -0.008736992048 | AC69: -0.008735570065 | AD69: -0.01055551707 | AE69: -0.009405146954 | AF69: -0.01091341374 | AG69: -0.008696190402 | AH69: 0.003877279294 | AI69: -0.0001735211293 | AJ69: -0.004365777088 | AK69: -0.003700372178 | AL69: -0.006477550301 | AM69: -0.004751221028 | AN69: -0.005158989231 | AO69: 0.002719507665 | AP69: -0.002910040625 | AQ69: -0.002843770429 | AR69: -0.007318580377 | AS69: -0.007631990296 | AT69: -0.001096993066 | AU69: 0.0004439489376 | AV69: 0.001911757763 | AW69: -0.00605147562 | AX69: -0.006355330521 | AY69: -0.008783335043 | AZ69: -0.01091471791 | BA69: -0.006576535281 | BB69: -0.005676697041 | BC69: -0.007521795103 | BD69: -0.007087083079 | BE69: -0.008807156425 | BF69: -0.01221936498 | BG69: -0.01050363849 | BH69: -0.01349274313 | BI69: -0.007406360209 | BJ69: -0.01665843783 | BK69: -0.01746105117 | BL69: -0.01937983124 | BM69: -0.01373890366 | BN69: -0.01645610062 | BO69: -0.01273165616 | BP69: -0.009330597149 | BQ69: -0.01917165715 | BR69: -0.01703361622 | BS69: -0.01950429737 | BT69: -0.02342903136 | BU69: -0.02377227143 | BV69: -0.02091474779 | BW69: -0.01804271219 | BX69: -0.01397289772 | BY69: -0.01684060214 | BZ69: -0.01030797986 | CA69: -0.02852808436 | CB69: -0.02156507817 | CC69: -0.02298953364 | CD69: -0.02726892977 | CE69: -0.02866775434 | CF69: -0.02335913057 | CG69: -0.02299292351 | CH69: -0.01900263558 | CI69: -0.0239304327 | CJ69: -0.02311040639 | CK69: -0.029573855 | CL69: -0.02736511048 | CM69: -0.0245778567 | CN69: -0.01640269198 | CO69: -0.03192682914 | CP69: -0.01988990925 | CQ69: -0.02160279378 | CR69: -0.01485313029 | CS69: -0.02295075025 | CT69: -0.02318973661 | CU69: -0.02374939501 | CV69: -0.02301442707 | CW69: -0.01579880542 | CX69: -0.0167284949 | CY69: -0.02149728734 | CZ69: -0.01651284658 | DA69: -0.01112781625 | DB69: -0.01919314362 | DC69: -0.0214092064 | DD69: -0.02148950755 | DE69: -0.02011296863 | DF69: -0.02024376634 | DG69: -0.01826641802 | DH69: -0.01782209305 | DI69: -0.01841934764 | DJ69: -0.01991573773 | DK69: -0.01827814479 | DL69: -0.01553133521 | DM69: -0.01629667635 | DN69: -0.01471400334 | DO69: -0.01419276352 | DP69: -0.02339344578 | DQ69: -0.01740914944 | DR69: -0.01913609472
B70: Mean | C70: 0.001595675185 | D70: 5.160342147e-05 | E70: 3.310796667e-05 | F70: 0.0005360858169 | G70: -0.001420966075 | H70: -0.002996623041 | I70: -0.002141715725 | J70: -0.003760198141 | K70: -0.001700077283 | L70: -0.0008515715858 | M70: 0.0001115712422 | N70: -0.0008118973538 | O70: 0.0006240931479 | P70: 0.0008368346616 | Q70: -0.0003216306954 | R70: 0.001339638069 | S70: 0.0007378849185 | T70: 0.0006152963651 | U70: 0.00143778878 | V70: 0.0006784830018 | W70: 0.001331839394 | X70: 0.000166836127 | Y70: 0.001625460312 | Z70: 0.002440257208 | AA70: 0.002384352224 | AB70: 0.000377074411 | AC70: 0.00153059718 | AD70: 0.0006443993147 | AE70: 0.0001718618773 | AF70: 0.0004068619167 | AG70: 0.0007269285566 | AH70: 0.001839639075 | AI70: 0.002747897547 | AJ70: 0.003927552258 | AK70: 0.001888382806 | AL70: 0.001376356812 | AM70: -0.002254580988 | AN70: -0.003839824753 | AO70: -0.001879796419 | AP70: -0.002732510849 | AQ70: -0.003268844398 | AR70: -0.00327426672 | AS70: -0.003027853078 | AT70: -0.003206394985 | AU70: -0.001625734835 | AV70: -0.003191927584 | AW70: -0.003311878772 | AX70: -0.003255631774 | AY70: -0.003586831832 | AZ70: -0.003530931127 | BA70: -0.003656960601 | BB70: -0.003194320166 | BC70: -0.001999381539 | BD70: -0.002512541621 | BE70: -0.004922373691 | BF70: -0.0060106056 | BG70: -0.006250632081 | BH70: -0.006839268284 | BI70: -0.007703622136 | BJ70: -0.009236832588 | BK70: -0.01120476255 | BL70: -0.0113299783 | BM70: -0.01093226349 | BN70: -0.01037081738 | BO70: -0.01033721556 | BP70: -0.01155807297 | BQ70: -0.01176627006 | BR70: -0.009861788871 | BS70: -0.009267960548 | BT70: -0.008301623524 | BU70: -0.00899047948 | BV70: -0.009573052573 | BW70: -0.008889085129 | BX70: -0.007310650091 | BY70: -0.006576628236 | BZ70: -0.007131492106 | CA70: -0.008453632209 | CB70: -0.009676162584 | CC70: -0.009051912216 | CD70: -0.008786287042 | CE70: -0.00820763495 | CF70: -0.009116300798 | CG70: -0.008027504897 | CH70: -0.01043929757 | CI70: -0.01107277449 | CJ70: -0.01160288058 | CK70: -0.01092898509 | CL70: -0.009292415872 | CM70: -0.008410718912 | CN70: -0.008290285555 | CO70: -0.008723432751 | CP70: -0.006418404587 | CQ70: -0.004896348594 | CR70: -0.004793780806 | CS70: -0.004441517768 | CT70: -0.004845440232 | CU70: -0.005169511143 | CV70: -0.003885074495 | CW70: -0.002655722904 | CX70: -0.002602545126 | CY70: -0.003898979109 | CZ70: -0.00268670957 | DA70: -0.0009770062596 | DB70: -0.00140153299 | DC70: -0.003109016253 | DD70: -0.005630581764 | DE70: -0.003927935552 | DF70: -0.004378922563 | DG70: -0.004501569673 | DH70: -0.003888365162 | DI70: -0.006888842199 | DJ70: -0.005694850529 | DK70: -0.005643101788 | DL70: -0.006766732811 | DM70: -0.003818566294 | DN70: -0.003786783965 | DO70: -0.00412164787 | DP70: -0.006294880908 | DQ70: -0.005558695343 | DR70: -0.006493338932
B71: 3rd Quartile | C71: 0.01329990794 | D71: 0.01327806221 | E71: 0.01822567699 | F71: 0.02296001311 | G71: 0.01876003199 | H71: 0.01812324228 | I71: 0.02193786848 | J71: 0.02527530445 | K71: 0.03148681744 | L71: 0.03152290996 | M71: 0.03406200499 | N71: 0.0309904173 | O71: 0.03258844482 | P71: 0.03540759479 | Q71: 0.03622691005 | R71: 0.0397148087 | S71: 0.04284872465 | T71: 0.04645214724 | U71: 0.0452167408 | V71: 0.05190989187 | W71: 0.05539747825 | X71: 0.05779490406 | Y71: 0.06848881893 | Z71: 0.06579104442 | AA71: 0.07208666668 | AB71: 0.05938715721 | AC71: 0.06239992648 | AD71: 0.06381370585 | AE71: 0.06345619686 | AF71: 0.06564799077 | AG71: 0.06249295535 | AH71: 0.06272888557 | AI71: 0.06762289318 | AJ71: 0.07164627476 | AK71: 0.07957626392 | AL71: 0.07287323496 | AM71: 0.06677540829 | AN71: 0.06787705836 | AO71: 0.06911037149 | AP71: 0.0694599123 | AQ71: 0.06833010442 | AR71: 0.0695059648 | AS71: 0.0723316266 | AT71: 0.07133859636 | AU71: 0.06872990378 | AV71: 0.06725853548 | AW71: 0.06707088747 | AX71: 0.07163753418 | AY71: 0.07178828114 | AZ71: 0.07385211461 | BA71: 0.07017523315 | BB71: 0.07649887586 | BC71: 0.08210367368 | BD71: 0.07292799414 | BE71: 0.08035703047 | BF71: 0.08004971922 | BG71: 0.07702053228 | BH71: 0.08720717702 | BI71: 0.09063343447 | BJ71: 0.08068127723 | BK71: 0.07160063019 | BL71: 0.07311866246 | BM71: 0.07135944587 | BN71: 0.07537061375 | BO71: 0.07090959493 | BP71: 0.07245777981 | BQ71: 0.07106939098 | BR71: 0.0760435757 | BS71: 0.07475714318 | BT71: 0.0844175833 | BU71: 0.08739819411 | BV71: 0.08253900677 | BW71: 0.0820992143 | BX71: 0.07692539217 | BY71: 0.0769020651 | BZ71: 0.08620802257 | CA71: 0.09457403566 | CB71: 0.08828066867 | CC71: 0.08774809207 | CD71: 0.08477485102 | CE71: 0.08830748218 | CF71: 0.08226313496 | CG71: 0.09427490426 | CH71: 0.0876859698 | CI71: 0.07858131407 | CJ71: 0.07926220451 | CK71: 0.07543558766 | CL71: 0.0799435023 | CM71: 0.08315859302 | CN71: 0.08573936605 | CO71: 0.08180768204 | CP71: 0.08705948597 | CQ71: 0.0932656275 | CR71: 0.09004743268 | CS71: 0.09433977048 | CT71: 0.09782922187 | CU71: 0.09926699703 | CV71: 0.09788627349 | CW71: 0.1034357031 | CX71: 0.09588000609 | CY71: 0.1042216763 | CZ71: 0.1005154578 | DA71: 0.1068100658 | DB71: 0.1025568665 | DC71: 0.09170020559 | DD71: 0.08603406962 | DE71: 0.09006290931 | DF71: 0.09685002376 | DG71: 0.09937514208 | DH71: 0.09604091843 | DI71: 0.1025517661 | DJ71: 0.1017304872 | DK71: 0.1008223975 | DL71: 0.1026964902 | DM71: 0.1056080079 | DN71: 0.1101870032 | DO71: 0.1032293198 | DP71: 0.1048989725 | DQ71: 0.1060329215 | DR71: 0.1036452395
B72: Max | C72: 0.03579762865 | D72: 0.05084615785 | E72: 0.06570369753 | F72: 0.09514446732 | G72: 0.09807954201 | H72: 0.1075308601 | I72: 0.1165473908 | J72: 0.1398317404 | K72: 0.111455829 | L72: 0.1093332495 | M72: 0.1063270011 | N72: 0.1288688307 | O72: 0.1544275634 | P72: 0.2086901485 | Q72: 0.2213301235 | R72: 0.1958101043 | S72: 0.1941187712 | T72: 0.206719429 | U72: 0.1879798595 | V72: 0.1817262292 | W72: 0.1786341629 | X72: 0.1780391456 | Y72: 0.1686040404 | Z72: 0.1864999581 | AA72: 0.1999354978 | AB72: 0.2074572442 | AC72: 0.2000268801 | AD72: 0.2044761274 | AE72: 0.1967340706 | AF72: 0.1935516419 | AG72: 0.1925120468 | AH72: 0.2033360874 | AI72: 0.1752427248 | AJ72: 0.2124929878 | AK72: 0.2213289229 | AL72: 0.2395696569 | AM72: 0.2334227877 | AN72: 0.2618154937 | AO72: 0.2734855792 | AP72: 0.2618092131 | AQ72: 0.2751035677 | AR72: 0.2549508148 | AS72: 0.2652233099 | AT72: 0.2732735203 | AU72: 0.3160340459 | AV72: 0.3238380382 | AW72: 0.2865549539 | AX72: 0.2736036847 | AY72: 0.2851557903 | AZ72: 0.2762041214 | BA72: 0.2775162198 | BB72: 0.2603122475 | BC72: 0.2326775252 | BD72: 0.2519161863 | BE72: 0.2793200661 | BF72: 0.2692178007 | BG72: 0.2451191611 | BH72: 0.2475680105 | BI72: 0.2592878243 | BJ72: 0.2235385728 | BK72: 0.2339662924 | BL72: 0.2196838555 | BM72: 0.227984959 | BN72: 0.2458229171 | BO72: 0.2418475685 | BP72: 0.2517296223 | BQ72: 0.2903305377 | BR72: 0.2766245964 | BS72: 0.2855581739 | BT72: 0.2932078028 | BU72: 0.2823670168 | BV72: 0.3083554679 | BW72: 0.3267645482 | BX72: 0.3188197146 | BY72: 0.3200207857 | BZ72: 0.3014977548 | CA72: 0.3039216272 | CB72: 0.3046929548 | CC72: 0.3243838557 | CD72: 0.3360409424 | CE72: 0.3397596311 | CF72: 0.3586577643 | CG72: 0.325426804 | CH72: 0.3334173372 | CI72: 0.3268366742 | CJ72: 0.3253545072 | CK72: 0.3382144905 | CL72: 0.3579476515 | CM72: 0.3690498858 | CN72: 0.3568460446 | CO72: 0.3944952915 | CP72: 0.4046368782 | CQ72: 0.4111588815 | CR72: 0.4599594093 | CS72: 0.474179149 | CT72: 0.4749994934 | CU72: 0.4623844176 | CV72: 0.4617828275 | CW72: 0.4683646236 | CX72: 0.4622910438 | CY72: 0.4043733975 | CZ72: 0.4017212146 | DA72: 0.3968432135 | DB72: 0.403030268 | DC72: 0.4094405086 | DD72: 0.3849199608 | DE72: 0.3844543465 | DF72: 0.3779001587 | DG72: 0.3815552328 | DH72: 0.4006856923 | DI72: 0.4108932167 | DJ72: 0.4518953905 | DK72: 0.4471522901 | DL72: 0.4492104794 | DM72: 0.4438526152 | DN72: 0.4531324583 | DO72: 0.470860289 | DP72: 0.4502950639 | DQ72: 0.4536364242 | DR72: 0.4594938248
A74: MFI RUS 2-Yr. REG | B74: Min | C74: -0.06942523159 | D74: -0.1063406663 | E74: -0.1570067033 | F74: -0.1353729578 | G74: -0.1907975565 | H74: -0.2067946097 | I74: -0.2209097318 | J74: -0.2399063229 | K74: -0.2452760066 | L74: -0.2271010255 | M74: -0.2652257076 | N74: -0.2699387509 | O74: -0.269752361 | P74: -0.250675724 | Q74: -0.2536597345 | R74: -0.2556862758 | S74: -0.2800114851 | T74: -0.2795062797 | U74: -0.275184177 | V74: -0.2956385642 | W74: -0.2769680081 | X74: -0.3135462595 | Y74: -0.3216228502 | Z74: -0.3574883117 | AA74: -0.3581299274 | AB74: -0.3642637751 | AC74: -0.3908244086 | AD74: -0.4013473082 | AE74: -0.4325752799 | AF74: -0.4313579597 | AG74: -0.445690304 | AH74: -0.4647167068 | AI74: -0.443666582 | AJ74: -0.435626405 | AK74: -0.4057596009 | AL74: -0.4269942001 | AM74: -0.422334125 | AN74: -0.4337816501 | AO74: -0.426072812 | AP74: -0.4200170695 | AQ74: -0.4314190936 | AR74: -0.4143579016 | AS74: -0.4176067866 | AT74: -0.4308528413 | AU74: -0.4407362934 | AV74: -0.4628647827 | AW74: -0.4425758783 | AX74: -0.4309828319 | AY74: -0.4239719829 | AZ74: -0.4308936782 | BA74: -0.4455813446 | BB74: -0.4542498973 | BC74: -0.4589859145 | BD74: -0.4716416087 | BE74: -0.479111029 | BF74: -0.4805452781 | BG74: -0.5055431862 | BH74: -0.4780543551 | BI74: -0.4492807805 | BJ74: -0.44556867 | BK74: -0.4527951186 | BL74: -0.4938206994 | BM74: -0.4935613894 | BN74: -0.5329746615 | BO74: -0.5258533179 | BP74: -0.5443567648 | BQ74: -0.531767095 | BR74: -0.5033793646 | BS74: -0.5218499576 | BT74: -0.4933488163 | BU74: -0.4816905893 | BV74: -0.5060185287 | BW74: -0.5153640567 | BX74: -0.5127210415 | BY74: -0.5242340774 | BZ74: -0.5342240205 | CA74: -0.5471691346 | CB74: -0.5480361652 | CC74: -0.5506874536 | CD74: -0.5358517831 | CE74: -0.5493300543 | CF74: -0.5502015374 | CG74: -0.5337842937 | CH74: -0.5400800323 | CI74: -0.5432057341 | CJ74: -0.557717295 | CK74: -0.5589291595 | CL74: -0.5590968467 | CM74: -0.5653010335 | CN74: -0.5509350448 | CO74: -0.5781636738 | CP74: -0.600308331 | CQ74: -0.5957366975 | CR74: -0.5901200311 | CS74: -0.5862594537 | CT74: -0.6010379423 | CU74: -0.6135226786 | CV74: -0.6292187361 | CW74: -0.6161848995 | CX74: -0.6440695827 | CY74: -0.6546262432 | CZ74: -0.6705456056 | DA74: -0.6716574443 | DB74: -0.6655017297 | DC74: -0.6734588237 | DD74: -0.6660880547 | DE74: -0.6426829223 | DF74: -0.6408963285 | DG74: -0.6402220251 | DH74: -0.6567360307 | DI74: -0.670374555 | DJ74: -0.6615629099 | DK74: -0.6617015923 | DL74: -0.6764944765 | DM74: -0.6811854449 | DN74: -0.6805140938 | DO74: -0.675088385 | DP74: -0.6869157296 | DQ74: -0.6871298014 | DR74: -0.6986967449
B75: 1st Quartile | C75: -0.01753216537 | D75: -0.02548047087 | E75: -0.03955933634 | F75: -0.04541336678 | G75: -0.05022298027 | H75: -0.05248898177 | I75: -0.05700364408 | J75: -0.06443612168 | K75: -0.07156195104 | L75: -0.07161395822 | M75: -0.07639023849 | N75: -0.07571010271 | O75: -0.07140254639 | P75: -0.09341257076 | Q75: -0.08830937683 | R75: -0.09033955888 | S75: -0.09660266833 | T75: -0.0976817054 | U75: -0.1007463973 | V75: -0.1101295382 | W75: -0.0966113361 | X75: -0.106176368 | Y75: -0.1109655527 | Z75: -0.1135621309 | AA75: -0.1243134936 | AB75: -0.1199959816 | AC75: -0.1199004996 | AD75: -0.123910204 | AE75: -0.1181806724 | AF75: -0.1328085748 | AG75: -0.1427261083 | AH75: -0.139020181 | AI75: -0.1337925194 | AJ75: -0.1348097643 | AK75: -0.1426228246 | AL75: -0.1571547984 | AM75: -0.148610735 | AN75: -0.1419604576 | AO75: -0.1590144123 | AP75: -0.1578690652 | AQ75: -0.1735042325 | AR75: -0.1776326735 | AS75: -0.177409988 | AT75: -0.1639851688 | AU75: -0.1624953661 | AV75: -0.1738246041 | AW75: -0.1776035759 | AX75: -0.1851105216 | AY75: -0.2017267238 | AZ75: -0.1994752878 | BA75: -0.1997346017 | BB75: -0.2013664225 | BC75: -0.2093027753 | BD75: -0.2022758056 | BE75: -0.2027914491 | BF75: -0.2038181943 | BG75: -0.2075660111 | BH75: -0.2164449752 | BI75: -0.2100370595 | BJ75: -0.2185357887 | BK75: -0.2227970869 | BL75: -0.2303504045 | BM75: -0.2134386426 | BN75: -0.2277078951 | BO75: -0.2281880546 | BP75: -0.2362653321 | BQ75: -0.2281368656 | BR75: -0.2532615206 | BS75: -0.2466261283 | BT75: -0.2629692888 | BU75: -0.2502045152 | BV75: -0.2386457358 | BW75: -0.238658923 | BX75: -0.2450108437 | BY75: -0.237837523 | BZ75: -0.246862784 | CA75: -0.2370967002 | CB75: -0.2512433475 | CC75: -0.2452642669 | CD75: -0.2664481082 | CE75: -0.2704647642 | CF75: -0.2707749291 | CG75: -0.2758601558 | CH75: -0.2725341319 | CI75: -0.254007735 | CJ75: -0.2688467947 | CK75: -0.2677941819 | CL75: -0.2674435216 | CM75: -0.2748690943 | CN75: -0.2813957837 | CO75: -0.2869221604 | CP75: -0.2734629149 | CQ75: -0.2661608605 | CR75: -0.2777300156 | CS75: -0.2574201834 | CT75: -0.2732538383 | CU75: -0.2840472362 | CV75: -0.2886639724 | CW75: -0.279657815 | CX75: -0.2913273831 | CY75: -0.2952004466 | CZ75: -0.2789210203 | DA75: -0.2837271398 | DB75: -0.2857474 | DC75: -0.2874081288 | DD75: -0.2864460538 | DE75: -0.2697534471 | DF75: -0.278629227 | DG75: -0.2986218133 | DH75: -0.2915606517 | DI75: -0.2835615036 | DJ75: -0.2993615225 | DK75: -0.2997295904 | DL75: -0.298468523 | DM75: -0.2948278557 | DN75: -0.3013799804 | DO75: -0.3056393351 | DP75: -0.2970118541 | DQ75: -0.3083131013 | DR75: -0.3118358287
B76: Median | C76: 0.006119306996 | D76: 0.004307767012 | E76: -0.001778747675 | F76: 0.002849364221 | G76: -0.005969812424 | H76: -0.005278976024 | I76: -0.00693453398 | J76: -0.005029834793 | K76: -0.002348764526 | L76: -0.009593133088 | M76: -0.00542017247 | N76: -0.009095275395 | O76: -0.002936980347 | P76: -0.004944467066 | Q76: -0.003663595292 | R76: -0.006622692458 | S76: -0.009206616929 | T76: -0.01290845385 | U76: -0.01500735727 | V76: -0.01814647614 | W76: -0.02009770461 | X76: -0.01509287912 | Y76: -0.01923655191 | Z76: -0.006003628266 | AA76: -0.0101946561 | AB76: -0.01708068638 | AC76: -0.01101915903 | AD76: -0.02096648272 | AE76: -0.02516349779 | AF76: -0.03650344442 | AG76: -0.02745714943 | AH76: -0.03446124707 | AI76: -0.03047602751 | AJ76: -0.03496240875 | AK76: -0.03583316831 | AL76: -0.03998367889 | AM76: -0.05124193161 | AN76: -0.05639695951 | AO76: -0.05061585127 | AP76: -0.05981209078 | AQ76: -0.0426631572 | AR76: -0.04859383948 | AS76: -0.04298012509 | AT76: -0.05668042666 | AU76: -0.0639389332 | AV76: -0.04925645715 | AW76: -0.06066887856 | AX76: -0.07172364981 | AY76: -0.06889347356 | AZ76: -0.06568550514 | BA76: -0.05872663155 | BB76: -0.06558093389 | BC76: -0.06107059531 | BD76: -0.09590092441 | BE76: -0.1012739524 | BF76: -0.08574626293 | BG76: -0.0788007324 | BH76: -0.07754631532 | BI76: -0.08436835996 | BJ76: -0.09575516034 | BK76: -0.08341885634 | BL76: -0.09379383952 | BM76: -0.08248158621 | BN76: -0.08831772947 | BO76: -0.1039383984 | BP76: -0.1068467075 | BQ76: -0.1032397524 | BR76: -0.1026914012 | BS76: -0.1009941985 | BT76: -0.1036049278 | BU76: -0.09579960674 | BV76: -0.09868636205 | BW76: -0.0977602507 | BX76: -0.0884609228 | BY76: -0.1006623922 | BZ76: -0.08337346907 | CA76: -0.07523291273 | CB76: -0.08385845219 | CC76: -0.0947575406 | CD76: -0.08837816086 | CE76: -0.1016257649 | CF76: -0.08374140257 | CG76: -0.1039738198 | CH76: -0.09621719917 | CI76: -0.1036365866 | CJ76: -0.0792879226 | CK76: -0.07089236031 | CL76: -0.07765655586 | CM76: -0.06660934431 | CN76: -0.0608357847 | CO76: -0.06718094117 | CP76: -0.05528580765 | CQ76: -0.06363784873 | CR76: -0.05931414035 | CS76: -0.05032339773 | CT76: -0.07196809326 | CU76: -0.06870412859 | CV76: -0.07569410464 | CW76: -0.08294491801 | CX76: -0.08938247717 | CY76: -0.09514557934 | CZ76: -0.08321700344 | DA76: -0.08290934814 | DB76: -0.08405944052 | DC76: -0.09573274286 | DD76: -0.1060573312 | DE76: -0.1001774827 | DF76: -0.1012584456 | DG76: -0.1163931547 | DH76: -0.08562281915 | DI76: -0.1032800171 | DJ76: -0.1152888443 | DK76: -0.09628022806 | DL76: -0.09001042364 | DM76: -0.08785069372 | DN76: -0.08405002718 | DO76: -0.07291420607 | DP76: -0.08543965338 | DQ76: -0.0926706434 | DR76: -0.105841608
B77: Mean | C77: 0.005611494209 | D77: 0.003916526291 | E77: 0.002342895968 | F77: 0.002816349607 | G77: 0.001022549917 | H77: 0.001138117376 | I77: 0.002323292783 | J77: -0.001370393034 | K77: -0.0004634303725 | L77: -0.000588684382 | M77: 0.0005671293322 | N77: -0.00235243152 | O77: -0.0004532521849 | P77: -0.0002711394391 | Q77: 0.001834624442 | R77: -0.0002703955884 | S77: -0.005600639925 | T77: -0.008014340859 | U77: -0.006456582429 | V77: -0.006154558266 | W77: -0.00159676888 | X77: -0.007161287471 | Y77: -0.003978372127 | Z77: -0.003090118731 | AA77: -0.004088187354 | AB77: -0.004465467136 | AC77: -0.004979273861 | AD77: -0.005500456817 | AE77: -0.006591336972 | AF77: -0.01066472915 | AG77: -0.01487660236 | AH77: -0.01260530875 | AI77: -0.01543380454 | AJ77: -0.01318679722 | AK77: -0.01555482284 | AL77: -0.01911381724 | AM77: -0.0196718346 | AN77: -0.02166520571 | AO77: -0.02017188937 | AP77: -0.02479545869 | AQ77: -0.02678190368 | AR77: -0.03033484289 | AS77: -0.02902150282 | AT77: -0.03226825234 | AU77: -0.03509093289 | AV77: -0.03677831665 | AW77: -0.03525680787 | AX77: -0.03709622206 | AY77: -0.03594586121 | AZ77: -0.04084431937 | BA77: -0.03861401263 | BB77: -0.03876945775 | BC77: -0.03829035292 | BD77: -0.0432917077 | BE77: -0.04867974847 | BF77: -0.04622245325 | BG77: -0.04369710394 | BH77: -0.04613851245 | BI77: -0.04486362593 | BJ77: -0.04802923086 | BK77: -0.05314830504 | BL77: -0.05106891936 | BM77: -0.04589119954 | BN77: -0.04542975864 | BO77: -0.04712144836 | BP77: -0.05142923555 | BQ77: -0.05502135707 | BR77: -0.05206184226 | BS77: -0.04965360424 | BT77: -0.05363446545 | BU77: -0.05454094127 | BV77: -0.05696856736 | BW77: -0.0582467144 | BX77: -0.06009109541 | BY77: -0.06024608665 | BZ77: -0.05935357433 | CA77: -0.05886459766 | CB77: -0.05717242718 | CC77: -0.05600047758 | CD77: -0.05542808205 | CE77: -0.05658412819 | CF77: -0.05727896849 | CG77: -0.05558183715 | CH77: -0.0595296866 | CI77: -0.06201634053 | CJ77: -0.06227848368 | CK77: -0.06827444401 | CL77: -0.06605867684 | CM77: -0.06282570296 | CN77: -0.06103052348 | CO77: -0.06333505787 | CP77: -0.06360878821 | CQ77: -0.06336246038 | CR77: -0.05837424615 | CS77: -0.05689962716 | CT77: -0.05900082764 | CU77: -0.06058526075 | CV77: -0.05861990925 | CW77: -0.05826280486 | CX77: -0.06181928648 | CY77: -0.06038001457 | CZ77: -0.06222687118 | DA77: -0.06095461608 | DB77: -0.06507703095 | DC77: -0.06520714984 | DD77: -0.06488846947 | DE77: -0.0581000141 | DF77: -0.05786696335 | DG77: -0.05881147905 | DH77: -0.05586052775 | DI77: -0.05984881486 | DJ77: -0.06002812809 | DK77: -0.05951251509 | DL77: -0.05960731909 | DM77: -0.05695279043 | DN77: -0.05329892344 | DO77: -0.04908341712 | DP77: -0.05249072411 | DQ77: -0.05319847236 | DR77: -0.05463864444
B78: 3rd Quartile | C78: 0.02692169968 | D78: 0.03582710454 | E78: 0.04164462491 | F78: 0.04733693601 | G78: 0.05162390864 | H78: 0.05696694794 | I78: 0.06058001679 | J78: 0.05611995288 | K78: 0.07047856548 | L78: 0.07034467529 | M78: 0.06833135821 | N78: 0.06898845946 | O78: 0.07292233015 | P78: 0.07194508547 | Q78: 0.08343029209 | R78: 0.07124291476 | S78: 0.06936322431 | T78: 0.06851282088 | U78: 0.05938657432 | V78: 0.06594290168 | W78: 0.09188601929 | X78: 0.06933132439 | Y78: 0.08086647426 | Z78: 0.1011797395 | AA78: 0.0945374475 | AB78: 0.08750446529 | AC78: 0.092191736 | AD78: 0.08030956841 | AE78: 0.106003986 | AF78: 0.09568951176 | AG78: 0.08744649404 | AH78: 0.09804648926 | AI78: 0.09827871315 | AJ78: 0.08609559499 | AK78: 0.08717377385 | AL78: 0.08766120342 | AM78: 0.09215020918 | AN78: 0.09557782777 | AO78: 0.09122357574 | AP78: 0.07884481405 | AQ78: 0.09255312532 | AR78: 0.07969591505 | AS78: 0.08373806616 | AT78: 0.07483368363 | AU78: 0.07197349719 | AV78: 0.07839293537 | AW78: 0.07386293435 | AX78: 0.06812539009 | AY78: 0.08899710596 | AZ78: 0.09298972013 | BA78: 0.09015007802 | BB78: 0.09087379728 | BC78: 0.09671173828 | BD78: 0.0813693818 | BE78: 0.07347415042 | BF78: 0.08832653416 | BG78: 0.08470221269 | BH78: 0.07051543547 | BI78: 0.08673457295 | BJ78: 0.07714803724 | BK78: 0.06261841676 | BL78: 0.05661736261 | BM78: 0.0811774787 | BN78: 0.08313024223 | BO78: 0.07848336046 | BP78: 0.08131561162 | BQ78: 0.08242183273 | BR78: 0.08513251539 | BS78: 0.09053323095 | BT78: 0.1103714643 | BU78: 0.1151761963 | BV78: 0.1132593707 | BW78: 0.1021847137 | BX78: 0.09190867119 | BY78: 0.09833235851 | BZ78: 0.1059564103 | CA78: 0.106819544 | CB78: 0.1133401844 | CC78: 0.114334984 | CD78: 0.1276560645 | CE78: 0.1259565323 | CF78: 0.1181371927 | CG78: 0.1130639142 | CH78: 0.1139145102 | CI78: 0.1053696509 | CJ78: 0.1105041618 | CK78: 0.08315609955 | CL78: 0.09961656936 | CM78: 0.08184458854 | CN78: 0.07616727499 | CO78: 0.08626439269 | CP78: 0.08356913342 | CQ78: 0.08794712514 | CR78: 0.08853492534 | CS78: 0.09959816633 | CT78: 0.1131052627 | CU78: 0.1154825719 | CV78: 0.1139259704 | CW78: 0.1288839682 | CX78: 0.128387142 | CY78: 0.1215270762 | CZ78: 0.09867388878 | DA78: 0.1117260193 | DB78: 0.1092950763 | DC78: 0.1098951459 | DD78: 0.1034796816 | DE78: 0.0828087941 | DF78: 0.09542379988 | DG78: 0.1057824535 | DH78: 0.09627283189 | DI78: 0.1109088209 | DJ78: 0.131565692 | DK78: 0.1167335185 | DL78: 0.1230982015 | DM78: 0.1147530998 | DN78: 0.1219271481 | DO78: 0.1292877591 | DP78: 0.116392192 | DQ78: 0.1176886748 | DR78: 0.1222173992
B79: Max | C79: 0.08214592622 | D79: 0.1222297273 | E79: 0.176520264 | F79: 0.189703566 | G79: 0.2161831481 | H79: 0.2201134791 | I79: 0.20461017 | J79: 0.2445237535 | K79: 0.240421784 | L79: 0.2895732259 | M79: 0.2715392469 | N79: 0.2983044681 | O79: 0.3324315771 | P79: 0.3276626841 | Q79: 0.2906761109 | R79: 0.2914814145 | S79: 0.3201773147 | T79: 0.3105494402 | U79: 0.3497677517 | V79: 0.3945722583 | W79: 0.402027414 | X79: 0.413207285 | Y79: 0.3952854846 | Z79: 0.3947753063 | AA79: 0.350192769 | AB79: 0.3473778867 | AC79: 0.4181538753 | AD79: 0.4669581447 | AE79: 0.4927377357 | AF79: 0.5550343624 | AG79: 0.6204720939 | AH79: 0.6950340503 | AI79: 0.7099865894 | AJ79: 0.7386748908 | AK79: 0.7843429728 | AL79: 0.7186544988 | AM79: 0.7126211562 | AN79: 0.6192190393 | AO79: 0.718083536 | AP79: 0.722234423 | AQ79: 0.7298767704 | AR79: 0.7917871794 | AS79: 0.8458233755 | AT79: 0.7975534201 | AU79: 0.7700315745 | AV79: 0.776895221 | AW79: 0.6972981828 | AX79: 0.7548095858 | AY79: 0.7508361247 | AZ79: 0.7098198964 | BA79: 0.7002876326 | BB79: 0.6362051967 | BC79: 0.6745433303 | BD79: 0.7858248467 | BE79: 0.7619467827 | BF79: 0.7526960435 | BG79: 0.7859135175 | BH79: 0.7903959017 | BI79: 0.8702095119 | BJ79: 0.8259358423 | BK79: 0.8923635391 | BL79: 0.8203657453 | BM79: 0.8305333046 | BN79: 0.8524440641 | BO79: 0.8857521504 | BP79: 0.8698414183 | BQ79: 0.9249306661 | BR79: 0.8893999109 | BS79: 0.7983043151 | BT79: 0.7888146679 | BU79: 0.7194898103 | BV79: 0.6551829696 | BW79: 0.6862982373 | BX79: 0.6789899232 | BY79: 0.7013850159 | BZ79: 0.6817422889 | CA79: 0.7516368853 | CB79: 0.7524567297 | CC79: 0.836577598 | CD79: 0.8010650699 | CE79: 0.8623576111 | CF79: 0.8891752965 | CG79: 0.8634635861 | CH79: 0.8346875754 | CI79: 0.7882312911 | CJ79: 0.7531758138 | CK79: 0.7820735032 | CL79: 0.7393223427 | CM79: 0.7504714041 | CN79: 0.7851839274 | CO79: 0.789738248 | CP79: 0.7797043527 | CQ79: 0.7646614895 | CR79: 0.8105566404 | CS79: 0.8688662487 | CT79: 0.841238516 | CU79: 0.9580147297 | CV79: 1.017849295 | CW79: 0.969200004 | CX79: 0.9031014323 | CY79: 0.9096312381 | CZ79: 0.949876107 | DA79: 0.9789995673 | DB79: 0.9038653001 | DC79: 0.9675131812 | DD79: 1.102989585 | DE79: 1.149647922 | DF79: 1.187534681 | DG79: 1.244551728 | DH79: 1.35746585 | DI79: 1.398377503 | DJ79: 1.434742528 | DK79: 1.374931539 | DL79: 1.383684669 | DM79: 1.323434843 | DN79: 1.447814711 | DO79: 1.514928986 | DP79: 1.419660451 | DQ79: 1.405519211 | DR79: 1.62512298
A81: MFI 2-Var 3-Yr. REG | B81: Min | C81: -0.03073576735 | D81: -0.04702882837 | E81: -0.06456769036 | F81: -0.06493303721 | G81: -0.06914981704 | H81: -0.08202070935 | I81: -0.08448748141 | J81: -0.0957570566 | K81: -0.09966932839 | L81: -0.1059979815 | M81: -0.1047016417 | N81: -0.1147334306 | O81: -0.1107384327 | P81: -0.1103428068 | Q81: -0.1347606027 | R81: -0.1422570202 | S81: -0.1442135918 | T81: -0.1487359548 | U81: -0.1525743401 | V81: -0.1564883734 | W81: -0.1561078923 | X81: -0.1530914589 | Y81: -0.1578277062 | Z81: -0.1668740584 | AA81: -0.1625960877 | AB81: -0.172739622 | AC81: -0.1779717154 | AD81: -0.1771123028 | AE81: -0.1856766371 | AF81: -0.1863900203 | AG81: -0.1903857861 | AH81: -0.1923909002 | AI81: -0.1979539902 | AJ81: -0.1883101632 | AK81: -0.1883026725 | AL81: -0.1785256219 | AM81: -0.1918884578 | AN81: -0.1761681511 | AO81: -0.1847889366 | AP81: -0.1892011368 | AQ81: -0.1969342757 | AR81: -0.2058212887 | AS81: -0.2256794439 | AT81: -0.2417169782 | AU81: -0.259794127 | AV81: -0.2720965144 | AW81: -0.2630505172 | AX81: -0.2644629708 | AY81: -0.2645922309 | AZ81: -0.2569088859 | BA81: -0.2539045278 | BB81: -0.2560704082 | BC81: -0.2636517491 | BD81: -0.2649454353 | BE81: -0.2777026789 | BF81: -0.2805159237 | BG81: -0.2948706391 | BH81: -0.3008236763 | BI81: -0.2926133727 | BJ81: -0.3027417825 | BK81: -0.2935801232 | BL81: -0.2886344386 | BM81: -0.2999463192 | BN81: -0.3069480443 | BO81: -0.3020114695 | BP81: -0.3105217297 | BQ81: -0.3109306323 | BR81: -0.3178184418 | BS81: -0.3094504574 | BT81: -0.3191065161 | BU81: -0.3295926782 | BV81: -0.3373144602 | BW81: -0.3577060797 | BX81: -0.3581393413 | BY81: -0.3586800944 | BZ81: -0.3606610841 | CA81: -0.34491747 | CB81: -0.3428668715 | CC81: -0.3212323956 | CD81: -0.3327134361 | CE81: -0.3288754572 | CF81: -0.3196218649 | CG81: -0.3231786182 | CH81: -0.3306318135 | CI81: -0.3404312643 | CJ81: -0.3214426362 | CK81: -0.3370559047 | CL81: -0.3462800834 | CM81: -0.3393705453 | CN81: -0.3370000138 | CO81: -0.3543477584 | CP81: -0.3497408336 | CQ81: -0.3505741865 | CR81: -0.3625057068 | CS81: -0.3804782663 | CT81: -0.3866467814 | CU81: -0.377726925 | CV81: -0.3821250996 | CW81: -0.386207966 | CX81: -0.3736484979 | CY81: -0.378091687 | CZ81: -0.3728963392 | DA81: -0.382721183 | DB81: -0.3712522145 | DC81: -0.3664584251 | DD81: -0.3752114131 | DE81: -0.377916233 | DF81: -0.3816157677 | DG81: -0.3806430785 | DH81: -0.380660117 | DI81: -0.3841756083 | DJ81: -0.3735518659 | DK81: -0.3763266632 | DL81: -0.3592242786 | DM81: -0.3646991878 | DN81: -0.3687147565 | DO81: -0.3784986749 | DP81: -0.3813135259 | DQ81: -0.3793178782 | DR81: -0.3866999386
B82: 1st Quartile | C82: -0.008198546974 | D82: -0.0132570799 | E82: -0.01626061538 | F82: -0.02130275159 | G82: -0.0256492283 | H82: -0.02248185069 | I82: -0.02749229967 | J82: -0.03709828454 | K82: -0.03703624113 | L82: -0.03516999585 | M82: -0.03840804884 | N82: -0.03587043582 | O82: -0.03528814474 | P82: -0.0420820866 | Q82: -0.04014865552 | R82: -0.0415854921 | S82: -0.04822933067 | T82: -0.05522935204 | U82: -0.0507658407 | V82: -0.05966686488 | W82: -0.05378914996 | X82: -0.05962141752 | Y82: -0.05793737263 | Z82: -0.05438688245 | AA82: -0.04919706475 | AB82: -0.05506248231 | AC82: -0.05708628787 | AD82: -0.06249604223 | AE82: -0.06180136563 | AF82: -0.06170629178 | AG82: -0.06466785821 | AH82: -0.06535649015 | AI82: -0.06391877608 | AJ82: -0.06232242864 | AK82: -0.06397557414 | AL82: -0.06200670259 | AM82: -0.0721169195 | AN82: -0.07123939393 | AO82: -0.07423284598 | AP82: -0.07237469958 | AQ82: -0.0755180727 | AR82: -0.07251482966 | AS82: -0.07501868658 | AT82: -0.07857187055 | AU82: -0.07556600275 | AV82: -0.07889615159 | AW82: -0.07434973104 | AX82: -0.0737915242 | AY82: -0.07268390099 | AZ82: -0.07559627231 | BA82: -0.07843490613 | BB82: -0.08095780032 | BC82: -0.08012832943 | BD82: -0.07871140685 | BE82: -0.09093438705 | BF82: -0.08538458269 | BG82: -0.08578011514 | BH82: -0.09102902926 | BI82: -0.09596267258 | BJ82: -0.09735926227 | BK82: -0.09196623646 | BL82: -0.09560969995 | BM82: -0.09563345502 | BN82: -0.1014918596 | BO82: -0.09231831633 | BP82: -0.09045607668 | BQ82: -0.09847176007 | BR82: -0.09376982898 | BS82: -0.08894310668 | BT82: -0.08892080676 | BU82: -0.09569677333 | BV82: -0.09657479757 | BW82: -0.09294591107 | BX82: -0.09879120721 | BY82: -0.1001097103 | BZ82: -0.1095850708 | CA82: -0.1111298296 | CB82: -0.1133404469 | CC82: -0.1157808191 | CD82: -0.1163062276 | CE82: -0.1196048475 | CF82: -0.1160971705 | CG82: -0.115710777 | CH82: -0.1123474257 | CI82: -0.1153882397 | CJ82: -0.1151074569 | CK82: -0.1130211733 | CL82: -0.1112919041 | CM82: -0.1095965715 | CN82: -0.1094884053 | CO82: -0.1076642092 | CP82: -0.113903641 | CQ82: -0.1103804025 | CR82: -0.1103115426 | CS82: -0.1154275877 | CT82: -0.118117088 | CU82: -0.1225023316 | CV82: -0.1225060993 | CW82: -0.118500648 | CX82: -0.1152385982 | CY82: -0.1205006236 | CZ82: -0.1209749335 | DA82: -0.1194414817 | DB82: -0.1203946167 | DC82: -0.1211295296 | DD82: -0.1218575418 | DE82: -0.123711971 | DF82: -0.1246119053 | DG82: -0.1198239479 | DH82: -0.1276747412 | DI82: -0.1320632127 | DJ82: -0.1348760745 | DK82: -0.1339967405 | DL82: -0.1343884535 | DM82: -0.1283738906 | DN82: -0.1266792504 | DO82: -0.1237872298 | DP82: -0.1280770099 | DQ82: -0.1304768207 | DR82: -0.1311487463
B83: Median | C83: 0.0007887615664 | D83: -0.0009352324172 | E83: -0.004706236293 | F83: -0.004128205896 | G83: -0.002011581632 | H83: -0.004115085652 | I83: -0.005322753092 | J83: -0.007410309049 | K83: -0.001198011127 | L83: -0.003208230319 | M83: 0.0005702881109 | N83: 0.001047877011 | O83: 0.0009418980064 | P83: -0.001879082135 | Q83: 0.001127755218 | R83: 0.00327744911 | S83: 0.0001180881885 | T83: -0.001318504506 | U83: 0.003514510777 | V83: -0.0002082862749 | W83: 0.001586776349 | X83: -0.003573182416 | Y83: -0.00203385269 | Z83: -0.007220264673 | AA83: -0.005698650254 | AB83: -0.009972224401 | AC83: -0.009680225753 | AD83: -0.008205903522 | AE83: -0.0131117255 | AF83: -0.01356912914 | AG83: -0.006822332163 | AH83: 0.003554089846 | AI83: 0.0005131073235 | AJ83: -0.005680649585 | AK83: -0.005459685201 | AL83: -0.006426031695 | AM83: -0.006507401818 | AN83: -0.004279353508 | AO83: 0.004159591672 | AP83: -0.002279491719 | AQ83: -0.002700756412 | AR83: -0.01107312973 | AS83: -0.007421522647 | AT83: -0.005980143581 | AU83: -0.004430030443 | AV83: -0.0022844271 | AW83: -0.007733338507 | AX83: -0.006167642907 | AY83: -0.008838206753 | AZ83: -0.01375634845 | BA83: -0.008040078903 | BB83: -0.005126193036 | BC83: -0.006385259523 | BD83: -0.005707535933 | BE83: -0.005468495653 | BF83: -0.005197382516 | BG83: -0.01047898644 | BH83: -0.01104355503 | BI83: -0.01031818158 | BJ83: -0.01852517817 | BK83: -0.0145679704 | BL83: -0.02144934296 | BM83: -0.01497156001 | BN83: -0.01471438943 | BO83: -0.0125221144 | BP83: -0.01344385937 | BQ83: -0.02252558307 | BR83: -0.01767281029 | BS83: -0.021377085 | BT83: -0.02393409161 | BU83: -0.0247256557 | BV83: -0.02404681324 | BW83: -0.02166860506 | BX83: -0.02000216332 | BY83: -0.0130485507 | BZ83: -0.01187392944 | CA83: -0.02563385992 | CB83: -0.02006507015 | CC83: -0.02352227942 | CD83: -0.0281811812 | CE83: -0.02582755988 | CF83: -0.02346372473 | CG83: -0.02334986322 | CH83: -0.01996712762 | CI83: -0.02675316128 | CJ83: -0.02371510507 | CK83: -0.02912166647 | CL83: -0.02988105024 | CM83: -0.03322887806 | CN83: -0.02051113702 | CO83: -0.03056659276 | CP83: -0.01638222841 | CQ83: -0.01263673069 | CR83: -0.008336203518 | CS83: -0.02129570743 | CT83: -0.02131791138 | CU83: -0.02434385475 | CV83: -0.02313618045 | CW83: -0.01847191522 | CX83: -0.01728870659 | CY83: -0.02208327819 | CZ83: -0.02063358389 | DA83: -0.01385927348 | DB83: -0.01964787635 | DC83: -0.0233292648 | DD83: -0.0213235166 | DE83: -0.02298319944 | DF83: -0.02373269659 | DG83: -0.02262901702 | DH83: -0.01863996363 | DI83: -0.01853719093 | DJ83: -0.02280055202 | DK83: -0.02486566843 | DL83: -0.01818296203 | DM83: -0.01577272119 | DN83: -0.01967357667 | DO83: -0.01585616198 | DP83: -0.02549695679 | DQ83: -0.01937892949 | DR83: -0.01645061845
B84: Mean | C84: 0.001606589413 | D84: -8.829136077e-05 | E84: -0.0001265750397 | F84: 0.0003531894332 | G84: -0.001541122535 | H84: -0.003266896614 | I84: -0.002482333521 | J84: -0.004046521797 | K84: -0.001948005173 | L84: -0.001117297073 | M84: -6.293349366e-05 | N84: -0.0009373114533 | O84: 0.0004873956985 | P84: 0.0006998929169 | Q84: -0.0005419607471 | R84: 0.001048581404 | S84: 0.000431140444 | T84: 0.0003762192808 | U84: 0.001071161611 | V84: 0.0003422676898 | W84: 0.0009001138918 | X84: -0.000218395031 | Y84: 0.001198396276 | Z84: 0.001924277975 | AA84: 0.001895271798 | AB84: -5.66166053e-05 | AC84: 0.0008557017168 | AD84: 8.701084009e-06 | AE84: -0.0005010952142 | AF84: -0.0002308421888 | AG84: 9.235283408e-05 | AH84: 0.001186439266 | AI84: 0.002211215778 | AJ84: 0.003440834065 | AK84: 0.001445256593 | AL84: 0.0009176287014 | AM84: -0.00279377981 | AN84: -0.004358310453 | AO84: -0.00253487179 | AP84: -0.003427632624 | AQ84: -0.003870199383 | AR84: -0.003878232626 | AS84: -0.003605181109 | AT84: -0.003773049028 | AU84: -0.002052816893 | AV84: -0.003459669582 | AW84: -0.003711314262 | AX84: -0.003768965646 | AY84: -0.004156779969 | AZ84: -0.004059177228 | BA84: -0.004125790618 | BB84: -0.003807560223 | BC84: -0.002734664163 | BD84: -0.003245821179 | BE84: -0.005706547767 | BF84: -0.006788422773 | BG84: -0.007155739351 | BH84: -0.007759891754 | BI84: -0.008523521659 | BJ84: -0.01003044724 | BK84: -0.01200718058 | BL84: -0.01217684716 | BM84: -0.01184750887 | BN84: -0.0114369426 | BO84: -0.01135590074 | BP84: -0.01233100452 | BQ84: -0.01265082343 | BR84: -0.01064452882 | BS84: -0.01009262776 | BT84: -0.009105017958 | BU84: -0.009580927527 | BV84: -0.01010897704 | BW84: -0.009442274182 | BX84: -0.007976502966 | BY84: -0.007249500173 | BZ84: -0.007941926889 | CA84: -0.009243585782 | CB84: -0.01052163998 | CC84: -0.009886871064 | CD84: -0.009645290027 | CE84: -0.009048239509 | CF84: -0.009933971262 | CG84: -0.008822131815 | CH84: -0.01131477833 | CI84: -0.01192859068 | CJ84: -0.01244190815 | CK84: -0.01182768573 | CL84: -0.01007447209 | CM84: -0.009250501975 | CN84: -0.009230309197 | CO84: -0.009653317154 | CP84: -0.007321459182 | CQ84: -0.005779208551 | CR84: -0.005767268171 | CS84: -0.005587852598 | CT84: -0.005989727773 | CU84: -0.006361981592 | CV84: -0.00508715688 | CW84: -0.00392357304 | CX84: -0.003819453363 | CY84: -0.005181921285 | CZ84: -0.004154984181 | DA84: -0.002494454091 | DB84: -0.002743576463 | DC84: -0.004513407182 | DD84: -0.007131537937 | DE84: -0.0055167313 | DF84: -0.006058568959 | DG84: -0.006313027738 | DH84: -0.005791929039 | DI84: -0.00883914716 | DJ84: -0.007533164129 | DK84: -0.007491059158 | DL84: -0.008648535496 | DM84: -0.005686116488 | DN84: -0.005678334107 | DO84: -0.006110982865 | DP84: -0.008335310113 | DQ84: -0.007635789255 | DR84: -0.008457065317
B85: 3rd Quartile | C85: 0.01387289796 | D85: 0.01269270783 | E85: 0.01846815587 | F85: 0.02251002818 | G85: 0.01900824941 | H85: 0.01895688898 | I85: 0.02247072249 | J85: 0.02560525729 | K85: 0.03222123679 | L85: 0.03160189535 | M85: 0.03365104518 | N85: 0.0314796218 | O85: 0.03055431368 | P85: 0.03785883524 | Q85: 0.03600186741 | R85: 0.04014350887 | S85: 0.04405035122 | T85: 0.0462685471 | U85: 0.04657323828 | V85: 0.0536426433 | W85: 0.05613627122 | X85: 0.0583272534 | Y85: 0.06879685314 | Z85: 0.06496783131 | AA85: 0.07069573202 | AB85: 0.05859631154 | AC85: 0.06298384848 | AD85: 0.06170199366 | AE85: 0.06618327407 | AF85: 0.06492287222 | AG85: 0.06528909531 | AH85: 0.06967809023 | AI85: 0.0676932089 | AJ85: 0.07246983762 | AK85: 0.07690498601 | AL85: 0.07143980399 | AM85: 0.06533690545 | AN85: 0.0668776242 | AO85: 0.06650689956 | AP85: 0.06836291867 | AQ85: 0.06943035191 | AR85: 0.07049642183 | AS85: 0.07231761412 | AT85: 0.07085167438 | AU85: 0.07085270544 | AV85: 0.07511606166 | AW85: 0.06851102998 | AX85: 0.07299917368 | AY85: 0.07029905829 | AZ85: 0.07248558756 | BA85: 0.06942596394 | BB85: 0.07480287148 | BC85: 0.07468109009 | BD85: 0.07201752875 | BE85: 0.08317721029 | BF85: 0.08572226176 | BG85: 0.0792692304 | BH85: 0.0848006231 | BI85: 0.08598374847 | BJ85: 0.07916530257 | BK85: 0.07306587303 | BL85: 0.07257642741 | BM85: 0.0713124918 | BN85: 0.07663574118 | BO85: 0.07277176691 | BP85: 0.0768177907 | BQ85: 0.07764850181 | BR85: 0.08178715861 | BS85: 0.07526044343 | BT85: 0.0815218374 | BU85: 0.0858036633 | BV85: 0.08626051863 | BW85: 0.08147245468 | BX85: 0.07924393492 | BY85: 0.08715270028 | BZ85: 0.09060401332 | CA85: 0.0946291028 | CB85: 0.0965145956 | CC85: 0.0835692979 | CD85: 0.08656671779 | CE85: 0.08542836531 | CF85: 0.08983632804 | CG85: 0.09228150786 | CH85: 0.09095712244 | CI85: 0.08408731253 | CJ85: 0.08397957314 | CK85: 0.08750757734 | CL85: 0.08869067068 | CM85: 0.08235332302 | CN85: 0.08216178373 | CO85: 0.08306960711 | CP85: 0.08671566625 | CQ85: 0.0910724859 | CR85: 0.08841344279 | CS85: 0.08890125212 | CT85: 0.09202115548 | CU85: 0.09840002829 | CV85: 0.1025062449 | CW85: 0.1068908938 | CX85: 0.1029396532 | CY85: 0.1020022312 | CZ85: 0.1042797584 | DA85: 0.1113884423 | DB85: 0.105175464 | DC85: 0.09752663765 | DD85: 0.09003471381 | DE85: 0.09445832552 | DF85: 0.1064421715 | DG85: 0.1048685193 | DH85: 0.1056261724 | DI85: 0.1065006362 | DJ85: 0.1056625065 | DK85: 0.1082073718 | DL85: 0.1032906204 | DM85: 0.1031043739 | DN85: 0.1069005126 | DO85: 0.1075077356 | DP85: 0.1055258795 | DQ85: 0.1059349812 | DR85: 0.1093981061
B86: Max | C86: 0.03611509519 | D86: 0.05061377334 | E86: 0.06471686708 | F86: 0.09447269756 | G86: 0.09305102728 | H86: 0.1056460484 | I86: 0.1119765337 | J86: 0.1355914194 | K86: 0.1055111328 | L86: 0.1034564283 | M86: 0.1023267431 | N86: 0.1307225163 | O86: 0.1572648717 | P86: 0.2133115108 | Q86: 0.223595705 | R86: 0.1988516008 | S86: 0.1974367712 | T86: 0.2111898081 | U86: 0.1910014819 | V86: 0.185071692 | W86: 0.1824474708 | X86: 0.1847182547 | Y86: 0.1746615843 | Z86: 0.1918171289 | AA86: 0.2056645675 | AB86: 0.2093504419 | AC86: 0.20879659 | AD86: 0.2127111785 | AE86: 0.2010309196 | AF86: 0.1964432802 | AG86: 0.1867568778 | AH86: 0.1992309072 | AI86: 0.1744472341 | AJ86: 0.2063323706 | AK86: 0.2154236142 | AL86: 0.233337652 | AM86: 0.2299142743 | AN86: 0.2603612484 | AO86: 0.2727574569 | AP86: 0.2606504696 | AQ86: 0.2750409485 | AR86: 0.253117653 | AS86: 0.2645560087 | AT86: 0.271812096 | AU86: 0.3150782856 | AV86: 0.3223836244 | AW86: 0.2842480149 | AX86: 0.2714610735 | AY86: 0.2835452767 | AZ86: 0.2750138141 | BA86: 0.2769739388 | BB86: 0.2577903058 | BC86: 0.2317318942 | BD86: 0.2519834028 | BE86: 0.2796849089 | BF86: 0.2693942495 | BG86: 0.2451437744 | BH86: 0.2479487 | BI86: 0.2589933208 | BJ86: 0.2248529331 | BK86: 0.2382475174 | BL86: 0.2206605269 | BM86: 0.2419266448 | BN86: 0.2443983001 | BO86: 0.2459321379 | BP86: 0.2557003054 | BQ86: 0.2951307264 | BR86: 0.2835778093 | BS86: 0.2922787527 | BT86: 0.299302624 | BU86: 0.2782361177 | BV86: 0.2942278384 | BW86: 0.3104326145 | BX86: 0.3088041277 | BY86: 0.2997111541 | BZ86: 0.3006378572 | CA86: 0.2985493087 | CB86: 0.2907971281 | CC86: 0.3160134394 | CD86: 0.330479494 | CE86: 0.3419797285 | CF86: 0.3453896956 | CG86: 0.3401507009 | CH86: 0.3339884193 | CI86: 0.3396342788 | CJ86: 0.3288976975 | CK86: 0.3510217181 | CL86: 0.358650671 | CM86: 0.3686875318 | CN86: 0.3557858236 | CO86: 0.3867791328 | CP86: 0.3967146984 | CQ86: 0.4251131231 | CR86: 0.450291596 | CS86: 0.4654240999 | CT86: 0.4650724715 | CU86: 0.4537224574 | CV86: 0.4525452726 | CW86: 0.4597163309 | CX86: 0.4523006477 | CY86: 0.3947888283 | CZ86: 0.4007958499 | DA86: 0.3968523654 | DB86: 0.3957880157 | DC86: 0.4132414987 | DD86: 0.3779477209 | DE86: 0.3759771528 | DF86: 0.378044821 | DG86: 0.3810778154 | DH86: 0.3920411905 | DI86: 0.4021653752 | DJ86: 0.4445925534 | DK86: 0.4400056632 | DL86: 0.4392109326 | DM86: 0.4361974886 | DN86: 0.4444893973 | DO86: 0.4641945833 | DP86: 0.4415444444 | DQ86: 0.4453981092 | DR86: 0.4531470741
A88: MFI SPY 3-Yr. REG | B88: Min | C88: -0.03128981813 | D88: -0.04734175813 | E88: -0.06443494424 | F88: -0.06449967385 | G88: -0.06895165707 | H88: -0.07601923473 | I88: -0.08483063896 | J88: -0.08962514254 | K88: -0.09239047762 | L88: -0.1049854361 | M88: -0.1037404752 | N88: -0.114530249 | O88: -0.1103084839 | P88: -0.1088895241 | Q88: -0.1232028906 | R88: -0.1375839677 | S88: -0.1398127952 | T88: -0.1473513081 | U88: -0.1503055526 | V88: -0.1557830861 | W88: -0.1538486312 | X88: -0.1505975795 | Y88: -0.1444084077 | Z88: -0.1659840079 | AA88: -0.1575383769 | AB88: -0.1689179423 | AC88: -0.1777238131 | AD88: -0.1725070801 | AE88: -0.1815600135 | AF88: -0.1889647287 | AG88: -0.1870288161 | AH88: -0.1892205472 | AI88: -0.1960024257 | AJ88: -0.1851818453 | AK88: -0.185430227 | AL88: -0.1768031954 | AM88: -0.1900386309 | AN88: -0.1733271537 | AO88: -0.1764903957 | AP88: -0.1804622943 | AQ88: -0.19382044 | AR88: -0.1969812836 | AS88: -0.2174160888 | AT88: -0.2347254985 | AU88: -0.2534632641 | AV88: -0.2642313061 | AW88: -0.2635629972 | AX88: -0.265851778 | AY88: -0.2569736612 | AZ88: -0.2491318561 | BA88: -0.2603815857 | BB88: -0.2637797493 | BC88: -0.2553306727 | BD88: -0.2701886602 | BE88: -0.2782442172 | BF88: -0.2810705579 | BG88: -0.2954500796 | BH88: -0.3010497877 | BI88: -0.2932866555 | BJ88: -0.3031915123 | BK88: -0.2940052772 | BL88: -0.2893397325 | BM88: -0.3003141295 | BN88: -0.3073062548 | BO88: -0.3021592555 | BP88: -0.3109005892 | BQ88: -0.3116823781 | BR88: -0.3183441999 | BS88: -0.3097025456 | BT88: -0.3199456551 | BU88: -0.3301597025 | BV88: -0.3379898395 | BW88: -0.3580642294 | BX88: -0.358735463 | BY88: -0.3590893314 | BZ88: -0.3611713663 | CA88: -0.34559953 | CB88: -0.3434978825 | CC88: -0.3219047168 | CD88: -0.3334266481 | CE88: -0.3297650653 | CF88: -0.3194939513 | CG88: -0.3232082184 | CH88: -0.3307021138 | CI88: -0.3404221679 | CJ88: -0.3213423328 | CK88: -0.3369731064 | CL88: -0.3462777469 | CM88: -0.3391372082 | CN88: -0.3368147853 | CO88: -0.3543538489 | CP88: -0.3507374763 | CQ88: -0.3504659758 | CR88: -0.3623400663 | CS88: -0.3805400481 | CT88: -0.3865074648 | CU88: -0.3777575208 | CV88: -0.3821312241 | CW88: -0.3860106352 | CX88: -0.3737293702 | CY88: -0.3779800383 | CZ88: -0.3730065634 | DA88: -0.3827188697 | DB88: -0.371297175 | DC88: -0.366515724 | DD88: -0.3750153966 | DE88: -0.3776364468 | DF88: -0.3817215113 | DG88: -0.3807470864 | DH88: -0.3808126811 | DI88: -0.3840608647 | DJ88: -0.3735793785 | DK88: -0.3763569037 | DL88: -0.3591894279 | DM88: -0.3648293564 | DN88: -0.3687021087 | DO88: -0.3782759217 | DP88: -0.3811687087 | DQ88: -0.3790679834 | DR88: -0.3866332435
B89: 1st Quartile | C89: -0.008163787637 | D89: -0.01212214095 | E89: -0.01676772839 | F89: -0.02238384316 | G89: -0.02555420929 | H89: -0.02252863022 | I89: -0.02747437337 | J89: -0.03759057877 | K89: -0.03361280566 | L89: -0.03100359987 | M89: -0.03725347411 | N89: -0.0374411451 | O89: -0.0360439798 | P89: -0.04284408788 | Q89: -0.03989621552 | R89: -0.04162291358 | S89: -0.04715158228 | T89: -0.05415194689 | U89: -0.05086018259 | V89: -0.05978500555 | W89: -0.05187437663 | X89: -0.05816530805 | Y89: -0.05776979905 | Z89: -0.0551116225 | AA89: -0.05308455324 | AB89: -0.05483303073 | AC89: -0.05729942169 | AD89: -0.05902160048 | AE89: -0.05685469373 | AF89: -0.06075264641 | AG89: -0.06406695566 | AH89: -0.06503955506 | AI89: -0.06312335967 | AJ89: -0.05942671502 | AK89: -0.06788636525 | AL89: -0.06234594307 | AM89: -0.0720235933 | AN89: -0.07462487056 | AO89: -0.07518281601 | AP89: -0.07497707054 | AQ89: -0.07596071069 | AR89: -0.07161095213 | AS89: -0.07158214051 | AT89: -0.07443938815 | AU89: -0.07442395575 | AV89: -0.08042252951 | AW89: -0.07413018536 | AX89: -0.07612384177 | AY89: -0.07313343088 | AZ89: -0.0749380574 | BA89: -0.07756769658 | BB89: -0.0798387096 | BC89: -0.07714128583 | BD89: -0.08048710349 | BE89: -0.0862609294 | BF89: -0.08333365923 | BG89: -0.08553794816 | BH89: -0.09038769685 | BI89: -0.09559911749 | BJ89: -0.09575243743 | BK89: -0.09322415605 | BL89: -0.09629640545 | BM89: -0.09714587372 | BN89: -0.1028518976 | BO89: -0.09144890218 | BP89: -0.09071282417 | BQ89: -0.09694179359 | BR89: -0.09334617733 | BS89: -0.08789557244 | BT89: -0.08621556073 | BU89: -0.09308150306 | BV89: -0.09287787744 | BW89: -0.09559834274 | BX89: -0.09819373077 | BY89: -0.1016840265 | BZ89: -0.1080248238 | CA89: -0.1045222819 | CB89: -0.1110728084 | CC89: -0.1147422995 | CD89: -0.1145223276 | CE89: -0.1198917883 | CF89: -0.1174596434 | CG89: -0.1132074062 | CH89: -0.1142133451 | CI89: -0.1140564501 | CJ89: -0.113522298 | CK89: -0.1112685739 | CL89: -0.1103251051 | CM89: -0.1078955345 | CN89: -0.107348307 | CO89: -0.1113477415 | CP89: -0.1153734277 | CQ89: -0.1073343439 | CR89: -0.1079827035 | CS89: -0.1135390234 | CT89: -0.116911059 | CU89: -0.1220347457 | CV89: -0.1168731077 | CW89: -0.1122550529 | CX89: -0.1097055449 | CY89: -0.1132689412 | CZ89: -0.1129370347 | DA89: -0.1133392744 | DB89: -0.1206720922 | DC89: -0.1206214516 | DD89: -0.1223760008 | DE89: -0.1245190406 | DF89: -0.1244400538 | DG89: -0.1202005114 | DH89: -0.1265456392 | DI89: -0.1316122532 | DJ89: -0.1268930467 | DK89: -0.122716709 | DL89: -0.1224836138 | DM89: -0.1184975554 | DN89: -0.1228272429 | DO89: -0.1249723296 | DP89: -0.1334050213 | DQ89: -0.1353961062 | DR89: -0.1332354281
B90: Median | C90: 0.0003088150992 | D90: 6.103731115e-05 | E90: -0.004718278111 | F90: -0.002793417897 | G90: -0.00227993942 | H90: -0.005474007535 | I90: -0.005549124669 | J90: -0.007467350407 | K90: -0.001722198577 | L90: -0.002209981717 | M90: 0.0001100816994 | N90: 0.001549131433 | O90: 0.001087317656 | P90: -0.0006373057563 | Q90: 0.002114623115 | R90: 0.003071479365 | S90: 5.996293099e-05 | T90: 0.002917257075 | U90: 0.004201323933 | V90: 0.004211598373 | W90: 0.002558389819 | X90: -0.0007887892978 | Y90: 0.001230160593 | Z90: -0.004369662756 | AA90: 0.0002182914576 | AB90: -0.008594919084 | AC90: -0.008741389736 | AD90: -0.01032118249 | AE90: -0.009176161619 | AF90: -0.01057359758 | AG90: -0.008863830298 | AH90: 0.003872391188 | AI90: 0.0002618588296 | AJ90: -0.004595428937 | AK90: -0.003265145366 | AL90: -0.006288733798 | AM90: -0.004988287841 | AN90: -0.005076123701 | AO90: 0.002345459642 | AP90: -0.002640729321 | AQ90: -0.002919825434 | AR90: -0.007440146281 | AS90: -0.007598419463 | AT90: -0.000970596821 | AU90: 0.00067737789 | AV90: 0.001294205055 | AW90: -0.005917538195 | AX90: -0.005645949755 | AY90: -0.009172863745 | AZ90: -0.01063313914 | BA90: -0.006254706276 | BB90: -0.006029626389 | BC90: -0.007759309292 | BD90: -0.006674917429 | BE90: -0.008306083461 | BF90: -0.01211472866 | BG90: -0.01054438622 | BH90: -0.01364456898 | BI90: -0.007881916084 | BJ90: -0.01643590043 | BK90: -0.01698900385 | BL90: -0.01955102525 | BM90: -0.01374434319 | BN90: -0.01698093335 | BO90: -0.01283371311 | BP90: -0.009906462081 | BQ90: -0.01854335306 | BR90: -0.01711308753 | BS90: -0.01913227752 | BT90: -0.02377136958 | BU90: -0.02434440064 | BV90: -0.02131860619 | BW90: -0.01780607654 | BX90: -0.01414599337 | BY90: -0.01694503232 | BZ90: -0.01030939566 | CA90: -0.02843017831 | CB90: -0.02120816203 | CC90: -0.02259343743 | CD90: -0.02781693917 | CE90: -0.02860093009 | CF90: -0.02312225576 | CG90: -0.02326489407 | CH90: -0.01893846873 | CI90: -0.0236210488 | CJ90: -0.02351220008 | CK90: -0.02995968233 | CL90: -0.02735078334 | CM90: -0.02470252338 | CN90: -0.01628673692 | CO90: -0.03161205403 | CP90: -0.01967044702 | CQ90: -0.0217304535 | CR90: -0.01456702594 | CS90: -0.02283909748 | CT90: -0.02323441701 | CU90: -0.02392138345 | CV90: -0.02341532137 | CW90: -0.01551195658 | CX90: -0.01671836462 | CY90: -0.02220746726 | CZ90: -0.01654465793 | DA90: -0.01102356619 | DB90: -0.01876045609 | DC90: -0.02087867323 | DD90: -0.02177924731 | DE90: -0.02004595281 | DF90: -0.01988304928 | DG90: -0.01826148102 | DH90: -0.01742572906 | DI90: -0.01850710922 | DJ90: -0.01996146136 | DK90: -0.01852790542 | DL90: -0.01579939519 | DM90: -0.01623655177 | DN90: -0.01498122745 | DO90: -0.01448790329 | DP90: -0.02379391516 | DQ90: -0.01717207945 | DR90: -0.01925609332
B91: Mean | C91: 0.001635096672 | D91: 4.720592822e-06 | E91: -2.250257119e-05 | F91: 0.0004605068251 | G91: -0.001383727624 | H91: -0.003036860193 | I91: -0.002206945148 | J91: -0.00377504004 | K91: -0.001723967656 | L91: -0.0008812800731 | M91: 9.134517446e-05 | N91: -0.0007999919433 | O91: 0.0005955452309 | P91: 0.0008344835096 | Q91: -0.0003343370418 | R91: 0.001286568466 | S91: 0.0007281515828 | T91: 0.0006882472505 | U91: 0.001408131817 | V91: 0.0006570877224 | W91: 0.001296962041 | X91: 0.0001863548799 | Y91: 0.00158240449 | Z91: 0.002415615324 | AA91: 0.002369133234 | AB91: 0.0004401975721 | AC91: 0.001429388768 | AD91: 0.0005958305659 | AE91: 0.000141763535 | AF91: 0.0003900206607 | AG91: 0.0006660580297 | AH91: 0.001773727894 | AI91: 0.002698964889 | AJ91: 0.003879093589 | AK91: 0.001902896173 | AL91: 0.001377982619 | AM91: -0.002307408937 | AN91: -0.003832806228 | AO91: -0.001895418741 | AP91: -0.00277063735 | AQ91: -0.003233400928 | AR91: -0.003276993698 | AS91: -0.003008152636 | AT91: -0.003211575204 | AU91: -0.001633545682 | AV91: -0.003200795773 | AW91: -0.003395124797 | AX91: -0.003343896054 | AY91: -0.003636877934 | AZ91: -0.003574639147 | BA91: -0.003669582443 | BB91: -0.003232201526 | BC91: -0.00201443288 | BD91: -0.002508383477 | BE91: -0.004957143254 | BF91: -0.006015644042 | BG91: -0.006280944628 | BH91: -0.006852075642 | BI91: -0.00771793101 | BJ91: -0.009251995662 | BK91: -0.01123869813 | BL91: -0.01137624961 | BM91: -0.01091742404 | BN91: -0.01043223033 | BO91: -0.01040458575 | BP91: -0.0114936821 | BQ91: -0.01187156774 | BR91: -0.009880091612 | BS91: -0.009278786709 | BT91: -0.00830636257 | BU91: -0.008969753527 | BV91: -0.009576695281 | BW91: -0.008902743555 | BX91: -0.007358760231 | BY91: -0.006580070682 | BZ91: -0.007209859543 | CA91: -0.008510095744 | CB91: -0.009754755297 | CC91: -0.009090974039 | CD91: -0.008808146264 | CE91: -0.008211490088 | CF91: -0.009103621596 | CG91: -0.008015934792 | CH91: -0.01047166717 | CI91: -0.01110614019 | CJ91: -0.01160539629 | CK91: -0.01101168258 | CL91: -0.009333563609 | CM91: -0.008396949795 | CN91: -0.00830478639 | CO91: -0.008796294244 | CP91: -0.006468087059 | CQ91: -0.004893778418 | CR91: -0.00485194271 | CS91: -0.00444270053 | CT91: -0.004837460773 | CU91: -0.005197315216 | CV91: -0.003882351652 | CW91: -0.002702439161 | CX91: -0.002671073908 | CY91: -0.003924549326 | CZ91: -0.002717859608 | DA91: -0.001056728631 | DB91: -0.001402162435 | DC91: -0.003154783033 | DD91: -0.005715624831 | DE91: -0.003974397865 | DF91: -0.004423971772 | DG91: -0.0045589817 | DH91: -0.003949234084 | DI91: -0.006979572396 | DJ91: -0.005697754725 | DK91: -0.005613414844 | DL91: -0.006731237052 | DM91: -0.003810149382 | DN91: -0.003827915865 | DO91: -0.004118096529 | DP91: -0.006260598293 | DQ91: -0.005610284509 | DR91: -0.006480585762
B92: 3rd Quartile | C92: 0.0136217788 | D92: 0.01321291507 | E92: 0.01826478218 | F92: 0.02242201101 | G92: 0.0189451119 | H92: 0.01804742337 | I92: 0.02255570348 | J92: 0.02562192517 | K92: 0.03167150905 | L92: 0.03125374571 | M92: 0.03414847685 | N92: 0.03101735613 | O92: 0.03282839797 | P92: 0.03526266049 | Q92: 0.0361891458 | R92: 0.03949796181 | S92: 0.04317053813 | T92: 0.04671349333 | U92: 0.04482731731 | V92: 0.05224570804 | W92: 0.05537905879 | X92: 0.0580287027 | Y92: 0.06785553427 | Z92: 0.06534692458 | AA92: 0.07236356163 | AB92: 0.06016153436 | AC92: 0.06243603207 | AD92: 0.06370497166 | AE92: 0.0630167098 | AF92: 0.06538972954 | AG92: 0.0628609354 | AH92: 0.06280764075 | AI92: 0.06762235524 | AJ92: 0.07146083045 | AK92: 0.07961134346 | AL92: 0.07286978135 | AM92: 0.06645749438 | AN92: 0.06788725633 | AO92: 0.06880882124 | AP92: 0.06908089697 | AQ92: 0.06842010354 | AR92: 0.06960954446 | AS92: 0.07253664904 | AT92: 0.07137407164 | AU92: 0.06853977097 | AV92: 0.06738147651 | AW92: 0.06711736875 | AX92: 0.07200910564 | AY92: 0.0712589351 | AZ92: 0.07374764577 | BA92: 0.0703798345 | BB92: 0.0767338057 | BC92: 0.08197908394 | BD92: 0.07285018659 | BE92: 0.07991664724 | BF92: 0.08013146503 | BG92: 0.07699636203 | BH92: 0.08607813015 | BI92: 0.09051776295 | BJ92: 0.08072992555 | BK92: 0.07188018288 | BL92: 0.07275841856 | BM92: 0.06986922701 | BN92: 0.07544207827 | BO92: 0.07105079152 | BP92: 0.07227826933 | BQ92: 0.07084048182 | BR92: 0.07584401243 | BS92: 0.07486572644 | BT92: 0.08459566969 | BU92: 0.0873528439 | BV92: 0.08230590903 | BW92: 0.08183573461 | BX92: 0.07661017358 | BY92: 0.07656354035 | BZ92: 0.08609236379 | CA92: 0.09484942034 | CB92: 0.08811536583 | CC92: 0.08777783723 | CD92: 0.08484157282 | CE92: 0.08826864553 | CF92: 0.08235784089 | CG92: 0.09448718989 | CH92: 0.08733518786 | CI92: 0.07795903613 | CJ92: 0.07888435671 | CK92: 0.0763366403 | CL92: 0.07987220671 | CM92: 0.08275062022 | CN92: 0.08571513349 | CO92: 0.08133745201 | CP92: 0.0871488981 | CQ92: 0.09350389153 | CR92: 0.09010265249 | CS92: 0.09373286379 | CT92: 0.0981787527 | CU92: 0.09902220179 | CV92: 0.09793637366 | CW92: 0.1029708561 | CX92: 0.09620604714 | CY92: 0.1039185469 | CZ92: 0.1012547749 | DA92: 0.1069911601 | DB92: 0.1026866119 | DC92: 0.09146268194 | DD92: 0.085597157 | DE92: 0.09005955322 | DF92: 0.09677038543 | DG92: 0.09908431179 | DH92: 0.09605568614 | DI92: 0.1022068865 | DJ92: 0.1020274263 | DK92: 0.1010942534 | DL92: 0.1027007756 | DM92: 0.1056316528 | DN92: 0.1102054706 | DO92: 0.1027539118 | DP92: 0.1047551571 | DQ92: 0.1058825533 | DR92: 0.1032086659
B93: Max | C93: 0.03630759151 | D93: 0.05074481589 | E93: 0.0651721984 | F93: 0.09504057514 | G93: 0.09797165536 | H93: 0.1067217655 | I93: 0.1160664106 | J93: 0.1398647108 | K93: 0.1114456145 | L93: 0.1091780388 | M93: 0.1059119986 | N93: 0.1293732753 | O93: 0.1543410705 | P93: 0.2102333297 | Q93: 0.2215719745 | R93: 0.196869018 | S93: 0.1941302877 | T93: 0.2078501107 | U93: 0.1880946119 | V93: 0.1819604891 | W93: 0.1784111393 | X93: 0.1794635724 | Y93: 0.1688529414 | Z93: 0.1867073951 | AA93: 0.2000756911 | AB93: 0.2077257426 | AC93: 0.2002993452 | AD93: 0.203500102 | AE93: 0.1962867703 | AF93: 0.1927658777 | AG93: 0.1916291571 | AH93: 0.2036442179 | AI93: 0.1751340045 | AJ93: 0.2125234688 | AK93: 0.2211735664 | AL93: 0.2388825048 | AM93: 0.2335647804 | AN93: 0.2621427025 | AO93: 0.2732952675 | AP93: 0.2607767805 | AQ93: 0.2760645513 | AR93: 0.2550761314 | AS93: 0.2655754954 | AT93: 0.2725870189 | AU93: 0.3155235251 | AV93: 0.3222905999 | AW93: 0.2850091772 | AX93: 0.2723984281 | AY93: 0.2844214148 | AZ93: 0.2756684843 | BA93: 0.2776174694 | BB93: 0.2598196752 | BC93: 0.2318944617 | BD93: 0.2521561945 | BE93: 0.2791500717 | BF93: 0.2690935331 | BG93: 0.2449780063 | BH93: 0.2482950275 | BI93: 0.2591236768 | BJ93: 0.2237700629 | BK93: 0.2343825814 | BL93: 0.2193911721 | BM93: 0.2275779951 | BN93: 0.2450985818 | BO93: 0.2417188181 | BP93: 0.2522219566 | BQ93: 0.2903522178 | BR93: 0.2763296395 | BS93: 0.2855351075 | BT93: 0.2930628528 | BU93: 0.2825014404 | BV93: 0.3078515094 | BW93: 0.3266335745 | BX93: 0.3180409384 | BY93: 0.3199767944 | BZ93: 0.3017477738 | CA93: 0.304072032 | CB93: 0.3051013809 | CC93: 0.3240534688 | CD93: 0.3358086866 | CE93: 0.3398641921 | CF93: 0.3583948376 | CG93: 0.3251759827 | CH93: 0.3335594202 | CI93: 0.3266706089 | CJ93: 0.3245849863 | CK93: 0.3383028319 | CL93: 0.3577815571 | CM93: 0.3691784656 | CN93: 0.3572599247 | CO93: 0.3941855809 | CP93: 0.4040667723 | CQ93: 0.4114644971 | CR93: 0.4596077019 | CS93: 0.4751748855 | CT93: 0.4746657737 | CU93: 0.4632377965 | CV93: 0.4615346448 | CW93: 0.467981608 | CX93: 0.4609256581 | CY93: 0.4044802236 | CZ93: 0.4018559578 | DA93: 0.3968059292 | DB93: 0.4024367466 | DC93: 0.40916538 | DD93: 0.3858444695 | DE93: 0.3840629446 | DF93: 0.3778416388 | DG93: 0.3814263269 | DH93: 0.4001229579 | DI93: 0.4104558623 | DJ93: 0.4517090001 | DK93: 0.4477020658 | DL93: 0.4487769336 | DM93: 0.4441695921 | DN93: 0.4520780775 | DO93: 0.4722261635 | DP93: 0.4512061579 | DQ93: 0.4536664682 | DR93: 0.4590236021
A95: MFI RUS 3-Yr. REG | B95: Min | C95: -0.06950215857 | D95: -0.104573823 | E95: -0.1582658614 | F95: -0.1350044334 | G95: -0.190889955 | H95: -0.2056582094 | I95: -0.2228527252 | J95: -0.2402170134 | K95: -0.2458352961 | L95: -0.230144315 | M95: -0.2656002218 | N95: -0.2695077324 | O95: -0.2709622426 | P95: -0.2519794361 | Q95: -0.2539560302 | R95: -0.2559234852 | S95: -0.2798582009 | T95: -0.2806330711 | U95: -0.2750174005 | V95: -0.295354795 | W95: -0.2771153404 | X95: -0.3122605364 | Y95: -0.3210570618 | Z95: -0.3579472092 | AA95: -0.3580819686 | AB95: -0.3639939347 | AC95: -0.3900770134 | AD95: -0.4002962797 | AE95: -0.4322889934 | AF95: -0.4316748257 | AG95: -0.4463276514 | AH95: -0.4643882003 | AI95: -0.4440986703 | AJ95: -0.4360503014 | AK95: -0.4059884535 | AL95: -0.4278392764 | AM95: -0.4227410634 | AN95: -0.4330860461 | AO95: -0.4261372823 | AP95: -0.4199820257 | AQ95: -0.4312523009 | AR95: -0.4138283083 | AS95: -0.417339587 | AT95: -0.4306481831 | AU95: -0.4404828564 | AV95: -0.462773633 | AW95: -0.4420543985 | AX95: -0.4312427413 | AY95: -0.423922409 | AZ95: -0.4302298241 | BA95: -0.4463252226 | BB95: -0.4541072437 | BC95: -0.4586080743 | BD95: -0.4711693636 | BE95: -0.4788155232 | BF95: -0.4811189257 | BG95: -0.5054905011 | BH95: -0.4784299064 | BI95: -0.4494503243 | BJ95: -0.4447365524 | BK95: -0.4531872991 | BL95: -0.4944335684 | BM95: -0.4938898548 | BN95: -0.5335734927 | BO95: -0.5256317541 | BP95: -0.5442723051 | BQ95: -0.5316640332 | BR95: -0.5029513911 | BS95: -0.5215465839 | BT95: -0.4937631032 | BU95: -0.4814557882 | BV95: -0.5055161785 | BW95: -0.5156409053 | BX95: -0.5122963552 | BY95: -0.5252747149 | BZ95: -0.5343024075 | CA95: -0.5470932519 | CB95: -0.5480617483 | CC95: -0.5504806701 | CD95: -0.5343725553 | CE95: -0.5491532442 | CF95: -0.5496178062 | CG95: -0.534732454 | CH95: -0.539955808 | CI95: -0.5424200905 | CJ95: -0.5577377321 | CK95: -0.5593094299 | CL95: -0.5584543517 | CM95: -0.56534746 | CN95: -0.5514289291 | CO95: -0.5777327145 | CP95: -0.6003682084 | CQ95: -0.5955833891 | CR95: -0.5901832508 | CS95: -0.5855473359 | CT95: -0.6011648905 | CU95: -0.6133331415 | CV95: -0.629424628 | CW95: -0.6160300448 | CX95: -0.6434545658 | CY95: -0.6549568138 | CZ95: -0.670745247 | DA95: -0.671694008 | DB95: -0.6659459316 | DC95: -0.6733683168 | DD95: -0.6657670349 | DE95: -0.6431759758 | DF95: -0.6412392332 | DG95: -0.6404942006 | DH95: -0.6569560811 | DI95: -0.6700911376 | DJ95: -0.6618003116 | DK95: -0.6614180318 | DL95: -0.676284097 | DM95: -0.6811992579 | DN95: -0.6801575564 | DO95: -0.6752693706 | DP95: -0.6868142512 | DQ95: -0.6874439349 | DR95: -0.6980746842
B96: 1st Quartile | C96: -0.01708796449 | D96: -0.02609025758 | E96: -0.04002599569 | F96: -0.04586150686 | G96: -0.04988725455 | H96: -0.04978440651 | I96: -0.056711163 | J96: -0.0639922834 | K96: -0.07117656412 | L96: -0.07229553959 | M96: -0.07606967219 | N96: -0.07469542476 | O96: -0.07105026949 | P96: -0.09385096674 | Q96: -0.08904990398 | R96: -0.09053058505 | S96: -0.09701292761 | T96: -0.09504688772 | U96: -0.09904772691 | V96: -0.1105999601 | W96: -0.09451802411 | X96: -0.1060339594 | Y96: -0.1107637832 | Z96: -0.1137192324 | AA96: -0.1241690701 | AB96: -0.1197592436 | AC96: -0.1190551874 | AD96: -0.1246585861 | AE96: -0.1185576629 | AF96: -0.1320532482 | AG96: -0.1418505807 | AH96: -0.1387267938 | AI96: -0.1338851047 | AJ96: -0.1341475492 | AK96: -0.1435553598 | AL96: -0.1571100386 | AM96: -0.1485390439 | AN96: -0.1431222191 | AO96: -0.1585310451 | AP96: -0.1571313622 | AQ96: -0.1734847008 | AR96: -0.1767898138 | AS96: -0.1786868572 | AT96: -0.1636023652 | AU96: -0.163069388 | AV96: -0.1731368609 | AW96: -0.1769746655 | AX96: -0.1854796608 | AY96: -0.2015823405 | AZ96: -0.1994238363 | BA96: -0.2006399468 | BB96: -0.2002357726 | BC96: -0.2098766464 | BD96: -0.2025147009 | BE96: -0.202762253 | BF96: -0.2046499648 | BG96: -0.207518054 | BH96: -0.2172555669 | BI96: -0.2108100172 | BJ96: -0.21846865 | BK96: -0.2226217723 | BL96: -0.2296198941 | BM96: -0.2137882548 | BN96: -0.2267992794 | BO96: -0.2275811193 | BP96: -0.236284955 | BQ96: -0.2281256773 | BR96: -0.2531108351 | BS96: -0.2466587275 | BT96: -0.2630816794 | BU96: -0.2504948181 | BV96: -0.2378902975 | BW96: -0.2374271673 | BX96: -0.2452330814 | BY96: -0.2363187057 | BZ96: -0.2461141049 | CA96: -0.2360076437 | CB96: -0.2515034105 | CC96: -0.2450471741 | CD96: -0.2669219416 | CE96: -0.270917494 | CF96: -0.2690401275 | CG96: -0.2769075305 | CH96: -0.2719365334 | CI96: -0.2536571205 | CJ96: -0.2682852022 | CK96: -0.2679164414 | CL96: -0.2665604929 | CM96: -0.2744221198 | CN96: -0.281071341 | CO96: -0.2877975321 | CP96: -0.2736311361 | CQ96: -0.2670265538 | CR96: -0.2766536109 | CS96: -0.2572555201 | CT96: -0.274395522 | CU96: -0.2849750661 | CV96: -0.2893862933 | CW96: -0.2802508748 | CX96: -0.292052663 | CY96: -0.2951799249 | CZ96: -0.2799949869 | DA96: -0.2839882463 | DB96: -0.2857213405 | DC96: -0.2883370676 | DD96: -0.2867614815 | DE96: -0.2708947951 | DF96: -0.2786775735 | DG96: -0.2989951688 | DH96: -0.2904946813 | DI96: -0.2840817952 | DJ96: -0.3002128469 | DK96: -0.2994676623 | DL96: -0.2994224254 | DM96: -0.2941724471 | DN96: -0.3017644062 | DO96: -0.3059926164 | DP96: -0.2973517631 | DQ96: -0.3084055502 | DR96: -0.3113705955
B97: Median | C97: 0.006740191421 | D97: 0.002902587259 | E97: -0.002762378397 | F97: 0.002680881004 | G97: -0.005845795215 | H97: -0.00576773697 | I97: -0.007189373895 | J97: -0.004877016433 | K97: -0.002638533593 | L97: -0.01152250181 | M97: -0.004949915598 | N97: -0.01020901536 | O97: -0.003794399567 | P97: -0.006057780193 | Q97: -0.003468388441 | R97: -0.006222486915 | S97: -0.009115776615 | T97: -0.01315865159 | U97: -0.0138729472 | V97: -0.01859675427 | W97: -0.01998644337 | X97: -0.01453081964 | Y97: -0.01860605911 | Z97: -0.006608602292 | AA97: -0.009060315908 | AB97: -0.01654683273 | AC97: -0.01098212116 | AD97: -0.02091465338 | AE97: -0.02541168355 | AF97: -0.03645690257 | AG97: -0.02784514345 | AH97: -0.03500155423 | AI97: -0.03033079367 | AJ97: -0.03425604538 | AK97: -0.03621677727 | AL97: -0.04178699772 | AM97: -0.05066911991 | AN97: -0.0559470774 | AO97: -0.05023107837 | AP97: -0.05978281174 | AQ97: -0.04393522833 | AR97: -0.048024129 | AS97: -0.04362305748 | AT97: -0.05677598462 | AU97: -0.06174684513 | AV97: -0.05128633403 | AW97: -0.06158234917 | AX97: -0.07021213482 | AY97: -0.06988151542 | AZ97: -0.06544059958 | BA97: -0.06002512382 | BB97: -0.06571456403 | BC97: -0.06147673417 | BD97: -0.09576542259 | BE97: -0.1012960884 | BF97: -0.08384779105 | BG97: -0.07971302889 | BH97: -0.07791122655 | BI97: -0.08383376365 | BJ97: -0.09616829016 | BK97: -0.08495310009 | BL97: -0.0924252986 | BM97: -0.08305616985 | BN97: -0.08949083913 | BO97: -0.1037365888 | BP97: -0.1085232687 | BQ97: -0.1047861113 | BR97: -0.1031376488 | BS97: -0.1018190314 | BT97: -0.1030438504 | BU97: -0.09559613117 | BV97: -0.09824783069 | BW97: -0.09838461433 | BX97: -0.0884737087 | BY97: -0.101238842 | BZ97: -0.08345819862 | CA97: -0.07566869754 | CB97: -0.08283243685 | CC97: -0.09536633104 | CD97: -0.08827612984 | CE97: -0.1028579068 | CF97: -0.08566737526 | CG97: -0.1022569934 | CH97: -0.0967125412 | CI97: -0.1051959796 | CJ97: -0.08139253259 | CK97: -0.07133674989 | CL97: -0.07688710681 | CM97: -0.06626776091 | CN97: -0.06048322462 | CO97: -0.06752107779 | CP97: -0.05573308323 | CQ97: -0.06280321381 | CR97: -0.05807989309 | CS97: -0.05065014328 | CT97: -0.07446859815 | CU97: -0.0688427933 | CV97: -0.07577859278 | CW97: -0.0828983324 | CX97: -0.08985382132 | CY97: -0.09531821326 | CZ97: -0.08310773392 | DA97: -0.08392976408 | DB97: -0.08374521546 | DC97: -0.09736828123 | DD97: -0.1060554338 | DE97: -0.09931856704 | DF97: -0.1022156288 | DG97: -0.116129602 | DH97: -0.08564805355 | DI97: -0.1034366997 | DJ97: -0.1146597988 | DK97: -0.0944137525 | DL97: -0.08879298173 | DM97: -0.08844744365 | DN97: -0.08578410766 | DO97: -0.07363228456 | DP97: -0.08456558083 | DQ97: -0.0929613134 | DR97: -0.1059514808
B98: Mean | C98: 0.00575037014 | D98: 0.003808649526 | E98: 0.002175305956 | F98: 0.002766796069 | G98: 0.001061275632 | H98: 0.001025023768 | I98: 0.0021336381 | J98: -0.001562283096 | K98: -0.0005068687675 | L98: -0.0007503604863 | M98: 0.0004345277948 | N98: -0.002339221499 | O98: -0.0005407281916 | P98: -0.0003266088767 | Q98: 0.001784317283 | R98: -0.0001854595352 | S98: -0.00548853408 | T98: -0.007818414089 | U98: -0.006495457686 | V98: -0.006135314414 | W98: -0.001639268155 | X98: -0.007178395057 | Y98: -0.004064245738 | Z98: -0.003222748984 | AA98: -0.004138584045 | AB98: -0.004391729159 | AC98: -0.005226475406 | AD98: -0.00551006502 | AE98: -0.00673132597 | AF98: -0.01072160941 | AG98: -0.01495058168 | AH98: -0.01275805587 | AI98: -0.01552048137 | AJ98: -0.01325731768 | AK98: -0.01544156855 | AL98: -0.01909619272 | AM98: -0.01979345476 | AN98: -0.02167717955 | AO98: -0.02017129421 | AP98: -0.02500079281 | AQ98: -0.02685115238 | AR98: -0.03028511674 | AS98: -0.02911929164 | AT98: -0.03238163692 | AU98: -0.03516041594 | AV98: -0.03687563056 | AW98: -0.0354579676 | AX98: -0.03707231223 | AY98: -0.03595481404 | AZ98: -0.04100589813 | BA98: -0.03861812819 | BB98: -0.0387088418 | BC98: -0.03837972537 | BD98: -0.04323894711 | BE98: -0.04892134076 | BF98: -0.04617070265 | BG98: -0.04369287437 | BH98: -0.04633080665 | BI98: -0.04498230461 | BJ98: -0.04819275762 | BK98: -0.05332849063 | BL98: -0.05118959629 | BM98: -0.04597970166 | BN98: -0.04559160197 | BO98: -0.04726799256 | BP98: -0.05133224285 | BQ98: -0.05521159706 | BR98: -0.05206452013 | BS98: -0.04972553647 | BT98: -0.05381824595 | BU98: -0.0546378039 | BV98: -0.0570078726 | BW98: -0.05803262728 | BX98: -0.0600534622 | BY98: -0.06019884772 | BZ98: -0.05955480881 | CA98: -0.05914942713 | CB98: -0.05741345196 | CC98: -0.05605837977 | CD98: -0.05546664594 | CE98: -0.05659050971 | CF98: -0.05731463003 | CG98: -0.055682517 | CH98: -0.05952112604 | CI98: -0.06206588399 | CJ98: -0.06238122718 | CK98: -0.06850527263 | CL98: -0.06610007955 | CM98: -0.06294819609 | CN98: -0.0612342623 | CO98: -0.06354634472 | CP98: -0.06364254073 | CQ98: -0.06351442897 | CR98: -0.05828721316 | CS98: -0.05684796569 | CT98: -0.05905022905 | CU98: -0.06059687259 | CV98: -0.05863110869 | CW98: -0.05844035711 | CX98: -0.06191331807 | CY98: -0.06036230404 | CZ98: -0.0621282604 | DA98: -0.061158563 | DB98: -0.06501815376 | DC98: -0.06532619448 | DD98: -0.06497015343 | DE98: -0.05829797677 | DF98: -0.05793163537 | DG98: -0.05888266225 | DH98: -0.05601776618 | DI98: -0.06001360996 | DJ98: -0.06001077266 | DK98: -0.05943927331 | DL98: -0.05952553469 | DM98: -0.05709744105 | DN98: -0.05338525201 | DO98: -0.04912612095 | DP98: -0.05256517095 | DQ98: -0.05337617676 | DR98: -0.05468903468
B99: 3rd Quartile | C99: 0.02629350246 | D99: 0.03519334704 | E99: 0.04199864952 | F99: 0.04676851183 | G99: 0.05114497132 | H99: 0.05560810748 | I99: 0.05960556615 | J99: 0.0565131013 | K99: 0.07080831194 | L99: 0.07069848456 | M99: 0.06847361775 | N99: 0.06775916959 | O99: 0.07310980616 | P99: 0.07106950589 | Q99: 0.0820633291 | R99: 0.07081182917 | S99: 0.06932098337 | T99: 0.0681938719 | U99: 0.05981845603 | V99: 0.06523995137 | W99: 0.09115538478 | X99: 0.06951164383 | Y99: 0.08008546201 | Z99: 0.1003705606 | AA99: 0.0935299969 | AB99: 0.08897514545 | AC99: 0.09139531301 | AD99: 0.08011323333 | AE99: 0.1035488057 | AF99: 0.09415089701 | AG99: 0.08943425064 | AH99: 0.0981020195 | AI99: 0.09765809351 | AJ99: 0.08742843876 | AK99: 0.08633816056 | AL99: 0.08664135176 | AM99: 0.09180046064 | AN99: 0.09489589866 | AO99: 0.09038735326 | AP99: 0.079704163 | AQ99: 0.09218572375 | AR99: 0.0811317982 | AS99: 0.08281842454 | AT99: 0.07275401221 | AU99: 0.07049841534 | AV99: 0.07739809001 | AW99: 0.07321262216 | AX99: 0.06706376532 | AY99: 0.08933291454 | AZ99: 0.09331832003 | BA99: 0.09180730618 | BB99: 0.08965845939 | BC99: 0.09615441912 | BD99: 0.07926548978 | BE99: 0.07406435733 | BF99: 0.08843997355 | BG99: 0.08434229415 | BH99: 0.07302498016 | BI99: 0.08589703349 | BJ99: 0.07754144652 | BK99: 0.06152291573 | BL99: 0.0570472049 | BM99: 0.08194475243 | BN99: 0.08246901413 | BO99: 0.08049109716 | BP99: 0.08069814497 | BQ99: 0.08142167807 | BR99: 0.08515043513 | BS99: 0.08854091708 | BT99: 0.1102737883 | BU99: 0.1135957503 | BV99: 0.1121953386 | BW99: 0.1023227704 | BX99: 0.09186869202 | BY99: 0.09916732498 | BZ99: 0.1052052273 | CA99: 0.1057447437 | CB99: 0.1152341942 | CC99: 0.1137295351 | CD99: 0.1298540711 | CE99: 0.125527536 | CF99: 0.1188410901 | CG99: 0.1128300897 | CH99: 0.1136721642 | CI99: 0.1051253141 | CJ99: 0.111152809 | CK99: 0.08278549766 | CL99: 0.09863743718 | CM99: 0.07961452848 | CN99: 0.07664822222 | CO99: 0.08469952283 | CP99: 0.08574823162 | CQ99: 0.08671320691 | CR99: 0.0862143441 | CS99: 0.09988691925 | CT99: 0.1127810617 | CU99: 0.1167042304 | CV99: 0.1147924761 | CW99: 0.1311213209 | CX99: 0.1277540149 | CY99: 0.1222383231 | CZ99: 0.09776740714 | DA99: 0.1100401042 | DB99: 0.1085041205 | DC99: 0.1099576585 | DD99: 0.1036638031 | DE99: 0.0832139661 | DF99: 0.09417726146 | DG99: 0.1047883085 | DH99: 0.09749046627 | DI99: 0.1097682175 | DJ99: 0.1308189088 | DK99: 0.1167511757 | DL99: 0.1211834646 | DM99: 0.1167500167 | DN99: 0.1210647045 | DO99: 0.1287952413 | DP99: 0.1182403614 | DQ99: 0.1184384402 | DR99: 0.1222054028
B100: Max | C100: 0.08051093471 | D100: 0.1209174504 | E100: 0.1714821313 | F100: 0.1909031593 | G100: 0.2164397292 | H100: 0.2233124283 | I100: 0.2050160069 | J100: 0.2427817893 | K100: 0.2401464947 | L100: 0.2884586548 | M100: 0.2740406289 | N100: 0.2987639226 | O100: 0.3335256885 | P100: 0.3252866637 | Q100: 0.2914025042 | R100: 0.2896345647 | S100: 0.3221159963 | T100: 0.3094684599 | U100: 0.3512584947 | V100: 0.3959910559 | W100: 0.4017624178 | X100: 0.4132246336 | Y100: 0.3967663519 | Z100: 0.3953254784 | AA100: 0.3503407643 | AB100: 0.3470772118 | AC100: 0.421611797 | AD100: 0.4684090541 | AE100: 0.4906320348 | AF100: 0.5544700808 | AG100: 0.6174531479 | AH100: 0.6933223303 | AI100: 0.7078797069 | AJ100: 0.7373843563 | AK100: 0.7840809692 | AL100: 0.7211458484 | AM100: 0.7088953099 | AN100: 0.6185199273 | AO100: 0.7162324666 | AP100: 0.7229291925 | AQ100: 0.7304656286 | AR100: 0.7907862817 | AS100: 0.8425687534 | AT100: 0.795837121 | AU100: 0.769588692 | AV100: 0.7769845059 | AW100: 0.6981259559 | AX100: 0.7516796375 | AY100: 0.7515577791 | AZ100: 0.7077018387 | BA100: 0.6959394285 | BB100: 0.6361558951 | BC100: 0.6777500103 | BD100: 0.7841016004 | BE100: 0.7619257593 | BF100: 0.7502107674 | BG100: 0.7831806054 | BH100: 0.7940989339 | BI100: 0.8702495485 | BJ100: 0.8223035575 | BK100: 0.8958710907 | BL100: 0.8197040094 | BM100: 0.8284925789 | BN100: 0.8541717015 | BO100: 0.8835917429 | BP100: 0.8690411429 | BQ100: 0.9272246189 | BR100: 0.8880743156 | BS100: 0.7964352407 | BT100: 0.7889230794 | BU100: 0.7156287867 | BV100: 0.6525302411 | BW100: 0.6873488234 | BX100: 0.684620599 | BY100: 0.7017966093 | BZ100: 0.6790089656 | CA100: 0.7507096844 | CB100: 0.7517108581 | CC100: 0.8357956522 | CD100: 0.8000402671 | CE100: 0.8647585341 | CF100: 0.8893830118 | CG100: 0.8625192365 | CH100: 0.8308535384 | CI100: 0.7850725342 | CJ100: 0.7491374895 | CK100: 0.7823054601 | CL100: 0.7339261666 | CM100: 0.7504430392 | CN100: 0.786075911 | CO100: 0.7883207216 | CP100: 0.7834147692 | CQ100: 0.7653759957 | CR100: 0.8075752014 | CS100: 0.8634339082 | CT100: 0.8446647742 | CU100: 0.9576967165 | CV100: 1.016919569 | CW100: 0.9683440021 | CX100: 0.9015665164 | CY100: 0.9120083599 | CZ100: 0.9515164607 | DA100: 0.9764539718 | DB100: 0.9046551656 | DC100: 0.9706963653 | DD100: 1.102251185 | DE100: 1.150850345 | DF100: 1.1873998 | DG100: 1.24214413 | DH100: 1.359626742 | DI100: 1.394600443 | DJ100: 1.435285618 | DK100: 1.376607635 | DL100: 1.387776931 | DM100: 1.323658094 | DN100: 1.446904248 | DO100: 1.514595272 | DP100: 1.416555958 | DQ100: 1.404117171 | DR100: 1.619811937
A102: MFI 2-Var 4-Yr. REG | B102: Min | C102: -0.031002051 | D102: -0.04665056828 | E102: -0.06462280782 | F102: -0.06519331809 | G102: -0.06922650854 | H102: -0.08223324866 | I102: -0.08460729368 | J102: -0.09596491974 | K102: -0.0992397282 | L102: -0.1060334573 | M102: -0.1051950739 | N102: -0.1147527782 | O102: -0.110694038 | P102: -0.110270241 | Q102: -0.134726782 | R102: -0.1422462364 | S102: -0.1441205636 | T102: -0.1490633363 | U102: -0.1522809839 | V102: -0.1560860753 | W102: -0.1559148419 | X102: -0.1531742514 | Y102: -0.1579798231 | Z102: -0.1670094774 | AA102: -0.1630494433 | AB102: -0.1727342223 | AC102: -0.1780415548 | AD102: -0.1769319667 | AE102: -0.1860807287 | AF102: -0.1864798966 | AG102: -0.1901933089 | AH102: -0.1928184063 | AI102: -0.1977381288 | AJ102: -0.1881065762 | AK102: -0.1885107231 | AL102: -0.1787243394 | AM102: -0.1916371979 | AN102: -0.1759961284 | AO102: -0.1847942402 | AP102: -0.1891064534 | AQ102: -0.1967898669 | AR102: -0.2060131031 | AS102: -0.2258067515 | AT102: -0.2420313025 | AU102: -0.2596322737 | AV102: -0.2715842872 | AW102: -0.2630691899 | AX102: -0.2640191525 | AY102: -0.2645661481 | AZ102: -0.2570653233 | BA102: -0.2534120956 | BB102: -0.2559800548 | BC102: -0.2637081981 | BD102: -0.2648817442 | BE102: -0.2776445043 | BF102: -0.2804517742 | BG102: -0.2948698919 | BH102: -0.3010313233 | BI102: -0.2925434515 | BJ102: -0.3025458149 | BK102: -0.2935776356 | BL102: -0.2884873976 | BM102: -0.299977462 | BN102: -0.3068673369 | BO102: -0.3021954216 | BP102: -0.3106471279 | BQ102: -0.3107330795 | BR102: -0.3178396964 | BS102: -0.30964362 | BT102: -0.3189602392 | BU102: -0.3296378893 | BV102: -0.3372567973 | BW102: -0.3577984104 | BX102: -0.3579751852 | BY102: -0.3588152453 | BZ102: -0.3607856234 | CA102: -0.3449532507 | CB102: -0.3428368671 | CC102: -0.321247795 | CD102: -0.3326917276 | CE102: -0.3288663808 | CF102: -0.3196903278 | CG102: -0.3231734733 | CH102: -0.330628751 | CI102: -0.3403084159 | CJ102: -0.3213926375 | CK102: -0.3371657067 | CL102: -0.3462313537 | CM102: -0.339484087 | CN102: -0.3369266563 | CO102: -0.354443742 | CP102: -0.3497074947 | CQ102: -0.3506035153 | CR102: -0.3624485246 | CS102: -0.3803732302 | CT102: -0.3866345035 | CU102: -0.3778294892 | CV102: -0.381927908 | CW102: -0.3862729215 | CX102: -0.3736528179 | CY102: -0.3782561617 | CZ102: -0.3727658661 | DA102: -0.3827455511 | DB102: -0.371175217 | DC102: -0.3662855894 | DD102: -0.375265167 | DE102: -0.3781130686 | DF102: -0.3815563497 | DG102: -0.3806690566 | DH102: -0.3804702214 | DI102: -0.3841819074 | DJ102: -0.3734187611 | DK102: -0.3762632892 | DL102: -0.3593150162 | DM102: -0.3644843893 | DN102: -0.3685814871 | DO102: -0.378491957 | DP102: -0.3812654926 | DQ102: -0.3793385959 | DR102: -0.3865234144
B103: 1st Quartile | C103: -0.008002315541 | D103: -0.0131257946 | E103: -0.01662237594 | F103: -0.02134505108 | G103: -0.02571766813 | H103: -0.02258724966 | I103: -0.02740177746 | J103: -0.03714255779 | K103: -0.03699112571 | L103: -0.03488388734 | M103: -0.03800635902 | N103: -0.03568967895 | O103: -0.03515281486 | P103: -0.04225678923 | Q103: -0.04004113995 | R103: -0.04155833363 | S103: -0.04817551299 | T103: -0.05526374108 | U103: -0.05069932798 | V103: -0.05962271058 | W103: -0.05369626369 | X103: -0.05940065472 | Y103: -0.05779094474 | Z103: -0.05419991209 | AA103: -0.04933888917 | AB103: -0.05503344867 | AC103: -0.05702589698 | AD103: -0.06278908208 | AE103: -0.0616674612 | AF103: -0.06230667208 | AG103: -0.06450708814 | AH103: -0.06541921578 | AI103: -0.0642787108 | AJ103: -0.06230931013 | AK103: -0.06378717905 | AL103: -0.06173935963 | AM103: -0.07205442885 | AN103: -0.07117712841 | AO103: -0.07439690577 | AP103: -0.072041715 | AQ103: -0.07530280448 | AR103: -0.07237377314 | AS103: -0.07540835751 | AT103: -0.07827802642 | AU103: -0.07565378348 | AV103: -0.07884750786 | AW103: -0.07416250538 | AX103: -0.07363838091 | AY103: -0.07296514732 | AZ103: -0.07593332293 | BA103: -0.07870298037 | BB103: -0.081118158 | BC103: -0.08023829714 | BD103: -0.07839386272 | BE103: -0.09091626442 | BF103: -0.08537512927 | BG103: -0.08590645645 | BH103: -0.09129366111 | BI103: -0.09575398061 | BJ103: -0.09753230649 | BK103: -0.09202088381 | BL103: -0.09567544811 | BM103: -0.09578069819 | BN103: -0.1014207197 | BO103: -0.09272616775 | BP103: -0.09027942908 | BQ103: -0.09866402092 | BR103: -0.09374944158 | BS103: -0.08925009398 | BT103: -0.08925617629 | BU103: -0.09572490553 | BV103: -0.0963063716 | BW103: -0.09300358653 | BX103: -0.09877425293 | BY103: -0.1001877131 | BZ103: -0.1095000005 | CA103: -0.1112176285 | CB103: -0.1132552311 | CC103: -0.1158478811 | CD103: -0.1162393565 | CE103: -0.1197534914 | CF103: -0.116067274 | CG103: -0.1152407116 | CH103: -0.1123197855 | CI103: -0.1153408258 | CJ103: -0.1149965954 | CK103: -0.1128708176 | CL103: -0.1111147139 | CM103: -0.109528331 | CN103: -0.1094977311 | CO103: -0.1076754789 | CP103: -0.1137989808 | CQ103: -0.1103554994 | CR103: -0.1103607259 | CS103: -0.1153550451 | CT103: -0.1181297202 | CU103: -0.1223689472 | CV103: -0.1225641842 | CW103: -0.1187579833 | CX103: -0.1152045696 | CY103: -0.1205101742 | CZ103: -0.1207714717 | DA103: -0.1195077897 | DB103: -0.1204112747 | DC103: -0.1211670532 | DD103: -0.1220431101 | DE103: -0.1238036106 | DF103: -0.1241658191 | DG103: -0.1197327412 | DH103: -0.1279252359 | DI103: -0.1322459316 | DJ103: -0.1351554604 | DK103: -0.1339404549 | DL103: -0.1347073803 | DM103: -0.1283168523 | DN103: -0.1266975848 | DO103: -0.1236687752 | DP103: -0.1281789057 | DQ103: -0.1304091436 | DR103: -0.1310666765
B104: Median | C104: 0.0005750923425 | D104: -0.0007706206315 | E104: -0.004654574633 | F104: -0.003963510937 | G104: -0.001891756574 | H104: -0.004368628586 | I104: -0.005277577882 | J104: -0.007488822709 | K104: -0.001047564089 | L104: -0.003257181414 | M104: 0.0007580318225 | N104: 0.001018903004 | O104: 0.001240657728 | P104: -0.001870890741 | Q104: 0.0007671197128 | R104: 0.003451687658 | S104: -0.0001756432095 | T104: -0.00123708354 | U104: 0.003665970439 | V104: -0.0003127021936 | W104: 0.001642407219 | X104: -0.003627353817 | Y104: -0.002424952578 | Z104: -0.006968707111 | AA104: -0.00541471535 | AB104: -0.009769068876 | AC104: -0.009815405185 | AD104: -0.007883284172 | AE104: -0.01316982213 | AF104: -0.01321693274 | AG104: -0.006753481576 | AH104: 0.003747051039 | AI104: 0.0004032995591 | AJ104: -0.005919029098 | AK104: -0.00550838362 | AL104: -0.006588318307 | AM104: -0.006417358596 | AN104: -0.00418968246 | AO104: 0.004252783696 | AP104: -0.002248559238 | AQ104: -0.002585605194 | AR104: -0.01109843956 | AS104: -0.007287415041 | AT104: -0.005708010192 | AU104: -0.004620913187 | AV104: -0.00263590178 | AW104: -0.007691866856 | AX104: -0.006156111388 | AY104: -0.009054573911 | AZ104: -0.01361568419 | BA104: -0.007968374462 | BB104: -0.005046440718 | BC104: -0.006123700507 | BD104: -0.005634192347 | BE104: -0.005673786457 | BF104: -0.005420901847 | BG104: -0.01055660737 | BH104: -0.01124591864 | BI104: -0.0104486539 | BJ104: -0.0186440541 | BK104: -0.01463103808 | BL104: -0.02123157087 | BM104: -0.01478951903 | BN104: -0.01484376196 | BO104: -0.01261018573 | BP104: -0.01363547345 | BQ104: -0.02190944581 | BR104: -0.01802429284 | BS104: -0.02166720682 | BT104: -0.02387698313 | BU104: -0.02491291082 | BV104: -0.02392643784 | BW104: -0.02173128164 | BX104: -0.02004535655 | BY104: -0.01313318772 | BZ104: -0.01173922642 | CA104: -0.02559915821 | CB104: -0.0200438933 | CC104: -0.02377785279 | CD104: -0.02798497437 | CE104: -0.02551868458 | CF104: -0.02353703334 | CG104: -0.02331657113 | CH104: -0.02001868455 | CI104: -0.02695069483 | CJ104: -0.02356538575 | CK104: -0.02897236081 | CL104: -0.02994076436 | CM104: -0.03302184664 | CN104: -0.0204769171 | CO104: -0.03060186035 | CP104: -0.01616084739 | CQ104: -0.01286450013 | CR104: -0.008539099542 | CS104: -0.02135218484 | CT104: -0.02130873812 | CU104: -0.02462676158 | CV104: -0.02314319408 | CW104: -0.01836210721 | CX104: -0.01734415762 | CY104: -0.02221634286 | CZ104: -0.02101170618 | DA104: -0.01398652723 | DB104: -0.01978898714 | DC104: -0.0229349537 | DD104: -0.02125315422 | DE104: -0.02298802974 | DF104: -0.02383420757 | DG104: -0.02272563198 | DH104: -0.01879716691 | DI104: -0.01832670122 | DJ104: -0.02297477903 | DK104: -0.02481304984 | DL104: -0.01838127372 | DM104: -0.01598934365 | DN104: -0.01992198116 | DO104: -0.01590956704 | DP104: -0.0257165527 | DQ104: -0.01924034626 | DR104: -0.01624912423
B105: Mean | C105: 0.001567215574 | D105: -0.0001022051876 | E105: -0.0001365740339 | F105: 0.0003159964883 | G105: -0.001518681032 | H105: -0.003252818909 | I105: -0.002498045103 | J105: -0.004045458771 | K105: -0.001964741882 | L105: -0.001136958402 | M105: -8.706902849e-05 | N105: -0.0009284194124 | O105: 0.0004809657663 | P105: 0.0007089248952 | Q105: -0.0005765301241 | R105: 0.00104432 | S105: 0.0004561247302 | T105: 0.000365126884 | U105: 0.001046962488 | V105: 0.0003186532055 | W105: 0.0008701321409 | X105: -0.0002077725361 | Y105: 0.001199529572 | Z105: 0.001934807908 | AA105: 0.001860033624 | AB105: -3.928165908e-05 | AC105: 0.000851403863 | AD105: -1.211221597e-05 | AE105: -0.0005111018631 | AF105: -0.0002141934687 | AG105: 0.0001067728375 | AH105: 0.001160216149 | AI105: 0.002159256722 | AJ105: 0.003419646181 | AK105: 0.001411977366 | AL105: 0.0009306776521 | AM105: -0.002810602651 | AN105: -0.004344728073 | AO105: -0.002531389621 | AP105: -0.003385518842 | AQ105: -0.003856602759 | AR105: -0.003880102867 | AS105: -0.003604409055 | AT105: -0.003798424856 | AU105: -0.002085348683 | AV105: -0.00347291726 | AW105: -0.003708116598 | AX105: -0.003782605762 | AY105: -0.004170430481 | AZ105: -0.004057165196 | BA105: -0.004128572344 | BB105: -0.003794364748 | BC105: -0.002743576028 | BD105: -0.00320577971 | BE105: -0.005693593826 | BF105: -0.006820164601 | BG105: -0.00716855654 | BH105: -0.007783013763 | BI105: -0.008555780426 | BJ105: -0.01003292602 | BK105: -0.01198159604 | BL105: -0.01216903326 | BM105: -0.01185906916 | BN105: -0.01143607565 | BO105: -0.01141615665 | BP105: -0.01229831118 | BQ105: -0.01269498138 | BR105: -0.01069703361 | BS105: -0.01006233655 | BT105: -0.009165806912 | BU105: -0.009587406943 | BV105: -0.0101276134 | BW105: -0.009432339883 | BX105: -0.008001397452 | BY105: -0.007250610604 | BZ105: -0.0079964784 | CA105: -0.009259841127 | CB105: -0.01056229558 | CC105: -0.009884979909 | CD105: -0.009702984526 | CE105: -0.009024497338 | CF105: -0.009943210221 | CG105: -0.008792667049 | CH105: -0.01133574927 | CI105: -0.01196746682 | CJ105: -0.012408118 | CK105: -0.01183301138 | CL105: -0.01007602431 | CM105: -0.009229985427 | CN105: -0.009265931504 | CO105: -0.009671977821 | CP105: -0.007324178745 | CQ105: -0.005758140671 | CR105: -0.005807979099 | CS105: -0.005583517235 | CT105: -0.006006661495 | CU105: -0.006344205041 | CV105: -0.005079008256 | CW105: -0.003940004676 | CX105: -0.003843330642 | CY105: -0.005136866171 | CZ105: -0.004156758058 | DA105: -0.00253635518 | DB105: -0.002750298074 | DC105: -0.004542759387 | DD105: -0.007151696899 | DE105: -0.005570354693 | DF105: -0.006059214372 | DG105: -0.00632151608 | DH105: -0.005784135786 | DI105: -0.00888599656 | DJ105: -0.007535508233 | DK105: -0.007487635951 | DL105: -0.008678128683 | DM105: -0.005674966972 | DN105: -0.005706953218 | DO105: -0.006096409378 | DP105: -0.008324348123 | DQ105: -0.007650621149 | DR105: -0.008456532862
B106: 3rd Quartile | C106: 0.01368963436 | D106: 0.01258949837 | E106: 0.01838625218 | F106: 0.02221314839 | G106: 0.01886288193 | H106: 0.01853724899 | I106: 0.02281115686 | J106: 0.02603966123 | K106: 0.03235455512 | L106: 0.03132546779 | M106: 0.03371696217 | N106: 0.03145112534 | O106: 0.03052206888 | P106: 0.03781518056 | Q106: 0.03576141838 | R106: 0.04040588316 | S106: 0.04399305746 | T106: 0.0464413031 | U106: 0.04662647976 | V106: 0.0537937313 | W106: 0.05598295038 | X106: 0.05857694333 | Y106: 0.06866512585 | Z106: 0.06509822381 | AA106: 0.07067374823 | AB106: 0.05873259059 | AC106: 0.06308222135 | AD106: 0.0617531469 | AE106: 0.06610147155 | AF106: 0.06491445946 | AG106: 0.06538384537 | AH106: 0.07010037796 | AI106: 0.0675506762 | AJ106: 0.07222647025 | AK106: 0.0767627297 | AL106: 0.07129358217 | AM106: 0.06576057309 | AN106: 0.06722445743 | AO106: 0.06710453991 | AP106: 0.06835345693 | AQ106: 0.06970045181 | AR106: 0.07056515191 | AS106: 0.07246450828 | AT106: 0.07103126046 | AU106: 0.07067723318 | AV106: 0.07472723279 | AW106: 0.06854560983 | AX106: 0.07309024952 | AY106: 0.07046229947 | AZ106: 0.07260834525 | BA106: 0.06924261701 | BB106: 0.0749763354 | BC106: 0.07458997701 | BD106: 0.07237012419 | BE106: 0.08320715596 | BF106: 0.08548689984 | BG106: 0.07941343061 | BH106: 0.08406946332 | BI106: 0.08566817191 | BJ106: 0.07938506981 | BK106: 0.07304164108 | BL106: 0.07257093941 | BM106: 0.07117092942 | BN106: 0.07682102118 | BO106: 0.07259977726 | BP106: 0.07659597192 | BQ106: 0.07767507685 | BR106: 0.08195840187 | BS106: 0.07556462426 | BT106: 0.08132028203 | BU106: 0.08582561719 | BV106: 0.08603165499 | BW106: 0.08164429572 | BX106: 0.07903827894 | BY106: 0.08714918956 | BZ106: 0.09003340686 | CA106: 0.09420764479 | CB106: 0.09666101509 | CC106: 0.08355081494 | CD106: 0.08669733619 | CE106: 0.08535104452 | CF106: 0.08963371869 | CG106: 0.09245591985 | CH106: 0.09048983784 | CI106: 0.08398148706 | CJ106: 0.08425706482 | CK106: 0.08776486459 | CL106: 0.08881907836 | CM106: 0.08278171817 | CN106: 0.08217537065 | CO106: 0.08296811107 | CP106: 0.08668792998 | CQ106: 0.09113800682 | CR106: 0.08823350372 | CS106: 0.08891488986 | CT106: 0.09191678567 | CU106: 0.09864001187 | CV106: 0.1025872163 | CW106: 0.1064292698 | CX106: 0.1030392287 | CY106: 0.1017976162 | CZ106: 0.1044930054 | DA106: 0.1117749484 | DB106: 0.1050224162 | DC106: 0.09726729736 | DD106: 0.09009499609 | DE106: 0.0941937943 | DF106: 0.1063010146 | DG106: 0.1047762543 | DH106: 0.105611316 | DI106: 0.1064581329 | DJ106: 0.1054739597 | DK106: 0.1082927634 | DL106: 0.1033913597 | DM106: 0.1032252917 | DN106: 0.1066636992 | DO106: 0.107703698 | DP106: 0.1057599779 | DQ106: 0.105540428 | DR106: 0.1094033735
B107: Max | C107: 0.03585050097 | D107: 0.0504972333 | E107: 0.06471912998 | F107: 0.09409384681 | G107: 0.09270383367 | H107: 0.1052126929 | I107: 0.1120819305 | J107: 0.1351633603 | K107: 0.105607049 | L107: 0.1031550872 | M107: 0.1021658387 | N107: 0.1312576339 | O107: 0.1572535272 | P107: 0.2139088452 | Q107: 0.2236343461 | R107: 0.1996462361 | S107: 0.1974456107 | T107: 0.2116872356 | U107: 0.1910552917 | V107: 0.1853152468 | W107: 0.1825095112 | X107: 0.185607337 | Y107: 0.1746249876 | Z107: 0.1919165204 | AA107: 0.2060195437 | AB107: 0.2096780491 | AC107: 0.2091142211 | AD107: 0.2120065633 | AE107: 0.201077889 | AF107: 0.1965906639 | AG107: 0.1864050498 | AH107: 0.1993097 | AI107: 0.1743181834 | AJ107: 0.2064351112 | AK107: 0.2153151983 | AL107: 0.2332539676 | AM107: 0.2302923311 | AN107: 0.2607327808 | AO107: 0.2727614895 | AP107: 0.2599884106 | AQ107: 0.2752879007 | AR107: 0.2533426576 | AS107: 0.264768908 | AT107: 0.2714739531 | AU107: 0.3149536966 | AV107: 0.3214130264 | AW107: 0.2834017128 | AX107: 0.2708333207 | AY107: 0.2831825175 | AZ107: 0.2747774421 | BA107: 0.2768184483 | BB107: 0.2572236368 | BC107: 0.2317897986 | BD107: 0.2517117048 | BE107: 0.2799459038 | BF107: 0.2695522804 | BG107: 0.2452530916 | BH107: 0.2474837538 | BI107: 0.2588052523 | BJ107: 0.2250641085 | BK107: 0.2377018737 | BL107: 0.220568808 | BM107: 0.2421427203 | BN107: 0.2436768041 | BO107: 0.2459328367 | BP107: 0.256107467 | BQ107: 0.294386505 | BR107: 0.2833341005 | BS107: 0.292603137 | BT107: 0.2990083408 | BU107: 0.278480175 | BV107: 0.2945903139 | BW107: 0.3105598057 | BX107: 0.3084318332 | BY107: 0.2998106478 | BZ107: 0.3010326179 | CA107: 0.2984044552 | CB107: 0.2906293799 | CC107: 0.316041808 | CD107: 0.3299950194 | CE107: 0.3419837073 | CF107: 0.3453526151 | CG107: 0.3405637388 | CH107: 0.3333143756 | CI107: 0.3393919017 | CJ107: 0.3293288979 | CK107: 0.3509231802 | CL107: 0.3584762769 | CM107: 0.3694080073 | CN107: 0.3557201548 | CO107: 0.3866018129 | CP107: 0.3965075254 | CQ107: 0.424666973 | CR107: 0.4500171265 | CS107: 0.4659583339 | CT107: 0.4648664476 | CU107: 0.4542089872 | CV107: 0.4525525454 | CW107: 0.4595073988 | CX107: 0.4512976253 | CY107: 0.3948279325 | CZ107: 0.4009437094 | DA107: 0.3966348702 | DB107: 0.3956878256 | DC107: 0.4127604867 | DD107: 0.3783202212 | DE107: 0.3761436586 | DF107: 0.378225238 | DG107: 0.3809349143 | DH107: 0.3916381468 | DI107: 0.4021972687 | DJ107: 0.4444792519 | DK107: 0.4398339244 | DL107: 0.4392585193 | DM107: 0.4364251994 | DN107: 0.443963202 | DO107: 0.4644951071 | DP107: 0.4421352664 | DQ107: 0.4459229758 | DR107: 0.452705302
A109: MFI SPY 4-Yr. REG | B109: Min | C109: -0.0313213972 | D109: -0.04714289625 | E109: -0.06436479993 | F109: -0.0643219583 | G109: -0.06899278275 | H109: -0.07632640357 | I109: -0.08491091792 | J109: -0.08981050597 | K109: -0.09241424144 | L109: -0.1049044444 | M109: -0.1037574931 | N109: -0.1146998609 | O109: -0.1102086813 | P109: -0.108848989 | Q109: -0.1232511515 | R109: -0.1375295374 | S109: -0.1398645154 | T109: -0.1474449556 | U109: -0.1503255894 | V109: -0.1557653411 | W109: -0.1538169298 | X109: -0.1505734324 | Y109: -0.1442969856 | Z109: -0.1661009763 | AA109: -0.1575576093 | AB109: -0.1689627461 | AC109: -0.177711447 | AD109: -0.1725602148 | AE109: -0.1813222286 | AF109: -0.1890932246 | AG109: -0.1871240021 | AH109: -0.1892842184 | AI109: -0.1960474698 | AJ109: -0.1851031456 | AK109: -0.1853924608 | AL109: -0.1768332358 | AM109: -0.1900541104 | AN109: -0.173197165 | AO109: -0.176630284 | AP109: -0.1803442631 | AQ109: -0.1939037462 | AR109: -0.1971114208 | AS109: -0.2174237678 | AT109: -0.2347228438 | AU109: -0.2534930486 | AV109: -0.2641499233 | AW109: -0.2635308811 | AX109: -0.2659852352 | AY109: -0.2569511568 | AZ109: -0.2494299724 | BA109: -0.2604999558 | BB109: -0.263699373 | BC109: -0.2551845604 | BD109: -0.2699531624 | BE109: -0.2782022409 | BF109: -0.2810406377 | BG109: -0.2955212011 | BH109: -0.3011013482 | BI109: -0.2933209821 | BJ109: -0.3029832749 | BK109: -0.2939673604 | BL109: -0.2893452649 | BM109: -0.3003149233 | BN109: -0.3071813563 | BO109: -0.3021301856 | BP109: -0.3109063316 | BQ109: -0.3115920901 | BR109: -0.3183541515 | BS109: -0.3096772518 | BT109: -0.3199323595 | BU109: -0.3301966419 | BV109: -0.3380036495 | BW109: -0.3580369756 | BX109: -0.3585820247 | BY109: -0.359106321 | BZ109: -0.3612078084 | CA109: -0.3456260563 | CB109: -0.3434171332 | CC109: -0.3218648227 | CD109: -0.3333695012 | CE109: -0.329832217 | CF109: -0.3195039346 | CG109: -0.3232364703 | CH109: -0.3307730814 | CI109: -0.340342454 | CJ109: -0.3212893166 | CK109: -0.337089728 | CL109: -0.3462937622 | CM109: -0.3391728466 | CN109: -0.3366703574 | CO109: -0.3544909886 | CP109: -0.350740186 | CQ109: -0.3504665054 | CR109: -0.3622024063 | CS109: -0.3804917573 | CT109: -0.3864287049 | CU109: -0.377892138 | CV109: -0.3819597509 | CW109: -0.385966613 | CX109: -0.3737857154 | CY109: -0.3780747569 | CZ109: -0.3729400614 | DA109: -0.3827502518 | DB109: -0.3712641601 | DC109: -0.3664140379 | DD109: -0.3749845826 | DE109: -0.3776568873 | DF109: -0.3816992866 | DG109: -0.3808225438 | DH109: -0.3807256573 | DI109: -0.3840164618 | DJ109: -0.3734817071 | DK109: -0.3763457881 | DL109: -0.3593053157 | DM109: -0.3647669749 | DN109: -0.3686752156 | DO109: -0.3782613381 | DP109: -0.3811659928 | DQ109: -0.3790754501 | DR109: -0.3865698315
B110: 1st Quartile | C110: -0.008165644162 | D110: -0.01197219661 | E110: -0.01691089861 | F110: -0.02246924251 | G110: -0.02555480886 | H110: -0.02250909719 | I110: -0.02744485627 | J110: -0.03734322748 | K110: -0.03356929675 | L110: -0.03104866219 | M110: -0.03715346815 | N110: -0.03742583718 | O110: -0.03611682994 | P110: -0.04262978254 | Q110: -0.03983931248 | R110: -0.04166236723 | S110: -0.04716722093 | T110: -0.05413281507 | U110: -0.05084682641 | V110: -0.05971024523 | W110: -0.05210814737 | X110: -0.05816352951 | Y110: -0.05772731137 | Z110: -0.05491225721 | AA110: -0.05312309351 | AB110: -0.05489136168 | AC110: -0.05716389561 | AD110: -0.05897580759 | AE110: -0.05684048113 | AF110: -0.06070882554 | AG110: -0.06393847509 | AH110: -0.06504232787 | AI110: -0.06320358045 | AJ110: -0.05947438897 | AK110: -0.06773492938 | AL110: -0.06225036421 | AM110: -0.07191242928 | AN110: -0.07457477624 | AO110: -0.07529961683 | AP110: -0.07490928787 | AQ110: -0.07609136602 | AR110: -0.07165898109 | AS110: -0.07166237512 | AT110: -0.07437196859 | AU110: -0.07455159943 | AV110: -0.08043357614 | AW110: -0.07405543235 | AX110: -0.07610673412 | AY110: -0.07336871024 | AZ110: -0.07489542147 | BA110: -0.07764357824 | BB110: -0.07975925343 | BC110: -0.07696791512 | BD110: -0.08045685324 | BE110: -0.08627638967 | BF110: -0.08333576224 | BG110: -0.08549269063 | BH110: -0.09032997763 | BI110: -0.09572881814 | BJ110: -0.09575348822 | BK110: -0.09332462043 | BL110: -0.09625299748 | BM110: -0.09709294837 | BN110: -0.102774226 | BO110: -0.09141015548 | BP110: -0.09068147762 | BQ110: -0.09683411158 | BR110: -0.09340611465 | BS110: -0.08804589077 | BT110: -0.08624248557 | BU110: -0.09310666352 | BV110: -0.09279574031 | BW110: -0.09562929886 | BX110: -0.0981425698 | BY110: -0.1017731463 | BZ110: -0.1081181906 | CA110: -0.1045210866 | CB110: -0.1110811953 | CC110: -0.1148389183 | CD110: -0.1145891708 | CE110: -0.1199027664 | CF110: -0.1175695922 | CG110: -0.1133498214 | CH110: -0.1142577311 | CI110: -0.1140438557 | CJ110: -0.1134661111 | CK110: -0.1111210062 | CL110: -0.1103177654 | CM110: -0.1079872343 | CN110: -0.1073773623 | CO110: -0.1113761876 | CP110: -0.1153513897 | CQ110: -0.1072104612 | CR110: -0.1080106689 | CS110: -0.1133784618 | CT110: -0.1168180597 | CU110: -0.1219188491 | CV110: -0.116812191 | CW110: -0.1123086459 | CX110: -0.1097869068 | CY110: -0.1131505318 | CZ110: -0.1129312578 | DA110: -0.1133750163 | DB110: -0.120719513 | DC110: -0.1206148131 | DD110: -0.122353169 | DE110: -0.1245800767 | DF110: -0.1242772146 | DG110: -0.1203500241 | DH110: -0.1265595923 | DI110: -0.1316759438 | DJ110: -0.1269315229 | DK110: -0.1228286662 | DL110: -0.1225030538 | DM110: -0.1183956437 | DN110: -0.1228193893 | DO110: -0.1249806087 | DP110: -0.1333428955 | DQ110: -0.1354376191 | DR110: -0.1333372704
B111: Median | C111: 0.0002636215108 | D111: 0.0001756889907 | E111: -0.00462173644 | F111: -0.002719282514 | G111: -0.002308683012 | H111: -0.005417234104 | I111: -0.005502277658 | J111: -0.007635098377 | K111: -0.001618383444 | L111: -0.002204446936 | M111: 0.0001933925821 | N111: 0.001500452652 | O111: 0.001173182328 | P111: -0.0006208107576 | Q111: 0.002284287647 | R111: 0.003074637278 | S111: 8.845423844e-05 | T111: 0.002974010741 | U111: 0.004250412979 | V111: 0.004088510111 | W111: 0.002234221381 | X111: -0.0005521413016 | Y111: 0.001199964983 | Z111: -0.004503686164 | AA111: 0.0001720353649 | AB111: -0.008514632014 | AC111: -0.008750092824 | AD111: -0.0101916575 | AE111: -0.009218615966 | AF111: -0.01041735656 | AG111: -0.008817510258 | AH111: 0.00364731076 | AI111: 0.0002005397832 | AJ111: -0.004656465347 | AK111: -0.002883847188 | AL111: -0.006189975797 | AM111: -0.005120086508 | AN111: -0.005049710899 | AO111: 0.002143314187 | AP111: -0.002381161664 | AQ111: -0.00280805748 | AR111: -0.007473836147 | AS111: -0.007591453974 | AT111: -0.0009160830618 | AU111: 0.0005971301509 | AV111: 0.0009672970054 | AW111: -0.005983722589 | AX111: -0.005296222622 | AY111: -0.009108834497 | AZ111: -0.01047116791 | BA111: -0.006004771416 | BB111: -0.006201585039 | BC111: -0.007866602049 | BD111: -0.006715141341 | BE111: -0.008426696106 | BF111: -0.01220473638 | BG111: -0.0105243281 | BH111: -0.01371915806 | BI111: -0.00813596566 | BJ111: -0.016371149 | BK111: -0.01675696072 | BL111: -0.01948351386 | BM111: -0.0138583391 | BN111: -0.01718891089 | BO111: -0.01275461932 | BP111: -0.01021097896 | BQ111: -0.01834059761 | BR111: -0.01710583083 | BS111: -0.01908934546 | BT111: -0.0235734951 | BU111: -0.02464265868 | BV111: -0.02126418215 | BW111: -0.01785810925 | BX111: -0.01412312924 | BY111: -0.01700270676 | BZ111: -0.01031637437 | CA111: -0.02822883777 | CB111: -0.02103731767 | CC111: -0.02225486345 | CD111: -0.02766538532 | CE111: -0.02835742524 | CF111: -0.02317439733 | CG111: -0.02318493547 | CH111: -0.0190110947 | CI111: -0.02369672211 | CJ111: -0.0237157095 | CK111: -0.02993088884 | CL111: -0.02769487508 | CM111: -0.02458899351 | CN111: -0.01624821139 | CO111: -0.03165840542 | CP111: -0.01976747244 | CQ111: -0.02178625938 | CR111: -0.01467280198 | CS111: -0.02280749635 | CT111: -0.0232566303 | CU111: -0.02400974823 | CV111: -0.02376704276 | CW111: -0.01540721981 | CX111: -0.01672083691 | CY111: -0.02257307467 | CZ111: -0.01654552936 | DA111: -0.0108784015 | DB111: -0.01880893661 | DC111: -0.02061643107 | DD111: -0.02174708825 | DE111: -0.01998377254 | DF111: -0.01969611597 | DG111: -0.01828763456 | DH111: -0.01751926762 | DI111: -0.01851660005 | DJ111: -0.01998488309 | DK111: -0.01866500112 | DL111: -0.0159028209 | DM111: -0.01632913732 | DN111: -0.01497922982 | DO111: -0.01439091467 | DP111: -0.02400583042 | DQ111: -0.01722421833 | DR111: -0.01921554798
B112: Mean | C112: 0.001611643963 | D112: -8.846379874e-06 | E112: -3.030865894e-05 | F112: 0.0004273642749 | G112: -0.001389651357 | H112: -0.003049129924 | I112: -0.002223624696 | J112: -0.00377039264 | K112: -0.001733236541 | L112: -0.0009037521624 | M112: 9.262255213e-05 | N112: -0.0008119223082 | O112: 0.000571177487 | P112: 0.0008456592661 | Q112: -0.000342587292 | R112: 0.001270134028 | S112: 0.0007243257748 | T112: 0.0007036418427 | U112: 0.001375293052 | V112: 0.0006379230223 | W112: 0.001263084871 | X112: 0.0001973815391 | Y112: 0.001566687173 | Z112: 0.002411776698 | AA112: 0.002360892504 | AB112: 0.0004519035866 | AC112: 0.001416748349 | AD112: 0.0005851580855 | AE112: 0.0001385184165 | AF112: 0.0003967740269 | AG112: 0.0006668908142 | AH112: 0.001748430646 | AI112: 0.002666670011 | AJ112: 0.003858160223 | AK112: 0.001894451328 | AL112: 0.00138519203 | AM112: -0.002328957743 | AN112: -0.003821601775 | AO112: -0.00190552968 | AP112: -0.002755990436 | AQ112: -0.003220799844 | AR112: -0.003286642652 | AS112: -0.003007641927 | AT112: -0.003213036443 | AU112: -0.001660631811 | AV112: -0.003208107619 | AW112: -0.003406558331 | AX112: -0.003379752064 | AY112: -0.00366638305 | AZ112: -0.003570518901 | BA112: -0.003671972732 | BB112: -0.003233993462 | BC112: -0.002012207304 | BD112: -0.002492765917 | BE112: -0.004946754679 | BF112: -0.006039960498 | BG112: -0.006285506239 | BH112: -0.006849002859 | BI112: -0.007735323434 | BJ112: -0.009250984595 | BK112: -0.0112353827 | BL112: -0.01139978425 | BM112: -0.01092806178 | BN112: -0.01045529301 | BO112: -0.01045172166 | BP112: -0.01148408807 | BQ112: -0.01188610643 | BR112: -0.009895745731 | BS112: -0.009271485055 | BT112: -0.008329436198 | BU112: -0.00898376576 | BV112: -0.009572446206 | BW112: -0.008917072738 | BX112: -0.00738978061 | BY112: -0.006581213581 | BZ112: -0.00724046576 | CA112: -0.008519525414 | CB112: -0.009787472662 | CC112: -0.00909222546 | CD112: -0.00882524403 | CE112: -0.008204903235 | CF112: -0.009111873241 | CG112: -0.008013268575 | CH112: -0.01049440107 | CI112: -0.01112555789 | CJ112: -0.01160817062 | CK112: -0.01102737137 | CL112: -0.009333607627 | CM112: -0.008381675687 | CN112: -0.008314985699 | CO112: -0.008808110306 | CP112: -0.006472870472 | CQ112: -0.004877062638 | CR112: -0.004893160916 | CS112: -0.004455799001 | CT112: -0.004823953438 | CU112: -0.005207679019 | CV112: -0.003888589835 | CW112: -0.002708892988 | CX112: -0.002685816907 | CY112: -0.003922630509 | CZ112: -0.002736917173 | DA112: -0.001090679991 | DB112: -0.001413062417 | DC112: -0.003164357903 | DD112: -0.005738430384 | DE112: -0.003996445507 | DF112: -0.004436260474 | DG112: -0.004587428325 | DH112: -0.003981153915 | DI112: -0.007018976972 | DJ112: -0.005696947395 | DK112: -0.005609938035 | DL112: -0.006747427 | DM112: -0.00379032274 | DN112: -0.003845012906 | DO112: -0.004108620907 | DP112: -0.006248399792 | DQ112: -0.005627147951 | DR112: -0.00647724325
B113: 3rd Quartile | C113: 0.01358809907 | D113: 0.01317961879 | E113: 0.01829670924 | F113: 0.02250477624 | G113: 0.01861850009 | H113: 0.01807181681 | I113: 0.02284885397 | J113: 0.02577412544 | K113: 0.03171894998 | L113: 0.03140906857 | M113: 0.03417524792 | N113: 0.03102109646 | O113: 0.03289810086 | P113: 0.03531883402 | Q113: 0.03600827543 | R113: 0.03967943279 | S113: 0.04338222272 | T113: 0.04665264058 | U113: 0.04494698742 | V113: 0.05240711919 | W113: 0.05520214703 | X113: 0.05813771091 | Y113: 0.06751989501 | Z113: 0.06551246629 | AA113: 0.07180404549 | AB113: 0.06062852742 | AC113: 0.06251146621 | AD113: 0.06366535548 | AE113: 0.06301991123 | AF113: 0.06546693868 | AG113: 0.06311875902 | AH113: 0.06288693132 | AI113: 0.06761520172 | AJ113: 0.07132083844 | AK113: 0.07960967511 | AL113: 0.07286689635 | AM113: 0.06684459338 | AN113: 0.06785669177 | AO113: 0.06864317727 | AP113: 0.06885628776 | AQ113: 0.06845523354 | AR113: 0.06958331275 | AS113: 0.07259470094 | AT113: 0.07135782941 | AU113: 0.06859179179 | AV113: 0.06738106591 | AW113: 0.06755374081 | AX113: 0.0721886635 | AY113: 0.07132072946 | AZ113: 0.07368297869 | BA113: 0.07047381344 | BB113: 0.07684319669 | BC113: 0.08200638158 | BD113: 0.0728806585 | BE113: 0.07986177505 | BF113: 0.0800234646 | BG113: 0.07720813715 | BH113: 0.08553460766 | BI113: 0.09043879768 | BJ113: 0.08088402971 | BK113: 0.07181786276 | BL113: 0.07268087144 | BM113: 0.06909467188 | BN113: 0.07546219426 | BO113: 0.07101157518 | BP113: 0.07230655856 | BQ113: 0.07083430799 | BR113: 0.07573055887 | BS113: 0.074900801 | BT113: 0.08443677266 | BU113: 0.08734314661 | BV113: 0.08220858428 | BW113: 0.08172664845 | BX113: 0.07646153883 | BY113: 0.07651692926 | BZ113: 0.08604244618 | CA113: 0.09472253901 | CB113: 0.08801940389 | CC113: 0.08782706337 | CD113: 0.08474664527 | CE113: 0.08828589745 | CF113: 0.08239525438 | CG113: 0.09456867257 | CH113: 0.08720220307 | CI113: 0.07776697629 | CJ113: 0.07849599231 | CK113: 0.07678819253 | CL113: 0.0798245125 | CM113: 0.08253025138 | CN113: 0.08569459697 | CO113: 0.08097081065 | CP113: 0.08713610137 | CQ113: 0.09358909045 | CR113: 0.09011973182 | CS113: 0.09341045244 | CT113: 0.09832882149 | CU113: 0.09888532128 | CV113: 0.09804950735 | CW113: 0.1027279994 | CX113: 0.09636200503 | CY113: 0.1036856606 | CZ113: 0.1016228228 | DA113: 0.1070739456 | DB113: 0.1027203348 | DC113: 0.09133505681 | DD113: 0.08567286438 | DE113: 0.09004311936 | DF113: 0.09671821533 | DG113: 0.09892383357 | DH113: 0.09605815886 | DI113: 0.1020645422 | DJ113: 0.1021353151 | DK113: 0.1011924199 | DL113: 0.1027908185 | DM113: 0.1056343903 | DN113: 0.1101505759 | DO113: 0.1024841713 | DP113: 0.1046922659 | DQ113: 0.1059134578 | DR113: 0.1033325429
B114: Max | C114: 0.03618510356 | D114: 0.05078119285 | E114: 0.06495944892 | F114: 0.09499320802 | G114: 0.09792272201 | H114: 0.1062955808 | I114: 0.1158728843 | J114: 0.1398700671 | K114: 0.1114344266 | L114: 0.1091107032 | M114: 0.1057440829 | N114: 0.1296204207 | O114: 0.1542847849 | P114: 0.211013078 | Q114: 0.221683416 | R114: 0.1974001261 | S114: 0.194123857 | T114: 0.2084179619 | U114: 0.1881411968 | V114: 0.1820684457 | W114: 0.1782845932 | X114: 0.1801826341 | Y114: 0.1689685454 | Z114: 0.1868015414 | AA114: 0.2001352027 | AB114: 0.2076676032 | AC114: 0.2004267135 | AD114: 0.2029873773 | AE114: 0.1961057582 | AF114: 0.1928344636 | AG114: 0.1911642704 | AH114: 0.2037898508 | AI114: 0.1751734889 | AJ114: 0.2125265749 | AK114: 0.2210812758 | AL114: 0.2385174167 | AM114: 0.233624869 | AN114: 0.2622975186 | AO114: 0.2731845134 | AP114: 0.260234554 | AQ114: 0.2765445306 | AR114: 0.2551274431 | AS114: 0.2657430914 | AT114: 0.2722219122 | AU114: 0.3152481673 | AV114: 0.3214839688 | AW114: 0.2842038023 | AX114: 0.271767556 | AY114: 0.2840316507 | AZ114: 0.2753806666 | BA114: 0.2776562027 | BB114: 0.2595540965 | BC114: 0.2321095121 | BD114: 0.2521058786 | BE114: 0.2792064591 | BF114: 0.2691379539 | BG114: 0.2450265798 | BH114: 0.2481182039 | BI114: 0.2591783545 | BJ114: 0.2237216866 | BK114: 0.2345358492 | BL114: 0.2192284853 | BM114: 0.2273566351 | BN114: 0.244714374 | BO114: 0.2416608681 | BP114: 0.2524045809 | BQ114: 0.2903522213 | BR114: 0.2762070944 | BS114: 0.2855178085 | BT114: 0.2929982942 | BU114: 0.2825451729 | BV114: 0.3076478306 | BW114: 0.3265742107 | BX114: 0.3177308066 | BY114: 0.3199511658 | BZ114: 0.3018625762 | CA114: 0.3041218159 | CB114: 0.3052511393 | CC114: 0.3239168923 | CD114: 0.335710036 | CE114: 0.3398959817 | CF114: 0.3582841618 | CG114: 0.3250702115 | CH114: 0.3336057879 | CI114: 0.3265976532 | CJ114: 0.3242783937 | CK114: 0.3383283479 | CL114: 0.3577083876 | CM114: 0.3692193699 | CN114: 0.3574582273 | CO114: 0.3940123545 | CP114: 0.4037599519 | CQ114: 0.4115737206 | CR114: 0.4594122659 | CS114: 0.4756706122 | CT114: 0.4744794042 | CU114: 0.4636605645 | CV114: 0.4613922695 | CW114: 0.4677700336 | CX114: 0.4602107609 | CY114: 0.4045205063 | CZ114: 0.4018344077 | DA114: 0.3968289926 | DB114: 0.4021179408 | DC114: 0.4090496478 | DD114: 0.3863045654 | DE114: 0.3838479401 | DF114: 0.3778700334 | DG114: 0.3814730282 | DH114: 0.3998199568 | DI114: 0.410217026 | DJ114: 0.451598412 | DK114: 0.4479691659 | DL114: 0.4485396525 | DM114: 0.4443172736 | DN114: 0.4515225864 | DO114: 0.4729119932 | DP114: 0.4516586807 | DQ114: 0.4536668588 | DR114: 0.4587674123
A116: MFI RUS 4-Yr. REG | B116: Min | C116: -0.06950993283 | D116: -0.104232408 | E116: -0.1579951806 | F116: -0.1349564217 | G116: -0.1908939394 | H116: -0.2057957458 | I116: -0.2226549898 | J116: -0.2401963908 | K116: -0.2456714891 | L116: -0.2296353652 | M116: -0.2655722159 | N116: -0.2694837858 | O116: -0.2707113003 | P116: -0.25171334 | Q116: -0.2539367354 | R116: -0.2559105845 | S116: -0.2798873802 | T116: -0.2805230105 | U116: -0.2750481324 | V116: -0.29539791 | W116: -0.2771118511 | X116: -0.3124125117 | Y116: -0.3211304402 | Z116: -0.3579084242 | AA116: -0.3580983266 | AB116: -0.3640343429 | AC116: -0.3901689801 | AD116: -0.4004211583 | AE116: -0.4323300078 | AF116: -0.4316502113 | AG116: -0.4462679319 | AH116: -0.4644332553 | AI116: -0.4440613084 | AJ116: -0.4360139698 | AK116: -0.405973859 | AL116: -0.4277572955 | AM116: -0.4227068068 | AN116: -0.433171627 | AO116: -0.4261402239 | AP116: -0.419995904 | AQ116: -0.4312803242 | AR116: -0.4138961382 | AS116: -0.4173787825 | AT116: -0.4306803389 | AU116: -0.4405201522 | AV116: -0.4627928755 | AW116: -0.4421208561 | AX116: -0.4312243302 | AY116: -0.4239378003 | AZ116: -0.4301105588 | BA116: -0.4462539222 | BB116: -0.4541322427 | BC116: -0.4585485384 | BD116: -0.4712299546 | BE116: -0.4788567347 | BF116: -0.4810655301 | BG116: -0.5055048158 | BH116: -0.4783980985 | BI116: -0.4494414285 | BJ116: -0.444836807 | BK116: -0.45315412 | BL116: -0.4943756785 | BM116: -0.4938629003 | BN116: -0.5335164526 | BO116: -0.5256641031 | BP116: -0.5442894054 | BQ116: -0.531683377 | BR116: -0.50300661 | BS116: -0.5215879114 | BT116: -0.493726817 | BU116: -0.4814903445 | BV116: -0.5055794541 | BW116: -0.5156191881 | BX116: -0.5123510543 | BY116: -0.5255136604 | BZ116: -0.5343369086 | CA116: -0.5470944946 | CB116: -0.5480845074 | CC116: -0.5504539678 | CD116: -0.5340755987 | CE116: -0.5491329628 | CF116: -0.549510985 | CG116: -0.5349514389 | CH116: -0.5399470534 | CI116: -0.5422705809 | CJ116: -0.5577590273 | CK116: -0.5594070544 | CL116: -0.5583346868 | CM116: -0.5653739834 | CN116: -0.5515509604 | CO116: -0.5776573064 | CP116: -0.6003962458 | CQ116: -0.5955663212 | CR116: -0.5902123885 | CS116: -0.5854118067 | CT116: -0.6012071397 | CU116: -0.6133076933 | CV116: -0.6294825527 | CW116: -0.6160118641 | CX116: -0.6433374628 | CY116: -0.6550402164 | CZ116: -0.6708002591 | DA116: -0.6717143597 | DB116: -0.6660530138 | DC116: -0.6733616108 | DD116: -0.665711621 | DE116: -0.6432942959 | DF116: -0.6413257801 | DG116: -0.6405657683 | DH116: -0.6570159543 | DI116: -0.6700435533 | DJ116: -0.6618636814 | DK116: -0.6613707503 | DL116: -0.6762518029 | DM116: -0.6812144132 | DN116: -0.680094035 | DO116: -0.6753202491 | DP116: -0.6868046982 | DQ116: -0.6875226008 | DR116: -0.6979539625
B117: 1st Quartile | C117: -0.01711029283 | D117: -0.0260858567 | E117: -0.03981595297 | F117: -0.04595614258 | G117: -0.04985005164 | H117: -0.05014505888 | I117: -0.05660325942 | J117: -0.06393385691 | K117: -0.07112357856 | L117: -0.07208421269 | M117: -0.07600486758 | N117: -0.07463183417 | O117: -0.07103275463 | P117: -0.09373525456 | Q117: -0.08898515257 | R117: -0.09051185791 | S117: -0.09672644501 | T117: -0.09518277309 | U117: -0.0987210392 | V117: -0.1105397875 | W117: -0.0943641616 | X117: -0.1062072286 | Y117: -0.1108062787 | Z117: -0.1137175332 | AA117: -0.1241971279 | AB117: -0.119800287 | AC117: -0.1186482526 | AD117: -0.1244547417 | AE117: -0.1187055899 | AF117: -0.1319849093 | AG117: -0.1417088352 | AH117: -0.1387876892 | AI117: -0.1340334071 | AJ117: -0.1341403687 | AK117: -0.1433096667 | AL117: -0.1572574595 | AM117: -0.148511144 | AN117: -0.1433683094 | AO117: -0.1585381007 | AP117: -0.1571237281 | AQ117: -0.1733508437 | AR117: -0.1768123507 | AS117: -0.178500166 | AT117: -0.1636585472 | AU117: -0.163286511 | AV117: -0.1729824225 | AW117: -0.177042494 | AX117: -0.1851779314 | AY117: -0.2014225141 | AZ117: -0.1993652421 | BA117: -0.2010723806 | BB117: -0.2004433186 | BC117: -0.210002776 | BD117: -0.2025095535 | BE117: -0.2027792724 | BF117: -0.2047779467 | BG117: -0.2075370349 | BH117: -0.2170867529 | BI117: -0.2109901601 | BJ117: -0.2184757201 | BK117: -0.2225785756 | BL117: -0.2297417149 | BM117: -0.2137495981 | BN117: -0.2268602659 | BO117: -0.2273685347 | BP117: -0.2362859211 | BQ117: -0.2281008597 | BR117: -0.252970998 | BS117: -0.246643887 | BT117: -0.2630660882 | BU117: -0.2504762471 | BV117: -0.2378195708 | BW117: -0.2374194369 | BX117: -0.2452062374 | BY117: -0.2364808589 | BZ117: -0.2460912747 | CA117: -0.2360964336 | CB117: -0.2514528202 | CC117: -0.245128615 | CD117: -0.2668831492 | CE117: -0.2708250098 | CF117: -0.269170919 | CG117: -0.276679748 | CH117: -0.2718610305 | CI117: -0.2536905493 | CJ117: -0.2682676394 | CK117: -0.2678156823 | CL117: -0.2665990511 | CM117: -0.274304066 | CN117: -0.2810061929 | CO117: -0.2878185314 | CP117: -0.2735509631 | CQ117: -0.2669021843 | CR117: -0.276683953 | CS117: -0.2572188796 | CT117: -0.2742545815 | CU117: -0.2847647461 | CV117: -0.2892303816 | CW117: -0.280201889 | CX117: -0.2919765392 | CY117: -0.2951944248 | CZ117: -0.2797888599 | DA117: -0.2840134574 | DB117: -0.2856468319 | DC117: -0.2881649453 | DD117: -0.2866361277 | DE117: -0.2706353357 | DF117: -0.2786878033 | DG117: -0.2988631934 | DH117: -0.2904733032 | DI117: -0.2842196999 | DJ117: -0.300265761 | DK117: -0.2994822227 | DL117: -0.2995480279 | DM117: -0.2940600757 | DN117: -0.3019465873 | DO117: -0.3059865371 | DP117: -0.2973298815 | DQ117: -0.3082195131 | DR117: -0.3113553222
